Workbook

Sheet Control (hidden)
F1: Version2.b
D5: PriceList Month | F5: April
D6: Pricelist Year (YYYY) | F6: 2013

Sheet Change Log
B4: Microsoft Dynamics® GP Price List Change Log
B5: ='GP Master Calc'!E5 -> Price List – Effective April, 2013
B6: Date | C6: Affected Countries | D6: ROC | E6: Type of Change | F6: Edition | G6: Summary of Change | H6: SKU | I6: Additional Resource
B7: 2013-01-01 | C7: Worldwide | D7: All | E7: Price Change | F7: All | G7: Price changed on Microsoft® SQL Server® 2008 R2 Standard & Enterprise Edition Runtime Server License (English) and Microsoft® SQL Server ® 2008 R2 Standard & Enterprise Edition Runtime CAL (English). Please refer to PartnerSource for further information. | H7: 109100717, 109100709, 109100703, 109100716
B8: 2013-01-01 | C8: India | D8: APOC | E8: Removal | F8: All | G8: SQL removed for India. Please refer to PartnerSource announcements for further information.
B9: 2013-01-01 | C9: India | D9: APOC | E9: Price | F9: All | G9: 10% price increase for India. Please refer to PartnerSource announcements for further information.

Sheet Order Form
AJ1: Selected Language Code | AL1: 1 | AM1: 0 | AP1: ORDERTYPETRANS | AU1: ENHANCEMENTPLANTRANS | AZ1: NACECODETRANS | BE1: UPGRADETRANS
B2: Microsoft Dynamics Global Order Form | Y2: NACECODE | AA2: ENHANCEMENTPLAN | AC2: PRODUCT-ALL | AE2: COUNTRY | AG2: EEASCOUNTRY | AI2: 1 | AJ2: English | AK2: Deutsch (German) | AL2: Japanese | AM2: Notes | AN2: 1 | AO2: English | AP2: Deutsch (German) | AQ2: Japanese | AR2: Notes | AS2: 1 | AT2: English | AU2: Deutsch (German) | AV2: Japanese | AW2: Notes | AX2: 1 | AY2: English | AZ2: Deutsch (German) | BA2: Japanese | BB2: Notes | BC2: 1 | BD2: English | BE2: Deutsch (German) | BF2: Japanese | BG2: Notes
Y3: =INDEX(NACECODETRANS[],$AX2,OFSELECETEDLANGUAGECODE,1) -> 1 - Agriculture, hunting, etc. | AA3: =INDEX(ENHANCEMENTPLANTRANS[],$AS2,OFSELECETEDLANGUAGECODE,1) -> 1 Year | AC3: All | AE3: Afghanistan | AG3: Andorra | AI3: 2 | AJ3: EOC – Europe, Middle East & Africa | AK3: EOC – Information zur Bestellerfassung – Europa, Naher Osten & Afrika | AN3: 2 | AO3: None Selected | AP3: None Selected | AQ3: None Selected | AS3: 2 | AT3: 1 Year | AU3: 1 Year | AV3: 1年間プラン | AX3: 2 | AY3: 1 - Agriculture, hunting, etc. | AZ3: 1 - Agriculture, hunting, etc. | BA3: 該当するものを選択してください | BC3: 2 | BD3: Formula Based Upgrade/Transition | BE3: Formula Based Upgrade/Transition | BF3: 計算式ベースの製品バージョンのアップグレード/移行
B4: =INDEX(ORDERFORMTRANSTABLE[],$AI78,OFSELECETEDLANGUAGECODE,1) -> Submission Details: | C4: =INDEX(ORDERFORMTRANSTABLE[],$AI2,OFSELECETEDLANGUAGECODE,1) -> EOC – Europe, Middle East & Africa | G4: Form Version 7-5W | Y4: =INDEX(NACECODETRANS[],$AX3,OFSELECETEDLANGUAGECODE,1) -> 2 - Forestry, etc. | AA4: =INDEX(ENHANCEMENTPLANTRANS[],$AS3,OFSELECETEDLANGUAGECODE,1) -> 3 Years: Annually | AC4: Microsoft Dynamics AX 2012 | AE4: Albania | AG4: Austria | AI4: 3 | AJ4: AOC – North America, Canada and LATAM region | AK4: AOC – Information zur Bestellerfassung – Nordamerika, Kanada und LATAM-Region | AN4: 3 | AO4: New License | AP4: New License | AQ4: New License | AS4: 3 | AT4: 3 Years: Annually | AU4: 3 Years: Annually | AV4: 3年間プラン: 年次 | AX4: 3 | AY4: 2 - Forestry, etc. | AZ4: 2 - Forestry, etc. | BA4: 10000 農業 | BC4: 3 | BD4: Credit Based Upgrade/Transition | BE4: Credit Based Upgrade/Transition | BF4: クレジット ベースの製品バージョンのアップグレード/移行
C5: =INDEX(ORDERFORMTRANSTABLE[],$AI82,OFSELECETEDLANGUAGECODE,1) -> MIMOS Operations Support Request | Y5: =INDEX(NACECODETRANS[],$AX4,OFSELECETEDLANGUAGECODE,1) -> 5 - Fishing, etc. | AA5: =INDEX(ENHANCEMENTPLANTRANS[],$AS4,OFSELECETEDLANGUAGECODE,1) -> 3 Years: Upfront | AC5: Microsoft Dynamics NAV | AE5: Algeria | AG5: Belgium | AI5: 4 | AJ5: APOC – Asia-Pacific Region | AK5: APOC – Information zur Bestellerfassung – Asien-Pazifik-Region | AL5: APOC - 日本を含むアジア・太平洋地域 - オーダーに関するお問い合わせ先 - | AN5: 4 | AO5: Additional Product | AP5: Additional Product | AQ5: Additional Product | AS5: 4 | AT5: 3 Years: Upfront | AU5: 3 Years: Upfront | AV5: 3年間プラン: 一括 | AX5: 4 | AY5: 5 - Fishing, etc. | AZ5: 5 - Fishing, etc. | BA5: 20000 森林業
Y6: =INDEX(NACECODETRANS[],$AX5,OFSELECETEDLANGUAGECODE,1) -> 10 - Coalmines, lignite leasings and peat bog excavation | AC6: Microsoft Dynamics NAV Perpetual | AE6: American Samoa | AG6: Bouvet Island | AI6: 5 | AJ6: AOC PARTNERS PLEASE NOTE: | AK6: HINWEIS FÜR AOC-PARTNER: | AN6: 5 | AO6: Enhancement Renewal/Re-Enrolment | AP6: Enhancement Renewal/Re-Enrolment | AQ6: Enhancement Renewal/Re-Enrolment | AX6: 5 | AY6: 10 - Coalmines, lignite leasings and peat bog excavation | AZ6: 10 - Coalmines, lignite leasings and peat bog excavation | BA6: 50000 漁業
C7: =INDEX(ORDERFORMTRANSTABLE[],$AI3,OFSELECETEDLANGUAGECODE,1) -> AOC – North America, Canada and LATAM region | Y7: =INDEX(NACECODETRANS[],$AX6,OFSELECETEDLANGUAGECODE,1) -> 11 - Crude oil and natural gas extraction | AC7: Microsoft Dynamics AX | AE7: Andorra | AG7: Bulgaria | AI7: 6 | AJ7: In order to ensure the fastest order processing, the following completed Order Form is now required for all eligible manual orders in AOC. | AK7: Um eine schnellstmögliche Bearbeitung Ihrer Bestellung zu gewährleisten, ist künftig dieses vollständig ausgefüllte Bestellformular für alle entsprechenden manuellen Bestellungen in AOC erforderlich. | AN7: 6 | AO7: Transition | AP7: Transition | AQ7: Transition | AX7: 6 | AY7: 11 - Crude oil and natural gas extraction | AZ7: 11 - Crude oil and natural gas extraction | BA7: 100000 石炭製品製造業 | BD7: NAVUPGRADE
C8: =INDEX(ORDERFORMTRANSTABLE[],$AI83,OFSELECETEDLANGUAGECODE,1) -> mbsquery@microsoft.com | Y8: =INDEX(NACECODETRANS[],$AX7,OFSELECETEDLANGUAGECODE,1) -> 12 - Uranium ore and thorium ore quarrying | AC8: Microsoft Dynamics GP | AE8: Angola | AG8: Croatia | AI8: 7 | AJ8: 1. Orders received on out-of-date pricelists will not be processed and will be returned to the sender for correction. | AK8: 1. Bestellungen, die anhand von veralteten Preislisten erstellt wurden, werden nicht angenommen. Der Absender erhält sie zur Korrektur zurück. | AL8: 1. 期限切れのプライスリストによって提出されたオーダーは処理されません。送り先へ修正のため返送されるのでご了承ください。 | AN8: 7 | AO8: Additional Product + Enhancement Renewal | AP8: Additional Product + Enhancement Renewal | AQ8: Additional Product + Enhancement Renewal | AX8: 7 | AY8: 12 - Uranium ore and thorium ore quarrying | AZ8: 12 - Uranium ore and thorium ore quarrying | BA8: 110000 原油・天然ガス鉱業 | BC8: 1 | BD8: English | BE8: Deutsch (German) | BF8: Japanese | BG8: Notes
Y9: =INDEX(NACECODETRANS[],$AX8,OFSELECETEDLANGUAGECODE,1) -> 13 - Quarrying of metalliferous ore | AC9: Microsoft Dynamics GP Perpetual | AE9: Anguilla | AG9: Cyprus | AI9: 8 | AJ9: 2. Underlined fields are mandatory. | AK9: 2. Felder mit erforderlichen Angaben sind unterstrichen dargestellt. | AL9: 2. アンダーラインの箇所(_) は必須項目です。必ずご記入ください。ピンクの箇所は日英併記をお願いいたします。 | AN9: 8 | AO9: Step Up | AP9: Step Up | AQ9: Step Up | AX9: 8 | AY9: 13 - Quarrying of metalliferous ore | AZ9: 13 - Quarrying of metalliferous ore | BA9: 130000 金属鉱業 | BC9: 2 | BD9: License migration transition/upgrade’ | BE9: Formula Based Upgrade/Transition | BF9: 計算式ベースの製品バージョンのアップグレード/移行
C10: =INDEX(ORDERFORMTRANSTABLE[],$AI4,OFSELECETEDLANGUAGECODE,1) -> APOC – Asia-Pacific Region | Y10: =INDEX(NACECODETRANS[],$AX9,OFSELECETEDLANGUAGECODE,1) -> 14 - Extraction of raw material in general | AC10: Microsoft Dynamics SL | AE10: Antarctica | AG10: Czech Republic | AI10: 9 | AJ10: 3. Alterations to the format of this coversheet may result in delays or non-acceptance. | AK10: 3. Änderungen am Layout dieses Bestellformulars führen ggf. zu Verzögerungen oder zur Ablehnung der Bestellung. | AL10: 3. このオーダーフォーム以外でオーダーした場合、承認が遅れたり、オーダーを受け付けられなかったりする可能性があります。 | AN10: 9 | AO10: Additional Product + Step Up | AP10: Additional Product + Step Up | AQ10: Additional Product + Step Up | AX10: 9 | AY10: 14 - Extraction of raw material in general | AZ10: 14 - Extraction of raw material in general | BA10: 140000 原料製造業一般 | BC10: 3 | BD10: Credit Based Upgrade/Transition | BE10: Credit Based Upgrade/Transition | BF10: クレジット ベースの製品バージョンのアップグレード/移行
C11: =INDEX(ORDERFORMTRANSTABLE[],$AI81,OFSELECETEDLANGUAGECODE,1) -> MIMOS Call Logging Tool | D11: =INDEX(ORDERFORMTRANSTABLE[],$AI79,OFSELECETEDLANGUAGECODE,1) -> Where CLT is not available, please use: | F11: mbsquery@microsoft.com | Y11: =INDEX(NACECODETRANS[],$AX10,OFSELECETEDLANGUAGECODE,1) -> 15 - Food and beverage production | AC11: Microsoft Dynamics CRM | AE11: Antigua and Barbuda | AG11: Denmark | AI11: 10 | AJ11: 4. To submit the order, please follow the standard process for your respective Regional Operations Center. | AK11: 4. Um die Bestellung aufzugeben, befolgen Sie bitte den Standardprozess Ihres zuständigen Regional Operations Centers. | AL11: 4. オーダー提出方法に関しては地域オペレーションセンターより指示されている方法に従ってください。 | AX11: 10 | AY11: 15 - Food and beverage production | AZ11: 15 - Food and beverage production | BA11: 150000 食料品・飲料製造業
Y12: =INDEX(NACECODETRANS[],$AX11,OFSELECETEDLANGUAGECODE,1) -> 16 - Tobacco factories | AC12: Microsoft Dynamics RMS | AE12: Argentina | AG12: Estonia | AI12: 11 | AJ12: 5. In the Order Type dropdown, please select 'Additional Product+Enhancement Renewal' only when you want to buy a brand new Enhancement Plan and some additional modules. | AK12: 5. Wählen Sie im Feld "Art der Bestellung" aus der Drop-down-Liste bitte nur dann 'Zusätzliches Produkt + Verlängerung Enhancement' aus, wenn Sie einen neuen Enhancement Plan und einige zusätzliche Module kaufen möchten. | AL12: 5. 注文書上「オーダータイプ」のプルダウンメニューにある、追加ライセンス+エンハンスメントプラン更新 (Additional Product+Enhancement Renewal)は、新規エンハンスメントプランと追加ライセンスを同時に購入する場合に使用します。 | AX12: 11 | AY12: 16 - Tobacco factories | AZ12: 16 - Tobacco factories | BA12: 160000 たばこ製造業
B13: =INDEX(ORDERFORMTRANSTABLE[],$AI5,OFSELECETEDLANGUAGECODE,1) -> AOC PARTNERS PLEASE NOTE: | Y13: =INDEX(NACECODETRANS[],$AX12,OFSELECETEDLANGUAGECODE,1) -> 17 - Textile industry | AA13: AGREEMENT | AC13: Microsoft Dynamics C5 | AE13: Armenia | AG13: Faroe Islands | AI13: 12 | AJ13: 6. This order may not be processed if your account has overdue balances or you have exceeded your credit limit. To check your account statement and credit limit please go to https://mbs.microsoft.com/voice and check your account information in Scorecard-Balance info. | AK13: 6. Bitte beachten Sie, dass diese Bestellung nur dann bearbeitet wird, wenn Ihr Konto keine überfälligen offenen Zahlungen aufweist und Sie Ihr Kreditlimit noch nicht ausgeschöpft haben. Ihren aktuellen Kontoauszug und Ihr Kreditlimit können Sie auf https://mbs.microsoft.com/voice einsehen, indem Sie Ihre Kontodaten in der Scorecard-Balance-Info überprüfen. | AL13: 6. アカウントに支払遅延分があり、また、与信限度額を超えていた場合、オーダーは処理されません。https://mbs.microsoft.com/voiceの Scorecard - バランスインフォメーションにて、取引詳細と与信限度額をご確認ください。 | AX13: 12 | AY13: 17 - Textile industry | AZ13: 17 - Textile industry | BA13: 170000 繊維工業
B14: =INDEX(ORDERFORMTRANSTABLE[],$AI6,OFSELECETEDLANGUAGECODE,1) -> In order to ensure the fastest order processing, the following completed Order Form is now required for all eligible manual orders in AOC. | Y14: =INDEX(NACECODETRANS[],$AX13,OFSELECETEDLANGUAGECODE,1) -> 18 - Footware and clothing industry | AA14: No | AC14: Microsoft Dynamics NAV MBL | AE14: Aruba | AG14: Finland | AI14: 13 | AJ14: Order Details: | AK14: Angaben zur Bestellung: | AL14: オーダー詳細 | AX14: 13 | AY14: 18 - Footware and clothing industry | AZ14: 18 - Footware and clothing industry | BA14: 180000 履物＆衣服製造業
Y15: =INDEX(NACECODETRANS[],$AX14,OFSELECETEDLANGUAGECODE,1) -> 19 - Leather industry | AA15: Global Volume Agreement | AC15: Microsoft Dynamics AX MBL | AE15: Australia | AG15: France | AI15: 14 | AJ15: Order Date: | AK15: Bestelldatum: | AL15: オーダー日 | AX15: 14 | AY15: 19 - Leather industry | AZ15: 19 - Leather industry | BA15: 190000 革製品製造業
B16: =INDEX(ORDERFORMTRANSTABLE[],$AI7,OFSELECETEDLANGUAGECODE,1) -> 1. Orders received on out-of-date pricelists will not be processed and will be returned to the sender for correction. | Y16: =INDEX(NACECODETRANS[],$AX15,OFSELECETEDLANGUAGECODE,1) -> 20 - Lumber industry | AA16: MultiSite Agreement | AC16: Microsoft Dynamics GP MBL | AE16: Austria | AG16: French Guiana | AI16: 15 | AJ16: Purchase Order (PO) number: | AK16: Bestellnr. bzw. Purchase Order (PO) No.: | AL16: 内部注文書番号 | AX16: 15 | AY16: 20 - Lumber industry | AZ16: 20 - Lumber industry | BA16: 200000 製材業
B17: =INDEX(ORDERFORMTRANSTABLE[],$AI8,OFSELECETEDLANGUAGECODE,1) -> 2. Underlined fields are mandatory. | Y17: =INDEX(NACECODETRANS[],$AX16,OFSELECETEDLANGUAGECODE,1) -> 21 - Paper industry | AA17: Volume Purchase Option | AC17: Microsoft Dynamics SL MBL | AE17: Azerbaijan | AG17: French Southern and Antarctic Lands | AI17: 16 | AJ17: Media Required: | AK17: Medien erforderlich | AL17: メディア | AX17: 16 | AY17: 21 - Paper industry | AZ17: 21 - Paper industry | BA17: 220000 グラフィック業
B18: =INDEX(ORDERFORMTRANSTABLE[],$AI9,OFSELECETEDLANGUAGECODE,1) -> 3. Alterations to the format of this coversheet may result in delays or non-acceptance. | Y18: =INDEX(NACECODETRANS[],$AX17,OFSELECETEDLANGUAGECODE,1) -> 22 - Graphic industry | AC18: Microsoft Dynamics C5 Light | AE18: Bahamas, The | AG18: Germany | AI18: 17 | AJ18: Deal/Promoweb Value: | AK18: Deal-/Promoweb-Wert | AL18: 特別割引 | AX18: 17 | AY18: 22 - Graphic industry | AZ18: 22 - Graphic industry | BA18: 230000 鉱物油製造業
B19: =INDEX(ORDERFORMTRANSTABLE[],$AI10,OFSELECETEDLANGUAGECODE,1) -> 4. To submit the order, please follow the standard process for your respective Regional Operations Center. | Y19: =INDEX(NACECODETRANS[],$AX18,OFSELECETEDLANGUAGECODE,1) -> 23 - Mineral oil industry, etc. | AE19: Bahrain | AG19: Gibraltar | AI19: 18 | AJ19: For SQL/MOSS Media Pricelist Click Here | AK19: For SQL/MOSS Media Pricelist Click Here | AL19: SQL/MOSS Mediaの価格表はこちらから | AX19: 18 | AY19: 23 - Mineral oil industry, etc. | AZ19: 23 - Mineral oil industry, etc. | BA19: 240000 化学工業
B20: =INDEX(ORDERFORMTRANSTABLE[],$AI11,OFSELECETEDLANGUAGECODE,1) -> 5. In the Order Type dropdown, please select 'Additional Product+Enhancement Renewal' only when you want to buy a brand new Enhancement Plan and some additional modules. | Y20: =INDEX(NACECODETRANS[],$AX19,OFSELECETEDLANGUAGECODE,1) -> 24 - Chemical industry | AC20: =IF(AC22<>FALSE,AC22,IF(AC23<>FALSE,AC23,IF(AC27<>FALSE,AC27,IF(AND(AC24<>FALSE,AC25<>FALSE,AC26<>FALSE),"License Model Transisiton","Product Line Transistion")))) -> Product Line Transistion | AE20: Bangladesh | AG20: Greece | AI20: 19 | AJ20: For any other media please attach the media Pricelist | AK20: Andere Medien: Bitte ausgefüllte Medien-Preisliste beifügen. | AL20: その他のメディアについては、メディア価格表をご使用ください。 | AX20: 19 | AY20: 24 - Chemical industry | AZ20: 24 - Chemical industry | BA20: 250000 ゴム製品・プラスチック製品製造業
Y21: =INDEX(NACECODETRANS[],$AX20,OFSELECETEDLANGUAGECODE,1) -> 25 - Rubber and plastics industries | AE21: Barbados | AG21: Greenland | AI21: 20 | AJ21: Ship Contact Name: | AK21: Lieferanschrift Empfänger: | AL21: 出荷先 名前 | AX21: 20 | AY21: 25 - Rubber and plastics industries | AZ21: 25 - Rubber and plastics industries | BA21: 260000 石工品、陶磁器・ガラス製品製造業
B22: =INDEX(ORDERFORMTRANSTABLE[],$AI12,OFSELECETEDLANGUAGECODE,1) -> 6. This order may not be processed if your account has overdue balances or you have exceeded your credit limit. To check your account statement and credit limit please go to https://mbs.microsoft.com/voice and check your account information in Scorecard-Balance info. | Y22: =INDEX(NACECODETRANS[],$AX21,OFSELECETEDLANGUAGECODE,1) -> 26 - Stone-working, pottery and glass industries, etc. | AC22: =IF(C50=C51,"Edition Transition") -> FALSE | AE22: Belarus | AG22: Guadeloupe | AI22: 21 | AJ22: To Address 1: | AK22: Adresse 1: | AL22: 住所1 | AX22: 21 | AY22: 26 - Stone-working, pottery and glass industries, etc. | AZ22: 26 - Stone-working, pottery and glass industries, etc. | BA22: 270000 金属鉱業
Y23: =INDEX(NACECODETRANS[],$AX22,OFSELECETEDLANGUAGECODE,1) -> 27 - Metal production | AC23: =IFERROR(IF(AND(FIND("AX",C50),FIND("AX 2012",C51)),"Upgrade Transistion"),FALSE) -> FALSE | AE23: Belgium | AG23: Hungary | AI23: 22 | AJ23: Details Address 2/State: | AK23: Adresse 2/US-Staat: | AL23: 住所2 | AX23: 22 | AY23: 27 - Metal production | AZ23: 27 - Metal production | BA23: 280000 鉄金属製品製造業
B24: =INDEX(ORDERFORMTRANSTABLE[],$AI74,OFSELECETEDLANGUAGECODE,1) -> 0 | Y24: =INDEX(NACECODETRANS[],$AX23,OFSELECETEDLANGUAGECODE,1) -> 28 - Iron and metal goods industry | AA24: ORDERTYPE | AC24: =(LEFT(C50,21)=LEFT(C51,21)) -> FALSE | AE24: Belize | AG24: Iceland | AI24: 23 | AJ24: City: | AK24: Ort: | AL24: 都道府県・市 | AX24: 23 | AY24: 28 - Iron and metal goods industry | AZ24: 28 - Iron and metal goods industry | BA24: 290000 機械工業
B25: =INDEX(ORDERFORMTRANSTABLE[],$AI13,OFSELECETEDLANGUAGECODE,1) -> Order Details: | Y25: =INDEX(NACECODETRANS[],$AX24,OFSELECETEDLANGUAGECODE,1) -> 29 - Mechanical engineering industry | AA25: =INDEX(ORDERTYPETRANS[],$AN2,OFSELECETEDLANGUAGECODE,1) -> None Selected | AC25: =IFERROR(FIND("MBL",C50),FALSE) -> FALSE | AE25: Benin | AG25: Ireland, Republic of | AI25: 24 | AJ25: Postal Code/ZIP: | AK25: PLZ/ZIP: | AL25: 郵便番号 | AX25: 24 | AY25: 29 - Mechanical engineering industry | AZ25: 29 - Mechanical engineering industry | BA25: 300000 事務用機械・コンピューター機械器具製造業
F26: 1 | Y26: =INDEX(NACECODETRANS[],$AX25,OFSELECETEDLANGUAGECODE,1) -> 30 - Production of office machinery and computer equipment | AA26: =INDEX(ORDERTYPETRANS[],$AN3,OFSELECETEDLANGUAGECODE,1) -> New License | AC26: =IFERROR(FIND("AX 2012",C51),TRUE) -> TRUE | AE26: Bermuda | AG26: Italy | AI26: 25 | AJ26: Country: | AK26: Land: | AL26: 国 | AX26: 25 | AY26: 30 - Production of office machinery and computer equipment | AZ26: 30 - Production of office machinery and computer equipment | BA26: 310000 その他の電子機械器具製造業
B27: =INDEX(ORDERFORMTRANSTABLE[],$AI14,OFSELECETEDLANGUAGECODE,1) -> Order Date: | E27: =INDEX(ORDERFORMTRANSTABLE[],$AI75,OFSELECETEDLANGUAGECODE,1) -> Special Deal / Promoweb: | F27: No | Y27: =INDEX(NACECODETRANS[],$AX26,OFSELECETEDLANGUAGECODE,1) -> 31 - Production of other electrical machinery | AA27: =INDEX(ORDERTYPETRANS[],$AN4,OFSELECETEDLANGUAGECODE,1) -> Additional Product | AC27: =IFERROR(IF(AND(FIND("NAV",C50),FIND("NAV Perpetual",C51)),"License Migration Transition or License Credit Transition"),IFERROR(IF(AND(FIND("GP",C50),FIND("GP Perpetual",C51)),"License Migration Transition or License Credit Transition",FALSE),FALSE)) -> FALSE | AE27: Bhutan | AG27: Latvia | AI27: 26 | AJ27: Partner Details: | AK27: Angaben zum Partner: | AL27: パートナー詳細 | AX27: 26 | AY27: 31 - Production of other electrical machinery | AZ27: 31 - Production of other electrical machinery | BA27: 320000 通信機械器具製造業
B28: =INDEX(ORDERFORMTRANSTABLE[],$AI15,OFSELECETEDLANGUAGECODE,1) -> Purchase Order (PO) number: | E28: =INDEX(ORDERFORMTRANSTABLE[],$AI76,OFSELECETEDLANGUAGECODE,1) -> Deal ID/Promoweb ID: | Y28: =INDEX(NACECODETRANS[],$AX27,OFSELECETEDLANGUAGECODE,1) -> 32 - Production of transmission equipment | AA28: =INDEX(ORDERTYPETRANS[],$AN5,OFSELECETEDLANGUAGECODE,1) -> Enhancement Renewal/Re-Enrolment | AE28: Bolivia | AG28: Liechtenstein | AI28: 27 | AJ28: VOICE Account Number: | AK28: VOICE Account Number: | AL28: VOICEアカウントナンバー | AX28: 27 | AY28: 32 - Production of transmission equipment | AZ28: 32 - Production of transmission equipment | BA28: 330000 医療用機械器具・医療用品製造業
B29: MA/GVA/VPO: | C29: No | E29: =INDEX(ORDERFORMTRANSTABLE[],$AI17,OFSELECETEDLANGUAGECODE,1) -> Deal/Promoweb Value: | Y29: =INDEX(NACECODETRANS[],$AX28,OFSELECETEDLANGUAGECODE,1) -> 33 - Production of medical equipment,instruments,tools,clocks,etc. | AA29: =INDEX(ORDERTYPETRANS[],$AN6,OFSELECETEDLANGUAGECODE,1) -> Transition | AC29: PRODUCT-DYN | AE29: Bosnia and Herzegovina | AG29: Lithuania | AI29: 28 | AJ29: Distributor Order: | AK29: Distributorenbestellung | AL29: 代理店 モデル(日本には適用されません): | AX29: 28 | AY29: 33 - Production of medical equipment,instruments,tools,clocks,etc. | AZ29: 33 - Production of medical equipment,instruments,tools,clocks,etc. | BA29: 340000 自動車・同付属品製造業
B30: Agreement number: | E30: =IF($C$29="No","",INDEX(ORDERFORMTRANSTABLE[],$AI77,OFSELECETEDLANGUAGECODE,1)) ->  | Y30: =INDEX(NACECODETRANS[],$AX29,OFSELECETEDLANGUAGECODE,1) -> 34 - Automobile production, etc. | AA30: =INDEX(ORDERTYPETRANS[],$AN7,OFSELECETEDLANGUAGECODE,1) -> Additional Product + Enhancement Renewal | AC30: All | AE30: Botswana | AG30: Luxembourg | AI30: 29 | AJ30: Partner Name (as per VOICE): | AK30: Partnername (wie in VOICE): | AL30: パートナー名 | AX30: 29 | AY30: 34 - Automobile production, etc. | AZ30: 34 - Automobile production, etc. | BA30: 350000 その他の輸送用機械器具製造業
B31: =INDEX(ORDERFORMTRANSTABLE[],$AI16,OFSELECETEDLANGUAGECODE,1) -> Media Required: | C31: No | E31: =INDEX(ORDERFORMTRANSTABLE[],$AI18,OFSELECETEDLANGUAGECODE,1) -> For SQL/MOSS Media Pricelist Click Here | F31: =INDEX(ORDERFORMTRANSTABLE[],$AI16,OFSELECETEDLANGUAGECODE,1) -> Media Required: | Y31: =INDEX(NACECODETRANS[],$AX30,OFSELECETEDLANGUAGECODE,1) -> 35 - Production of other means of transport | AA31: =INDEX(ORDERTYPETRANS[],$AN8,OFSELECETEDLANGUAGECODE,1) -> Step Up | AC31: Microsoft Dynamics AX 2012 | AE31: Bouvet Island | AG31: Malta | AI31: 30 | AJ31: Distributor Account Number: | AK31: Distrubutor Account Number | AL31: 代理店 アカウント 番号 | AX31: 30 | AY31: 35 - Production of other means of transport | AZ31: 35 - Production of other means of transport | BA31: 360000 家具・装備品製造業
E32: =INDEX(ORDERFORMTRANSTABLE[],$AI19,OFSELECETEDLANGUAGECODE,1) -> For any other media please attach the media Pricelist | Y32: =INDEX(NACECODETRANS[],$AX31,OFSELECETEDLANGUAGECODE,1) -> 36 - Furniture industry and other manufacturing | AA32: =INDEX(ORDERTYPETRANS[],$AN9,OFSELECETEDLANGUAGECODE,1) -> Additional Product + Step Up | AC32: Microsoft Dynamics AX | AE32: Brazil | AG32: Martinique | AI32: 31 | AJ32: Distributor Name: | AK32: Distributorenname | AL32: 代理店名 | AX32: 31 | AY32: 36 - Furniture industry and other manufacturing | AZ32: 36 - Furniture industry and other manufacturing | BA32: 370000 リサイクル業
B33: =INDEX(ORDERFORMTRANSTABLE[],$AI20,OFSELECETEDLANGUAGECODE,1) -> Ship Contact Name: | E33: =INDEX(ORDERFORMTRANSTABLE[],$AI23,OFSELECETEDLANGUAGECODE,1) -> City: | Y33: =INDEX(NACECODETRANS[],$AX32,OFSELECETEDLANGUAGECODE,1) -> 37 - Recycling of waste products | AC33: Microsoft Dynamics GP | AE33: British Indian Ocean Territory | AG33: Mayotte | AI33: 32 | AJ33: Customer Details: | AK33: Angaben zum Kunden: | AL33: カスタマー詳細 | AX33: 32 | AY33: 37 - Recycling of waste products | AZ33: 37 - Recycling of waste products | BA33: 400000 電気、ガス、熱供給業
B34: =INDEX(ORDERFORMTRANSTABLE[],$AI21,OFSELECETEDLANGUAGECODE,1) -> To Address 1: | E34: =INDEX(ORDERFORMTRANSTABLE[],$AI24,OFSELECETEDLANGUAGECODE,1) -> Postal Code/ZIP: | Y34: =INDEX(NACECODETRANS[],$AX33,OFSELECETEDLANGUAGECODE,1) -> 40 - Electricity, gas and heat supply | AC34: Microsoft Dynamics GP Perpetual | AE34: Brunei | AG34: Monaco | AI34: 33 | AJ34: Order Type: | AK34: Bitte Art der Bestellung auswählen: | AL34: オーダータイプを選択してください。 | AX34: 33 | AY34: 40 - Electricity, gas and heat supply | AZ34: 40 - Electricity, gas and heat supply | BA34: 410000 水道業
B35: =INDEX(ORDERFORMTRANSTABLE[],$AI22,OFSELECETEDLANGUAGECODE,1) -> Details Address 2/State: | E35: =INDEX(ORDERFORMTRANSTABLE[],$AI25,OFSELECETEDLANGUAGECODE,1) -> Country: | F35: Venezuela | Y35: =INDEX(NACECODETRANS[],$AX34,OFSELECETEDLANGUAGECODE,1) -> 41 - Water supply | AC35: Microsoft Dynamics SL | AE35: Bulgaria | AG35: Netherlands, The | AI35: 34 | AJ35: Customer Name: | AK35: Kundenname: | AL35: お客さま名 | AX35: 34 | AY35: 41 - Water supply | AZ35: 41 - Water supply | BA35: 450000 建設業
Y36: =INDEX(NACECODETRANS[],$AX35,OFSELECETEDLANGUAGECODE,1) -> 45 - Building and construction work | AC36: Microsoft Dynamics CRM | AE36: Burkina Faso | AG36: Norway | AI36: 35 | AJ36: VOICE Account Number (if Applicable): | AK36: VOICE Account Number (wenn vorhanden) | AL36: VOICEアカウント（該当する場合のみ） | AX36: 35 | AY36: 45 - Building and construction work | AZ36: 45 - Building and construction work | BA36: 500000 自動車販売、整備・修理業
B37: =INDEX(ORDERFORMTRANSTABLE[],$AI26,OFSELECETEDLANGUAGECODE,1) -> Partner Details: | Y37: =INDEX(NACECODETRANS[],$AX36,OFSELECETEDLANGUAGECODE,1) -> 50 - Auto trade, maintenance and repairs including service station | AA37: CONFIRM | AC37: Microsoft Dynamics RMS | AE37: Burundi | AG37: Poland | AI37: 36 | AJ37: VOICE Account Number: | AK37: VOICE Account Number: | AL37: VOICEアカウント | AX37: 36 | AY37: 50 - Auto trade, maintenance and repairs including service station | AZ37: 50 - Auto trade, maintenance and repairs including service station | BA37: 510000 卸売り・仲介業
Y38: =INDEX(NACECODETRANS[],$AX37,OFSELECETEDLANGUAGECODE,1) -> 51 - Wholesale trade and agency trade | AA38: Yes | AC38: Microsoft Dynamics C5 | AE38: Cambodia | AG38: Portugal | AI38: 37 | AJ38: Enhancement Plan required for: | AK38: Enhancement Plan required for: | AL38: エンハンスメントプラン タイプ | AX38: 37 | AY38: 51 - Wholesale trade and agency trade | AZ38: 51 - Wholesale trade and agency trade | BA38: 520000 自動車以外の販売業
B39: =INDEX(ORDERFORMTRANSTABLE[],$AI27,OFSELECETEDLANGUAGECODE,1) -> VOICE Account Number: | E39: =INDEX(ORDERFORMTRANSTABLE[],$AI29,OFSELECETEDLANGUAGECODE,1) -> Partner Name (as per VOICE): | Y39: =INDEX(NACECODETRANS[],$AX38,OFSELECETEDLANGUAGECODE,1) -> 52 - Retail trade excluding autos | AA39: No | AC39: Microsoft Dynamics NAV | AE39: Cameroon | AG39: Reunion | AI39: 38 | AJ39: FROM Product Line: | AK39: FROM Product Line: | AL39: この製品ラインから | AX39: 38 | AY39: 52 - Retail trade excluding autos | AZ39: 52 - Retail trade excluding autos | BA39: 550000 ホテル・レストラン業
B40: =INDEX(ORDERFORMTRANSTABLE[],$AI28,OFSELECETEDLANGUAGECODE,1) -> Distributor Order: | C40: No | E40: =INDEX(ORDERFORMTRANSTABLE[],$AI30,OFSELECETEDLANGUAGECODE,1) -> Distributor Account Number: | Y40: =INDEX(NACECODETRANS[],$AX39,OFSELECETEDLANGUAGECODE,1) -> 55 - Hotel and restaurant business | AC40: Microsoft Dynamics NAV Perpetual | AE40: Canada | AG40: Romania | AI40: 39 | AJ40: Product Line: | AK40: Product Line: | AL40: 製品ライン | AX40: 39 | AY40: 55 - Hotel and restaurant business | AZ40: 55 - Hotel and restaurant business | BA40: 600000 陸上運搬・パイプライン運搬業
E41: =INDEX(ORDERFORMTRANSTABLE[],$AI31,OFSELECETEDLANGUAGECODE,1) -> Distributor Name: | Y41: =INDEX(NACECODETRANS[],$AX40,OFSELECETEDLANGUAGECODE,1) -> 60 - Overland transportion, pipeline transportion | AC41: Microsoft Dynamics NAV MBL | AE41: Cape Verde | AG41: Saint Helena | AI41: 40 | AJ41: TO Product Line: | AK41: TO Product Line: | AL41: この製品ラインへ | AX41: 40 | AY41: 60 - Overland transportion, pipeline transportion | AZ41: 60 - Overland transportion, pipeline transportion | BA41: 610000 船舶業
Y42: =INDEX(NACECODETRANS[],$AX41,OFSELECETEDLANGUAGECODE,1) -> 61 - Shipping | AC42: Microsoft Dynamics AX MBL | AE42: Cayman Islands | AG42: San Marino | AI42: 41 | AJ42: Protected List Price (PLP) Currency: | AK42: Protected List Price (PLP) Currency: | AL42: Protected List Price (PLP) Currency: | AX42: 41 | AY42: 61 - Shipping | AZ42: 61 - Shipping | BA42: 620000 航空業
B43: =INDEX(ORDERFORMTRANSTABLE[],$AI32,OFSELECETEDLANGUAGECODE,1) -> Customer Details: | Y43: =INDEX(NACECODETRANS[],$AX42,OFSELECETEDLANGUAGECODE,1) -> 62 - Air transport | AC43: Microsoft Dynamics GP MBL | AE43: Central African Republic | AG43: Slovakia | AI43: 42 | AJ43: NAV Object Assignments Required: | AK43: NAV Object Assignments Required: | AL43: NAVオブジェクト割り当て: | AX43: 42 | AY43: 62 - Air transport | AZ43: 62 - Air transport | BA43: 630000 旅行関連業
E44: 3 | Y44: =INDEX(NACECODETRANS[],$AX43,OFSELECETEDLANGUAGECODE,1) -> 63 - Auxillary operations related to transport and travel | AA44: UPGRADE | AC44: Microsoft Dynamics SL MBL | AE44: Chad | AG44: Slovenia | AI44: 43 | AJ44: Upgrade Transition Type: | AK44: Upgrade Transition Type: | AL44: アップグレード/移行タイプ | AX44: 43 | AY44: 63 - Auxillary operations related to transport and travel | AZ44: 63 - Auxillary operations related to transport and travel | BA44: 640000 通信関連業
B45: =INDEX(ORDERFORMTRANSTABLE[],$AI33,OFSELECETEDLANGUAGECODE,1) -> Order Type: | C45: None Selected | Y45: =INDEX(NACECODETRANS[],$AX44,OFSELECETEDLANGUAGECODE,1) -> 64 - Postal service and telecommunication | AA45: =INDEX(UPGRADETRANS[],$BC2,OFSELECETEDLANGUAGECODE,1) -> Formula Based Upgrade/Transition | AC45: Microsoft Dynamics C5 Light | AE45: Chile | AG45: Spain | AI45: 44 | AJ45: Click here for NAV Object Assignments | AK45: Click here for NAV Object Assignments | AL45: こちらをクリック | AX45: 44 | AY45: 64 - Postal service and telecommunication | AZ45: 64 - Postal service and telecommunication | BA45: 650000 金融機関
Y46: =INDEX(NACECODETRANS[],$AX45,OFSELECETEDLANGUAGECODE,1) -> 65 - Banking establishments and finance activities | AA46: =INDEX(UPGRADETRANS[],$BC3,OFSELECETEDLANGUAGECODE,1) -> Credit Based Upgrade/Transition | AE46: China | AG46: Svalbard and Jan Mayen | AI46: 45 | AJ46: Address 1: | AK46: Adresse 1: | AL46: 住所1 | AX46: 45 | AY46: 65 - Banking establishments and finance activities | AZ46: 65 - Banking establishments and finance activities | BA46: 660000 保険業
B47: =INDEX(ORDERFORMTRANSTABLE[],$AI34,OFSELECETEDLANGUAGECODE,1) -> Customer Name: | E47: =IF(C45="New License",INDEX(ORDERFORMTRANSTABLE[],$AI45,OFSELECETEDLANGUAGECODE,1),"") ->  | Y47: =INDEX(NACECODETRANS[],$AX46,OFSELECETEDLANGUAGECODE,1) -> 66 - Insurance activities | AE47: Christmas Island | AG47: Sweden | AI47: 46 | AJ47: Address 2: | AK47: Adresse 2: | AL47: 住所2 | AX47: 46 | AY47: 66 - Insurance activities | AZ47: 66 - Insurance activities | BA47: 670000 金融サービス業
B48: =IF(C45="New License",INDEX(ORDERFORMTRANSTABLE[],$AI35,OFSELECETEDLANGUAGECODE,1),INDEX(ORDERFORMTRANSTABLE[],$AI36,OFSELECETEDLANGUAGECODE,1)) -> VOICE Account Number: | E48: =IF(C45="New License",INDEX(ORDERFORMTRANSTABLE[],$AI46,OFSELECETEDLANGUAGECODE,1),INDEX(ORDERFORMTRANSTABLE[],$AI47,OFSELECETEDLANGUAGECODE,1)) -> OR License Serial Number: | Y48: =INDEX(NACECODETRANS[],$AX47,OFSELECETEDLANGUAGECODE,1) -> 67 - Service industry related to banking, finance and insurance activities | AE48: Cocos (Keeling) Islands | AG48: Switzerland | AI48: 47 | AJ48: OR License Serial Number: | AK48: ODER Lizenzseriennummer: | AL48: 又はライセンスシリアル番号 | AX48: 47 | AY48: 67 - Service industry related to banking, finance and insurance activities | AZ48: 67 - Service industry related to banking, finance and insurance activities | BA48: 700000 不動産業
B49: =IF(C46="New License",INDEX(ORDERFORMTRANSTABLE[],$AI36,OFSELECETEDLANGUAGECODE,1),INDEX(ORDERFORMTRANSTABLE[],$AI37,OFSELECETEDLANGUAGECODE,1)) -> Enhancement Plan required for: | C49: 1 Year | E49: =IF(C45="New License",INDEX(ORDERFORMTRANSTABLE[],$AI48,OFSELECETEDLANGUAGECODE,1),"") ->  | Y49: =INDEX(NACECODETRANS[],$AX48,OFSELECETEDLANGUAGECODE,1) -> 70 - Real estate industry | AA49: CURRENCY | AE49: Colombia | AG49: United Kingdom | AI49: 48 | AJ49: City: | AK49: Ort: | AL49: 都道府県・市 | AX49: 48 | AY49: 70 - Real estate industry | AZ49: 70 - Real estate industry | BA49: 710000 自動車、機械器具レンタル業
B50: =IF(C45="Transition",INDEX(ORDERFORMTRANSTABLE[],$AI38,OFSELECETEDLANGUAGECODE,1),IF(C45="New License",INDEX(ORDERFORMTRANSTABLE[],$AI39,OFSELECETEDLANGUAGECODE,1),"")) ->  | C50: All | E50: =IF(C45="New License",INDEX(ORDERFORMTRANSTABLE[],$AI49,OFSELECETEDLANGUAGECODE,1),"") ->  | Y50: =INDEX(NACECODETRANS[],$AX49,OFSELECETEDLANGUAGECODE,1) -> 71 - Rental of automobiles, machines, equipment, etc. | AA50: CHF | AE50: Comoros | AG50: Vatican City | AI50: 49 | AJ50: Postal code/Zip: | AK50: Postal code/Zip: | AL50: 郵便番号 | AX50: 49 | AY50: 71 - Rental of automobiles, machines, equipment, etc. | AZ50: 71 - Rental of automobiles, machines, equipment, etc. | BA50: 720000 データー加工業
B51: =IF(B50=INDEX(ORDERFORMTRANSTABLE[],$AI38,OFSELECETEDLANGUAGECODE,1),INDEX(ORDERFORMTRANSTABLE[],$AI40,OFSELECETEDLANGUAGECODE,1),"") ->  | C51: Microsoft Dynamics NAV Perpetual | E51: =IF(C45="New License",INDEX(ORDERFORMTRANSTABLE[],$AI50,OFSELECETEDLANGUAGECODE,1),"") ->  | F51: Afghanistan | Y51: =INDEX(NACECODETRANS[],$AX50,OFSELECETEDLANGUAGECODE,1) -> 72 - Data processing industry | AA51: DKK | AE51: Congo | AI51: 50 | AJ51: Country: | AK51: Country: | AL51: 国 | AX51: 50 | AY51: 72 - Data processing industry | AZ51: 72 - Data processing industry | BA51: 730000 研究・開発
B52: =IFERROR(IF(AND(F51=VLOOKUP(F51,EEASCOUNTRY2,1,FALSE),C45="New License"),INDEX(ORDERFORMTRANSTABLE[],$AI41,OFSELECETEDLANGUAGECODE,1),""),"") ->  | C52: EUR | D52: =IFERROR(IF(AND(F51=VLOOKUP(F51,EEASCOUNTRY2,1,FALSE),C45="New License"),INDEX(ORDERFORMTRANSTABLE[],$AI51,OFSELECETEDLANGUAGECODE,1),""),"") ->  | Y52: =INDEX(NACECODETRANS[],$AX51,OFSELECETEDLANGUAGECODE,1) -> 73 - Research and development | AA52: EUR | AE52: Congo (DRC) | AI52: 51 | AJ52: Important - PLP currency selection is final and cannot be changed again for the lifetime of the customer account | AK52: Important - PLP currency selection is final and cannot be changed again for the lifetime of the customer account | AL52: Important - PLP currency selection is final and cannot be changed again for the lifetime of the customer account | AX52: 51 | AY52: 73 - Research and development | AZ52: 73 - Research and development | BA52: 740000 その他
B53: =IF(C45="New License",IF(C50="Microsoft Dynamics NAV",INDEX(ORDERFORMTRANSTABLE[],$AI42,OFSELECETEDLANGUAGECODE,1),IF(C50="Microsoft Dynamics NAV MBL",INDEX(ORDERFORMTRANSTABLE[],$AI42,OFSELECETEDLANGUAGECODE,1),IF(C50="Microsoft Dynamics NAV 2013",INDEX(ORDERFORMTRANSTABLE[],$AI42,OFSELECETEDLANGUAGECODE,1),""))),IF(C45="Transition",IF(C51="Microsoft Dynamics NAV",INDEX(ORDERFORMTRANSTABLE[],$AI42,OFSELECETEDLANGUAGECODE,1),IF(C51="Microsoft Dynamics NAV 2013",INDEX(ORDERFORMTRANSTABLE[],$AI42,OFSELECETEDLANGUAGECODE,1),IF(C51="Microsoft Dynamics NAV",INDEX(ORDERFORMTRANSTABLE[],$AI42,OFSELECETEDLANGUAGECODE,1),""))),IF(OR(C45="Additional Product + Enhancement Renewal",C45="Additional Product"),INDEX(ORDERFORMTRANSTABLE[],$AI42,OFSELECETEDLANGUAGECODE,1),""))) ->  | C53: No | Y53: =INDEX(NACECODETRANS[],$AX52,OFSELECETEDLANGUAGECODE,1) -> 74 - Other business services | AA53: GBP | AE53: Cook Islands | AI53: 52 | AJ53: Email: | AK53: Email: | AL53: Email: | AX53: 52 | AY53: 74 - Other business services | AZ53: 74 - Other business services | BA53: 750000 公務員、国防、国保
B54: =IF(AND($C$51="Microsoft Dynamics AX 2012",OR($C$50="Microsoft Dynamics AX",$C$50="Microsoft Dynamics AX MBL")),INDEX(ORDERFORMTRANSTABLE[],$AI43,OFSELECETEDLANGUAGECODE,1),"") ->  | C54: Credit Based Upgrade/Transition | E54: =IF(C45="New License",INDEX(ORDERFORMTRANSTABLE[],$AI52,OFSELECETEDLANGUAGECODE,1),"") ->  | Y54: =INDEX(NACECODETRANS[],$AX53,OFSELECETEDLANGUAGECODE,1) -> 75 - Civil service, national defense and national insurance | AA54: NOK | AE54: Costa Rica | AI54: 53 | AJ54: NACE Code: | AK54: NACE Code: | AL54: NACE コード | AX54: 53 | AY54: 75 - Civil service, national defense and national insurance | AZ54: 75 - Civil service, national defense and national insurance | BA54: 800000 教育機関
B55: =IF(B53<>"NAV Object Assignments Required: ","",IF(C53="Yes",INDEX(ORDERFORMTRANSTABLE[],$AI44,OFSELECETEDLANGUAGECODE,1),"")) ->  | E55: =IF(C45="New License",INDEX(ORDERFORMTRANSTABLE[],$AI53,OFSELECETEDLANGUAGECODE,1),"") ->  | F55: 1 - Agriculture, hunting, etc. | Y55: =INDEX(NACECODETRANS[],$AX54,OFSELECETEDLANGUAGECODE,1) -> 80 - Education | AA55: SEK | AE55: Côte d'Ivoire | AI55: 54 | AJ55: Phone: | AK55: Phone: | AL55: 電話番号 | AX55: 54 | AY55: 80 - Education | AZ55: 80 - Education
E56: =IF(C45="New License",INDEX(ORDERFORMTRANSTABLE[],$AI54,OFSELECETEDLANGUAGECODE,1),"") ->  | Y56: =INDEX(NACECODETRANS[],$AX55,OFSELECETEDLANGUAGECODE,1) -> 85 - Health and social services | AE56: Croatia | AI56: 55 | AJ56: Contact Name: | AK56: Contact Name: | AL56: ご担当者名 | AX56: 55 | AY56: 85 - Health and social services | AZ56: 85 - Health and social services
C57: =IF(E57<>"",INDEX(ORDERFORMTRANSTABLE[],$AI63,OFSELECETEDLANGUAGECODE,1),"") ->  | E57: =IFERROR(IF(C45="New License",INDEX(ORDERFORMTRANSTABLE[],$AI55,OFSELECETEDLANGUAGECODE,1),IF(C45="Transition",AC20,"")),"") ->  | I57: None Selected | Y57: =INDEX(NACECODETRANS[],$AX56,OFSELECETEDLANGUAGECODE,1) -> 90 - Sewage service, department of sanitation etc. | AE57: Cuba | AI57: 56 | AJ57: Edition Transition | AK57: Edition Transition | AL57: エディションの移行 | AX57: 56 | AY57: 90 - Sewage service, department of sanitation etc. | AZ57: 90 - Sewage service, department of sanitation etc.
Y58: =INDEX(NACECODETRANS[],$AX57,OFSELECETEDLANGUAGECODE,1) -> 91 - Organizations and associations | AE58: Cyprus | AI58: 57 | AJ58: For Microsoft Dynamics AX 2012 Orders, please indicate if the customer meets any of the following criteria: (To comply with certain reporting requirements, Microsoft must obtain customer segmentation data for certain public sector organizations. The information you provide about the customer must be true and accurate to the best of your knowledge) | AK58: For Microsoft Dynamics AX 2012 Orders, please indicate if the customer meets any of the following criteria: (To comply with certain reporting requirements, Microsoft must obtain customer segmentation data for certain public sector organizations. The information you provide about the customer must be true and accurate to the best of your knowledge) | AL58: Microsoft Dynamics AX2012をご注文になる場合、顧客が次の基準を満たしているか確認をしてください。 (マイクロソフトは特定の報告義務に基づき、パブリックセクターの顧客のセグメントデータを把握する必要があります。 貴社は分かる範囲において正しく正確である必要があります) | AX58: 57 | AY58: 91 - Organizations and associations | AZ58: 91 - Organizations and associations
B59: =INDEX(ORDERFORMTRANSTABLE[],$AI57,OFSELECETEDLANGUAGECODE,1) -> For Microsoft Dynamics AX 2012 Orders, please indicate if the customer meets any of the following criteria: (To comply with certain reporting requirements, Microsoft must obtain customer segmentation data for certain public sector organizations. The information you provide about the customer must be true and accurate to the best of your knowledge) | Y59: =INDEX(NACECODETRANS[],$AX58,OFSELECETEDLANGUAGECODE,1) -> 92 - Entertainment, culture and sports | AE59: Czech Republic | AI59: 58 | AJ59: PUBLIC SECTOR (GOVERNMENT) : an agency, department, office, instrumentality, district, division, unit, or other entity performing executive, legislative, judicial, regulatory, public service, administrative, internal or other functions of a national, regional, state, or local government of the United States or any other country or territory | AK59: PUBLIC SECTOR (GOVERNMENT) : an agency, department, office, instrumentality, district, division, unit, or other entity performing executive, legislative, judicial, regulatory, public service, administrative, internal or other functions of a national, regional, state, or local government of the United States or any other country or territory | AL59: パブリック セクター （政府機関）：アメリカ合衆国またはその他の国または地域において、国内またはその他の行政、立法、司法、規制、公共サービス、行政管理の機能を実行する、機関、部門、オフィス、地区、事業部、ユニットまたはその他のエンティティー | AX59: 58 | AY59: 92 - Entertainment, culture and sports | AZ59: 92 - Entertainment, culture and sports
Y60: =INDEX(NACECODETRANS[],$AX59,OFSELECETEDLANGUAGECODE,1) -> 93 - Other services | AE60: Denmark | AI60: 59 | AJ60: PUBLIC SECTOR (NON PROFIT - COOPERATIVE) : a not-for-profit or co-operative (e.g., utility co-operative) chartered by or under contract with a government entity in the United States or any other country or territory to provide traditional government or public services which the government entity has elected to privatize | AK60: PUBLIC SECTOR (NON PROFIT - COOPERATIVE) : a not-for-profit or co-operative (e.g., utility co-operative) chartered by or under contract with a government entity in the United States or any other country or territory to provide traditional government or public services which the government entity has elected to privatize | AL60: パブリックセクター （非営利企業) : 政府機関の民営化のため選定された或いは政府・公共にサービスを提供するためにアメリカ合衆国政府または他の国または地域の政府機関との契約に基づき設立が許可された非営利または協同組合（例えば、公益事業共同組合) | AX60: 59 | AY60: 93 - Other services | AZ60: 93 - Other services
Y61: =INDEX(NACECODETRANS[],$AX60,OFSELECETEDLANGUAGECODE,1) -> 95 - Private housekeeping including hired help | AE61: Djibouti | AI61: 60 | AJ61: PUBLIC SECTOR (EDUCATION) : a public school, public educational entity, or public institute of higher learning in the United States or any other country or territory | AK61: PUBLIC SECTOR (EDUCATION) : a public school, public educational entity, or public institute of higher learning in the United States or any other country or territory | AL61: パブリックセクター （教育) : アメリカ合衆国政府またはその他の国又は地域の公立学校、公共の教育団体または高等教育のための公共研究所 | AX61: 60 | AY61: 95 - Private housekeeping including hired help | AZ61: 95 - Private housekeeping including hired help
B62: =INDEX(ORDERFORMTRANSTABLE[],$AI58,OFSELECETEDLANGUAGECODE,1) -> PUBLIC SECTOR (GOVERNMENT) : an agency, department, office, instrumentality, district, division, unit, or other entity performing executive, legislative, judicial, regulatory, public service, administrative, internal or other functions of a national, regional, state, or local government of the United States or any other country or territory | G62: No | H62: =IF(AND(G62="Yes",COUNTIF(G62:G67,"Yes")>1),"Error","") ->  | Y62: =INDEX(NACECODETRANS[],$AX61,OFSELECETEDLANGUAGECODE,1) -> 98 - Undeclared | AE62: Dominica | AI62: 61 | AJ62: NONE OF THE ABOVE | AK62: NONE OF THE ABOVE | AL62: いずれにも該当しない | AX62: 61 | AY62: 98 - Undeclared | AZ62: 98 - Undeclared
Y63: =INDEX(NACECODETRANS[],$AX62,OFSELECETEDLANGUAGECODE,1) -> 99 - International organizations, etc. | AE63: Dominican Republic | AI63: 62 | AJ63: Additional Comments: | AK63: Zusätzliche Bemerkungen oder Hinweise: | AL63: 追記・特記事項 | AX63: 62 | AY63: 99 - International organizations, etc. | AZ63: 99 - International organizations, etc.
B64: =INDEX(ORDERFORMTRANSTABLE[],$AI59,OFSELECETEDLANGUAGECODE,1) -> PUBLIC SECTOR (NON PROFIT - COOPERATIVE) : a not-for-profit or co-operative (e.g., utility co-operative) chartered by or under contract with a government entity in the United States or any other country or territory to provide traditional government or public services which the government entity has elected to privatize | G64: No | H64: =IF(AND(G64="Yes",COUNTIF(G62:G67,"Yes")>1),"Error","") ->  | AE64: Ecuador | AI64: 63 | AJ64: Transisiton Type: | AK64: Transisiton Type: | AL64: 移行の種類
AE65: Egypt | AI65: 64 | AJ65: This section is only applicable to Microsoft Dynamics AX 2012 Step-Up Orders | AK65: This section is only applicable to Microsoft Dynamics AX 2012 Step-Up Orders | AL65: このセクションはMicrosoft Dynamics AX 2012ステップ アップオーダーのために使用されます
B66: =INDEX(ORDERFORMTRANSTABLE[],$AI60,OFSELECETEDLANGUAGECODE,1) -> PUBLIC SECTOR (EDUCATION) : a public school, public educational entity, or public institute of higher learning in the United States or any other country or territory | G66: No | H66: =IF(AND(G66="Yes",COUNTIF(G62:G67,"Yes")>1),"Error","") ->  | AE66: El Salvador | AI66: 65 | AJ66: Users | AK66: Users | AL66: ユーザー
B67: =INDEX(ORDERFORMTRANSTABLE[],$AI61,OFSELECETEDLANGUAGECODE,1) -> NONE OF THE ABOVE | G67: No | H67: =IF(AND(G67="Yes",COUNTIF(G62:G67,"Yes")>1),"Error","") ->  | AE67: Equatorial Guinea | AI67: 66 | AJ67: Enterprise User | AK67: Enterprise User | AL67: エンタープライズ ユーザー
B68: =INDEX(ORDERFORMTRANSTABLE[],$AI64,OFSELECETEDLANGUAGECODE,1) -> This section is only applicable to Microsoft Dynamics AX 2012 Step-Up Orders | AE68: Eritrea | AI68: 67 | AJ68: Functional User | AK68: Functional User | AL68: ファンクショナル ユーザー
AE69: Estonia | AI69: 68 | AJ69: Task User | AK69: Task User | AL69: タスク ユーザー
B70: =INDEX(ORDERFORMTRANSTABLE[],$AI65,OFSELECETEDLANGUAGECODE,1) -> Users | C70: =INDEX(ORDERFORMTRANSTABLE[],$AI71,OFSELECETEDLANGUAGECODE,1) -> Own | E70: =INDEX(ORDERFORMTRANSTABLE[],$AI72,OFSELECETEDLANGUAGECODE,1) -> Need | F70: =INDEX(ORDERFORMTRANSTABLE[],$AI73,OFSELECETEDLANGUAGECODE,1) -> Changed | AE70: Ethiopia | AI70: 69 | AJ70: Self Serve User | AK70: Self Serve User | AL70: セルフ サーバー ユーザー
B71: =INDEX(ORDERFORMTRANSTABLE[],$AI66,OFSELECETEDLANGUAGECODE,1) -> Enterprise User | C71: 0 | E71: 0 | F71: =E71-C71 -> 0 | AE71: Falkland Islands (Islas Malvinas) | AI71: 70 | AJ71: Total | AK71: Total | AL71: トータル
B72: =INDEX(ORDERFORMTRANSTABLE[],$AI67,OFSELECETEDLANGUAGECODE,1) -> Functional User | C72: 0 | E72: 0 | F72: =E72-C72 -> 0 | AE72: Faroe Islands | AI72: 71 | AJ72: Own | AK72: Own | AL72: 所有数
B73: =INDEX(ORDERFORMTRANSTABLE[],$AI68,OFSELECETEDLANGUAGECODE,1) -> Task User | C73: 0 | E73: 0 | F73: =E73-C73 -> 0 | AE73: Fiji Islands | AI73: 72 | AJ73: Need | AK73: Need | AL73: 必要数
B74: =INDEX(ORDERFORMTRANSTABLE[],$AI69,OFSELECETEDLANGUAGECODE,1) -> Self Serve User | C74: 0 | E74: 0 | F74: =E74-C74 -> 0 | AE74: Finland | AI74: 73 | AJ74: Changed | AK74: Changed | AL74: 変更数
B75: =INDEX(ORDERFORMTRANSTABLE[],$AI70,OFSELECETEDLANGUAGECODE,1) -> Total | C75: =C71+C72+C73+C74 -> 0 | E75: =E71+E72+E73+E74 -> 0 | F75: =E75-C75 -> 0 | AE75: France | AI75: 74 | AL75: 7.メディアの注文については、別途Microsoft_Dynamics_Media_Price_List_Japanをご使用ください。
AE76: French Guiana | AI76: 75 | AJ76: Special Deal / Promoweb: | AK76: Special Deal / Promoweb: | AL76: 特別割引:
B77: =INDEX(ORDERFORMTRANSTABLE[],$AI62,OFSELECETEDLANGUAGECODE,1) -> Additional Comments: | AE77: French Polynesia | AI77: 76 | AJ77: Deal ID/Promoweb ID: | AK77: Deal ID/Promoweb ID: | AL77: 特別割引ID:
AE78: French Southern and Antarctic Lands | AI78: 77 | AJ78: Only the EUR pricelist can be selected for customers located within EU/EFTA | AK78: Only the EUR pricelist can be selected for customers located within EU/EFTA | AL78: 顧客の所在地がEU/EFTA地域の場合EURO通貨の価格表のみが選択可能です。
AE79: Gabon | AI79: 78 | AJ79: Submission Details: | AK79: Submission Details: | AL79: 提出先詳細：
AE80: Gambia, The | AI80: 79 | AJ80: Where CLT is not available, please use: | AK80: Where CLT is not available, please use: | AL80: オンラインからお問い合わせが出来ない場合、こちらまでご連絡ください：
AE81: Georgia | AI81: 80 | AJ81: mbsquery@microsoft.com | AK81: mbsquery@microsoft.com | AL81: mbslques@microsoft.com
AE82: Germany | AI82: 81 | AJ82: MIMOS Call Logging Tool | AK82: MIMOS Call Logging Tool | AL82: オンラインからの問い合わせ
AE83: Ghana | AI83: 82 | AJ83: MIMOS Operations Support Request | AK83: MIMOS Operations Support Request
AE84: Gibraltar | AI84: 83 | AJ84: mbsquery@microsoft.com | AK84: mbsquery@microsoft.com
AE85: Greece
AE86: Greenland
AE87: Grenada
AE88: Guadeloupe
AE89: Guam
AE90: Guatemala
AE91: Guinea
AE92: Guinea-Bissau
AE93: Guyana
AE94: Haiti
AE95: Heard Island and McDonald Islands
AE96: Honduras
AE97: Hong Kong SAR
AE98: Hungary
AE99: Iceland
AE100: India
AE101: Indonesia
AE102: Iran
AE103: Iraq
AE104: Ireland, Republic of
AE105: Israel
AE106: Italy
AE107: Jamaica
AE108: Jan Mayen
AE109: Japan
AE110: Jordan
AE111: Kazakhstan
AE112: Kenya
AE113: Kiribati
AE114: Korea, North
AE115: Korea, South
AE116: Kuwait
AE117: Kyrgyzstan
AE118: Laos
AE119: Latvia
AE120: Lebanon
AE121: Lesotho
AE122: Liberia
AE123: Libya
AE124: Liechtenstein
AE125: Lithuania
AE126: Luxembourg
AE127: Macao SAR
AE128: Macedonia
AE129: Madagascar
AE130: Madeira
AE131: Malawi
AE132: Malaysia
AE133: Maldives
AE134: Mali
AE135: Malta
AE136: Marshall Islands
AE137: Martinique
AE138: Mauritania
AE139: Mauritius
AE140: Mayotte
AE141: Mexico
AE142: Micronesia
AE143: Moldova
AE144: Monaco
AE145: Mongolia
AE146: Montenegro
AE147: Montserrat
AE148: Morocco
AE149: Mozambique
AE150: Myanmar
AE151: Namibia
AE152: Nauru
AE153: Nepal
AE154: Netherlands Antilles
AE155: Netherlands, The
AE156: New Caledonia
AE157: New Zealand
AE158: Nicaragua
AE159: Niger
AE160: Nigeria
AE161: Niue
AE162: Norfolk Island
AE163: Northern Mariana Islands
AE164: Norway
AE165: Oman
AE166: Pakistan
AE167: Palau
AE168: Palestinian Authority
AE169: Panama
AE170: Papua New Guinea
AE171: Paraguay
AE172: Peru
AE173: Philippines
AE174: Pitcairn Islands
AE175: Poland
AE176: Portugal
AE177: Puerto Rico
AE178: Qatar
AE179: Reunion
AE180: Romania
AE181: Russia
AE182: Rwanda
AE183: Saint Helena
AE184: Saint Kitts and Nevis
AE185: Saint Lucia
AE186: Saint Pierre and Miquelon
AE187: Saint Vincent and the Grenadines
AE188: Samoa
AE189: San Marino
AE190: Sao Tomé and Príncipe
AE191: Saudi Arabia
AE192: Senegal
AE193: Serbia
AE194: Seychelles
AE195: Sierra Leone
AE196: Singapore
AE197: Slovakia
AE198: Slovenia
AE199: Solomon Islands
AE200: Somalia
... 54 more rows

Sheet Dynamics GP
A1: Microsoft Dynamics GP 2013 Perpetual Licensing Model Price List
A3: Customer Location: | F3: ='GP Master Calc'!E5 -> Price List – Effective April, 2013
F4: Microsoft Confidential
F5: Total Value | G5: ** Localization Disclaimer **
F6: ='GP Master Calc'!F8 -> 13456
A7: =IF('GP Master Calc'!A9="","",'GP Master Calc'!A9) -> Qty | B7: =IF('GP Master Calc'!B9="","",'GP Master Calc'!B9) -> Item | C7: =IF('GP Master Calc'!C9="","",'GP Master Calc'!C9) -> Notes | D7: =IF('GP Master Calc'!D9="","",'GP Master Calc'!D9) -> SKU | E7: =IF('GP Master Calc'!E9="","",'GP Master Calc'!E9) -> USD | F7: =IF('GP Master Calc'!F9="","",'GP Master Calc'!F9) -> Total | G7: =IF('GP Master Calc'!G9="","",'GP Master Calc'!G9) -> Prerequisites | I7: Status
B8: =IF('GP Master Calc'!B10="","",'GP Master Calc'!B10) -> ERP Solution Suite | C8: =IF('GP Master Calc'!C10="","",'GP Master Calc'!C10) ->  | D8: =IF('GP Master Calc'!D10="","",'GP Master Calc'!D10) ->  | E8: =IF('GP Master Calc'!E10="","",'GP Master Calc'!E10) ->  | F8: =IF('GP Master Calc'!F10="","",'GP Master Calc'!F10) ->  | G8: =IF('GP Master Calc'!G10="","",'GP Master Calc'!G10) ->  | I8: ='GP Master Calc'!J10 -> Included
A9: 1 | B9: =IF('GP Master Calc'!B11="","",'GP Master Calc'!B11) -> Starter Pack | C9: =IF('GP Master Calc'!C11="","",'GP Master Calc'!C11) ->  | D9: =IF('GP Master Calc'!D11="","",'GP Master Calc'!D11) -> 109098612 | E9: =IF('GP Master Calc'!E11="","",'GP Master Calc'!E11) -> 5000 | F9: =IF('GP Master Calc'!F11="","",'GP Master Calc'!F11) -> 5000 | G9: =IF('GP Master Calc'!G11="","",'GP Master Calc'!G11) -> Starter Pack is the prerequisite for all items on price list | I9: ='GP Master Calc'!J11 -> Included
A10: 0 | B10: =IF('GP Master Calc'!B12="","",'GP Master Calc'!B12) -> Extended Pack | C10: =IF('GP Master Calc'!C12="","",'GP Master Calc'!C12) ->  | D10: =IF('GP Master Calc'!D12="","",'GP Master Calc'!D12) -> 109098613 | E10: =IF('GP Master Calc'!E12="","",'GP Master Calc'!E12) -> 10000 | F10: =IF('GP Master Calc'!F12="","",'GP Master Calc'!F12) -> 0 | G10: =IF('GP Master Calc'!G12="","",'GP Master Calc'!G12) ->  | I10: ='GP Master Calc'!J12 -> Included
B11: =IF('GP Master Calc'!B13="","",'GP Master Calc'!B13) -> Users | C11: =IF('GP Master Calc'!C13="","",'GP Master Calc'!C13) ->  | D11: =IF('GP Master Calc'!D13="","",'GP Master Calc'!D13) ->  | E11: =IF('GP Master Calc'!E13="","",'GP Master Calc'!E13) ->  | F11: =IF('GP Master Calc'!F13="","",'GP Master Calc'!F13) ->  | G11: =IF('GP Master Calc'!G13="","",'GP Master Calc'!G13) ->  | I11: ='GP Master Calc'!J13 -> Included
A12: 1 | B12: =IF('GP Master Calc'!B14="","",'GP Master Calc'!B14) -> Full User CAL (Concurrent User) | C12: =IF('GP Master Calc'!C15="","",'GP Master Calc'!C15) ->  | D12: =IF('GP Master Calc'!D14="","",'GP Master Calc'!D14) -> 109098614 | E12: =IF('GP Master Calc'!E14="","",'GP Master Calc'!E14) -> 3000 | F12: =IF('GP Master Calc'!F14="","",'GP Master Calc'!F14) -> 3000 | G12: =IF('GP Master Calc'!G14="","",'GP Master Calc'!G14) ->  | I12: ='GP Master Calc'!J14 -> Included
A13: 6 | B13: =IF('GP Master Calc'!B15="","",'GP Master Calc'!B15) -> Limited User CAL (Concurrent User) | C13: =IF('GP Master Calc'!C17="","",'GP Master Calc'!C17) ->  | D13: =IF('GP Master Calc'!D15="","",'GP Master Calc'!D15) -> 109098616 | E13: =IF('GP Master Calc'!E15="","",'GP Master Calc'!E15) -> 600 | F13: =IF('GP Master Calc'!F15="","",'GP Master Calc'!F15) -> 3600 | G13: =IF('GP Master Calc'!G15="","",'GP Master Calc'!G15) ->  | I13: ='GP Master Calc'!J15 -> Included
B14: =IF('GP Master Calc'!D16="","",'GP Master Calc'!D16) -> Sub Total of ERP Solution Suite & Users | F14: =IF('GP Master Calc'!F16="","",'GP Master Calc'!F16) -> 11600 | G14: =IF('GP Master Calc'!G16="","",'GP Master Calc'!G16) -> 
B15: =IF('GP Master Calc'!B17="","",'GP Master Calc'!B17) -> Configuration and Development | C15: =IF('GP Master Calc'!C17="","",'GP Master Calc'!C17) ->  | D15: =IF('GP Master Calc'!D17="","",'GP Master Calc'!D17) ->  | E15: =IF('GP Master Calc'!E17="","",'GP Master Calc'!E17) ->  | F15: =IF('GP Master Calc'!F17="","",'GP Master Calc'!F17) ->  | G15: =IF('GP Master Calc'!G17="","",'GP Master Calc'!G17) ->  | I15: ='GP Master Calc'!J17 -> Included
A16: 0 | B16: =IF('GP Master Calc'!B18="","",'GP Master Calc'!B18) -> Customization Pack | C16: =IF('GP Master Calc'!C18="","",'GP Master Calc'!C18) ->  | D16: =IF('GP Master Calc'!D18="","",'GP Master Calc'!D18) -> 109099124 | E16: =IF('GP Master Calc'!E18="","",'GP Master Calc'!E18) -> 6000 | F16: =IF('GP Master Calc'!F18="","",'GP Master Calc'!F18) -> 0 | G16: =IF('GP Master Calc'!G18="","",'GP Master Calc'!G18) ->  | I16: ='GP Master Calc'!J18 -> Included
B17: =IF('GP Master Calc'!B19="","",'GP Master Calc'!B19) -> Business Intelligence and Reporting | C17: =IF('GP Master Calc'!C19="","",'GP Master Calc'!C19) ->  | D17: =IF('GP Master Calc'!D19="","",'GP Master Calc'!D19) ->  | E17: =IF('GP Master Calc'!E19="","",'GP Master Calc'!E19) ->  | F17: =IF('GP Master Calc'!F19="","",'GP Master Calc'!F19) ->  | G17: =IF('GP Master Calc'!G19="","",'GP Master Calc'!G19) ->  | I17: ='GP Master Calc'!J19 -> Included
A18: 0 | B18: =IF('GP Master Calc'!B20="","",'GP Master Calc'!B20) -> SmartList Builder Pack | D18: =IF('GP Master Calc'!D20="","",'GP Master Calc'!D20) -> 109100028 | E18: =IF('GP Master Calc'!E20="","",'GP Master Calc'!E20) -> 2000 | F18: =IF('GP Master Calc'!F20="","",'GP Master Calc'!F20) -> 0 | G18: =IF('GP Master Calc'!G20="","",'GP Master Calc'!G20) ->  | I18: ='GP Master Calc'!J20 -> Included
B19: =IF('GP Master Calc'!B21="","",'GP Master Calc'!B21) -> Human Resource Management | D19: =IF('GP Master Calc'!D21="","",'GP Master Calc'!D21) ->  | E19: =IF('GP Master Calc'!E21="","",'GP Master Calc'!E21) ->  | F19: =IF('GP Master Calc'!F21="","",'GP Master Calc'!F21) ->  | I19: ='GP Master Calc'!J21 -> Included
A20: 0 | B20: =IF('GP Master Calc'!B22="","",'GP Master Calc'!B22) -> Extended Human Resources and Payroll | C20: =IF('GP Master Calc'!C22="","",'GP Master Calc'!C22) ->  | D20: =IF('GP Master Calc'!D22="","",'GP Master Calc'!D22) -> 109100029 | E20: =IF('GP Master Calc'!E22="","",'GP Master Calc'!E22) -> 7000 | F20: =IF('GP Master Calc'!F22="","",'GP Master Calc'!F22) -> 0 | G20: =IF('GP Master Calc'!G22="","",'GP Master Calc'!G22) ->  | I20: ='GP Master Calc'!J22 -> Included
B21: =IF('GP Master Calc'!B23="","",'GP Master Calc'!B23) -> Financial Management | C21: =IF('GP Master Calc'!C23="","",'GP Master Calc'!C23) ->  | D21: =IF('GP Master Calc'!D23="","",'GP Master Calc'!D23) ->  | E21: =IF('GP Master Calc'!E23="","",'GP Master Calc'!E23) ->  | F21: =IF('GP Master Calc'!F23="","",'GP Master Calc'!F23) ->  | I21: ='GP Master Calc'!J23 -> Included
A22: 0 | B22: =IF('GP Master Calc'!B24="","",'GP Master Calc'!B24) -> Collections Management | C22: =IF('GP Master Calc'!C24="","",'GP Master Calc'!C24) ->  | D22: =IF('GP Master Calc'!D24="","",'GP Master Calc'!D24) -> 109100859 | E22: =IF('GP Master Calc'!E24="","",'GP Master Calc'!E24) -> 3500 | F22: =IF('GP Master Calc'!F24="","",'GP Master Calc'!F24) -> 0 | G22: =IF('GP Master Calc'!G24="","",'GP Master Calc'!G24) ->  | I22: ='GP Master Calc'!J24 -> Included
B23: =IF('GP Master Calc'!B25="","",'GP Master Calc'!B25) ->  | C23: =IF('GP Master Calc'!C25="","",'GP Master Calc'!C25) ->  | D23: =IF('GP Master Calc'!D25="","",'GP Master Calc'!D25) -> Sub Total of A La Carte | F23: =IF('GP Master Calc'!F25="","",'GP Master Calc'!F25) -> 0 | G23: =IF('GP Master Calc'!G25="","",'GP Master Calc'!G25) ->  | I23: ='GP Master Calc'!J25 -> Included
B24: =IF('GP Master Calc'!B26="","",'GP Master Calc'!B26) -> Database | C24: =IF('GP Master Calc'!C26="","",'GP Master Calc'!C26) ->  | D24: =IF('GP Master Calc'!D26="","",'GP Master Calc'!D26) -> See Note | E24: =IF('GP Master Calc'!E26="","",'GP Master Calc'!E26) ->  | F24: =IF('GP Master Calc'!F26="","",'GP Master Calc'!F26) ->  | I24: ='GP Master Calc'!J26 -> Included
A25: 0 | B25: =IF('GP Master Calc'!B27="","",'GP Master Calc'!B27) -> Microsoft® SQL Server® 2008 R2 Standard Edition Runtime Server License (English) | C25: =IF('GP Master Calc'!C27="","",'GP Master Calc'!C27) ->  | D25: =IF('GP Master Calc'!D27="","",'GP Master Calc'!D27) -> 109100716 | E25: =IF('GP Master Calc'!E27="","",'GP Master Calc'!E27) -> 6 | F25: =IF('GP Master Calc'!F27="","",'GP Master Calc'!F27) -> 0 | G25: =IF('GP Master Calc'!G27="","",'GP Master Calc'!G27) ->  | I25: ='GP Master Calc'!J27 -> Included
A26: 0 | B26: =IF('GP Master Calc'!B28="","",'GP Master Calc'!B28) -> Microsoft® SQL Server® 2008 R2 Standard Edition Runtime CAL (English) | C26: =IF('GP Master Calc'!C28="","",'GP Master Calc'!C28) ->  | D26: =IF('GP Master Calc'!D28="","",'GP Master Calc'!D28) -> 109100717 | E26: =IF('GP Master Calc'!E28="","",'GP Master Calc'!E28) -> 110 | F26: =IF('GP Master Calc'!F28="","",'GP Master Calc'!F28) -> 0 | G26: =IF('GP Master Calc'!G28="","",'GP Master Calc'!G28) -> Microsoft® SQL Server® 2008 R2 Standard Edition Runtime Server License - See note C24 | I26: ='GP Master Calc'!J28 -> Included
A27: 0 | B27: =IF('GP Master Calc'!B29="","",'GP Master Calc'!B29) -> Microsoft® SQL Server® 2008 R2 Enterprise Edition Runtime Server License (English) | C27: =IF('GP Master Calc'!C29="","",'GP Master Calc'!C29) ->  | D27: =IF('GP Master Calc'!D29="","",'GP Master Calc'!D29) -> 109100703 | E27: =IF('GP Master Calc'!E29="","",'GP Master Calc'!E29) -> 51 | F27: =IF('GP Master Calc'!F29="","",'GP Master Calc'!F29) -> 0 | G27: =IF('GP Master Calc'!G29="","",'GP Master Calc'!G29) ->  | I27: ='GP Master Calc'!J29 -> Included
A28: 0 | B28: =IF('GP Master Calc'!B30="","",'GP Master Calc'!B30) -> Microsoft® SQL Server® 2008 R2 Enterprise Edition Runtime CAL (English) | C28: =IF('GP Master Calc'!C30="","",'GP Master Calc'!C30) ->  | D28: =IF('GP Master Calc'!D30="","",'GP Master Calc'!D30) -> 109100709 | E28: =IF('GP Master Calc'!E30="","",'GP Master Calc'!E30) -> 200 | F28: =IF('GP Master Calc'!F30="","",'GP Master Calc'!F30) -> 0 | G28: =IF('GP Master Calc'!G30="","",'GP Master Calc'!G30) -> Microsoft® SQL Server® 2008 R2 Enterprise Edition Runtime Server License - See note C24 | I28: ='GP Master Calc'!J30 -> Included
B29: =IF('GP Master Calc'!B31="","",'GP Master Calc'!B31) ->  | C29: =IF('GP Master Calc'!C31="","",'GP Master Calc'!C31) ->  | D29: =IF('GP Master Calc'!D31="","",'GP Master Calc'!D31) -> Sub Total of Database | F29: =IF('GP Master Calc'!F31="","",'GP Master Calc'!F31) -> 0 | I29: ='GP Master Calc'!J31 -> Included
B30: =IF('GP Master Calc'!B32="","",'GP Master Calc'!B32) -> Service Plans | C30: =IF('GP Master Calc'!C32="","",'GP Master Calc'!C32) ->  | D30: =IF('GP Master Calc'!D32="","",'GP Master Calc'!D32) ->  | E30: =IF('GP Master Calc'!E32="","",'GP Master Calc'!E32) ->  | F30: =IF('GP Master Calc'!F32="","",'GP Master Calc'!F32) ->  | I30: ='GP Master Calc'!J32 -> Included
A31: 0 | B31: =IF('GP Master Calc'!B33="","",'GP Master Calc'!B33) -> Enhancement Plan | C31: =IF('GP Master Calc'!C33="","",'GP Master Calc'!C33) ->  | D31: =IF('GP Master Calc'!D33="","",'GP Master Calc'!D33) ->  | E31: =IF('GP Master Calc'!E33="","",'GP Master Calc'!E33) ->  | F31: =IF('GP Master Calc'!F33="","",'GP Master Calc'!F33) -> 0 | I31: ='GP Master Calc'!J33 -> Not Included
A32: 1 | B32: =IF('GP Master Calc'!B34="","",'GP Master Calc'!B34) -> Three Year Business Ready Enhancement Plan | C32: =IF('GP Master Calc'!C34="","",'GP Master Calc'!C34) ->  | D32: =IF('GP Master Calc'!D34="","",'GP Master Calc'!D34) ->  | E32: =IF('GP Master Calc'!E34="","",'GP Master Calc'!E34) -> 0.16 | F32: =IF('GP Master Calc'!F34="","",'GP Master Calc'!F34) -> 1856 | I32: ='GP Master Calc'!J34 -> Included
A33: 0 | B33: =IF('GP Master Calc'!B35="","",'GP Master Calc'!B35) -> Business Ready Enhancement Plus Plan (LATAM) | C33: =IF('GP Master Calc'!C35="","",'GP Master Calc'!C35) ->  | D33: =IF('GP Master Calc'!D35="","",'GP Master Calc'!D35) ->  | E33: =IF('GP Master Calc'!E35="","",'GP Master Calc'!E35) ->  | F33: =IF('GP Master Calc'!F35="","",'GP Master Calc'!F35) -> 0 | I33: ='GP Master Calc'!J35 -> Not Included
A34: 0 | B34: =IF('GP Master Calc'!B36="","",'GP Master Calc'!B36) -> Business Ready Advantage Plan | C34: =IF('GP Master Calc'!C36="","",'GP Master Calc'!C36) ->  | D34: =IF('GP Master Calc'!D36="","",'GP Master Calc'!D36) ->  | E34: =IF('GP Master Calc'!E36="","",'GP Master Calc'!E36) -> 0.18 | F34: =IF('GP Master Calc'!F36="","",'GP Master Calc'!F36) -> 0 | I34: ='GP Master Calc'!J36 -> Included
A35: 0 | B35: =IF('GP Master Calc'!B37="","",'GP Master Calc'!B37) -> Three Year Business Ready Advantage Plan | C35: =IF('GP Master Calc'!C37="","",'GP Master Calc'!C37) ->  | D35: =IF('GP Master Calc'!D37="","",'GP Master Calc'!D37) ->  | E35: =IF('GP Master Calc'!E37="","",'GP Master Calc'!E37) -> 0.18 | F35: =IF('GP Master Calc'!F37="","",'GP Master Calc'!F37) -> 0 | I35: ='GP Master Calc'!J37 -> Included
A36: 0 | B36: =IF('GP Master Calc'!B38="","",'GP Master Calc'!B38) -> Business Ready Advantage Plus Plan | C36: =IF('GP Master Calc'!C38="","",'GP Master Calc'!C38) ->  | D36: =IF('GP Master Calc'!D38="","",'GP Master Calc'!D38) ->  | E36: =IF('GP Master Calc'!E38="","",'GP Master Calc'!E38) -> 0.25 | F36: =IF('GP Master Calc'!F38="","",'GP Master Calc'!F38) -> 0 | I36: ='GP Master Calc'!J38 -> Included
B37: =IF('GP Master Calc'!B39="","",'GP Master Calc'!B39) -> Total Enchancement | F37: =IF('GP Master Calc'!F39="","",'GP Master Calc'!F39) -> 1856 | I37: ='GP Master Calc'!J39 -> Included
B38: =IF('GP Master Calc'!B40="","",'GP Master Calc'!B40) ->  | C38: =IF('GP Master Calc'!C40="","",'GP Master Calc'!C40) ->  | D38: =IF('GP Master Calc'!D40="","",'GP Master Calc'!D40) ->  | E38: =IF('GP Master Calc'!E40="","",'GP Master Calc'!E40) ->  | F38: =IF('GP Master Calc'!F40="","",'GP Master Calc'!F40) ->  | I38: ='GP Master Calc'!J40 -> Included
B39: =IF('GP Master Calc'!B41="","",'GP Master Calc'!B41) -> Total Solution Cost | F39: =IF('GP Master Calc'!F41="","",'GP Master Calc'!F41) -> 13456 | I39: ='GP Master Calc'!J41 -> Included
I40: ='GP Master Calc'!J42 -> Included
B41: =IF('GP Master Calc'!B43="","",'GP Master Calc'!B43) -> This document is intended for general information purposes only, and we have taken due care in its preparation. All embedded functionality used to facilitate price calculations is provided AS IS. Any risk arising from the use of the information shall rest with the recipient and nothing herein shall be construed as constituting any kind of warranty or representation, express, implied or statutory. Users are responsible for information that is input using the pricing calculator embedded in the offline pricelist. Under certain circumstances the figures resulting from the applied pricing calculations embedded in the price list, which are shown for your convenience in this pricelist, may differ from those reflected in the Order Summary Page in Order Central. In these scenarios, the figures shown in the Order Summary Page will control. | I41: ='GP Master Calc'!J43 -> Included
B42: =IF('GP Master Calc'!B44="","",'GP Master Calc'!B44) -> European Union/European Free Trade Association policy: Upward price adjustments due to currency alignment are not subject to the standard 90-day Solution Provider Agreement notification policy. Notice of currency alignment changes will be published at least 30 days in advance of the effective date. The Euro price list is the official price list for all reference purposes for customers located in the European Union/European Free Trade Association. Microsoft’s European Operating Centre (EOC) supports five additional currencies for pricing purposes: British Pound, Danish Krone, Norwegian Krone, Swedish Krona, and Swiss Franc. Price lists reflected in these local currencies are listed for your convenience only. | I42: ='GP Master Calc'!J44 -> Not Included
I43: ='GP Master Calc'!J45 -> 0

Sheet Localization Disclaimer
A1: Localization Disclaimer
A3: Microsoft Confidential | B3: BACK to Dynamics GP Price List
A4: Please note the disclaimer to the right as applied to the following countries: Australia, Argentina, Canada, Chile, Colombia, United Kingdom, United States | B4: Microsoft Dynamics GP 2013 includes features and functionality designed to address certain tax, financial or accounting laws and/or regulations, and commercial requirements, for this geographic region. Laws and regulations vary by region and this software does not address all laws, regulations or commercial requirements in this region. Click www.microsoft.com/en-us/dynamics/erp-buy-gp-software.aspx for a list of geographic regions and languages that Microsoft makes generally available for Microsoft Dynamics GP 2013. Microsoft understands there may be circumstances where a customer desires to use certain modules or functionality that was localized and/or translated for Microsoft Dynamics GP 2013 in a particular region and use it outside of the geographic region for which it was created. Localizations and/or translations for Microsoft Dynamics GP 2013 are provided only for the geographic region for which they were created. Since laws and regulations vary by region, differences in laws or regulations may affect use of the desired functionality in regions for which it was not created. Microsoft does not make any representation, guarantee, warranty (express, implied or otherwise) or assurance about the performance or suitability of any localized and/or translated version of Microsoft Dynamics GP 2013 (including any online services available through this software) that is used outside of the territory for which it was created and where Microsoft makes such software or services generally commercially available. Consult your tax professional for the geographic region where you intend to use this software to determine if the functionality is appropriate for use in that region. Partners who desire to perform localizations and/or translations of Microsoft Dynamics GP 2013 must have a current and valid Master Partner Localization and Translation License Agreement (MPLLA). For more information about the MPLLA and the Microsoft Dynamics Partner Localization and Translation Licensing Program, see https://mbs.microsoft.com/partnersource/partneressentials/pllp or contact your Partner Account Manager.
A5: For all countries not listed above, please note the disclaimer to the right. | B5: While Microsoft Dynamics GP 2013 is available in this region, it has not been localized and/or translated by Microsoft to meet any of the tax, financial or accounting laws and/or regulations for this geographic region. Laws and regulations vary by region. Consult your tax professional for the geographic region where you intend to use this software to determine if the functionality is appropriate for use in that region. Partners who desire to perform localizations and/or translations of Microsoft Dynamics GP 2013 must have a current and valid Master Partner Localization and Translation License Agreement (MPLLA) before orders for licenses will be processed. For more information about the MPLLA and the Microsoft Dynamics Partner Localization and Translation Licensing Program, see https://mbs.microsoft.com/partnersource/partneressentials/pllp or contact your Partner Account Manager.

Sheet Dynamics CRM
A1: Microsoft Dynamics® CRM 2011 Price List
B3: Customer Location:
E4: ='CRM Master Calc'!F4 -> Price List – Effective April, 2013
E5: Microsoft Confidential
A7: =IF('CRM Master Calc'!A7="","",'CRM Master Calc'!A7) -> Qty | B7: =IF('CRM Master Calc'!B7="","",'CRM Master Calc'!B7) -> SKU | C7: =IF('CRM Master Calc'!C7="","",'CRM Master Calc'!C7) -> Item | D7: =IF('CRM Master Calc'!D7="","",'CRM Master Calc'!D7) -> USD | E7: =IF('CRM Master Calc'!E7="","",'CRM Master Calc'!E7) -> Total | G7: Status
A8: 1 | B8: =IF('CRM Master Calc'!B8="","",'CRM Master Calc'!B8) -> 109057076 | C8: =IF('CRM Master Calc'!C8="","",'CRM Master Calc'!C8) -> Microsoft Dynamics CRM 2011 Server | D8: =IF('CRM Master Calc'!D8="","",'CRM Master Calc'!D8) -> 4999 | E8: =IF('CRM Master Calc'!E8="","",'CRM Master Calc'!E8) -> 4999 | G8: ='CRM Master Calc'!G8 -> Included
A9: 5 | B9: =IF('CRM Master Calc'!B9="","",'CRM Master Calc'!B9) -> 109056979 | C9: =IF('CRM Master Calc'!C9="","",'CRM Master Calc'!C9) -> Microsoft Dynamics CRM 2011 User CAL (Named User) | D9: =IF('CRM Master Calc'!D9="","",'CRM Master Calc'!D9) -> 999 | E9: =IF('CRM Master Calc'!E9="","",'CRM Master Calc'!E9) -> 4995 | G9: ='CRM Master Calc'!G9 -> Included
A10: 0 | B10: =IF('CRM Master Calc'!B10="","",'CRM Master Calc'!B10) -> 109056946 | C10: =IF('CRM Master Calc'!C10="","",'CRM Master Calc'!C10) -> Microsoft Dynamics CRM 2011 Device CAL (Device) | D10: =IF('CRM Master Calc'!D10="","",'CRM Master Calc'!D10) -> 999 | E10: =IF('CRM Master Calc'!E10="","",'CRM Master Calc'!E10) -> 0 | G10: ='CRM Master Calc'!G10 -> Included
A11: 0 | B11: =IF('CRM Master Calc'!B11="","",'CRM Master Calc'!B11) -> 109056958 | C11: =IF('CRM Master Calc'!C11="","",'CRM Master Calc'!C11) -> Microsoft Dynamics CRM 2011 Full Use Additive User CAL (Named User) | D11: =IF('CRM Master Calc'!D11="","",'CRM Master Calc'!D11) -> 700 | E11: =IF('CRM Master Calc'!E11="","",'CRM Master Calc'!E11) -> 0 | G11: ='CRM Master Calc'!G11 -> Included
A12: 0 | B12: =IF('CRM Master Calc'!B12="","",'CRM Master Calc'!B12) -> 109056954 | C12: =IF('CRM Master Calc'!C12="","",'CRM Master Calc'!C12) -> Microsoft Dynamics CRM 2011 Full Use Additive Device CAL | D12: =IF('CRM Master Calc'!D12="","",'CRM Master Calc'!D12) -> 700 | E12: =IF('CRM Master Calc'!E12="","",'CRM Master Calc'!E12) -> 0 | G12: ='CRM Master Calc'!G12 -> Included
A13: 0 | B13: =IF('CRM Master Calc'!B13="","",'CRM Master Calc'!B13) -> 109056970 | C13: =IF('CRM Master Calc'!C13="","",'CRM Master Calc'!C13) -> Microsoft Dynamics CRM 2011 Limited User CAL (Named User) | D13: =IF('CRM Master Calc'!D13="","",'CRM Master Calc'!D13) -> 299 | E13: =IF('CRM Master Calc'!E13="","",'CRM Master Calc'!E13) -> 0 | G13: ='CRM Master Calc'!G13 -> Included
A14: 0 | B14: =IF('CRM Master Calc'!B14="","",'CRM Master Calc'!B14) -> 109056967 | C14: =IF('CRM Master Calc'!C14="","",'CRM Master Calc'!C14) -> Microsoft Dynamics CRM 2011 Limited Device CAL | D14: =IF('CRM Master Calc'!D14="","",'CRM Master Calc'!D14) -> 299 | E14: =IF('CRM Master Calc'!E14="","",'CRM Master Calc'!E14) -> 0 | G14: ='CRM Master Calc'!G14 -> Included
A15: 0 | B15: =IF('CRM Master Calc'!B15="","",'CRM Master Calc'!B15) -> 109057081 | C15: =IF('CRM Master Calc'!C15="","",'CRM Master Calc'!C15) -> Microsoft Dynamics CRM 2011 Limited Use Additive User CAL | D15: =IF('CRM Master Calc'!D15="","",'CRM Master Calc'!D15) -> 200 | E15: =IF('CRM Master Calc'!E15="","",'CRM Master Calc'!E15) -> 0 | G15: ='CRM Master Calc'!G15 -> Included
A16: 0 | B16: =IF('CRM Master Calc'!B16="","",'CRM Master Calc'!B16) -> 109057082 | C16: =IF('CRM Master Calc'!C16="","",'CRM Master Calc'!C16) -> Microsoft Dynamics CRM 2011 Limited Use Additive Device CAL | D16: =IF('CRM Master Calc'!D16="","",'CRM Master Calc'!D16) -> 200 | E16: =IF('CRM Master Calc'!E16="","",'CRM Master Calc'!E16) -> 0 | G16: ='CRM Master Calc'!G16 -> Included
A17: 0 | B17: =IF('CRM Master Calc'!B17="","",'CRM Master Calc'!B17) -> 109057079 | C17: =IF('CRM Master Calc'!C17="","",'CRM Master Calc'!C17) -> Microsoft Dynamics CRM 2011 Employee Self Service User CAL | D17: =IF('CRM Master Calc'!D17="","",'CRM Master Calc'!D17) -> 99 | E17: =IF('CRM Master Calc'!E17="","",'CRM Master Calc'!E17) -> 0 | G17: ='CRM Master Calc'!G17 -> Included
A18: 0 | B18: =IF('CRM Master Calc'!B18="","",'CRM Master Calc'!B18) -> 109057074 | C18: =IF('CRM Master Calc'!C18="","",'CRM Master Calc'!C18) -> Microsoft Dynamics CRM 2011 Employee Self Service Device CAL | D18: =IF('CRM Master Calc'!D18="","",'CRM Master Calc'!D18) -> 99 | E18: =IF('CRM Master Calc'!E18="","",'CRM Master Calc'!E18) -> 0 | G18: ='CRM Master Calc'!G18 -> Included
A19: 0 | B19: =IF('CRM Master Calc'!B19="","",'CRM Master Calc'!B19) -> 109056950 | C19: =IF('CRM Master Calc'!C19="","",'CRM Master Calc'!C19) -> Microsoft Dynamics CRM 2011 External Connector | D19: =IF('CRM Master Calc'!D19="","",'CRM Master Calc'!D19) -> 4999 | E19: =IF('CRM Master Calc'!E19="","",'CRM Master Calc'!E19) -> 0 | G19: ='CRM Master Calc'!G19 -> Included
B20: =IF('CRM Master Calc'!B20="","",'CRM Master Calc'!B20) ->  | C20: =IF('CRM Master Calc'!C20="","",'CRM Master Calc'!C20) ->  | D20: =IF('CRM Master Calc'!D20="","",'CRM Master Calc'!D20) ->  | E20: =IF('CRM Master Calc'!E20="","",'CRM Master Calc'!E20) ->  | G20: ='CRM Master Calc'!G20 -> Included
A21: 0 | B21: =IF('CRM Master Calc'!B21="","",'CRM Master Calc'!B21) -> 109056938 | C21: =IF('CRM Master Calc'!C21="","",'CRM Master Calc'!C21) -> Language: Arabic | D21: =IF('CRM Master Calc'!D21="","",'CRM Master Calc'!D21) -> 0 | E21: =IF('CRM Master Calc'!E21="","",'CRM Master Calc'!E21) -> 0 | G21: ='CRM Master Calc'!G21 -> Included
A22: 0 | B22: =IF('CRM Master Calc'!B22="","",'CRM Master Calc'!B22) -> 109057049 | C22: =IF('CRM Master Calc'!C22="","",'CRM Master Calc'!C22) -> Language: Portuguese (Brazil) | D22: =IF('CRM Master Calc'!D22="","",'CRM Master Calc'!D22) -> 0 | E22: =IF('CRM Master Calc'!E22="","",'CRM Master Calc'!E22) -> 0 | G22: ='CRM Master Calc'!G22 -> Included
A23: 0 | B23: =IF('CRM Master Calc'!B23="","",'CRM Master Calc'!B23) -> 109056982 | C23: =IF('CRM Master Calc'!C23="","",'CRM Master Calc'!C23) -> Language: Chinese Simplified | D23: =IF('CRM Master Calc'!D23="","",'CRM Master Calc'!D23) -> 0 | E23: =IF('CRM Master Calc'!E23="","",'CRM Master Calc'!E23) -> 0 | G23: ='CRM Master Calc'!G23 -> Included
A24: 0 | B24: =IF('CRM Master Calc'!B24="","",'CRM Master Calc'!B24) -> 109056984 | C24: =IF('CRM Master Calc'!C24="","",'CRM Master Calc'!C24) -> Language: Chinese Traditional | D24: =IF('CRM Master Calc'!D24="","",'CRM Master Calc'!D24) -> 0 | E24: =IF('CRM Master Calc'!E24="","",'CRM Master Calc'!E24) -> 0 | G24: ='CRM Master Calc'!G24 -> Included
A25: 0 | B25: =IF('CRM Master Calc'!B25="","",'CRM Master Calc'!B25) -> 109056983 | C25: =IF('CRM Master Calc'!C25="","",'CRM Master Calc'!C25) -> Language: Chinese (Hong Kong SAR) | D25: =IF('CRM Master Calc'!D25="","",'CRM Master Calc'!D25) -> 0 | E25: =IF('CRM Master Calc'!E25="","",'CRM Master Calc'!E25) -> 0 | G25: ='CRM Master Calc'!G25 -> Included
A26: 0 | B26: =IF('CRM Master Calc'!B26="","",'CRM Master Calc'!B26) -> 109056985 | C26: =IF('CRM Master Calc'!C26="","",'CRM Master Calc'!C26) -> Language: Czech | D26: =IF('CRM Master Calc'!D26="","",'CRM Master Calc'!D26) -> 0 | E26: =IF('CRM Master Calc'!E26="","",'CRM Master Calc'!E26) -> 0 | G26: ='CRM Master Calc'!G26 -> Included
A27: 0 | B27: =IF('CRM Master Calc'!B27="","",'CRM Master Calc'!B27) -> 109056986 | C27: =IF('CRM Master Calc'!C27="","",'CRM Master Calc'!C27) -> Language: Danish | D27: =IF('CRM Master Calc'!D27="","",'CRM Master Calc'!D27) -> 0 | E27: =IF('CRM Master Calc'!E27="","",'CRM Master Calc'!E27) -> 0 | G27: ='CRM Master Calc'!G27 -> Included
A28: 0 | B28: =IF('CRM Master Calc'!B28="","",'CRM Master Calc'!B28) -> 109056948 | C28: =IF('CRM Master Calc'!C28="","",'CRM Master Calc'!C28) -> Language: Dutch | D28: =IF('CRM Master Calc'!D28="","",'CRM Master Calc'!D28) -> 0 | E28: =IF('CRM Master Calc'!E28="","",'CRM Master Calc'!E28) -> 0 | G28: ='CRM Master Calc'!G28 -> Included
A29: 0 | B29: =IF('CRM Master Calc'!B29="","",'CRM Master Calc'!B29) -> 109056949 | C29: =IF('CRM Master Calc'!C29="","",'CRM Master Calc'!C29) -> Language: English | D29: =IF('CRM Master Calc'!D29="","",'CRM Master Calc'!D29) -> 0 | E29: =IF('CRM Master Calc'!E29="","",'CRM Master Calc'!E29) -> 0 | G29: ='CRM Master Calc'!G29 -> Included
A30: 0 | B30: =IF('CRM Master Calc'!B30="","",'CRM Master Calc'!B30) -> 109056952 | C30: =IF('CRM Master Calc'!C30="","",'CRM Master Calc'!C30) -> Language: Finnish | D30: =IF('CRM Master Calc'!D30="","",'CRM Master Calc'!D30) -> 0 | E30: =IF('CRM Master Calc'!E30="","",'CRM Master Calc'!E30) -> 0 | G30: ='CRM Master Calc'!G30 -> Included
A31: 0 | B31: =IF('CRM Master Calc'!B31="","",'CRM Master Calc'!B31) -> 109056953 | C31: =IF('CRM Master Calc'!C31="","",'CRM Master Calc'!C31) -> Language: French | D31: =IF('CRM Master Calc'!D31="","",'CRM Master Calc'!D31) -> 0 | E31: =IF('CRM Master Calc'!E31="","",'CRM Master Calc'!E31) -> 0 | G31: ='CRM Master Calc'!G31 -> Included
A32: 0 | B32: =IF('CRM Master Calc'!B32="","",'CRM Master Calc'!B32) -> 109056960 | C32: =IF('CRM Master Calc'!C32="","",'CRM Master Calc'!C32) -> Language: German | D32: =IF('CRM Master Calc'!D32="","",'CRM Master Calc'!D32) -> 0 | E32: =IF('CRM Master Calc'!E32="","",'CRM Master Calc'!E32) -> 0 | G32: ='CRM Master Calc'!G32 -> Included
A33: 0 | B33: =IF('CRM Master Calc'!B33="","",'CRM Master Calc'!B33) -> 109056961 | C33: =IF('CRM Master Calc'!C33="","",'CRM Master Calc'!C33) -> Language: Greek | D33: =IF('CRM Master Calc'!D33="","",'CRM Master Calc'!D33) -> 0 | E33: =IF('CRM Master Calc'!E33="","",'CRM Master Calc'!E33) -> 0 | G33: ='CRM Master Calc'!G33 -> Included
A34: 0 | B34: =IF('CRM Master Calc'!B34="","",'CRM Master Calc'!B34) -> 109056962 | C34: =IF('CRM Master Calc'!C34="","",'CRM Master Calc'!C34) -> Language: Hebrew | D34: =IF('CRM Master Calc'!D34="","",'CRM Master Calc'!D34) -> 0 | E34: =IF('CRM Master Calc'!E34="","",'CRM Master Calc'!E34) -> 0 | G34: ='CRM Master Calc'!G34 -> Included
A35: 0 | B35: =IF('CRM Master Calc'!B35="","",'CRM Master Calc'!B35) -> 109056963 | C35: =IF('CRM Master Calc'!C35="","",'CRM Master Calc'!C35) -> Language: Hungarian | D35: =IF('CRM Master Calc'!D35="","",'CRM Master Calc'!D35) -> 0 | E35: =IF('CRM Master Calc'!E35="","",'CRM Master Calc'!E35) -> 0 | G35: ='CRM Master Calc'!G35 -> Included
A36: 0 | B36: =IF('CRM Master Calc'!B36="","",'CRM Master Calc'!B36) -> 109056964 | C36: =IF('CRM Master Calc'!C36="","",'CRM Master Calc'!C36) -> Language: Italian | D36: =IF('CRM Master Calc'!D36="","",'CRM Master Calc'!D36) -> 0 | E36: =IF('CRM Master Calc'!E36="","",'CRM Master Calc'!E36) -> 0 | G36: ='CRM Master Calc'!G36 -> Included
A37: 0 | B37: =IF('CRM Master Calc'!B37="","",'CRM Master Calc'!B37) -> 109056965 | C37: =IF('CRM Master Calc'!C37="","",'CRM Master Calc'!C37) -> Language: Japanese | D37: =IF('CRM Master Calc'!D37="","",'CRM Master Calc'!D37) -> 0 | E37: =IF('CRM Master Calc'!E37="","",'CRM Master Calc'!E37) -> 0 | G37: ='CRM Master Calc'!G37 -> Included
A38: 0 | B38: =IF('CRM Master Calc'!B38="","",'CRM Master Calc'!B38) -> 109056966 | C38: =IF('CRM Master Calc'!C38="","",'CRM Master Calc'!C38) -> Language: Korean | D38: =IF('CRM Master Calc'!D38="","",'CRM Master Calc'!D38) -> 0 | E38: =IF('CRM Master Calc'!E38="","",'CRM Master Calc'!E38) -> 0 | G38: ='CRM Master Calc'!G38 -> Included
A39: 0 | B39: =IF('CRM Master Calc'!B39="","",'CRM Master Calc'!B39) -> 109056972 | C39: =IF('CRM Master Calc'!C39="","",'CRM Master Calc'!C39) -> Language: Norwegian (Bokmal) | D39: =IF('CRM Master Calc'!D39="","",'CRM Master Calc'!D39) -> 0 | E39: =IF('CRM Master Calc'!E39="","",'CRM Master Calc'!E39) -> 0 | G39: ='CRM Master Calc'!G39 -> Included
A40: 0 | B40: =IF('CRM Master Calc'!B40="","",'CRM Master Calc'!B40) -> 109056973 | C40: =IF('CRM Master Calc'!C40="","",'CRM Master Calc'!C40) -> Language: Polish | D40: =IF('CRM Master Calc'!D40="","",'CRM Master Calc'!D40) -> 0 | E40: =IF('CRM Master Calc'!E40="","",'CRM Master Calc'!E40) -> 0 | G40: ='CRM Master Calc'!G40 -> Included
A41: 0 | B41: =IF('CRM Master Calc'!B41="","",'CRM Master Calc'!B41) -> 109056974 | C41: =IF('CRM Master Calc'!C41="","",'CRM Master Calc'!C41) -> Language: Portuguese (Portugal) | D41: =IF('CRM Master Calc'!D41="","",'CRM Master Calc'!D41) -> 0 | E41: =IF('CRM Master Calc'!E41="","",'CRM Master Calc'!E41) -> 0 | G41: ='CRM Master Calc'!G41 -> Included
A42: 0 | B42: =IF('CRM Master Calc'!B42="","",'CRM Master Calc'!B42) -> 109056975 | C42: =IF('CRM Master Calc'!C42="","",'CRM Master Calc'!C42) -> Language: Russian | D42: =IF('CRM Master Calc'!D42="","",'CRM Master Calc'!D42) -> 0 | E42: =IF('CRM Master Calc'!E42="","",'CRM Master Calc'!E42) -> 0 | G42: ='CRM Master Calc'!G42 -> Included
A43: 0 | B43: =IF('CRM Master Calc'!B43="","",'CRM Master Calc'!B43) -> 109056976 | C43: =IF('CRM Master Calc'!C43="","",'CRM Master Calc'!C43) -> Language: Spanish | D43: =IF('CRM Master Calc'!D43="","",'CRM Master Calc'!D43) -> 0 | E43: =IF('CRM Master Calc'!E43="","",'CRM Master Calc'!E43) -> 0 | G43: ='CRM Master Calc'!G43 -> Included
A44: 0 | B44: =IF('CRM Master Calc'!B44="","",'CRM Master Calc'!B44) -> 109056977 | C44: =IF('CRM Master Calc'!C44="","",'CRM Master Calc'!C44) -> Language: Swedish | D44: =IF('CRM Master Calc'!D44="","",'CRM Master Calc'!D44) -> 0 | E44: =IF('CRM Master Calc'!E44="","",'CRM Master Calc'!E44) -> 0 | G44: ='CRM Master Calc'!G44 -> Included
A45: 0 | B45: =IF('CRM Master Calc'!B45="","",'CRM Master Calc'!B45) -> 109056978 | C45: =IF('CRM Master Calc'!C45="","",'CRM Master Calc'!C45) -> Language: Turkish | D45: =IF('CRM Master Calc'!D45="","",'CRM Master Calc'!D45) -> 0 | E45: =IF('CRM Master Calc'!E45="","",'CRM Master Calc'!E45) -> 0 | G45: ='CRM Master Calc'!G45 -> Included
A46: =IF('CRM Master Calc'!A46="","",'CRM Master Calc'!A46) ->  | B46: =IF('CRM Master Calc'!B46="","",'CRM Master Calc'!B46) ->  | C46: =IF('CRM Master Calc'!C46="","",'CRM Master Calc'!C46) ->  | D46: =IF('CRM Master Calc'!D46="","",'CRM Master Calc'!D46) ->  | E46: =IF('CRM Master Calc'!E46="","",'CRM Master Calc'!E46) ->  | G46: ='CRM Master Calc'!G46 -> Included
A47: =IF('CRM Master Calc'!A47="","",'CRM Master Calc'!A47) ->  | B47: =IF('CRM Master Calc'!B47="","",'CRM Master Calc'!B47) ->  | C47: =IF('CRM Master Calc'!C47="","",'CRM Master Calc'!C47) ->  | D47: =IF('CRM Master Calc'!D47="","",'CRM Master Calc'!D47) ->  | E47: =IF('CRM Master Calc'!E47="","",'CRM Master Calc'!E47) ->  | G47: ='CRM Master Calc'!G47 -> Included
A48: =IF('CRM Master Calc'!A48="","",'CRM Master Calc'!A48) -> CRM Software License Fee Sub-Total | E48: =IF('CRM Master Calc'!E48="","",'CRM Master Calc'!E48) -> 9994 | G48: ='CRM Master Calc'!G48 -> Included
A49: =IF('CRM Master Calc'!A49="","",'CRM Master Calc'!A49) ->  | B49: =IF('CRM Master Calc'!B49="","",'CRM Master Calc'!B49) ->  | C49: =IF('CRM Master Calc'!C49="","",'CRM Master Calc'!C49) ->  | D49: =IF('CRM Master Calc'!D49="","",'CRM Master Calc'!D49) ->  | E49: =IF('CRM Master Calc'!E49="","",'CRM Master Calc'!E49) ->  | G49: ='CRM Master Calc'!G49 -> Included
A50: =IF('CRM Master Calc'!A50="","",'CRM Master Calc'!A50) -> Enhancement Plan (New customers must choose one of the following programs) | E50: =IF('CRM Master Calc'!E50="","",'CRM Master Calc'!E50) ->  | G50: ='CRM Master Calc'!G50 -> Included
A51: =IF('CRM Master Calc'!A51="","",'CRM Master Calc'!A51) -> Select | B51: =IF('CRM Master Calc'!B51="","",'CRM Master Calc'!B51) ->  | C51: =IF('CRM Master Calc'!C51="","",'CRM Master Calc'!C51) -> Plan Name | D51: =IF('CRM Master Calc'!D51="","",'CRM Master Calc'!D51) -> Rate | E51: =IF('CRM Master Calc'!E51="","",'CRM Master Calc'!E51) -> Fee | G51: ='CRM Master Calc'!G51 -> Included
A52: 0 | B52: =IF('CRM Master Calc'!B52="","",'CRM Master Calc'!B52) ->  | C52: =IF('CRM Master Calc'!C52="","",'CRM Master Calc'!C52) -> Business Ready Enhancement Plan | D52: =IF('CRM Master Calc'!D52="","",'CRM Master Calc'!D52) -> 0.16 | E52: =IF('CRM Master Calc'!E52="","",'CRM Master Calc'!E52) -> 0 | G52: ='CRM Master Calc'!G52 -> Included
A53: 0 | B53: =IF('CRM Master Calc'!B53="","",'CRM Master Calc'!B53) ->  | C53: =IF('CRM Master Calc'!C53="","",'CRM Master Calc'!C53) -> Three Year Business Ready Enhancement Plan | D53: =IF('CRM Master Calc'!D53="","",'CRM Master Calc'!D53) -> 0.16 | E53: =IF('CRM Master Calc'!E53="","",'CRM Master Calc'!E53) -> 0 | G53: ='CRM Master Calc'!G53 -> Included
A54: 0 | B54: =IF('CRM Master Calc'!B54="","",'CRM Master Calc'!B54) ->  | C54: =IF('CRM Master Calc'!C54="","",'CRM Master Calc'!C54) -> Business Ready Advantage Plan | D54: =IF('CRM Master Calc'!D54="","",'CRM Master Calc'!D54) -> 0.18 | E54: =IF('CRM Master Calc'!E54="","",'CRM Master Calc'!E54) -> 0 | G54: ='CRM Master Calc'!G54 -> Included
A55: 0 | B55: =IF('CRM Master Calc'!B55="","",'CRM Master Calc'!B55) ->  | C55: =IF('CRM Master Calc'!C55="","",'CRM Master Calc'!C55) -> Business Ready Advantage Plus Plan | D55: =IF('CRM Master Calc'!D55="","",'CRM Master Calc'!D55) -> 0.25 | E55: =IF('CRM Master Calc'!E55="","",'CRM Master Calc'!E55) -> 0 | G55: ='CRM Master Calc'!G55 -> Included
A56: 0 | B56: =IF('CRM Master Calc'!B56="","",'CRM Master Calc'!B56) ->  | C56: =IF('CRM Master Calc'!C56="","",'CRM Master Calc'!C56) -> Three Year Business Ready Advantage Plan | D56: =IF('CRM Master Calc'!D56="","",'CRM Master Calc'!D56) -> 0.18 | E56: =IF('CRM Master Calc'!E56="","",'CRM Master Calc'!E56) -> 0 | G56: ='CRM Master Calc'!G56 -> Included
A57: =IF('CRM Master Calc'!A57="","",'CRM Master Calc'!A57) -> CRM Enhancement Fee Sub-Total | E57: =IF('CRM Master Calc'!E57="","",'CRM Master Calc'!E57) -> 0 | G57: ='CRM Master Calc'!G57 -> Included | I57: New License
A58: For more information on Service Plans Click Here | E58: =IF('CRM Master Calc'!E58="","",'CRM Master Calc'!E58) ->  | G58: ='CRM Master Calc'!G58 -> Included
A59: =IF('CRM Master Calc'!A59="","",'CRM Master Calc'!A59) -> CRM Total Fees | E59: =IF('CRM Master Calc'!E59="","",'CRM Master Calc'!E59) -> 9994 | G59: ='CRM Master Calc'!G59 -> Included
G60: ='CRM Master Calc'!G60 -> Included
G61: ='CRM Master Calc'!G61 -> Included
A62: * An Enhancement Plan is Required. | G62: ='CRM Master Calc'!G62 -> Included
G63: ='CRM Master Calc'!G63 -> Included
A64: Links to Partner Training: | G64: ='CRM Master Calc'!G64 -> Included
B65: Microsoft Dynamics CRM 2011 Pricing and Licensing Training (On-Premise and SPLA) | G65: ='CRM Master Calc'!G65 -> Included
G66: ='CRM Master Calc'!G66 -> Included
A67: System Requirements: | G67: ='CRM Master Calc'!G67 -> Included
B68: Microsoft Dynamics CRM 2011 System Requirements and Required Components | G68: ='CRM Master Calc'!G68 -> Included
G69: ='CRM Master Calc'!G69 -> Included
A70: CRM Orders with Dynamics ERP | G70: ='CRM Master Calc'!G70 -> Included
B71: Customers that own Perpetual (NAV 2013, GP 2013), Business Value Licensing (AX 2012), the Business Ready Licensing Advanced Management edition, or the Module Based Licensing Professional edition of Microsoft Dynamics NAV, Microsoft Dynamics AX, Microsoft Dynamics GP, or Microsoft Dynamics SL receive their first Microsoft Dynamics CRM 2011 Server for free as long as they acquire it through Order Central. This offer does not apply to purchases made through Volume Licensing | G71: ='CRM Master Calc'!G71 -> Included
G72: ='CRM Master Calc'!G72 -> Included
A73: This document is intended for general information purposes only, and we have taken due care in its preparation. All embedded functionality used to facilitate price calculations is provided AS IS. Any risk arising from the use of the information shall rest with the recipient and nothing herein shall be construed as constituting any kind of warranty or representation, express, implied or statutory. Users are responsible for information that is input using the pricing calculator embedded in the offline pricelist. Under certain circumstances the figures resulting from the applied pricing calculations embedded in the price list, which are shown for your convenience in this pricelist, may differ from those reflected in the Order Summary Page in Order Central. In these scenarios, the figures shown in the Order Summary Page will control. | G73: ='CRM Master Calc'!G73 -> Included
G74: ='CRM Master Calc'!G74 -> Included
A75: European Union/European Free Trade Association policy: Upward price adjustments due to currency alignment are not subject to the standard 90-day Solution Provider Agreement notification policy. Notice of currency alignment changes will be published at least 30 days in advance of the effective date. The Euro price list is the official price list for all reference purposes for customers located in the European Union/European Free Trade Association. Microsoft’s European Operating Centre (EOC) supports five additional currencies for pricing purposes: British Pound, Danish Krone, Norwegian Krone, Swedish Krona, and Swiss Franc. Price lists reflected in these local currencies are listed for your convenience only. | G75: ='CRM Master Calc'!G75 -> Not Included
A76: =IF('CRM Master Calc'!A76="","",'CRM Master Calc'!A76) ->  | B76: =IF('CRM Master Calc'!B76="","",'CRM Master Calc'!B76) ->  | C76: =IF('CRM Master Calc'!C76="","",'CRM Master Calc'!C76) ->  | D76: =IF('CRM Master Calc'!D76="","",'CRM Master Calc'!D76) ->  | E76: =IF('CRM Master Calc'!E76="","",'CRM Master Calc'!E76) ->  | G76: ='CRM Master Calc'!G76 -> 0
A77: =IF('CRM Master Calc'!A77="","",'CRM Master Calc'!A77) ->  | B77: =IF('CRM Master Calc'!B77="","",'CRM Master Calc'!B77) ->  | C77: =IF('CRM Master Calc'!C77="","",'CRM Master Calc'!C77) ->  | D77: =IF('CRM Master Calc'!D77="","",'CRM Master Calc'!D77) ->  | E77: =IF('CRM Master Calc'!E77="","",'CRM Master Calc'!E77) ->  | G77: ='CRM Master Calc'!G77 -> 0
A78: =IF('CRM Master Calc'!A78="","",'CRM Master Calc'!A78) ->  | B78: =IF('CRM Master Calc'!B78="","",'CRM Master Calc'!B78) ->  | C78: =IF('CRM Master Calc'!C78="","",'CRM Master Calc'!C78) ->  | D78: =IF('CRM Master Calc'!D78="","",'CRM Master Calc'!D78) ->  | E78: =IF('CRM Master Calc'!E78="","",'CRM Master Calc'!E78) ->  | G78: ='CRM Master Calc'!G78 -> 0
A79: =IF('CRM Master Calc'!A79="","",'CRM Master Calc'!A79) ->  | B79: =IF('CRM Master Calc'!B79="","",'CRM Master Calc'!B79) ->  | C79: =IF('CRM Master Calc'!C79="","",'CRM Master Calc'!C79) ->  | D79: =IF('CRM Master Calc'!D79="","",'CRM Master Calc'!D79) ->  | E79: =IF('CRM Master Calc'!E79="","",'CRM Master Calc'!E79) ->  | G79: ='CRM Master Calc'!G79 -> 0
A80: =IF('CRM Master Calc'!A80="","",'CRM Master Calc'!A80) ->  | B80: =IF('CRM Master Calc'!B80="","",'CRM Master Calc'!B80) ->  | C80: =IF('CRM Master Calc'!C80="","",'CRM Master Calc'!C80) ->  | D80: =IF('CRM Master Calc'!D80="","",'CRM Master Calc'!D80) ->  | E80: =IF('CRM Master Calc'!E80="","",'CRM Master Calc'!E80) ->  | G80: ='CRM Master Calc'!G80 -> 0
A81: =IF('CRM Master Calc'!A81="","",'CRM Master Calc'!A81) ->  | B81: =IF('CRM Master Calc'!B81="","",'CRM Master Calc'!B81) ->  | C81: =IF('CRM Master Calc'!C81="","",'CRM Master Calc'!C81) ->  | D81: =IF('CRM Master Calc'!D81="","",'CRM Master Calc'!D81) ->  | E81: =IF('CRM Master Calc'!E81="","",'CRM Master Calc'!E81) ->  | G81: ='CRM Master Calc'!G81 -> 0
A82: =IF('CRM Master Calc'!A82="","",'CRM Master Calc'!A82) ->  | B82: =IF('CRM Master Calc'!B82="","",'CRM Master Calc'!B82) ->  | C82: =IF('CRM Master Calc'!C82="","",'CRM Master Calc'!C82) ->  | D82: =IF('CRM Master Calc'!D82="","",'CRM Master Calc'!D82) ->  | E82: =IF('CRM Master Calc'!E82="","",'CRM Master Calc'!E82) ->  | G82: ='CRM Master Calc'!G82 -> 0
A83: =IF('CRM Master Calc'!A83="","",'CRM Master Calc'!A83) ->  | B83: =IF('CRM Master Calc'!B83="","",'CRM Master Calc'!B83) ->  | C83: =IF('CRM Master Calc'!C83="","",'CRM Master Calc'!C83) ->  | D83: =IF('CRM Master Calc'!D83="","",'CRM Master Calc'!D83) ->  | E83: =IF('CRM Master Calc'!E83="","",'CRM Master Calc'!E83) ->  | G83: ='CRM Master Calc'!G83 -> 0
A84: =IF('CRM Master Calc'!A84="","",'CRM Master Calc'!A84) ->  | B84: =IF('CRM Master Calc'!B84="","",'CRM Master Calc'!B84) ->  | C84: =IF('CRM Master Calc'!C84="","",'CRM Master Calc'!C84) ->  | D84: =IF('CRM Master Calc'!D84="","",'CRM Master Calc'!D84) ->  | E84: =IF('CRM Master Calc'!E84="","",'CRM Master Calc'!E84) ->  | G84: ='CRM Master Calc'!G84 -> 0
A85: =IF('CRM Master Calc'!A85="","",'CRM Master Calc'!A85) ->  | B85: =IF('CRM Master Calc'!B85="","",'CRM Master Calc'!B85) ->  | C85: =IF('CRM Master Calc'!C85="","",'CRM Master Calc'!C85) ->  | D85: =IF('CRM Master Calc'!D85="","",'CRM Master Calc'!D85) ->  | E85: =IF('CRM Master Calc'!E85="","",'CRM Master Calc'!E85) ->  | G85: ='CRM Master Calc'!G85 -> 0
A86: =IF('CRM Master Calc'!A86="","",'CRM Master Calc'!A86) ->  | B86: =IF('CRM Master Calc'!B86="","",'CRM Master Calc'!B86) ->  | C86: =IF('CRM Master Calc'!C86="","",'CRM Master Calc'!C86) ->  | D86: =IF('CRM Master Calc'!D86="","",'CRM Master Calc'!D86) ->  | E86: =IF('CRM Master Calc'!E86="","",'CRM Master Calc'!E86) -> 

Sheet GP Master Calc (hidden)
A1: Microsoft Dynamics GP 2013 Perpetual Licensing Model Price Lis
A3: Customer Location: | C3: Partner Location:
E5: =CONCATENATE("Price List – Effective ", PUBLICATIONDATE) -> Price List – Effective April, 2013
E6: Microsoft Confidential
F7: Total Value | G7: ** Localization Disclaimer **
F8: =F41 -> 13456 | I8: PRICE LIST CREATION STUFF
A9: Qty | B9: Item | C9: Notes | D9: SKU | E9: =SELECTEDCURRENCYCODE -> USD | F9: Total | G9: Prerequisites | H9: Rowtype | I9: LookUp | J9: Publish Status | K9: Country Status | L9: Offering Status | M9: Offering | N9: usbase | O9: Muliplier Applied | P9: Std Multiplier | Q9: Ex Multiplier | R9: Notes
A10: =IF('Dynamics GP'!A8="","",'Dynamics GP'!A8) ->  | B10: =IF(HLOOKUP(B$9,PriceLookup,$I10,FALSE)="","",HLOOKUP(B$9,PriceLookup,$I10,FALSE)) -> ERP Solution Suite | E10: =IF(I10="","", IF(HLOOKUP("US Base Price",PriceLookup,I10,FALSE)="OVERRIDE",O10, IF(HLOOKUP("Rounding Rule",PriceLookup,I10,FALSE)=-1,ROUND(N10*ROUND(O10,8)/-1,0)*-1, IF(HLOOKUP("Rounding Rule",PriceLookup,I10,FALSE)=5,ROUND(N10*ROUND(O10,8)/5,0)*5, IF(HLOOKUP("Rounding Rule",PriceLookup,I10,FALSE)=1,ROUND(N10*ROUND(O10,8)/1,0)*1, ""))))) ->  | F10: =IFERROR(SUM(E10*A10),"") ->  | G10: =IF(HLOOKUP(G$9,PriceLookup,$I10,FALSE)="","",HLOOKUP(G$9,PriceLookup,$I10,FALSE)) ->  | H10: =HLOOKUP($H$9,PriceLookup,I10,FALSE) -> HEADING | I10: 2 | J10: =IF(COUNTIF(J11:J12,"Included")=0,"Not Included","Included") -> Included
A11: =IF('Dynamics GP'!A9="","",'Dynamics GP'!A9) -> 1 | B11: Starter Pack | D11: 109098612 | E11: 5000 | F11: =IFERROR(SUM(E11*A11),"") -> 5000 | G11: =IF(HLOOKUP(G$9,PriceLookup,$I11,FALSE)="","",HLOOKUP(G$9,PriceLookup,$I11,FALSE)) -> Starter Pack is the prerequisite for all items on price list | H11: =HLOOKUP($H$9,PriceLookup,I11,FALSE) -> SKU | I11: 3 | J11: =IF(SUM(K11:L11)=2,"Included","Not Included") -> Included | K11: =IF(HLOOKUP(CUSTOMERLOCATION,AvailabilityLookUp,I11,FALSE)=1, 1,0) -> 1 | L11: =IF(OR(SELECTEDOFFERING=M11,M11=""),1,0) -> 1 | M11: =HLOOKUP($M$9,PriceLookup,I11,FALSE) -> BRL-AM | N11: =HLOOKUP("US Base Price",PriceLookup,I11,FALSE) -> 5000 | O11: =IF(N11="OVERRIDE",Q11, IF(Q11="",P11,Q11)) -> 1 | P11: =HLOOKUP(SELECTEDPRICEREGION,RegionStdMultiplier,2,FALSE) -> 1 | Q11: =IF(HLOOKUP(SELECTEDPRICEREGION,PriceLookup,I11,FALSE)="","",HLOOKUP(SELECTEDPRICEREGION,PriceLookup,I11,FALSE)) -> 
A12: =IF('Dynamics GP'!A10="","",'Dynamics GP'!A10) -> 0 | B12: =IF(HLOOKUP(B$9,PriceLookup,I12,FALSE)="","",HLOOKUP(B$9,PriceLookup,I12,FALSE)) -> Extended Pack | D12: =IF(HLOOKUP(D$9,PriceLookup,$I12,FALSE)="","",HLOOKUP(D$9,PriceLookup,$I12,FALSE)) -> 109098613 | E12: 10000 | F12: 0 | G12: =IF(HLOOKUP(G$9,PriceLookup,$I12,FALSE)="","",HLOOKUP(G$9,PriceLookup,$I12,FALSE)) ->  | H12: =HLOOKUP($H$9,PriceLookup,I12,FALSE) -> SKU | I12: 4 | J12: =IF(SUM(K12:L12)=2,"Included","Not Included") -> Included | K12: =IF(HLOOKUP(CUSTOMERLOCATION,AvailabilityLookUp,I12,FALSE)=1, 1,0) -> 1 | L12: =IF(OR(SELECTEDOFFERING=M12,M12=""),1,0) -> 1 | M12: =HLOOKUP($M$9,PriceLookup,I12,FALSE) -> BRL-AM | N12: =HLOOKUP("US Base Price",PriceLookup,I12,FALSE) -> 10000 | O12: =IF(N12="OVERRIDE",Q12, IF(Q12="",P12,Q12)) -> 1 | P12: 1 | Q12: =IF(HLOOKUP(SELECTEDPRICEREGION,PriceLookup,I12,FALSE)="","",HLOOKUP(SELECTEDPRICEREGION,PriceLookup,I12,FALSE)) -> 
A13: =IF('Dynamics GP'!A11="","",'Dynamics GP'!A11) ->  | B13: Users | C13: =IF(HLOOKUP(C$9,PriceLookup,$I13,FALSE)="","",HLOOKUP(C$9,PriceLookup,$I13,FALSE)) ->  | G13: =IF(HLOOKUP(G$9,PriceLookup,$I13,FALSE)="","",HLOOKUP(G$9,PriceLookup,$I13,FALSE)) ->  | H13: =HLOOKUP($H$9,PriceLookup,I13,FALSE) -> HEADING | I13: 5 | J13: Included
A14: =IF('Dynamics GP'!A12="","",'Dynamics GP'!A12) -> 1 | B14: Full User CAL (Concurrent User) | D14: 109098614 | E14: 3000 | F14: 3000 | H14: SKU | I14: 6 | J14: Included | K14: 1 | L14: 1 | M14: BRL-AM | N14: =HLOOKUP("US Base Price",PriceLookup,I14,FALSE) -> 3000 | O14: 1 | P14: 1
A15: =IF('Dynamics GP'!A13="","",'Dynamics GP'!A13) -> 6 | B15: Limited User CAL (Concurrent User) | D15: 109098616 | E15: 600 | F15: 3600 | H15: SKU | I15: 7 | J15: Included | K15: 1 | L15: 1 | M15: BRL-AM | N15: =HLOOKUP("US Base Price",PriceLookup,I15,FALSE) -> 600 | O15: 1 | P15: 1
D16: Sub Total of ERP Solution Suite & Users | F16: =SUM(F11:F15) -> 11600
B17: Configuration and Development | H17: HEADING | I17: 8 | J17: Included
A18: =IF('Dynamics GP'!A16="","",'Dynamics GP'!A16) -> 0 | B18: Customization Pack | D18: 109099124 | E18: =IF(I18="","", IF(HLOOKUP("US Base Price",PriceLookup,I18,FALSE)="OVERRIDE",O18, IF(HLOOKUP("Rounding Rule",PriceLookup,I18,FALSE)=-1,ROUND(N18*ROUND(O18,8)/-1,0)*-1, IF(HLOOKUP("Rounding Rule",PriceLookup,I18,FALSE)=5,ROUND(N18*ROUND(O18,8)/5,0)*5, IF(HLOOKUP("Rounding Rule",PriceLookup,I18,FALSE)=1,ROUND(N18*ROUND(O18,8)/1,0)*1, ""))))) -> 6000 | F18: 0 | H18: SKU | I18: 9 | J18: Included | K18: 1 | L18: 1 | M18: BRL-AM | N18: =HLOOKUP("US Base Price",PriceLookup,I18,FALSE) -> 6000 | O18: 1 | P18: 1
B19: Business Intelligence and Reporting | H19: HEADING | I19: 10 | J19: Included
A20: =IF('Dynamics GP'!A18="","",'Dynamics GP'!A18) -> 0 | B20: SmartList Builder Pack | D20: 109100028 | E20: =IF(I20="","", IF(HLOOKUP("US Base Price",PriceLookup,I20,FALSE)="OVERRIDE",O20, IF(HLOOKUP("Rounding Rule",PriceLookup,I20,FALSE)=-1,ROUND(N20*ROUND(O20,8)/-1,0)*-1, IF(HLOOKUP("Rounding Rule",PriceLookup,I20,FALSE)=5,ROUND(N20*ROUND(O20,8)/5,0)*5, IF(HLOOKUP("Rounding Rule",PriceLookup,I20,FALSE)=1,ROUND(N20*ROUND(O20,8)/1,0)*1, ""))))) -> 2000 | F20: =IFERROR(SUM(E20*A20),"") -> 0 | H20: =HLOOKUP($H$9,PriceLookup,I20,FALSE) -> SKU | I20: 11 | J20: Included | K20: 1 | L20: 1 | M20: BRL-AM | N20: =HLOOKUP("US Base Price",PriceLookup,I20,FALSE) -> 2000 | O20: 1 | P20: 1
A21: =IF('Dynamics GP'!A19="","",'Dynamics GP'!A19) ->  | B21: Human Resource Management | H21: =HLOOKUP($H$9,PriceLookup,I21,FALSE) -> HEADING | I21: 12 | J21: Included
A22: =IF('Dynamics GP'!A20="","",'Dynamics GP'!A20) -> 0 | B22: Extended Human Resources and Payroll | C22: =IF(HLOOKUP(C$9,PriceLookup,$I22,FALSE)="","",HLOOKUP(C$9,PriceLookup,$I22,FALSE)) ->  | D22: 109100029 | E22: =IF(I22="","", IF(HLOOKUP("US Base Price",PriceLookup,I22,FALSE)="OVERRIDE",O22, IF(HLOOKUP("Rounding Rule",PriceLookup,I22,FALSE)=-1,ROUND(N22*ROUND(O22,8)/-1,0)*-1, IF(HLOOKUP("Rounding Rule",PriceLookup,I22,FALSE)=5,ROUND(N22*ROUND(O22,8)/5,0)*5, IF(HLOOKUP("Rounding Rule",PriceLookup,I22,FALSE)=1,ROUND(N22*ROUND(O22,8)/1,0)*1, ""))))) -> 7000 | F22: =IFERROR(SUM(E22*A22),"") -> 0 | G22: =IF(HLOOKUP(G$9,PriceLookup,$I22,FALSE)="","",HLOOKUP(G$9,PriceLookup,$I22,FALSE)) ->  | H22: =HLOOKUP($H$9,PriceLookup,I22,FALSE) -> SKU | I22: 13 | J22: Included | K22: 1 | L22: 1 | M22: BRL-AM | N22: =HLOOKUP("US Base Price",PriceLookup,I22,FALSE) -> 7000 | O22: 1 | P22: 1
B23: Financial Management | E23: =IF(I23="","", IF(HLOOKUP("US Base Price",PriceLookup,I23,FALSE)="OVERRIDE",O23, IF(HLOOKUP("Rounding Rule",PriceLookup,I23,FALSE)=-1,ROUND(N23*ROUND(O23,8)/-1,0)*-1, IF(HLOOKUP("Rounding Rule",PriceLookup,I23,FALSE)=5,ROUND(N23*ROUND(O23,8)/5,0)*5, IF(HLOOKUP("Rounding Rule",PriceLookup,I23,FALSE)=1,ROUND(N23*ROUND(O23,8)/1,0)*1, ""))))) ->  | F23: =IFERROR(SUM(E23*A23),"") ->  | G23: =IF(HLOOKUP(G$9,PriceLookup,$I23,FALSE)="","",HLOOKUP(G$9,PriceLookup,$I23,FALSE)) ->  | H23: =HLOOKUP($H$9,PriceLookup,I23,FALSE) -> HEADING | I23: 14 | J23: Included
A24: =IF('Dynamics GP'!A22="","",'Dynamics GP'!A22) -> 0 | B24: Collections Management | D24: 109100859 | E24: =IF(I24="","", IF(HLOOKUP("US Base Price",PriceLookup,I24,FALSE)="OVERRIDE",O24, IF(HLOOKUP("Rounding Rule",PriceLookup,I24,FALSE)=-1,ROUND(N24*ROUND(O24,8)/-1,0)*-1, IF(HLOOKUP("Rounding Rule",PriceLookup,I24,FALSE)=5,ROUND(N24*ROUND(O24,8)/5,0)*5, IF(HLOOKUP("Rounding Rule",PriceLookup,I24,FALSE)=1,ROUND(N24*ROUND(O24,8)/1,0)*1, ""))))) -> 3500 | F24: =IFERROR(SUM(E24*A24),"") -> 0 | G24: =IF(HLOOKUP(G$9,PriceLookup,$I24,FALSE)="","",HLOOKUP(G$9,PriceLookup,$I24,FALSE)) ->  | H24: =HLOOKUP($H$9,PriceLookup,I24,FALSE) -> SKU | I24: 15 | J24: Included | K24: 1 | L24: 1 | M24: BRL-AM | N24: =HLOOKUP("US Base Price",PriceLookup,I24,FALSE) -> 3500 | O24: 1 | P24: 1
A25: =IF('Dynamics GP'!A23="","",'Dynamics GP'!A23) ->  | D25: Sub Total of A La Carte | F25: =SUM(F18:F24) -> 0 | J25: Included
B26: =IF(HLOOKUP(B$9,PriceLookup,I26,FALSE)="","",HLOOKUP(B$9,PriceLookup,I26,FALSE)) -> Database | C26: =IF(HLOOKUP(C$9,PriceLookup,$I26,FALSE)="","",HLOOKUP(C$9,PriceLookup,$I26,FALSE)) ->  | D26: See Note | E26: =IF(I26="","", IF(HLOOKUP("US Base Price",PriceLookup,I26,FALSE)="OVERRIDE",O26, IF(HLOOKUP("Rounding Rule",PriceLookup,I26,FALSE)=-1,ROUND(N26*ROUND(O26,8)/-1,0)*-1, IF(HLOOKUP("Rounding Rule",PriceLookup,I26,FALSE)=5,ROUND(N26*ROUND(O26,8)/5,0)*5, IF(HLOOKUP("Rounding Rule",PriceLookup,I26,FALSE)=1,ROUND(N26*ROUND(O26,8)/1,0)*1, ""))))) ->  | F26: =IFERROR(SUM(E26*A26),"") ->  | G26: =IF(HLOOKUP(G$9,PriceLookup,$I26,FALSE)="","",HLOOKUP(G$9,PriceLookup,$I26,FALSE)) ->  | H26: =HLOOKUP($H$9,PriceLookup,I26,FALSE) -> HEADING | I26: 16 | J26: =IF(COUNTIF(J27:J30,"Included")=0,"Not Included","Included") -> Included
A27: =IF('Dynamics GP'!A25="","",'Dynamics GP'!A25) -> 0 | B27: =IF(HLOOKUP(B$9,PriceLookup,I27,FALSE)="","",HLOOKUP(B$9,PriceLookup,I27,FALSE)) -> Microsoft® SQL Server® 2008 R2 Standard Edition Runtime Server License (English) | D27: 109100716 | E27: =IF(I27="","", IF(HLOOKUP("US Base Price",PriceLookup,I27,FALSE)="OVERRIDE",O27, IF(HLOOKUP("Rounding Rule",PriceLookup,I27,FALSE)=-1,ROUND(N27*ROUND(O27,8)/-1,0)*-1, IF(HLOOKUP("Rounding Rule",PriceLookup,I27,FALSE)=5,ROUND(N27*ROUND(O27,8)/5,0)*5, IF(HLOOKUP("Rounding Rule",PriceLookup,I27,FALSE)=1,ROUND(N27*ROUND(O27,8)/1,0)*1, ""))))) -> 6 | F27: =IFERROR(SUM(E27*A27),"") -> 0 | G27: =IF(HLOOKUP(G$9,PriceLookup,$I27,FALSE)="","",HLOOKUP(G$9,PriceLookup,$I27,FALSE)) ->  | H27: =HLOOKUP($H$9,PriceLookup,I27,FALSE) -> SKU | I27: 20 | J27: Included | K27: 1 | L27: 1 | M27: BRL-AM | N27: =HLOOKUP("US Base Price",PriceLookup,I27,FALSE) -> 6 | O27: 1 | P27: 1 | Q27: 1
A28: =IF('Dynamics GP'!A26="","",'Dynamics GP'!A26) -> 0 | B28: =IF(HLOOKUP(B$9,PriceLookup,I28,FALSE)="","",HLOOKUP(B$9,PriceLookup,I28,FALSE)) -> Microsoft® SQL Server® 2008 R2 Standard Edition Runtime CAL (English) | D28: 109100717 | E28: =IF(I28="","", IF(HLOOKUP("US Base Price",PriceLookup,I28,FALSE)="OVERRIDE",O28, IF(HLOOKUP("Rounding Rule",PriceLookup,I28,FALSE)=-1,ROUND(N28*ROUND(O28,8)/-1,0)*-1, IF(HLOOKUP("Rounding Rule",PriceLookup,I28,FALSE)=5,ROUND(N28*ROUND(O28,8)/5,0)*5, IF(HLOOKUP("Rounding Rule",PriceLookup,I28,FALSE)=1,ROUND(N28*ROUND(O28,8)/1,0)*1, ""))))) -> 110 | F28: =IFERROR(SUM(E28*A28),"") -> 0 | G28: =IF(HLOOKUP(G$9,PriceLookup,$I28,FALSE)="","",HLOOKUP(G$9,PriceLookup,$I28,FALSE)) -> Microsoft® SQL Server® 2008 R2 Standard Edition Runtime Server License - See note C24 | H28: =HLOOKUP($H$9,PriceLookup,I28,FALSE) -> SKU | I28: 17 | J28: Included | K28: 1 | L28: 1 | M28: BRL-AM | N28: =HLOOKUP("US Base Price",PriceLookup,I28,FALSE) -> 110 | O28: 1 | P28: 1 | Q28: 1
A29: =IF('Dynamics GP'!A27="","",'Dynamics GP'!A27) -> 0 | B29: =IF(HLOOKUP(B$9,PriceLookup,I29,FALSE)="","",HLOOKUP(B$9,PriceLookup,I29,FALSE)) -> Microsoft® SQL Server® 2008 R2 Enterprise Edition Runtime Server License (English) | D29: 109100703 | E29: =IF(I29="","", IF(HLOOKUP("US Base Price",PriceLookup,I29,FALSE)="OVERRIDE",O29, IF(HLOOKUP("Rounding Rule",PriceLookup,I29,FALSE)=-1,ROUND(N29*ROUND(O29,8)/-1,0)*-1, IF(HLOOKUP("Rounding Rule",PriceLookup,I29,FALSE)=5,ROUND(N29*ROUND(O29,8)/5,0)*5, IF(HLOOKUP("Rounding Rule",PriceLookup,I29,FALSE)=1,ROUND(N29*ROUND(O29,8)/1,0)*1, ""))))) -> 51 | F29: =IFERROR(SUM(E29*A29),"") -> 0 | G29: =IF(HLOOKUP(G$9,PriceLookup,$I29,FALSE)="","",HLOOKUP(G$9,PriceLookup,$I29,FALSE)) ->  | H29: =HLOOKUP($H$9,PriceLookup,I29,FALSE) -> SKU | I29: 19 | J29: Included | K29: 1 | L29: 1 | M29: BRL-AM | N29: =HLOOKUP("US Base Price",PriceLookup,I29,FALSE) -> 51 | O29: 1 | P29: 1 | Q29: 1
A30: =IF('Dynamics GP'!A28="","",'Dynamics GP'!A28) -> 0 | B30: =IF(HLOOKUP(B$9,PriceLookup,I30,FALSE)="","",HLOOKUP(B$9,PriceLookup,I30,FALSE)) -> Microsoft® SQL Server® 2008 R2 Enterprise Edition Runtime CAL (English) | D30: 109100709 | E30: =IF(I30="","", IF(HLOOKUP("US Base Price",PriceLookup,I30,FALSE)="OVERRIDE",O30, IF(HLOOKUP("Rounding Rule",PriceLookup,I30,FALSE)=-1,ROUND(N30*ROUND(O30,8)/-1,0)*-1, IF(HLOOKUP("Rounding Rule",PriceLookup,I30,FALSE)=5,ROUND(N30*ROUND(O30,8)/5,0)*5, IF(HLOOKUP("Rounding Rule",PriceLookup,I30,FALSE)=1,ROUND(N30*ROUND(O30,8)/1,0)*1, ""))))) -> 200 | F30: =IFERROR(SUM(E30*A30),"") -> 0 | G30: =IF(HLOOKUP(G$9,PriceLookup,$I30,FALSE)="","",HLOOKUP(G$9,PriceLookup,$I30,FALSE)) -> Microsoft® SQL Server® 2008 R2 Enterprise Edition Runtime Server License - See note C24 | H30: =HLOOKUP($H$9,PriceLookup,I30,FALSE) -> SKU | I30: 18 | J30: Included | K30: 1 | L30: 1 | M30: BRL-AM | N30: =HLOOKUP("US Base Price",PriceLookup,I30,FALSE) -> 200 | O30: 1 | P30: 1 | Q30: 1
A31: =IF('Dynamics GP'!A29="","",'Dynamics GP'!A29) ->  | D31: Sub Total of Database | F31: =SUM(F27:F30) -> 0 | J31: =IF(COUNTIF(J27:J30,"Included")=0,"Not Included","Included") -> Included
A32: =IF('Dynamics GP'!A30="","",'Dynamics GP'!A30) ->  | B32: =IF(HLOOKUP(B$9,PriceLookup,I32,FALSE)="","",HLOOKUP(B$9,PriceLookup,I32,FALSE)) -> Service Plans | C32: =IF(HLOOKUP(C$9,PriceLookup,$I32,FALSE)="","",HLOOKUP(C$9,PriceLookup,$I32,FALSE)) ->  | E32: =IF(I32="","", IF(HLOOKUP("US Base Price",PriceLookup,I32,FALSE)="OVERRIDE",O32, IF(HLOOKUP("Rounding Rule",PriceLookup,I32,FALSE)=-1,ROUND(N32*ROUND(O32,8)/-1,0)*-1, IF(HLOOKUP("Rounding Rule",PriceLookup,I32,FALSE)=5,ROUND(N32*ROUND(O32,8)/5,0)*5, IF(HLOOKUP("Rounding Rule",PriceLookup,I32,FALSE)=1,ROUND(N32*ROUND(O32,8)/1,0)*1, ""))))) ->  | F32: =IFERROR(SUM(E32*A32),"") ->  | G32: =IF(HLOOKUP(G$9,PriceLookup,$I32,FALSE)="","",HLOOKUP(G$9,PriceLookup,$I32,FALSE)) ->  | H32: =HLOOKUP($H$9,PriceLookup,I32,FALSE) -> HEADING | I32: 21 | J32: Included
A33: =IF('Dynamics GP'!A31="","",'Dynamics GP'!A31) -> 0 | B33: Enhancement Plan | F33: =IFERROR(ROUND(SUM(E33*A33)*($F$16+$F$25+$F$31),1),0) -> 0 | H33: SKU | I33: 22 | J33: Not Included | K33: 0 | L33: 1 | M33: BRL-AM | N33: =HLOOKUP("US Base Price",PriceLookup,I33,FALSE) -> OVERRIDE | P33: 1
A34: =IF('Dynamics GP'!A32="","",'Dynamics GP'!A32) -> 1 | B34: Three Year Business Ready Enhancement Plan | E34: 0.16 | F34: =IFERROR(ROUND(SUM(E34*A34)*($F$16+$F$25+$F$31),1),0) -> 1856 | H34: SKU | I34: 23 | J34: Included | K34: 1 | L34: 1 | M34: BRL-AM | N34: OVERRIDE | O34: 0.16 | P34: 1 | Q34: 0.16
A35: =IF('Dynamics GP'!A33="","",'Dynamics GP'!A33) -> 0 | B35: Business Ready Enhancement Plus Plan (LATAM) | F35: 0 | H35: SKU | I35: 24 | J35: Not Included | K35: 0 | L35: 1 | M35: BRL-AM | N35: OVERRIDE | P35: 1
A36: =IF('Dynamics GP'!A34="","",'Dynamics GP'!A34) -> 0 | B36: Business Ready Advantage Plan | E36: 0.18 | F36: 0 | H36: SKU | I36: 25 | J36: Included | K36: 1 | L36: 1 | M36: BRL-AM | N36: OVERRIDE | O36: 0.18 | P36: 1 | Q36: 0.18
A37: =IF('Dynamics GP'!A35="","",'Dynamics GP'!A35) -> 0 | B37: Three Year Business Ready Advantage Plan | E37: 0.18 | F37: =IFERROR(ROUND(SUM(E37*A37)*($F$16+$F$25+$F$31),1),0) -> 0 | H37: SKU | I37: 26 | J37: =IF(SUM(K37:L37)=2,"Included","Not Included") -> Included | K37: =IF(HLOOKUP(CUSTOMERLOCATION,AvailabilityLookUp,I37,FALSE)=1, 1,0) -> 1 | L37: =IF(OR(SELECTEDOFFERING=M37,M37=""),1,0) -> 1 | M37: =HLOOKUP($M$9,PriceLookup,I37,FALSE) -> BRL-AM | N37: OVERRIDE | O37: =IF(N37="OVERRIDE",Q37, IF(Q37="",P37,Q37)) -> 0.18 | P37: 1 | Q37: =IF(HLOOKUP(SELECTEDPRICEREGION,PriceLookup,I37,FALSE)="","",HLOOKUP(SELECTEDPRICEREGION,PriceLookup,I37,FALSE)) -> 0.18
A38: =IF('Dynamics GP'!A36="","",'Dynamics GP'!A36) -> 0 | B38: Business Ready Advantage Plus Plan | E38: 0.25 | F38: 0 | H38: SKU | I38: 27 | J38: Included | K38: 1 | L38: 1 | M38: BRL-AM | N38: OVERRIDE | O38: 0.25 | P38: 1 | Q38: 0.25
B39: Total Enchancement | F39: =ROUND(SUM(F33:F38),0) -> 1856 | J39: Included
J40: Included
B41: Total Solution Cost | F41: =ROUND(SUM(F16+F25+F31+F39),0) -> 13456 | J41: Included
J42: Included
B43: This document is intended for general information purposes only, and we have taken due care in its preparation. All embedded functionality used to facilitate price calculations is provided AS IS. Any risk arising from the use of the information shall rest with the recipient and nothing herein shall be construed as constituting any kind of warranty or representation, express, implied or statutory. Users are responsible for information that is input using the pricing calculator embedded in the offline pricelist. Under certain circumstances the figures resulting from the applied pricing calculations embedded in the price list, which are shown for your convenience in this pricelist, may differ from those reflected in the Order Summary Page in Order Central. In these scenarios, the figures shown in the Order Summary Page will control. | J43: Included
B44: European Union/European Free Trade Association policy: Upward price adjustments due to currency alignment are not subject to the standard 90-day Solution Provider Agreement notification policy. Notice of currency alignment changes will be published at least 30 days in advance of the effective date. The Euro price list is the official price list for all reference purposes for customers located in the European Union/European Free Trade Association. Microsoft’s European Operating Centre (EOC) supports five additional currencies for pricing purposes: British Pound, Danish Krone, Norwegian Krone, Swedish Krona, and Swiss Franc. Price lists reflected in these local currencies are listed for your convenience only. | J44: =IF('GP FuseBox'!D6="yes","Included","Not Included") -> Not Included

Sheet Extract (hidden)
A1: PriceList | B1: Country | C1: DPLpriceregion | D1: OfferingCode | E1: SKUDescription | F1: GranuleID | G1: SKUID | H1: Price | I1: Currency | J1: Prerequisite | K1: Date | L1: CountryCode | M1: CountryVersion | N1: CurrencyCode | O1: ConversionFactor | P1: CurrentRelease | Q1: OfferingName | R1: DisplayID | S1: ExtractDateTime

Sheet GP FuseBox (hidden)
B2: CRITERION | C2: VALUE 1 | D2: VALUE 2 | E2: Notes
B3: Customer Location | C3: United States
B4: Cust Country Lookup
B5: Cust Country Code | C5: =VLOOKUP(C3,COUNTRYLIST,2,FALSE) -> 227 | D5: =IF(VLOOKUP(CUSTOMERLOCATION,COUNTRYLIST,6,FALSE)=TRUE,"Excluded","") ->  | E5: Checks for Excluded Country
B6: Display PartnerBox? | C6: =IF(VLOOKUP(C3,COUNTRYLIST,7,FALSE) = TRUE,"EEAS","") ->  | D6: =IFERROR(IF(VLOOKUP(C3,COUNTRYLIST,7,FALSE)=TRUE, "Yes","No"),"No") -> No | E6: Checks for EEAS Country and drives partner box display
B7: Customer Region | C7: =VLOOKUP(C3,COUNTRYLIST,3,FALSE) -> United States | D7: =VLOOKUP(C3,COUNTRYLIST,5,FALSE) -> USD | E7: Region name & Region currency
B8: Cust Region Code | C8: =VLOOKUP(C3,COUNTRYLIST,4,FALSE) -> 25
B9: Cust Region Lookup | C9: =C8 -> 25
B10: Partner Location | D10: =IF(C10="",C3,C10) -> United States
B11: Ptnr Country Lookup
B12: Ptnr Country Code | C12: =IFERROR(VLOOKUP(C10,COUNTRYLIST,2,FALSE),"") ->  | D12: =IFERROR(IF(AND(PARTNERLOCATION<>"",VLOOKUP(D10,COUNTRYLIST,6,FALSE)=TRUE),"Excluded",""),"") ->  | E12: Checks for Excluded Country
B13: Partner Region | C13: =IFERROR(VLOOKUP(C10,COUNTRYLIST,3,FALSE),"") ->  | D13: =IFERROR(VLOOKUP(C10,COUNTRYLIST,5,FALSE),"") -> 
B14: Ptnr Region Code | C14: =IFERROR(VLOOKUP(C10,COUNTRYLIST,4,FALSE),"") -> 
B15: Ptnr Region Lookup | C15: =IFERROR(C14,"") -> 
B16: Display CurrencyBox? | C16: =IF(C12="","", IF(VLOOKUP(C10,COUNTRYLIST,8,FALSE)=TRUE,"Group A","")) ->  | D16: =IFERROR(IF(D6="No","No", IF(C16="Group A","Yes","No")),"No") -> No | E16: Checks for Group A and drives currency box
B17: Currency Override? | C17: =IF(C16="Group A","Yes","No") -> No
B18: CurrencyBox List | C18: =VLOOKUP(D18,CURRENCYLIST,2,FALSE) -> US Dollar | D18: =IF(D6="No",D7,"EUR") -> USD | E18: This is the customer's currency. HOWEVER if partner location is in Group A then defaults to Euro
C19: =VLOOKUP(D19,CURRENCYLIST,2,FALSE) -> US Dollar | D19: =IF(D6="No",D7,D13) -> USD | E19: This is the partners currency. If no partner box then defaults to customer currency. If currency override uses EUR
B20: Currency Selected | C20: US Dollar | D20: =IF(AND(C6="EEAS",D10="Please select Partner location..."),"Customer", IF(AND(C6="EEAS",C17="No"),"Customer", IF(AND(C6="EEAS",C17="Yes",C20=C19),"Partner", "Customer"))) -> Customer | E20: Indicates which menu selection to use and displays chosen currency
B21: Pricing to use? | C21: =IF(AND(C6="EEAS",D10="Please select Partner location..."),"EUR", IF(AND(C6="EEAS",C17="No"),"EUR", IF(AND(C6="EEAS",C17="Yes",D21=""),"EUR", D19))) -> USD | D21: =IF(AND(C6="EEAS",C17="Yes",C20=C19),"DD Override","") ->  | E21: "DD Override" changes currency in C21 (used in MasterCalc) to dropdown value
B22: Price List Selected | C22: =IF(AND(D20="Customer",D18="EUR"),26, IF(AND(D20="Customer",D18<>"EUR"),CUSTOMERREGIONLOOKUP, IF(D20="Partner",C15, 286+1))) -> 25 | E22: Points to price list. Eurozone = 26
B23: PriceRegionSelected | C23: =IF(C8=C22,CUSTOMERREGION, IF(SELECTEDCURRENCYCODE="EUR","EUROZONE",SELECTEDPARTNERREGION )) -> United States | E23: This displays the PriceRegion to look up for pricing. Will either be Customer Region, Partner region or EuroZone
E24: Logic
D25: 1) | E25: If cust is EEAS and "Select" message displayed, then EUR
D26: 2) | E26: If Cust is EEAS and partner chosen with no override then EUR
B27: Selected Offering | C27: BRL-AM | D27: 1) | E27: If Cust is EEAS and partner chosen with override then default EUR with option to select
B28: Selected Discount | C28: None | D28: 2) | E28: if Cust currency = dropdown value then…
B29: Selected Discount Amt | C29: =IF(C30=TRUE,VLOOKUP(SELECTEDDISCOUNT,GVADISCOUNTLIST,3,FALSE),0) -> 0 | D29: 1) | E29: if Partner currency = dropdown value then…
B30: Apply Discount? | C30: =IFERROR(IF(SEARCH("BRL",SELECTEDOFFERING),TRUE),FALSE) -> TRUE | D30: 2) | E30: Discount only applied to BRL so if MBL then answer is no
B32: Pricelist Month | C32: =PricelistMonth -> April | E32: Pricelist Month selected on Admin Control Page
B33: Pricelist Year | C33: =Pricelistyear -> 2013 | E33: Pricelist year selected on Admin Control Page
B34: Publication Date | C34: =CONCATENATE(C32,", ",C33) -> April, 2013 | E34: Current Publication Date
B35: Full PubDate | C35: =DATEVALUE(CONCATENATE(1,"/",C32,"/",C33)) -> 2013-04-01 | E35: Used with Extract Tool
B37: Customer Loc Excluded ? | C37: =IFERROR(VLOOKUP(CUSTOMERLOCATION,EXCOUNTRYLIST,1,FALSE),FALSE) -> FALSE | E37: Is Customer Location chosen an excluded country.
B38: Partner Loc Excluded ? | C38: =IFERROR(VLOOKUP(PARTNERLOCATION,EXCOUNTRYLIST,1,FALSE),FALSE) -> FALSE | E38: Is Partner Location chosen an excluded country.
B39: Pricelist Excluded Status | C39: =IF(OR(C37<>FALSE,C38<>FALSE),TRUE,FALSE) -> FALSE | E39: Tests if either Customer or Partner Location chosen is an excluded country. If TRUE then all pricerows on mastercalc set to NOTINCLUDE
B41: Row Count | C41: =COUNT('GP Master Calc'!I:I) -> 26 | E41: Used with Extract Tool
B44: Turn on Order Form | C44: TRUE | E44: shows the status of the Order form toggle on the control page TRUE = ON / FALSE = OFF
B46: ExtractCount | C46: =COUNTA(Table131[Customer Location])-1 -> 239 | E46: Shows the number of lines required for the extract loop based on the number of rows in the ExtractList table

Sheet GP Product Data (hidden)
J2: Lookup | K2: 1 | L2: 2 | M2: 3 | N2: 4 | O2: 5 | P2: 6 | Q2: 7 | R2: 8 | S2: 9 | T2: 10 | U2: 11 | V2: 12 | W2: 13 | X2: 14 | Y2: 15 | Z2: 16 | AA2: 17 | AB2: 18 | AC2: 19 | AD2: 20 | AE2: 21 | AF2: 22 | AG2: 23 | AH2: 24 | AI2: 25 | AJ2: 26 | AK2: 27 | AL2: 28 | AM2: 29 | AN2: 30 | AO2: 31 | AQ2: ROUNDING RULES LIST | AU2: GVA DISCOUNT LIST | AY2: LANGUAGES LIST | BA2: OFFERING LIST | BD2: EXTRACT LIST
J3: Region | K3: Africa | L3: APOC United States | M3: Australia | N3: Canada | O3: Central Asia 1 - CEE 1 | P3: Central Asia 2 - CEE 2 | Q3: Chile | R3: China | S3: Colombia | T3: Eastern Europe 1 | U3: Eastern Europe 2 | V3: India | W3: Japan | X3: Latam Caribbean | Y3: Latam PR/BM/CI/VI | Z3: Mexico | AA3: Middle East | AB3: New Zealand | AC3: Rest of Latam | AD3: Russia | AE3: Serbia | AF3: South Africa | AG3: South East Asia | AH3: Turkey | AI3: United States | AJ3: Eurozone | AK3: Denmark2 | AL3: Norway2 | AM3: Sweden2 | AN3: Switzerland2 | AO3: United Kingdom2 | AQ3: Rule | AR3: Rounding Rule list | AS3: Driver | AU3: GVA Type | AV3: GVACode | AW3: Discount | AY3: LANGUAGES LIST | BA3: OFFERING NAME | BB3: OFFERING CODE | BD3: Customer Location | BE3: Partner Location | BF3: currency | BG3: Offering
J4: Std Multiplier | K4: 0.7 | L4: 1 | M4: 1 | N4: 1 | O4: 0.9 | P4: 0.9 | Q4: 0.7 | R4: 6.5 | S4: 0.7 | T4: 0.9 | U4: 0.9 | V4: 34.65 | W4: 83 | X4: 0.7 | Y4: 1 | Z4: 0.7 | AA4: 0.9 | AB4: 1.3 | AC4: 0.7 | AD4: 31.5 | AE4: 0.9 | AF4: 0.9 | AG4: 0.7 | AH4: 0.9 | AI4: 1 | AJ4: 0.75 | AK4: 5.5834 | AL4: 5.8009 | AM4: 6.8606 | AN4: 0.9051 | AO4: 0.5918 | AQ4: 1 | AR4: Round up to nearest whole number | AS4: 1 | AU4: None | AV4: 1 | AY4: Please select required language here: | BA4: Business Ready Licensing - Advanced Management Edition | BB4: BRL-AM | BD4: Afghanistan | BE4: United States | BF4: US Dollar | BG4: BRL-AM
A5: Lookup | B5: 1 | C5: 2 | D5: 3 | E5: 4 | F5: 5 | G5: 6 | I5: 7 | J5: 8 | K5: 9 | L5: 10 | M5: 11 | N5: 12 | O5: 13 | P5: 14 | Q5: 15 | R5: 16 | S5: 17 | T5: 18 | U5: 19 | V5: 20 | W5: 21 | X5: 22 | Y5: 23 | Z5: 24 | AA5: 25 | AB5: 26 | AC5: 27 | AD5: 28 | AE5: 29 | AF5: 30 | AG5: 31 | AH5: 32 | AI5: 33 | AJ5: 34 | AK5: 35 | AL5: 36 | AM5: 37 | AN5: 38 | AO5: 39 | AQ5: 2 | AR5: Round to nearest whole 5 | AS5: 5 | AU5: Multi-site Agreement Tier D | AV5: 2 | AW5: 0.25 | AY5: Afrikaans-4935 - Category 3 | BA5: Business Ready Licensing - Business Essentials Edition | BB5: BRL-BE | BD5: Albania | BE5: United States | BF5: US Dollar | BG5: BRL-AM
A6: 1 | B6: SKU | C6: Item | D6: Offering | E6: OC Module name | F6: Notes | G6: Prerequisites | H6: RowType | I6: US Base Price | J6: Rounding Rule | K6: Africa | L6: APOC United States | M6: Australia | N6: Canada | O6: Central Asia 1 - CEE 1 | P6: Central Asia 2 - CEE 2 | Q6: Chile | R6: China | S6: Colombia | T6: Eastern Europe 1 | U6: Eastern Europe 2 | V6: India | W6: Japan | X6: Latam Caribbean | Y6: Latam PR/BM/CI/VI | Z6: Mexico | AA6: Middle East | AB6: New Zealand | AC6: Rest of Latam | AD6: Russia | AE6: Serbia | AF6: South Africa | AG6: South East Asia | AH6: Turkey | AI6: United States | AJ6: Eurozone | AK6: Denmark2 | AL6: Norway2 | AM6: Sweden2 | AN6: Switzerland2 | AO6: United Kingdom2 | AQ6: 3 | AR6: Round to nearest 2 decimal places | AS6: -1 | AU6: Multi-site Agreement Tier E | AV6: 3 | AW6: 0.35 | AY6: Albanian-4936 - Category 3 | BA6: Module Based Licensing - Professional (Existing Customers Only) | BB6: MBL-Pro | BD6: Algeria | BE6: United States | BF6: US Dollar | BG6: BRL-AM
A7: 2 | C7: ERP Solution Suite | H7: =IF(AND(C7<>"",PRODUCTINFOTABLE[[#This Row],[US Base Price]]<>""),"SKU","HEADING") -> HEADING | AU7: Multi-site Agreement Tier F | AV7: 4 | AW7: 0.4 | AY7: Arabic (Algeria)-4937 - Category 3 | BA7: Module Based Licensing - Standard (Existing Customers Only) | BB7: MBL-Std | BD7: American Samoa | BE7: United States | BF7: US Dollar | BG7: BRL-AM
A8: 3 | B8: 109098612 | C8: Starter Pack | D8: BRL-AM | G8: Starter Pack is the prerequisite for all items on price list | H8: =IF(AND(C8<>"",PRODUCTINFOTABLE[[#This Row],[US Base Price]]<>""),"SKU","HEADING") -> SKU | I8: 5000 | J8: 1 | AU8: Multi-site Agreement Tier G | AV8: 5 | AW8: 0.45 | AY8: Arabic (Bahrain)-4938 - Category 3 | BD8: Andorra | BE8: Austria | BF8: Euro | BG8: BRL-AM
A9: 4 | B9: 109098613 | C9: Extended Pack | D9: BRL-AM | H9: =IF(AND(C9<>"",PRODUCTINFOTABLE[[#This Row],[US Base Price]]<>""),"SKU","HEADING") -> SKU | I9: 10000 | J9: 1 | AU9: Multi-site Agreement Tier H | AV9: 6 | AW9: 0.5 | AY9: Arabic (Egypt)-4939 - Category 3 | BD9: Angola | BE9: United States | BF9: US Dollar | BG9: BRL-AM
A10: 5 | C10: Users | H10: =IF(AND(C10<>"",PRODUCTINFOTABLE[[#This Row],[US Base Price]]<>""),"SKU","HEADING") -> HEADING | AU10: Multi-site Agreement Tier I | AV10: 7 | AW10: 0.55 | AY10: Arabic (Iraq)-4940 - Category 3 | BD10: Anguilla | BE10: United States | BF10: US Dollar | BG10: BRL-AM
A11: 6 | B11: 109098614 | C11: Full User CAL (Concurrent User) | D11: BRL-AM | H11: =IF(AND(C11<>"",PRODUCTINFOTABLE[[#This Row],[US Base Price]]<>""),"SKU","HEADING") -> SKU | I11: 3000 | J11: 1 | AU11: Global Volume Agreement Tier F | AV11: 8 | AW11: 0.4 | AY11: Arabic (Jordan)-4941 - Category 3 | BD11: Antarctica | BE11: United States | BF11: US Dollar | BG11: BRL-AM
A12: 7 | B12: 109098616 | C12: Limited User CAL (Concurrent User) | D12: BRL-AM | H12: =IF(AND(C12<>"",PRODUCTINFOTABLE[[#This Row],[US Base Price]]<>""),"SKU","HEADING") -> SKU | I12: 600 | J12: 1 | AK12: =IF(PRODUCTINFOTABLE[[#This Row],[Eurozone]]<>"",ROUND(PRODUCTINFOTABLE[[#This Row],[Eurozone]]*DKKEURORATE,4),"") ->  | AL12: =IF(PRODUCTINFOTABLE[[#This Row],[Eurozone]]<>"",ROUND(PRODUCTINFOTABLE[[#This Row],[Eurozone]]*NOKEURORATE,4),"") ->  | AM12: =IF(PRODUCTINFOTABLE[[#This Row],[Eurozone]]<>"",ROUND(PRODUCTINFOTABLE[[#This Row],[Eurozone]]*SEKEURORATE,4),"") ->  | AN12: =IF(PRODUCTINFOTABLE[[#This Row],[Eurozone]]<>"",ROUND(PRODUCTINFOTABLE[[#This Row],[Eurozone]]*CHFEURORATE,4),"") ->  | AO12: =IF(PRODUCTINFOTABLE[[#This Row],[Eurozone]]<>"",ROUND(PRODUCTINFOTABLE[[#This Row],[Eurozone]]*GBPEURORATE,4),"") ->  | AU12: Global Volume Agreement Tier G | AV12: 9 | AW12: 0.45 | AY12: Arabic (Kuwait)-4942 - Category 3 | BD12: Antigua and Barbuda | BE12: United States | BF12: US Dollar | BG12: BRL-AM
A13: 8 | C13: Configuration and Development | H13: =IF(AND(C13<>"",PRODUCTINFOTABLE[[#This Row],[US Base Price]]<>""),"SKU","HEADING") -> HEADING | AU13: Global Volume Agreement Tier H | AV13: 10 | AW13: 0.5 | AY13: Arabic (Lebanon)-4943 - Category 3 | BD13: Argentina | BE13: United States | BF13: US Dollar | BG13: BRL-AM
A14: 9 | B14: 109099124 | C14: Customization Pack | D14: BRL-AM | H14: =IF(AND(C14<>"",PRODUCTINFOTABLE[[#This Row],[US Base Price]]<>""),"SKU","HEADING") -> SKU | I14: 6000 | J14: 1 | AU14: Global Volume Agreement Tier I | AV14: 11 | AW14: 0.55 | AY14: Arabic (Libya)-4944 - Category 3 | BD14: Armenia | BE14: United States | BF14: US Dollar | BG14: BRL-AM
A15: 10 | C15: Business Intelligence and Reporting | H15: =IF(AND(C15<>"",PRODUCTINFOTABLE[[#This Row],[US Base Price]]<>""),"SKU","HEADING") -> HEADING | AY15: Arabic (Morocco)-4945 - Category 3 | BD15: Aruba | BE15: United States | BF15: US Dollar | BG15: BRL-AM
A16: 11 | B16: 109100028 | C16: SmartList Builder Pack | D16: BRL-AM | H16: =IF(AND(C16<>"",PRODUCTINFOTABLE[[#This Row],[US Base Price]]<>""),"SKU","HEADING") -> SKU | I16: 2000 | J16: 1 | AK16: =IF(PRODUCTINFOTABLE[[#This Row],[Eurozone]]<>"",ROUND(PRODUCTINFOTABLE[[#This Row],[Eurozone]]*DKKEURORATE,4),"") ->  | AL16: =IF(PRODUCTINFOTABLE[[#This Row],[Eurozone]]<>"",ROUND(PRODUCTINFOTABLE[[#This Row],[Eurozone]]*NOKEURORATE,4),"") ->  | AM16: =IF(PRODUCTINFOTABLE[[#This Row],[Eurozone]]<>"",ROUND(PRODUCTINFOTABLE[[#This Row],[Eurozone]]*SEKEURORATE,4),"") ->  | AN16: =IF(PRODUCTINFOTABLE[[#This Row],[Eurozone]]<>"",ROUND(PRODUCTINFOTABLE[[#This Row],[Eurozone]]*CHFEURORATE,4),"") ->  | AO16: =IF(PRODUCTINFOTABLE[[#This Row],[Eurozone]]<>"",ROUND(PRODUCTINFOTABLE[[#This Row],[Eurozone]]*GBPEURORATE,4),"") ->  | AY16: Arabic (Oman)-4946 - Category 3 | BD16: Australia | BE16: United States | BF16: Australian Dollar | BG16: BRL-AM
A17: 12 | C17: Human Resource Management | H17: =IF(AND(C17<>"",PRODUCTINFOTABLE[[#This Row],[US Base Price]]<>""),"SKU","HEADING") -> HEADING | AK17: =IF(PRODUCTINFOTABLE[[#This Row],[Eurozone]]<>"",ROUND(PRODUCTINFOTABLE[[#This Row],[Eurozone]]*DKKEURORATE,4),"") ->  | AL17: =IF(PRODUCTINFOTABLE[[#This Row],[Eurozone]]<>"",ROUND(PRODUCTINFOTABLE[[#This Row],[Eurozone]]*NOKEURORATE,4),"") ->  | AM17: =IF(PRODUCTINFOTABLE[[#This Row],[Eurozone]]<>"",ROUND(PRODUCTINFOTABLE[[#This Row],[Eurozone]]*SEKEURORATE,4),"") ->  | AN17: =IF(PRODUCTINFOTABLE[[#This Row],[Eurozone]]<>"",ROUND(PRODUCTINFOTABLE[[#This Row],[Eurozone]]*CHFEURORATE,4),"") ->  | AO17: =IF(PRODUCTINFOTABLE[[#This Row],[Eurozone]]<>"",ROUND(PRODUCTINFOTABLE[[#This Row],[Eurozone]]*GBPEURORATE,4),"") ->  | AY17: Arabic (Qatar)-4947 - Category 3 | BD17: Austria | BE17: Austria | BF17: Euro | BG17: BRL-AM
A18: 13 | B18: 109100029 | C18: Extended Human Resources and Payroll | D18: BRL-AM | H18: =IF(AND(C18<>"",PRODUCTINFOTABLE[[#This Row],[US Base Price]]<>""),"SKU","HEADING") -> SKU | I18: 7000 | J18: 1 | AK18: =IF(PRODUCTINFOTABLE[[#This Row],[Eurozone]]<>"",ROUND(PRODUCTINFOTABLE[[#This Row],[Eurozone]]*DKKEURORATE,4),"") ->  | AL18: =IF(PRODUCTINFOTABLE[[#This Row],[Eurozone]]<>"",ROUND(PRODUCTINFOTABLE[[#This Row],[Eurozone]]*NOKEURORATE,4),"") ->  | AM18: =IF(PRODUCTINFOTABLE[[#This Row],[Eurozone]]<>"",ROUND(PRODUCTINFOTABLE[[#This Row],[Eurozone]]*SEKEURORATE,4),"") ->  | AN18: =IF(PRODUCTINFOTABLE[[#This Row],[Eurozone]]<>"",ROUND(PRODUCTINFOTABLE[[#This Row],[Eurozone]]*CHFEURORATE,4),"") ->  | AO18: =IF(PRODUCTINFOTABLE[[#This Row],[Eurozone]]<>"",ROUND(PRODUCTINFOTABLE[[#This Row],[Eurozone]]*GBPEURORATE,4),"") ->  | AY18: Arabic (Saudi Arabia)-4948 - Category 3 | BD18: Azerbaijan | BE18: United States | BF18: US Dollar | BG18: BRL-AM
A19: 14 | C19: Financial Management | H19: =IF(AND(C19<>"",PRODUCTINFOTABLE[[#This Row],[US Base Price]]<>""),"SKU","HEADING") -> HEADING | AK19: =IF(PRODUCTINFOTABLE[[#This Row],[Eurozone]]<>"",ROUND(PRODUCTINFOTABLE[[#This Row],[Eurozone]]*DKKEURORATE,4),"") ->  | AL19: =IF(PRODUCTINFOTABLE[[#This Row],[Eurozone]]<>"",ROUND(PRODUCTINFOTABLE[[#This Row],[Eurozone]]*NOKEURORATE,4),"") ->  | AM19: =IF(PRODUCTINFOTABLE[[#This Row],[Eurozone]]<>"",ROUND(PRODUCTINFOTABLE[[#This Row],[Eurozone]]*SEKEURORATE,4),"") ->  | AN19: =IF(PRODUCTINFOTABLE[[#This Row],[Eurozone]]<>"",ROUND(PRODUCTINFOTABLE[[#This Row],[Eurozone]]*CHFEURORATE,4),"") ->  | AO19: =IF(PRODUCTINFOTABLE[[#This Row],[Eurozone]]<>"",ROUND(PRODUCTINFOTABLE[[#This Row],[Eurozone]]*GBPEURORATE,4),"") ->  | AY19: Arabic (Syria)-4949 - Category 3 | BD19: Bahamas, The | BE19: United States | BF19: US Dollar | BG19: BRL-AM
A20: 15 | B20: 109100859 | C20: Collections Management | D20: BRL-AM | H20: =IF(AND(C20<>"",PRODUCTINFOTABLE[[#This Row],[US Base Price]]<>""),"SKU","HEADING") -> SKU | I20: 3500 | J20: 1 | AK20: =IF(PRODUCTINFOTABLE[[#This Row],[Eurozone]]<>"",ROUND(PRODUCTINFOTABLE[[#This Row],[Eurozone]]*DKKEURORATE,4),"") ->  | AL20: =IF(PRODUCTINFOTABLE[[#This Row],[Eurozone]]<>"",ROUND(PRODUCTINFOTABLE[[#This Row],[Eurozone]]*NOKEURORATE,4),"") ->  | AM20: =IF(PRODUCTINFOTABLE[[#This Row],[Eurozone]]<>"",ROUND(PRODUCTINFOTABLE[[#This Row],[Eurozone]]*SEKEURORATE,4),"") ->  | AN20: =IF(PRODUCTINFOTABLE[[#This Row],[Eurozone]]<>"",ROUND(PRODUCTINFOTABLE[[#This Row],[Eurozone]]*CHFEURORATE,4),"") ->  | AO20: =IF(PRODUCTINFOTABLE[[#This Row],[Eurozone]]<>"",ROUND(PRODUCTINFOTABLE[[#This Row],[Eurozone]]*GBPEURORATE,4),"") ->  | AY20: Arabic (Tunisia)-4950 - Category 3 | BD20: Bahrain | BE20: United States | BF20: US Dollar | BG20: BRL-AM
A21: 16 | C21: Database | H21: =IF(AND(C21<>"",PRODUCTINFOTABLE[[#This Row],[US Base Price]]<>""),"SKU","HEADING") -> HEADING | AK21: =IF(PRODUCTINFOTABLE[[#This Row],[Eurozone]]<>"",ROUND(PRODUCTINFOTABLE[[#This Row],[Eurozone]]*DKKEURORATE,4),"") ->  | AL21: =IF(PRODUCTINFOTABLE[[#This Row],[Eurozone]]<>"",ROUND(PRODUCTINFOTABLE[[#This Row],[Eurozone]]*NOKEURORATE,4),"") ->  | AM21: =IF(PRODUCTINFOTABLE[[#This Row],[Eurozone]]<>"",ROUND(PRODUCTINFOTABLE[[#This Row],[Eurozone]]*SEKEURORATE,4),"") ->  | AN21: =IF(PRODUCTINFOTABLE[[#This Row],[Eurozone]]<>"",ROUND(PRODUCTINFOTABLE[[#This Row],[Eurozone]]*CHFEURORATE,4),"") ->  | AO21: =IF(PRODUCTINFOTABLE[[#This Row],[Eurozone]]<>"",ROUND(PRODUCTINFOTABLE[[#This Row],[Eurozone]]*GBPEURORATE,4),"") ->  | AY21: Arabic (U.A.E.)-4951 - Category 3 | BD21: Bangladesh | BE21: United States | BF21: US Dollar | BG21: BRL-AM
A22: 17 | B22: 109100717 | C22: Microsoft® SQL Server® 2008 R2 Standard Edition Runtime CAL (English) | D22: BRL-AM | G22: Microsoft® SQL Server® 2008 R2 Standard Edition Runtime Server License - See note C24 | H22: =IF(AND(C22<>"",PRODUCTINFOTABLE[[#This Row],[US Base Price]]<>""),"SKU","HEADING") -> SKU | I22: 110 | J22: 1 | K22: 1 | L22: 1 | M22: 1.449 | N22: 1.336 | O22: 1 | P22: 1 | Q22: 1 | R22: 8.3 | S22: 1 | T22: 1 | U22: 1 | V22: 52.25 | W22: 119 | X22: 1 | Y22: 1 | Z22: 1 | AA22: 1 | AB22: 1.724 | AC22: 1 | AD22: 33 | AE22: 1 | AF22: 1 | AG22: 1 | AH22: 1 | AI22: 1 | AJ22: 1.0706 | AK22: =IF(PRODUCTINFOTABLE[[#This Row],[Eurozone]]<>"",ROUND(PRODUCTINFOTABLE[[#This Row],[Eurozone]]*DKKEURORATE,4),"") -> 7.9701 | AL22: =IF(PRODUCTINFOTABLE[[#This Row],[Eurozone]]<>"",ROUND(PRODUCTINFOTABLE[[#This Row],[Eurozone]]*NOKEURORATE,4),"") -> 8.2806 | AM22: =IF(PRODUCTINFOTABLE[[#This Row],[Eurozone]]<>"",ROUND(PRODUCTINFOTABLE[[#This Row],[Eurozone]]*SEKEURORATE,4),"") -> 9.7933 | AN22: =IF(PRODUCTINFOTABLE[[#This Row],[Eurozone]]<>"",ROUND(PRODUCTINFOTABLE[[#This Row],[Eurozone]]*CHFEURORATE,4),"") -> 1.292 | AO22: =IF(PRODUCTINFOTABLE[[#This Row],[Eurozone]]<>"",ROUND(PRODUCTINFOTABLE[[#This Row],[Eurozone]]*GBPEURORATE,4),"") -> 0.8448 | AY22: Arabic (Yemen)-4952 - Category 3 | BD22: Barbados | BE22: United States | BF22: US Dollar | BG22: BRL-AM
A23: 18 | B23: 109100709 | C23: Microsoft® SQL Server® 2008 R2 Enterprise Edition Runtime CAL (English) | D23: BRL-AM | G23: Microsoft® SQL Server® 2008 R2 Enterprise Edition Runtime Server License - See note C24 | H23: =IF(AND(C23<>"",PRODUCTINFOTABLE[[#This Row],[US Base Price]]<>""),"SKU","HEADING") -> SKU | I23: 200 | J23: 1 | K23: 1 | L23: 1 | M23: 1.449 | N23: 1.336 | O23: 1 | P23: 1 | Q23: 1 | R23: 8.3 | S23: 1 | T23: 1 | U23: 1 | V23: 52.25 | W23: 119 | X23: 1 | Y23: 1 | Z23: 1 | AA23: 1 | AB23: 1.724 | AC23: 1 | AD23: 33 | AE23: 1 | AF23: 1 | AG23: 1 | AH23: 1 | AI23: 1 | AJ23: 1.0706 | AK23: =IF(PRODUCTINFOTABLE[[#This Row],[Eurozone]]<>"",ROUND(PRODUCTINFOTABLE[[#This Row],[Eurozone]]*DKKEURORATE,4),"") -> 7.9701 | AL23: =IF(PRODUCTINFOTABLE[[#This Row],[Eurozone]]<>"",ROUND(PRODUCTINFOTABLE[[#This Row],[Eurozone]]*NOKEURORATE,4),"") -> 8.2806 | AM23: =IF(PRODUCTINFOTABLE[[#This Row],[Eurozone]]<>"",ROUND(PRODUCTINFOTABLE[[#This Row],[Eurozone]]*SEKEURORATE,4),"") -> 9.7933 | AN23: =IF(PRODUCTINFOTABLE[[#This Row],[Eurozone]]<>"",ROUND(PRODUCTINFOTABLE[[#This Row],[Eurozone]]*CHFEURORATE,4),"") -> 1.292 | AO23: =IF(PRODUCTINFOTABLE[[#This Row],[Eurozone]]<>"",ROUND(PRODUCTINFOTABLE[[#This Row],[Eurozone]]*GBPEURORATE,4),"") -> 0.8448 | AY23: Armenian-4809 - Category 3 | BD23: Belarus | BE23: United States | BF23: US Dollar | BG23: BRL-AM
A24: 19 | B24: 109100703 | C24: Microsoft® SQL Server® 2008 R2 Enterprise Edition Runtime Server License (English) | D24: BRL-AM | H24: =IF(AND(C24<>"",PRODUCTINFOTABLE[[#This Row],[US Base Price]]<>""),"SKU","HEADING") -> SKU | I24: 51 | J24: 1 | K24: 1 | L24: 1 | M24: 1.449 | N24: 1.336 | O24: 1 | P24: 1 | Q24: 1 | R24: 8.3 | S24: 1 | T24: 1 | U24: 1 | V24: 52.25 | W24: 119 | X24: 1 | Y24: 1 | Z24: 1 | AA24: 1 | AB24: 1.724 | AC24: 1 | AD24: 33 | AE24: 1 | AF24: 1 | AG24: 1 | AH24: 1 | AI24: 1 | AJ24: 1.0706 | AK24: =IF(PRODUCTINFOTABLE[[#This Row],[Eurozone]]<>"",ROUND(PRODUCTINFOTABLE[[#This Row],[Eurozone]]*DKKEURORATE,4),"") -> 7.9701 | AL24: =IF(PRODUCTINFOTABLE[[#This Row],[Eurozone]]<>"",ROUND(PRODUCTINFOTABLE[[#This Row],[Eurozone]]*NOKEURORATE,4),"") -> 8.2806 | AM24: =IF(PRODUCTINFOTABLE[[#This Row],[Eurozone]]<>"",ROUND(PRODUCTINFOTABLE[[#This Row],[Eurozone]]*SEKEURORATE,4),"") -> 9.7933 | AN24: =IF(PRODUCTINFOTABLE[[#This Row],[Eurozone]]<>"",ROUND(PRODUCTINFOTABLE[[#This Row],[Eurozone]]*CHFEURORATE,4),"") -> 1.292 | AO24: =IF(PRODUCTINFOTABLE[[#This Row],[Eurozone]]<>"",ROUND(PRODUCTINFOTABLE[[#This Row],[Eurozone]]*GBPEURORATE,4),"") -> 0.8448 | AY24: Azeri (Cyrillic)-4802 - Category 3 | BD24: Belgium | BE24: Austria | BF24: Euro | BG24: BRL-AM
A25: 20 | B25: 109100716 | C25: Microsoft® SQL Server® 2008 R2 Standard Edition Runtime Server License (English) | D25: BRL-AM | H25: =IF(AND(C25<>"",PRODUCTINFOTABLE[[#This Row],[US Base Price]]<>""),"SKU","HEADING") -> SKU | I25: 6 | J25: 1 | K25: 1 | L25: 1 | M25: 1.449 | N25: 1.336 | O25: 1 | P25: 1 | Q25: 1 | R25: 8.3 | S25: 1 | T25: 1 | U25: 1 | V25: 52.25 | W25: 119 | X25: 1 | Y25: 1 | Z25: 1 | AA25: 1 | AB25: 1.724 | AC25: 1 | AD25: 33 | AE25: 1 | AF25: 1 | AG25: 1 | AH25: 1 | AI25: 1 | AJ25: 1.0706 | AK25: =IF(PRODUCTINFOTABLE[[#This Row],[Eurozone]]<>"",ROUND(PRODUCTINFOTABLE[[#This Row],[Eurozone]]*DKKEURORATE,4),"") -> 7.9701 | AL25: =IF(PRODUCTINFOTABLE[[#This Row],[Eurozone]]<>"",ROUND(PRODUCTINFOTABLE[[#This Row],[Eurozone]]*NOKEURORATE,4),"") -> 8.2806 | AM25: =IF(PRODUCTINFOTABLE[[#This Row],[Eurozone]]<>"",ROUND(PRODUCTINFOTABLE[[#This Row],[Eurozone]]*SEKEURORATE,4),"") -> 9.7933 | AN25: =IF(PRODUCTINFOTABLE[[#This Row],[Eurozone]]<>"",ROUND(PRODUCTINFOTABLE[[#This Row],[Eurozone]]*CHFEURORATE,4),"") -> 1.292 | AO25: =IF(PRODUCTINFOTABLE[[#This Row],[Eurozone]]<>"",ROUND(PRODUCTINFOTABLE[[#This Row],[Eurozone]]*GBPEURORATE,4),"") -> 0.8448 | AY25: Azeri (Latin)-4801 - Category 3 | BD25: Belize | BE25: United States | BF25: US Dollar | BG25: BRL-AM
A26: 21 | C26: Service Plans | H26: =IF(AND(C26<>"",PRODUCTINFOTABLE[[#This Row],[US Base Price]]<>""),"SKU","HEADING") -> HEADING | AK26: =IF(PRODUCTINFOTABLE[[#This Row],[Eurozone]]<>"",ROUND(PRODUCTINFOTABLE[[#This Row],[Eurozone]]*DKKEURORATE,4),"") ->  | AL26: =IF(PRODUCTINFOTABLE[[#This Row],[Eurozone]]<>"",ROUND(PRODUCTINFOTABLE[[#This Row],[Eurozone]]*NOKEURORATE,4),"") ->  | AM26: =IF(PRODUCTINFOTABLE[[#This Row],[Eurozone]]<>"",ROUND(PRODUCTINFOTABLE[[#This Row],[Eurozone]]*SEKEURORATE,4),"") ->  | AN26: =IF(PRODUCTINFOTABLE[[#This Row],[Eurozone]]<>"",ROUND(PRODUCTINFOTABLE[[#This Row],[Eurozone]]*CHFEURORATE,4),"") ->  | AO26: =IF(PRODUCTINFOTABLE[[#This Row],[Eurozone]]<>"",ROUND(PRODUCTINFOTABLE[[#This Row],[Eurozone]]*GBPEURORATE,4),"") ->  | AY26: Basque-4953 - Category 3 | BD26: Benin | BE26: United States | BF26: US Dollar | BG26: BRL-AM
A27: 22 | C27: Enhancement Plan | D27: BRL-AM | H27: =IF(AND(C27<>"",PRODUCTINFOTABLE[[#This Row],[US Base Price]]<>""),"SKU","HEADING") -> SKU | I27: OVERRIDE | J27: 1 | K27: 0.16 | M27: 0.16 | O27: 0.16 | P27: 0.16 | Q27: 0.16 | R27: 0.16 | S27: 0.16 | T27: 0.16 | U27: 0.16 | V27: 0.16 | W27: 0.16 | Z27: 0.16 | AA27: 0.16 | AB27: 0.16 | AC27: 0.16 | AD27: 0.16 | AE27: 0.16 | AF27: 0.16 | AG27: 0.16 | AH27: 0.16 | AJ27: 0.16 | AK27: 0.16 | AL27: 0.16 | AM27: 0.16 | AN27: 0.16 | AO27: 0.16 | AY27: Belarusian-4954 - Category 3 | BD27: Bermuda | BE27: United States | BF27: US Dollar | BG27: BRL-AM
A28: 23 | C28: Three Year Business Ready Enhancement Plan | D28: BRL-AM | H28: =IF(AND(C28<>"",PRODUCTINFOTABLE[[#This Row],[US Base Price]]<>""),"SKU","HEADING") -> SKU | I28: OVERRIDE | J28: 1 | K28: 0.14 | L28: 0.14 | M28: 0.14 | N28: 0.16 | O28: 0.14 | P28: 0.14 | Q28: 0.14 | R28: 0.14 | S28: 0.14 | T28: 0.14 | U28: 0.14 | V28: 0.14 | W28: 0.14 | X28: 0.14 | Y28: 0.14 | Z28: 0.14 | AA28: 0.14 | AB28: 0.14 | AC28: 0.14 | AD28: 0.14 | AE28: 0.14 | AF28: 0.14 | AG28: 0.14 | AH28: 0.14 | AI28: 0.16 | AJ28: 0.14 | AK28: 0.14 | AL28: 0.14 | AM28: 0.14 | AN28: 0.14 | AO28: 0.14 | AY28: Bulgarian-4932 - Category 1 | BD28: Bhutan | BE28: United States | BF28: US Dollar | BG28: BRL-AM
A29: 24 | C29: Business Ready Enhancement Plus Plan (LATAM) | D29: BRL-AM | H29: =IF(AND(C29<>"",PRODUCTINFOTABLE[[#This Row],[US Base Price]]<>""),"SKU","HEADING") -> SKU | I29: OVERRIDE | J29: 1 | Q29: 0.21 | S29: 0.21 | Z29: 0.21 | AC29: 0.21 | AY29: Catalan-4931 - Category 3 | BD29: Bolivia | BE29: United States | BF29: US Dollar | BG29: BRL-AM
A30: 25 | C30: Business Ready Advantage Plan | D30: BRL-AM | H30: =IF(AND(C30<>"",PRODUCTINFOTABLE[[#This Row],[US Base Price]]<>""),"SKU","HEADING") -> SKU | I30: OVERRIDE | J30: 1 | L30: 0.18 | N30: 0.18 | X30: 0.18 | Y30: 0.18 | AI30: 0.18 | AY30: Chinese (Hong Kong)-4827 - Category 3 | BD30: Bosnia and Herzegovina | BE30: United States | BF30: US Dollar | BG30: BRL-AM
A31: 26 | C31: Three Year Business Ready Advantage Plan | D31: BRL-AM | H31: =IF(AND(C31<>"",PRODUCTINFOTABLE[[#This Row],[US Base Price]]<>""),"SKU","HEADING") -> SKU | I31: OVERRIDE | J31: 1 | N31: 0.18 | X31: 0.18 | AI31: 0.18 | AK31: =IF(PRODUCTINFOTABLE[[#This Row],[Eurozone]]<>"",ROUND(PRODUCTINFOTABLE[[#This Row],[Eurozone]]*DKKEURORATE,4),"") ->  | AL31: =IF(PRODUCTINFOTABLE[[#This Row],[Eurozone]]<>"",ROUND(PRODUCTINFOTABLE[[#This Row],[Eurozone]]*NOKEURORATE,4),"") ->  | AM31: =IF(PRODUCTINFOTABLE[[#This Row],[Eurozone]]<>"",ROUND(PRODUCTINFOTABLE[[#This Row],[Eurozone]]*SEKEURORATE,4),"") ->  | AN31: =IF(PRODUCTINFOTABLE[[#This Row],[Eurozone]]<>"",ROUND(PRODUCTINFOTABLE[[#This Row],[Eurozone]]*CHFEURORATE,4),"") ->  | AO31: =IF(PRODUCTINFOTABLE[[#This Row],[Eurozone]]<>"",ROUND(PRODUCTINFOTABLE[[#This Row],[Eurozone]]*GBPEURORATE,4),"") ->  | AY31: Chinese (Macau)-4829 - Category 3 | BD31: Botswana | BE31: United States | BF31: US Dollar | BG31: BRL-AM
A32: 27 | C32: Business Ready Advantage Plus Plan | D32: BRL-AM | H32: =IF(AND(C32<>"",PRODUCTINFOTABLE[[#This Row],[US Base Price]]<>""),"SKU","HEADING") -> SKU | I32: OVERRIDE | J32: 1 | L32: 0.25 | N32: 0.25 | X32: 0.25 | AI32: 0.25 | AK32: =IF(PRODUCTINFOTABLE[[#This Row],[Eurozone]]<>"",ROUND(PRODUCTINFOTABLE[[#This Row],[Eurozone]]*DKKEURORATE,4),"") ->  | AL32: =IF(PRODUCTINFOTABLE[[#This Row],[Eurozone]]<>"",ROUND(PRODUCTINFOTABLE[[#This Row],[Eurozone]]*NOKEURORATE,4),"") ->  | AM32: =IF(PRODUCTINFOTABLE[[#This Row],[Eurozone]]<>"",ROUND(PRODUCTINFOTABLE[[#This Row],[Eurozone]]*SEKEURORATE,4),"") ->  | AN32: =IF(PRODUCTINFOTABLE[[#This Row],[Eurozone]]<>"",ROUND(PRODUCTINFOTABLE[[#This Row],[Eurozone]]*CHFEURORATE,4),"") ->  | AO32: =IF(PRODUCTINFOTABLE[[#This Row],[Eurozone]]<>"",ROUND(PRODUCTINFOTABLE[[#This Row],[Eurozone]]*GBPEURORATE,4),"") ->  | AY32: Chinese (Singapore)-4828 - Category 3 | BD32: Bouvet Island | BE32: Bouvet Island | BF32: Norwegian Krona | BG32: BRL-AM
A33: 28 | C33: Business Ready Advantage Plus Plan (LATAM) | D33: BRL-AM | H33: =IF(AND(C33<>"",PRODUCTINFOTABLE[[#This Row],[US Base Price]]<>""),"SKU","HEADING") -> SKU | I33: OVERRIDE | J33: 1 | AK33: =IF(PRODUCTINFOTABLE[[#This Row],[Eurozone]]<>"",ROUND(PRODUCTINFOTABLE[[#This Row],[Eurozone]]*DKKEURORATE,4),"") ->  | AL33: =IF(PRODUCTINFOTABLE[[#This Row],[Eurozone]]<>"",ROUND(PRODUCTINFOTABLE[[#This Row],[Eurozone]]*NOKEURORATE,4),"") ->  | AM33: =IF(PRODUCTINFOTABLE[[#This Row],[Eurozone]]<>"",ROUND(PRODUCTINFOTABLE[[#This Row],[Eurozone]]*SEKEURORATE,4),"") ->  | AN33: =IF(PRODUCTINFOTABLE[[#This Row],[Eurozone]]<>"",ROUND(PRODUCTINFOTABLE[[#This Row],[Eurozone]]*CHFEURORATE,4),"") ->  | AO33: =IF(PRODUCTINFOTABLE[[#This Row],[Eurozone]]<>"",ROUND(PRODUCTINFOTABLE[[#This Row],[Eurozone]]*GBPEURORATE,4),"") ->  | AY33: CHS Chinese (RPC)-4803 - Category 3 | BD33: Brazil | BE33: United States | BF33: US Dollar | BG33: BRL-AM
AY34: CHT Chinese (Taiwan)-4804 - Category 3 | BD34: British Indian Ocean Territory | BE34: United States | BF34: US Dollar | BG34: BRL-AM
AY35: Croatian-4955 - Category 1 | BD35: Brunei | BE35: United States | BF35: US Dollar | BG35: BRL-AM
AY36: Czech-4901 - Category 1 | BD36: Bulgaria | BE36: Austria | BF36: Euro | BG36: BRL-AM
AY37: Danish-4902 - Category 1 | BD37: Burkina Faso | BE37: United States | BF37: US Dollar | BG37: BRL-AM
AY38: Dutch (Belgian)-4903 - Category 1 | BD38: Burundi | BE38: United States | BF38: US Dollar | BG38: BRL-AM
AY39: Dutch (Standard)-4904 - Category 1 | BD39: Cambodia | BE39: United States | BF39: US Dollar | BG39: BRL-AM
AY40: English (Australian)-4905 - Category 1 | BD40: Cameroon | BE40: United States | BF40: US Dollar | BG40: BRL-AM
AY41: English (Belize)-4956 - Category 3 | BD41: Canada | BE41: United States | BF41: Canadian Dollar | BG41: BRL-AM
AY42: English (Canadian)-4906 - Category 1 | BD42: Cape Verde | BE42: United States | BF42: US Dollar | BG42: BRL-AM
AY43: English (Caribbean)-4957 - Category 3 | BD43: Cayman Islands | BE43: United States | BF43: US Dollar | BG43: BRL-AM
AY44: English (Ireland)-4958 - Category 1 | BD44: Central African Republic | BE44: United States | BF44: US Dollar | BG44: BRL-AM
AY45: English (Jamaica)-4959 - Category 3 | BD45: Chad | BE45: United States | BF45: US Dollar | BG45: BRL-AM
AY46: English (New Zealand)-4960 - Category 1 | BD46: Chile | BE46: United States | BF46: US Dollar | BG46: BRL-AM
AY47: English (Philippines)-4805 - Category 1 | BD47: China | BE47: United States | BF47: Chinese Renminbi | BG47: BRL-AM
AY48: English (South Africa)-4907 - Category 3 | BD48: Christmas Island | BE48: United States | BF48: Australian Dollar | BG48: BRL-AM
AY49: English (Trinidad)-4961 - Category 3 | BD49: Cocos (Keeling) Islands | BE49: United States | BF49: Australian Dollar | BG49: BRL-AM
AY50: English (United Kingdom)-4908 - Category 1 | BD50: Colombia | BE50: United States | BF50: US Dollar | BG50: BRL-AM
AY51: English (United States)-4909 - Category 1 | BD51: Comoros | BE51: United States | BF51: US Dollar | BG51: BRL-AM
AY52: English (Zimbabwe)-4806 - Category 3 | BD52: Congo | BE52: United States | BF52: US Dollar | BG52: BRL-AM
AY53: Estonian-4910 - Category 1 | BD53: Congo (DRC) | BE53: United States | BF53: US Dollar | BG53: BRL-AM
AY54: Faeroese-4962 - Category 3 | BD54: Cook Islands | BE54: United States | BF54: New Zealand Dollar | BG54: BRL-AM
AY55: Farsi-4963 - Category 3 | BD55: Costa Rica | BE55: United States | BF55: US Dollar | BG55: BRL-AM
AY56: Finnish-4911 - Category 1 | BD56: Côte d'Ivoire | BE56: United States | BF56: US Dollar | BG56: BRL-AM
AY57: French (Belgian)-4912 - Category 1 | BD57: Croatia | BE57: Austria | BF57: Euro | BG57: BRL-AM
AY58: French (Canadian)-4913 - Category 1 | BD58: Cuba | BE58: United States | BF58: US Dollar | BG58: BRL-AM
AY59: French (Luxembourg)-4964 - Category 3 | BD59: Cyprus | BE59: Austria | BF59: Euro | BG59: BRL-AM
AY60: French (Monaco)-4807 - Category 3 | BD60: Czech Republic | BE60: Austria | BF60: Euro | BG60: BRL-AM
AY61: French (Standard)-4914 - Category 1 | BD61: Denmark | BE61: Denmark | BF61: Danish Krone | BG61: BRL-AM
AY62: French (Swiss)-4965 - Category 1 | BD62: Djibouti | BE62: United States | BF62: US Dollar | BG62: BRL-AM
AY63: German (Austrian)-4915 - Category 1 | BD63: Dominica | BE63: United States | BF63: US Dollar | BG63: BRL-AM
AY64: German (Liechtenstein)-4966 - Category 3 | BD64: Dominican Republic | BE64: United States | BF64: US Dollar | BG64: BRL-AM
AY65: German (Luxembourg)-4967 - Category 3 | BD65: Ecuador | BE65: United States | BF65: US Dollar | BG65: BRL-AM
AY66: German (Standard)-4916 - Category 1 | BD66: Egypt | BE66: United States | BF66: US Dollar | BG66: BRL-AM
AY67: German (Swiss)-4917 - Category 1 | BD67: El Salvador | BE67: United States | BF67: US Dollar | BG67: BRL-AM
AY68: Greek-4918 - Category 1 | BD68: Equatorial Guinea | BE68: United States | BF68: US Dollar | BG68: BRL-AM
AY69: Hebrew-4919 - Category 3 | BD69: Eritrea | BE69: United States | BF69: US Dollar | BG69: BRL-AM
AY70: Hindi-4808 - Category 3 | BD70: Estonia | BE70: Austria | BF70: Euro | BG70: BRL-AM
AY71: Hungarian-4930 - Category 1 | BD71: Ethiopia | BE71: United States | BF71: US Dollar | BG71: BRL-AM
AY72: Icelandic-4920 - Category 1 | BD72: Falkland Islands (Islas Malvinas) | BE72: United States | BF72: US Dollar | BG72: BRL-AM
AY73: Indonesian-4968 - Category 3 | BD73: Faroe Islands | BE73: Faroe Islands | BF73: Danish Krone | BG73: BRL-AM
AY74: Italian (Standard)-4921 - Category 1 | BD74: Fiji Islands | BE74: United States | BF74: US Dollar | BG74: BRL-AM
AY75: Italian (Swiss)-4933 - Category 1 | BD75: Finland | BE75: Austria | BF75: Euro | BG75: BRL-AM
AY76: Japanese-4810 - Category 3 | BD76: France | BE76: Austria | BF76: Euro | BG76: BRL-AM
AY77: Kazahk-4812 - Category 3 | BD77: French Guiana | BE77: Austria | BF77: Euro | BG77: BRL-AM
AY78: Konkani-4813 - Category 3 | BD78: French Polynesia | BE78: United States | BF78: US Dollar | BG78: BRL-AM
AY79: Korean-4814 - Category 3 | BD79: French Southern and Antarctic Lands | BE79: Austria | BF79: Euro | BG79: BRL-AM
AY80: Latvian-4922 - Category 1 | BD80: Gabon | BE80: United States | BF80: US Dollar | BG80: BRL-AM
AY81: Lithuanian-4923 - Category 1 | BD81: Gambia, The | BE81: United States | BF81: US Dollar | BG81: BRL-AM
AY82: Macedonian (FYROM)-4816 - Category 3 | BD82: Georgia | BE82: United States | BF82: US Dollar | BG82: BRL-AM
AY83: Malay (Brunei Darussalam)-4817 - Category 3 | BD83: Germany | BE83: Austria | BF83: Euro | BG83: BRL-AM
AY84: Malay (Malaysia)-4818 - Category 3 | BD84: Ghana | BE84: United States | BF84: US Dollar | BG84: BRL-AM
AY85: Marathi-4815 - Category 3 | BD85: Gibraltar | BE85: Gibraltar | BF85: Pounds Sterling | BG85: BRL-AM
AY86: Multiple System Languages-4900 - Category 3 | BD86: Greece | BE86: Austria | BF86: Euro | BG86: BRL-AM
AY87: Norwegian (Bokmal)-4924 - Category 1 | BD87: Greenland | BE87: Greenland | BF87: Danish Krone | BG87: BRL-AM
AY88: Norwegian (Nynorsk)-4925 - Category 3 | BD88: Grenada | BE88: United States | BF88: US Dollar | BG88: BRL-AM
AY89: Polish-4929 - Category 1 | BD89: Guadeloupe | BE89: Austria | BF89: Euro | BG89: BRL-AM
AY90: Portuguese (Brazilian)-4969 - Category 3 | BD90: Guam | BE90: United States | BF90: US Dollar | BG90: BRL-AM
AY91: Portuguese (Standard)-4970 - Category 1 | BD91: Guatemala | BE91: United States | BF91: US Dollar | BG91: BRL-AM
AY92: Romanian-4971 - Category 1 | BD92: Guinea | BE92: United States | BF92: US Dollar | BG92: BRL-AM
AY93: Russian-4926 - Category 1 | BD93: Guinea-Bissau | BE93: United States | BF93: US Dollar | BG93: BRL-AM
AY94: Sanskrit-4819 - Category 3 | BD94: Guyana | BE94: United States | BF94: US Dollar | BG94: BRL-AM
AY95: Serbian (Cyrillic)-4972 - Category 3 | BD95: Haiti | BE95: United States | BF95: US Dollar | BG95: BRL-AM
AY96: Serbian (Latin)-4973 - Category 1 | BD96: Heard Island and McDonald Islands | BE96: United States | BF96: Australian Dollar | BG96: BRL-AM
AY97: Slovak-4974 - Category 1 | BD97: Honduras | BE97: United States | BF97: US Dollar | BG97: BRL-AM
AY98: Slovenian-4975 - Category 1 | BD98: Hong Kong SAR | BE98: United States | BF98: US Dollar | BG98: BRL-AM
AY99: Spanish (Argentina)-4976 - Category 3 | BD99: Hungary | BE99: Austria | BF99: Euro | BG99: BRL-AM
AY100: Spanish (Bolivia)-4977 - Category 3 | BD100: Iceland | BE100: Austria | BF100: Euro | BG100: BRL-AM
AY101: Spanish (Chile)-4978 - Category 3 | BD101: India | BE101: United States | BF101: Indian Rupee | BG101: BRL-AM
AY102: Spanish (Colombia)-4979 - Category 3 | BD102: Indonesia | BE102: United States | BF102: US Dollar | BG102: BRL-AM
AY103: Spanish (Costa Rica)-4980 - Category 3 | BD103: Iran | BE103: United States | BF103: US Dollar | BG103: BRL-AM
AY104: Spanish (Dominican Rep.)-4981 - Category 3 | BD104: Iraq | BE104: United States | BF104: US Dollar | BG104: BRL-AM
AY105: Spanish (Ecuador)-4982 - Category 3 | BD105: Ireland, Republic of | BE105: Austria | BF105: Euro | BG105: BRL-AM
AY106: Spanish (El Salvador)-4983 - Category 3 | BD106: Israel | BE106: United States | BF106: US Dollar | BG106: BRL-AM
AY107: Spanish (Guatemala)-4984 - Category 3 | BD107: Italy | BE107: Austria | BF107: Euro | BG107: BRL-AM
AY108: Spanish (Honduras)-4985 - Category 3 | BD108: Jamaica | BE108: United States | BF108: US Dollar | BG108: BRL-AM
AY109: Spanish (Mexican)-4986 - Category 1 | BD109: Japan | BE109: United States | BF109: Japanese Yen | BG109: BRL-AM
AY110: Spanish (Modern Sort)-4987 - Category 3 | BD110: Jordan | BE110: United States | BF110: US Dollar | BG110: BRL-AM
AY111: Spanish (Nicaragua)-4988 - Category 3 | BD111: Kazakhstan | BE111: United States | BF111: US Dollar | BG111: BRL-AM
AY112: Spanish (Panama)-4989 - Category 3 | BD112: Kenya | BE112: United States | BF112: US Dollar | BG112: BRL-AM
AY113: Spanish (Paraguay)-4990 - Category 3 | BD113: Kiribati | BE113: United States | BF113: Australian Dollar | BG113: BRL-AM
AY114: Spanish (Peru)-4991 - Category 3 | BD114: Korea, North | BE114: United States | BF114: US Dollar | BG114: BRL-AM
AY115: Spanish (Puerto Rico)-4992 - Category 3 | BD115: Korea, South | BE115: United States | BF115: US Dollar | BG115: BRL-AM
AY116: Spanish (Uruguay)-4993 - Category 3 | BD116: Kuwait | BE116: United States | BF116: US Dollar | BG116: BRL-AM
AY117: Spanish (Venezuela)-4994 - Category 3 | BD117: Kyrgyzstan | BE117: United States | BF117: US Dollar | BG117: BRL-AM
AY118: Spanish(Traditional Sort)-4927 - Category 1 | BD118: Laos | BE118: United States | BF118: US Dollar | BG118: BRL-AM
AY119: Swahili-4820 - Category 3 | BD119: Latvia | BE119: Austria | BF119: Euro | BG119: BRL-AM
AY120: Swedish (Finland)-4995 - Category 3 | BD120: Lebanon | BE120: United States | BF120: US Dollar | BG120: BRL-AM
AY121: Swedish-4928 - Category 1 (for customer location Finland the price will default to €0 on order) | BD121: Lesotho | BE121: United States | BF121: US Dollar | BG121: BRL-AM
AY122: Tamil-4821 - Category 3 | BD122: Liberia | BE122: United States | BF122: US Dollar | BG122: BRL-AM
AY123: Tatar-4823 - Category 3 | BD123: Libya | BE123: United States | BF123: US Dollar | BG123: BRL-AM
AY124: Thai-4822 - Category 1 | BD124: Liechtenstein | BE124: Liechtenstein | BF124: Swiss Franc | BG124: BRL-AM
AY125: Turkish-4934 - Category 1 | BD125: Lithuania | BE125: Austria | BF125: Euro | BG125: BRL-AM
AY126: Ukrainian-4996 - Category 3 | BD126: Luxembourg | BE126: Austria | BF126: Euro | BG126: BRL-AM
AY127: Urdu-4824 - Category 3 | BD127: Macao SAR | BE127: United States | BF127: US Dollar | BG127: BRL-AM
AY128: Uzbek (Cyrillic)-4826 - Category 3 | BD128: Macedonia | BE128: United States | BF128: US Dollar | BG128: BRL-AM
AY129: Uzbek (Latin)-4825 - Category 3 | BD129: Madagascar | BE129: United States | BF129: US Dollar | BG129: BRL-AM
AY130: Vietnamese-4997 - Category 3 | BD130: Malawi | BE130: United States | BF130: US Dollar | BG130: BRL-AM
BD131: Malaysia | BE131: United States | BF131: US Dollar | BG131: BRL-AM
BD132: Maldives | BE132: United States | BF132: US Dollar | BG132: BRL-AM
BD133: Mali | BE133: United States | BF133: US Dollar | BG133: BRL-AM
BD134: Malta | BE134: Austria | BF134: Euro | BG134: BRL-AM
BD135: Marshall Islands | BE135: United States | BF135: US Dollar | BG135: BRL-AM
BD136: Martinique | BE136: Austria | BF136: Euro | BG136: BRL-AM
BD137: Mauritania | BE137: United States | BF137: US Dollar | BG137: BRL-AM
BD138: Mauritius | BE138: United States | BF138: US Dollar | BG138: BRL-AM
BD139: Mayotte | BE139: Austria | BF139: Euro | BG139: BRL-AM
BD140: Mexico | BE140: United States | BF140: US Dollar | BG140: BRL-AM
BD141: Micronesia | BE141: United States | BF141: US Dollar | BG141: BRL-AM
BD142: Moldova | BE142: United States | BF142: US Dollar | BG142: BRL-AM
BD143: Monaco | BE143: Austria | BF143: Euro | BG143: BRL-AM
BD144: Mongolia | BE144: United States | BF144: US Dollar | BG144: BRL-AM
BD145: Montenegro | BE145: United States | BF145: US Dollar | BG145: BRL-AM
BD146: Montserrat | BE146: United States | BF146: US Dollar | BG146: BRL-AM
BD147: Morocco | BE147: United States | BF147: US Dollar | BG147: BRL-AM
BD148: Mozambique | BE148: United States | BF148: US Dollar | BG148: BRL-AM
BD149: Myanmar | BE149: United States | BF149: US Dollar | BG149: BRL-AM
BD150: Namibia | BE150: United States | BF150: US Dollar | BG150: BRL-AM
BD151: Nauru | BE151: United States | BF151: Australian Dollar | BG151: BRL-AM
BD152: Nepal | BE152: United States | BF152: US Dollar | BG152: BRL-AM
BD153: Netherlands Antilles | BE153: United States | BF153: US Dollar | BG153: BRL-AM
BD154: Netherlands, The | BE154: Austria | BF154: Euro | BG154: BRL-AM
BD155: New Caledonia | BE155: United States | BF155: US Dollar | BG155: BRL-AM
BD156: New Zealand | BE156: United States | BF156: New Zealand Dollar | BG156: BRL-AM
BD157: Nicaragua | BE157: United States | BF157: US Dollar | BG157: BRL-AM
BD158: Niger | BE158: United States | BF158: US Dollar | BG158: BRL-AM
BD159: Nigeria | BE159: United States | BF159: US Dollar | BG159: BRL-AM
BD160: Niue | BE160: United States | BF160: New Zealand Dollar | BG160: BRL-AM
BD161: Norfolk Island | BE161: United States | BF161: Australian Dollar | BG161: BRL-AM
BD162: Northern Mariana Islands | BE162: United States | BF162: US Dollar | BG162: BRL-AM
BD163: Norway | BE163: Norway | BF163: Norwegian Krona | BG163: BRL-AM
BD164: Oman | BE164: United States | BF164: US Dollar | BG164: BRL-AM
BD165: Pakistan | BE165: United States | BF165: US Dollar | BG165: BRL-AM
BD166: Palau | BE166: United States | BF166: US Dollar | BG166: BRL-AM
BD167: Palestinian Authority | BE167: United States | BF167: US Dollar | BG167: BRL-AM
BD168: Panama | BE168: United States | BF168: US Dollar | BG168: BRL-AM
BD169: Papua New Guinea | BE169: United States | BF169: US Dollar | BG169: BRL-AM
BD170: Paraguay | BE170: United States | BF170: US Dollar | BG170: BRL-AM
BD171: Peru | BE171: United States | BF171: US Dollar | BG171: BRL-AM
BD172: Philippines | BE172: United States | BF172: US Dollar | BG172: BRL-AM
BD173: Pitcairn Islands | BE173: United States | BF173: US Dollar | BG173: BRL-AM
BD174: Poland | BE174: Austria | BF174: Euro | BG174: BRL-AM
BD175: Portugal | BE175: Austria | BF175: Euro | BG175: BRL-AM
BD176: Puerto Rico | BE176: United States | BF176: US Dollar | BG176: BRL-AM
BD177: Qatar | BE177: United States | BF177: US Dollar | BG177: BRL-AM
BD178: Reunion | BE178: Austria | BF178: Euro | BG178: BRL-AM
BD179: Romania | BE179: Austria | BF179: Euro | BG179: BRL-AM
BD180: Russia | BE180: United States | BF180: Russian Ruble | BG180: BRL-AM
BD181: Rwanda | BE181: United States | BF181: US Dollar | BG181: BRL-AM
BD182: Saint Helena | BE182: Saint Helena | BF182: Pounds Sterling | BG182: BRL-AM
BD183: Saint Kitts and Nevis | BE183: United States | BF183: US Dollar | BG183: BRL-AM
BD184: Saint Lucia | BE184: United States | BF184: US Dollar | BG184: BRL-AM
BD185: Saint Pierre and Miquelon | BE185: United States | BF185: Canadian Dollar | BG185: BRL-AM
BD186: Saint Vincent and the Grenadines | BE186: United States | BF186: US Dollar | BG186: BRL-AM
BD187: Samoa | BE187: United States | BF187: US Dollar | BG187: BRL-AM
BD188: San Marino | BE188: Austria | BF188: Euro | BG188: BRL-AM
BD189: Sao Tomé and Príncipe | BE189: United States | BF189: US Dollar | BG189: BRL-AM
BD190: Saudi Arabia | BE190: United States | BF190: US Dollar | BG190: BRL-AM
BD191: Senegal | BE191: United States | BF191: US Dollar | BG191: BRL-AM
BD192: Serbia | BE192: United States | BF192: US Dollar | BG192: BRL-AM
BD193: Seychelles | BE193: United States | BF193: US Dollar | BG193: BRL-AM
BD194: Sierra Leone | BE194: United States | BF194: US Dollar | BG194: BRL-AM
BD195: Singapore | BE195: United States | BF195: US Dollar | BG195: BRL-AM
BD196: Slovakia | BE196: Austria | BF196: Euro | BG196: BRL-AM
BD197: Slovenia | BE197: Austria | BF197: Euro | BG197: BRL-AM
BD198: Solomon Islands | BE198: United States | BF198: US Dollar | BG198: BRL-AM
BD199: Somalia | BE199: United States | BF199: US Dollar | BG199: BRL-AM
BD200: South Africa | BE200: United States | BF200: US Dollar | BG200: BRL-AM
BD201: South Georgia and the South Sandwich Islands | BE201: United States | BF201: US Dollar | BG201: BRL-AM
... 42 more rows

Sheet GP Availability (hidden)
C2: ALL CHECK | G2: =COUNTIF(Table20[ALL - Africa],"ALL") -> 14 | H2: =SUM(Table20[Algeria]) -> 14 | I2: =SUM(Table20[Angola]) -> 14 | J2: =SUM(Table20[Benin]) -> 14 | K2: =SUM(Table20[Botswana]) -> 14 | L2: =SUM(Table20[Burkina Faso]) -> 14 | M2: =SUM(Table20[Burundi]) -> 14 | N2: =SUM(Table20[Cameroon]) -> 14 | O2: =SUM(Table20[Cape Verde]) -> 14 | P2: =SUM(Table20[Central African Republic]) -> 14 | Q2: =SUM(Table20[Chad]) -> 14 | R2: =SUM(Table20[Comoros]) -> 14 | S2: =SUM(Table20[Congo]) -> 14 | T2: =SUM(Table20[Congo (DRC)]) -> 14 | U2: =SUM(Table20[Côte d''Ivoire]) -> 14 | V2: =SUM(Table20[Djibouti]) -> 14 | W2: =SUM(Table20[Egypt]) -> 14 | X2: =SUM(Table20[Equatorial Guinea]) -> 14 | Y2: =SUM(Table20[Eritrea]) -> 14 | Z2: =SUM(Table20[Ethiopia]) -> 14 | AA2: =SUM(Table20[French Polynesia]) -> 14 | AB2: =SUM(Table20[Gabon]) -> 14 | AC2: =SUM(Table20[Gambia, The]) -> 14 | AD2: =SUM(Table20[Ghana]) -> 14 | AE2: =SUM(Table20[Guinea]) -> 14 | AF2: =SUM(Table20[Guinea-Bissau]) -> 14 | AG2: =SUM(Table20[Kenya]) -> 14 | AH2: =SUM(Table20[Lesotho]) -> 14 | AI2: =SUM(Table20[Liberia]) -> 14 | AJ2: =SUM(Table20[Libya]) -> 14 | AK2: =SUM(Table20[Madagascar]) -> 14 | AL2: =SUM(Table20[Malawi]) -> 14 | AM2: =SUM(Table20[Mali]) -> 14 | AN2: =SUM(Table20[Mauritania]) -> 14 | AO2: =SUM(Table20[Mauritius]) -> 14 | AP2: =SUM(Table20[Morocco]) -> 14 | AQ2: =SUM(Table20[Mozambique]) -> 14 | AR2: =SUM(Table20[Namibia]) -> 14 | AS2: =SUM(Table20[New Caledonia]) -> 14 | AT2: =SUM(Table20[Niger]) -> 14 | AU2: =SUM(Table20[Nigeria]) -> 14 | AV2: =SUM(Table20[Rwanda]) -> 14 | AW2: =SUM(Table20[Sao Tomé and Príncipe]) -> 14 | AX2: =SUM(Table20[Senegal]) -> 14 | AY2: =SUM(Table20[Seychelles]) -> 14 | AZ2: =SUM(Table20[Sierra Leone]) -> 14 | BA2: =SUM(Table20[Somalia]) -> 14 | BB2: =SUM(Table20[Sudan]) -> 14 | BC2: =SUM(Table20[Swaziland]) -> 14 | BD2: =SUM(Table20[Tanzania]) -> 14 | BE2: =SUM(Table20[Togo]) -> 14 | BF2: =SUM(Table20[Tunisia]) -> 14 | BG2: =SUM(Table20[Uganda]) -> 14 | BH2: =SUM(Table20[Western Sahara]) -> 14 | BI2: =SUM(Table20[Zambia]) -> 14 | BJ2: =SUM(Table20[Zimbabwe]) -> 14 | BK2: =SUM(Table20[ALL - APOC United States ]) -> 0 | BL2: =SUM(Table20[American Samoa]) -> 15 | BM2: =SUM(Table20[Guam]) -> 15 | BN2: =SUM(Table20[Marshall Islands]) -> 15 | BO2: =SUM(Table20[Northern Mariana Islands]) -> 15 | BP2: =SUM(Table20[ALL - Australia]) -> 0 | BQ2: =SUM(Table20[Australia]) -> 14 | BR2: =SUM(Table20[Christmas Island]) -> 14 | BS2: =SUM(Table20[Cocos (Keeling) Islands]) -> 14 | BT2: =SUM(Table20[Heard Island and McDonald Islands]) -> 14 | BU2: =SUM(Table20[Kiribati]) -> 14 | BV2: =SUM(Table20[Nauru]) -> 14 | BW2: =SUM(Table20[Norfolk Island]) -> 14 | BX2: =SUM(Table20[Tuvalu]) -> 14 | BY2: =SUM(Table20[ALL - Canada]) -> 0 | BZ2: =SUM(Table20[Canada]) -> 16 | CA2: =SUM(Table20[Saint Pierre and Miquelon]) -> 16 | CB2: =SUM(Table20[ALL - Central Asia 1 - CEE 1 ]) -> 0 | CC2: =SUM(Table20[Afghanistan]) -> 14 | CD2: =SUM(Table20[Kyrgyzstan]) -> 14 | CE2: =SUM(Table20[Mongolia]) -> 14 | CF2: =SUM(Table20[Pakistan]) -> 14 | CG2: =SUM(Table20[ALL - Central Asia 2 - CEE 2]) -> 0 | CH2: =SUM(Table20[Azerbaijan]) -> 14 | CI2: =SUM(Table20[Kazakhstan]) -> 14 | CJ2: =SUM(Table20[Tajikistan]) -> 14 | CK2: =SUM(Table20[Turkmenistan]) -> 14 | CL2: =SUM(Table20[Uzbekistan]) -> 14 | CM2: =SUM(Table20[ALL - Chile]) -> 0 | CN2: =SUM(Table20[Chile]) -> 16 | CO2: =SUM(Table20[ALL - China]) -> 0 | CP2: =SUM(Table20[China]) -> 14 | CQ2: =SUM(Table20[ALL - Colombia]) -> 0 | CR2: =SUM(Table20[Colombia]) -> 16 | CS2: =SUM(Table20[ALL - Denmark2]) -> 0 | CT2: =SUM(Table20[Denmark]) -> 14 | CU2: =SUM(Table20[Faroe Islands]) -> 14 | CV2: =SUM(Table20[Greenland]) -> 14 | CW2: =SUM(Table20[ALL - Eastern Euope 1]) -> 0 | CX2: =SUM(Table20[Albania]) -> 14 | CY2: =SUM(Table20[Bosnia and Herzegovina]) -> 14 | CZ2: =SUM(Table20[Macedonia]) -> 14 | DA2: =SUM(Table20[Montenegro]) -> 14 | DB2: =SUM(Table20[ALL - Eastern Europe 2]) -> 0 | DC2: =SUM(Table20[Armenia]) -> 14 | DD2: =SUM(Table20[Belarus]) -> 14 | DE2: =SUM(Table20[Georgia]) -> 14 | DF2: =SUM(Table20[Moldova]) -> 14 | DG2: =SUM(Table20[Ukraine]) -> 14 | DH2: =SUM(Table20[ALL - Eurozone]) -> 0 | DI2: =SUM(Table20[Andorra]) -> 14 | DJ2: =SUM(Table20[Austria]) -> 14 | DK2: =SUM(Table20[Belgium]) -> 14 | DL2: =SUM(Table20[Bulgaria]) -> 14 | DM2: =SUM(Table20[Croatia]) -> 14 | DN2: =SUM(Table20[Cyprus]) -> 14 | DO2: =SUM(Table20[Czech Republic]) -> 14 | DP2: =SUM(Table20[Estonia]) -> 14 | DQ2: =SUM(Table20[Finland]) -> 14 | DR2: =SUM(Table20[France]) -> 14 | DS2: =SUM(Table20[French Guiana]) -> 14 | DT2: =SUM(Table20[French Southern and Antarctic Lands]) -> 14 | DU2: =SUM(Table20[Germany]) -> 14 | DV2: =SUM(Table20[Greece]) -> 14 | DW2: =SUM(Table20[Guadeloupe]) -> 14 | DX2: =SUM(Table20[Hungary]) -> 14 | DY2: =SUM(Table20[Iceland]) -> 14 | EA2: =SUM(Table20[Italy]) -> 14 | EB2: =SUM(Table20[Latvia]) -> 14 | EC2: =SUM(Table20[Lithuania]) -> 14 | ED2: =SUM(Table20[Luxembourg]) -> 14 | EE2: =SUM(Table20[Malta]) -> 14 | EF2: =SUM(Table20[Martinique]) -> 14 | EG2: =SUM(Table20[Mayotte]) -> 14 | EH2: =SUM(Table20[Monaco]) -> 14 | EI2: =SUM(Table20[Netherlands, The]) -> 14 | EJ2: =SUM(Table20[Poland]) -> 14 | EK2: =SUM(Table20[Portugal]) -> 14 | EL2: =SUM(Table20[Reunion]) -> 14 | EM2: =SUM(Table20[Romania]) -> 14 | EN2: =SUM(Table20[San Marino]) -> 14 | EO2: =SUM(Table20[Slovakia]) -> 14 | EP2: =SUM(Table20[Slovenia]) -> 14 | EQ2: =SUM(Table20[Spain]) -> 14 | ER2: =SUM(Table20[Vatican City]) -> 14 | ES2: =SUM(Table20[ALL - India]) -> 0 | ET2: =SUM(Table20[India]) -> 10 | EU2: =SUM(Table20[ALL - Japan]) -> 0 | EV2: =SUM(Table20[Japan]) -> 14 | EW2: =SUM(Table20[ALL - Latam Caribbean]) -> 0 | EX2: =SUM(Table20[Anguilla]) -> 16 | EY2: =SUM(Table20[Antarctica]) -> 16 | EZ2: =SUM(Table20[Antigua and Barbuda]) -> 16 | FA2: =SUM(Table20[Aruba]) -> 16 | FB2: =SUM(Table20[Bahamas, The]) -> 16 | FC2: =SUM(Table20[Barbados]) -> 16 | FD2: =SUM(Table20[Cuba]) -> 16 | FE2: =SUM(Table20[Dominica]) -> 16 | FF2: =SUM(Table20[Grenada]) -> 16 | FG2: =SUM(Table20[Guyana]) -> 16 | FH2: =SUM(Table20[Haiti]) -> 16 | FI2: =SUM(Table20[Jamaica]) -> 16 | FJ2: =SUM(Table20[Montserrat]) -> 16 | FK2: =SUM(Table20[Netherlands Antilles]) -> 16 | FL2: =SUM(Table20[Saint Kitts and Nevis]) -> 16 | FM2: =SUM(Table20[Saint Lucia]) -> 16 | FN2: =SUM(Table20[Saint Vincent and the Grenadines]) -> 16 | FO2: =SUM(Table20[Suriname]) -> 16 | FP2: =SUM(Table20[Trinidad and Tobago]) -> 16 | FQ2: =SUM(Table20[Turks and Caicos Islands]) -> 16 | FR2: =SUM(Table20[Virgin Islands, British]) -> 16 | FS2: =SUM(Table20[ALL - Latam PR/BM/CI/VI]) -> 0 | FT2: =SUM(Table20[Bermuda]) -> 15 | FU2: =SUM(Table20[Cayman Islands]) -> 15 | FV2: =SUM(Table20[Puerto Rico]) -> 15 | FW2: =SUM(Table20[Virgin Islands, U.S.]) -> 15 | FX2: =SUM(Table20[ALL - Mexico]) -> 0 | FY2: =SUM(Table20[Mexico]) -> 16 | FZ2: =SUM(Table20[ALL - Middle East]) -> 0 | GA2: =SUM(Table20[Bahrain]) -> 14 | GB2: =SUM(Table20[Palestinian Authority]) -> 14 | GC2: =SUM(Table20[Iran]) -> 14 | GD2: =SUM(Table20[Iraq]) -> 14 | GE2: =SUM(Table20[Israel]) -> 14 | GF2: =SUM(Table20[Jordan]) -> 14 | GG2: =SUM(Table20[Kuwait]) -> 14 | GH2: =SUM(Table20[Lebanon]) -> 14 | GI2: =SUM(Table20[Oman]) -> 14 | GJ2: =SUM(Table20[Qatar]) -> 14 | GK2: =SUM(Table20[Saudi Arabia]) -> 14 | GL2: =SUM(Table20[Syria]) -> 14 | GM2: =SUM(Table20[United Arab Emirates]) -> 14 | GN2: =SUM(Table20[Yemen]) -> 14 | GO2: =SUM(Table20[ALL - New Zealand]) -> 0 | GP2: =SUM(Table20[Cook Islands]) -> 14 | GQ2: =SUM(Table20[New Zealand]) -> 14 | GR2: =SUM(Table20[Niue]) -> 14 | GS2: =SUM(Table20[Tokelau]) -> 14 | GT2: =SUM(Table20[ALL - Norway2]) -> 0 | GU2: =SUM(Table20[Bouvet Island]) -> 14 | GV2: =SUM(Table20[Norway]) -> 14 | GW2: =SUM(Table20[Svalbard and Jan Mayen]) -> 14 | GX2: =SUM(Table20[ALL - Rest of Latam]) -> 0 | GY2: =SUM(Table20[Argentina]) -> 16 | GZ2: =SUM(Table20[Belize]) -> 16 | HA2: =SUM(Table20[Bolivia]) -> 16 | HB2: =SUM(Table20[Brazil]) -> 16 | HC2: =SUM(Table20[Costa Rica]) -> 16 | HD2: =SUM(Table20[Dominican Republic]) -> 16 | HE2: =SUM(Table20[Ecuador]) -> 16 | HF2: =SUM(Table20[El Salvador]) -> 16 | HG2: =SUM(Table20[Falkland Islands (Islas Malvinas)]) -> 16 | HH2: =SUM(Table20[Guatemala]) -> 16 | HI2: =SUM(Table20[Honduras]) -> 16 | HJ2: =SUM(Table20[Nicaragua]) -> 16 | HK2: =SUM(Table20[Panama]) -> 16 | HL2: =SUM(Table20[Paraguay]) -> 16 | HM2: =SUM(Table20[Peru]) -> 16 | HN2: =SUM(Table20[South Georgia and the South Sandwich Islands]) -> 16 | HO2: =SUM(Table20[Uruguay]) -> 16 | HP2: =SUM(Table20[Venezuela]) -> 16 | HQ2: =SUM(Table20[ALL - Russia]) -> 0 | HR2: =SUM(Table20[Russia]) -> 14 | HS2: =SUM(Table20[ALL - Serbia]) -> 0 | HT2: =SUM(Table20[Serbia]) -> 14 | HU2: =SUM(Table20[ALL - South Africa]) -> 0 | HV2: =SUM(Table20[South Africa]) -> 14 | HW2: =SUM(Table20[ALL - South East Asia]) -> 0 | HX2: =SUM(Table20[Bangladesh]) -> 14 | HY2: =SUM(Table20[Bhutan]) -> 14 | HZ2: =SUM(Table20[British Indian Ocean Territory]) -> 14 | IA2: =SUM(Table20[Brunei]) -> 14 | IB2: =SUM(Table20[Cambodia]) -> 14 | IC2: =SUM(Table20[Fiji Islands]) -> 14 | ID2: =SUM(Table20[Hong Kong SAR]) -> 14 | IE2: =SUM(Table20[Indonesia]) -> 14 | IF2: =SUM(Table20[Korea, North]) -> 14 | IG2: =SUM(Table20[Korea, South]) -> 14 | IH2: =SUM(Table20[Laos]) -> 14 | II2: =SUM(Table20[Macao SAR]) -> 14 | IJ2: =SUM(Table20[Malaysia]) -> 14 | IK2: =SUM(Table20[Maldives]) -> 14 | IL2: =SUM(Table20[Micronesia]) -> 14 | IM2: =SUM(Table20[Myanmar]) -> 14 | IN2: =SUM(Table20[Nepal]) -> 14 | IO2: =SUM(Table20[Palau]) -> 14 | IP2: =SUM(Table20[Papua New Guinea]) -> 14 | IQ2: =SUM(Table20[Philippines]) -> 14 | IR2: =SUM(Table20[Pitcairn Islands]) -> 14 | IS2: =SUM(Table20[Samoa]) -> 14 | IT2: =SUM(Table20[Singapore]) -> 14 | IU2: =SUM(Table20[Solomon Islands]) -> 14 | IV2: =SUM(Table20[Sri Lanka]) -> 14 | IW2: =SUM(Table20[Taiwan]) -> 14 | IX2: =SUM(Table20[Thailand]) -> 14 | IY2: =SUM(Table20[Timor-Leste]) -> 14 | IZ2: =SUM(Table20[Tonga]) -> 14 | JA2: =SUM(Table20[Vanuatu]) -> 14 | JB2: =SUM(Table20[Vietnam]) -> 14 | JC2: =SUM(Table20[Wallis and Futuna]) -> 14 | JD2: =SUM(Table20[ALL - Sweden2]) -> 0 | JE2: =SUM(Table20[Sweden]) -> 14 | JF2: =SUM(Table20[ALL - Switzerland2]) -> 0 | JG2: =SUM(Table20[Liechtenstein]) -> 14 | JH2: =SUM(Table20[Switzerland]) -> 14 | JI2: =SUM(Table20[ALL - Turkey]) -> 0 | JJ2: =SUM(Table20[Turkey]) -> 14 | JK2: =SUM(Table20[ALL - United Kingdom2]) -> 0 | JL2: =SUM(Table20[Gibraltar]) -> 14 | JM2: =SUM(Table20[Saint Helena]) -> 14 | JN2: =SUM(Table20[United Kingdom]) -> 14 | JO2: =SUM(Table20[ALL - United States]) -> 0 | JP2: =COUNTA(JP4:JP31) -> 20
C3: VERSION Availablity
B4: SKU | C4: Item Description | D4: Offering | E4: Version | F4: Granule ID | G4: ALL - Africa | H4: Algeria | I4: Angola | J4: Benin | K4: Botswana | L4: Burkina Faso | M4: Burundi | N4: Cameroon | O4: Cape Verde | P4: Central African Republic | Q4: Chad | R4: Comoros | S4: Congo | T4: Congo (DRC) | U4: Côte d'Ivoire | V4: Djibouti | W4: Egypt | X4: Equatorial Guinea | Y4: Eritrea | Z4: Ethiopia | AA4: French Polynesia | AB4: Gabon | AC4: Gambia, The | AD4: Ghana | AE4: Guinea | AF4: Guinea-Bissau | AG4: Kenya | AH4: Lesotho | AI4: Liberia | AJ4: Libya | AK4: Madagascar | AL4: Malawi | AM4: Mali | AN4: Mauritania | AO4: Mauritius | AP4: Morocco | AQ4: Mozambique | AR4: Namibia | AS4: New Caledonia | AT4: Niger | AU4: Nigeria | AV4: Rwanda | AW4: Sao Tomé and Príncipe | AX4: Senegal | AY4: Seychelles | AZ4: Sierra Leone | BA4: Somalia | BB4: Sudan | BC4: Swaziland | BD4: Tanzania | BE4: Togo | BF4: Tunisia | BG4: Uganda | BH4: Western Sahara | BI4: Zambia | BJ4: Zimbabwe | BK4: ALL - APOC United States | BL4: American Samoa | BM4: Guam | BN4: Marshall Islands | BO4: Northern Mariana Islands | BP4: ALL - Australia | BQ4: Australia | BR4: Christmas Island | BS4: Cocos (Keeling) Islands | BT4: Heard Island and McDonald Islands | BU4: Kiribati | BV4: Nauru | BW4: Norfolk Island | BX4: Tuvalu | BY4: ALL - Canada | BZ4: Canada | CA4: Saint Pierre and Miquelon | CB4: ALL - Central Asia 1 - CEE 1 | CC4: Afghanistan | CD4: Kyrgyzstan | CE4: Mongolia | CF4: Pakistan | CG4: ALL - Central Asia 2 - CEE 2 | CH4: Azerbaijan | CI4: Kazakhstan | CJ4: Tajikistan | CK4: Turkmenistan | CL4: Uzbekistan | CM4: ALL - Chile | CN4: Chile | CO4: ALL - China | CP4: China | CQ4: ALL - Colombia | CR4: Colombia | CS4: ALL - Denmark2 | CT4: Denmark | CU4: Faroe Islands | CV4: Greenland | CW4: ALL - Eastern Euope 1 | CX4: Albania | CY4: Bosnia and Herzegovina | CZ4: Macedonia | DA4: Montenegro | DB4: ALL - Eastern Europe 2 | DC4: Armenia | DD4: Belarus | DE4: Georgia | DF4: Moldova | DG4: Ukraine | DH4: ALL - Eurozone | DI4: Andorra | DJ4: Austria | DK4: Belgium | DL4: Bulgaria | DM4: Croatia | DN4: Cyprus | DO4: Czech Republic | DP4: Estonia | DQ4: Finland | DR4: France | DS4: French Guiana | DT4: French Southern and Antarctic Lands | DU4: Germany | DV4: Greece | DW4: Guadeloupe | DX4: Hungary | DY4: Iceland | DZ4: Ireland, Republic of | EA4: Italy | EB4: Latvia | EC4: Lithuania | ED4: Luxembourg | EE4: Malta | EF4: Martinique | EG4: Mayotte | EH4: Monaco | EI4: Netherlands, The | EJ4: Poland | EK4: Portugal | EL4: Reunion | EM4: Romania | EN4: San Marino | EO4: Slovakia | EP4: Slovenia | EQ4: Spain | ER4: Vatican City | ES4: ALL - India | ET4: India | EU4: ALL - Japan | EV4: Japan | EW4: ALL - Latam Caribbean | EX4: Anguilla | EY4: Antarctica | EZ4: Antigua and Barbuda | FA4: Aruba | FB4: Bahamas, The | FC4: Barbados | FD4: Cuba | FE4: Dominica | FF4: Grenada | FG4: Guyana | FH4: Haiti | FI4: Jamaica | FJ4: Montserrat | FK4: Netherlands Antilles | FL4: Saint Kitts and Nevis | FM4: Saint Lucia | FN4: Saint Vincent and the Grenadines | FO4: Suriname | FP4: Trinidad and Tobago | FQ4: Turks and Caicos Islands | FR4: Virgin Islands, British | FS4: ALL - Latam PR/BM/CI/VI | FT4: Bermuda | FU4: Cayman Islands | FV4: Puerto Rico | FW4: Virgin Islands, U.S. | FX4: ALL - Mexico | FY4: Mexico | FZ4: ALL - Middle East | GA4: Bahrain | GB4: Palestinian Authority | GC4: Iran | GD4: Iraq | GE4: Israel | GF4: Jordan | GG4: Kuwait | GH4: Lebanon | GI4: Oman | GJ4: Qatar | GK4: Saudi Arabia | GL4: Syria | GM4: United Arab Emirates | GN4: Yemen | GO4: ALL - New Zealand | GP4: Cook Islands | GQ4: New Zealand | GR4: Niue | GS4: Tokelau | GT4: ALL - Norway2 | GU4: Bouvet Island | GV4: Norway | GW4: Svalbard and Jan Mayen | GX4: ALL - Rest of Latam | GY4: Argentina | GZ4: Belize | HA4: Bolivia | HB4: Brazil | HC4: Costa Rica | HD4: Dominican Republic | HE4: Ecuador | HF4: El Salvador | HG4: Falkland Islands (Islas Malvinas) | HH4: Guatemala | HI4: Honduras | HJ4: Nicaragua | HK4: Panama | HL4: Paraguay | HM4: Peru | HN4: South Georgia and the South Sandwich Islands | HO4: Uruguay | HP4: Venezuela | HQ4: ALL - Russia | HR4: Russia | HS4: ALL - Serbia | HT4: Serbia | HU4: ALL - South Africa | HV4: South Africa | HW4: ALL - South East Asia | HX4: Bangladesh | HY4: Bhutan | HZ4: British Indian Ocean Territory | IA4: Brunei | IB4: Cambodia | IC4: Fiji Islands | ID4: Hong Kong SAR | IE4: Indonesia | IF4: Korea, North | IG4: Korea, South | IH4: Laos | II4: Macao SAR | IJ4: Malaysia | IK4: Maldives | IL4: Micronesia | IM4: Myanmar | IN4: Nepal | IO4: Palau | IP4: Papua New Guinea | IQ4: Philippines | IR4: Pitcairn Islands | IS4: Samoa | IT4: Singapore | IU4: Solomon Islands | IV4: Sri Lanka | IW4: Taiwan | IX4: Thailand | IY4: Timor-Leste | IZ4: Tonga | JA4: Vanuatu | JB4: Vietnam | JC4: Wallis and Futuna | JD4: ALL - Sweden2 | JE4: Sweden | JF4: ALL - Switzerland2 | JG4: Liechtenstein | JH4: Switzerland | JI4: ALL - Turkey | JJ4: Turkey | JK4: ALL - United Kingdom2 | JL4: Gibraltar | JM4: Saint Helena | JN4: United Kingdom | JO4: ALL - United States | JP4: United States | JQ4: U.S. Minor Outlying Islands | JR4: No of Countries
A5: 2 | C5: ERP Solution Suite | JR5: =COUNTIF(G5:JQ5,1) -> 0
A6: 3 | B6: 109098612 | C6: Starter Pack | D6: BRL-AM | G6: ALL | H6: 1 | I6: 1 | J6: 1 | K6: 1 | L6: 1 | M6: 1 | N6: 1 | O6: 1 | P6: 1 | Q6: 1 | R6: 1 | S6: 1 | T6: 1 | U6: 1 | V6: 1 | W6: 1 | X6: 1 | Y6: 1 | Z6: 1 | AA6: 1 | AB6: 1 | AC6: 1 | AD6: 1 | AE6: 1 | AF6: 1 | AG6: 1 | AH6: 1 | AI6: 1 | AJ6: 1 | AK6: 1 | AL6: 1 | AM6: 1 | AN6: 1 | AO6: 1 | AP6: 1 | AQ6: 1 | AR6: 1 | AS6: 1 | AT6: 1 | AU6: 1 | AV6: 1 | AW6: 1 | AX6: 1 | AY6: 1 | AZ6: 1 | BA6: 1 | BB6: 1 | BC6: 1 | BD6: 1 | BE6: 1 | BF6: 1 | BG6: 1 | BH6: 1 | BI6: 1 | BJ6: 1 | BK6: ALL | BL6: 1 | BM6: 1 | BN6: 1 | BO6: 1 | BP6: ALL | BQ6: 1 | BR6: 1 | BS6: 1 | BT6: 1 | BU6: 1 | BV6: 1 | BW6: 1 | BX6: 1 | BY6: ALL | BZ6: 1 | CA6: 1 | CB6: ALL | CC6: 1 | CD6: 1 | CE6: 1 | CF6: 1 | CG6: ALL | CH6: 1 | CI6: 1 | CJ6: 1 | CK6: 1 | CL6: 1 | CM6: ALL | CN6: 1 | CO6: ALL | CP6: 1 | CQ6: ALL | CR6: 1 | CS6: ALL | CT6: 1 | CU6: 1 | CV6: 1 | CW6: ALL | CX6: 1 | CY6: 1 | CZ6: 1 | DA6: 1 | DB6: ALL | DC6: 1 | DD6: 1 | DE6: 1 | DF6: 1 | DG6: 1 | DH6: ALL | DI6: 1 | DJ6: 1 | DK6: 1 | DL6: 1 | DM6: 1 | DN6: 1 | DO6: 1 | DP6: 1 | DQ6: 1 | DR6: 1 | DS6: 1 | DT6: 1 | DU6: 1 | DV6: 1 | DW6: 1 | DX6: 1 | DY6: 1 | DZ6: 1 | EA6: 1 | EB6: 1 | EC6: 1 | ED6: 1 | EE6: 1 | EF6: 1 | EG6: 1 | EH6: 1 | EI6: 1 | EJ6: 1 | EK6: 1 | EL6: 1 | EM6: 1 | EN6: 1 | EO6: 1 | EP6: 1 | EQ6: 1 | ER6: 1 | ES6: ALL | ET6: 1 | EU6: ALL | EV6: 1 | EW6: ALL | EX6: 1 | EY6: 1 | EZ6: 1 | FA6: 1 | FB6: 1 | FC6: 1 | FD6: 1 | FE6: 1 | FF6: 1 | FG6: 1 | FH6: 1 | FI6: 1 | FJ6: 1 | FK6: 1 | FL6: 1 | FM6: 1 | FN6: 1 | FO6: 1 | FP6: 1 | FQ6: 1 | FR6: 1 | FS6: ALL | FT6: 1 | FU6: 1 | FV6: 1 | FW6: 1 | FX6: ALL | FY6: 1 | FZ6: ALL | GA6: 1 | GB6: 1 | GC6: 1 | GD6: 1 | GE6: 1 | GF6: 1 | GG6: 1 | GH6: 1 | GI6: 1 | GJ6: 1 | GK6: 1 | GL6: 1 | GM6: 1 | GN6: 1 | GO6: ALL | GP6: 1 | GQ6: 1 | GR6: 1 | GS6: 1 | GT6: ALL | GU6: 1 | GV6: 1 | GW6: 1 | GX6: ALL | GY6: 1 | GZ6: 1 | HA6: 1 | HB6: 1 | HC6: 1 | HD6: 1 | HE6: 1 | HF6: 1 | HG6: 1 | HH6: 1 | HI6: 1 | HJ6: 1 | HK6: 1 | HL6: 1 | HM6: 1 | HN6: 1 | HO6: 1 | HP6: 1 | HQ6: ALL | HR6: 1 | HS6: ALL | HT6: 1 | HU6: ALL | HV6: 1 | HW6: ALL | HX6: 1 | HY6: 1 | HZ6: 1 | IA6: 1 | IB6: 1 | IC6: 1 | ID6: 1 | IE6: 1 | IF6: 1 | IG6: 1 | IH6: 1 | II6: 1 | IJ6: 1 | IK6: 1 | IL6: 1 | IM6: 1 | IN6: 1 | IO6: 1 | IP6: 1 | IQ6: 1 | IR6: 1 | IS6: 1 | IT6: 1 | IU6: 1 | IV6: 1 | IW6: 1 | IX6: 1 | IY6: 1 | IZ6: 1 | JA6: 1 | JB6: 1 | JC6: 1 | JD6: ALL | JE6: 1 | JF6: ALL | JG6: 1 | JH6: 1 | JI6: ALL | JJ6: 1 | JK6: ALL | JL6: 1 | JM6: 1 | JN6: 1 | JO6: ALL | JP6: 1 | JQ6: 1 | JR6: 240
A7: 4 | B7: 109098613 | C7: Extended Pack | D7: BRL-AM | G7: ALL | H7: 1 | I7: 1 | J7: 1 | K7: 1 | L7: 1 | M7: 1 | N7: 1 | O7: 1 | P7: 1 | Q7: 1 | R7: 1 | S7: 1 | T7: 1 | U7: 1 | V7: 1 | W7: 1 | X7: 1 | Y7: 1 | Z7: 1 | AA7: 1 | AB7: 1 | AC7: 1 | AD7: 1 | AE7: 1 | AF7: 1 | AG7: 1 | AH7: 1 | AI7: 1 | AJ7: 1 | AK7: 1 | AL7: 1 | AM7: 1 | AN7: 1 | AO7: 1 | AP7: 1 | AQ7: 1 | AR7: 1 | AS7: 1 | AT7: 1 | AU7: 1 | AV7: 1 | AW7: 1 | AX7: 1 | AY7: 1 | AZ7: 1 | BA7: 1 | BB7: 1 | BC7: 1 | BD7: 1 | BE7: 1 | BF7: 1 | BG7: 1 | BH7: 1 | BI7: 1 | BJ7: 1 | BK7: ALL | BL7: 1 | BM7: 1 | BN7: 1 | BO7: 1 | BP7: ALL | BQ7: 1 | BR7: 1 | BS7: 1 | BT7: 1 | BU7: 1 | BV7: 1 | BW7: 1 | BX7: 1 | BY7: ALL | BZ7: 1 | CA7: 1 | CB7: ALL | CC7: 1 | CD7: 1 | CE7: 1 | CF7: 1 | CG7: ALL | CH7: 1 | CI7: 1 | CJ7: 1 | CK7: 1 | CL7: 1 | CM7: ALL | CN7: 1 | CO7: ALL | CP7: 1 | CQ7: ALL | CR7: 1 | CS7: ALL | CT7: 1 | CU7: 1 | CV7: 1 | CW7: ALL | CX7: 1 | CY7: 1 | CZ7: 1 | DA7: 1 | DB7: ALL | DC7: 1 | DD7: 1 | DE7: 1 | DF7: 1 | DG7: 1 | DH7: ALL | DI7: 1 | DJ7: 1 | DK7: 1 | DL7: 1 | DM7: 1 | DN7: 1 | DO7: 1 | DP7: 1 | DQ7: 1 | DR7: 1 | DS7: 1 | DT7: 1 | DU7: 1 | DV7: 1 | DW7: 1 | DX7: 1 | DY7: 1 | DZ7: 1 | EA7: 1 | EB7: 1 | EC7: 1 | ED7: 1 | EE7: 1 | EF7: 1 | EG7: 1 | EH7: 1 | EI7: 1 | EJ7: 1 | EK7: 1 | EL7: 1 | EM7: 1 | EN7: 1 | EO7: 1 | EP7: 1 | EQ7: 1 | ER7: 1 | ES7: ALL | ET7: 1 | EU7: ALL | EV7: 1 | EW7: ALL | EX7: 1 | EY7: 1 | EZ7: 1 | FA7: 1 | FB7: 1 | FC7: 1 | FD7: 1 | FE7: 1 | FF7: 1 | FG7: 1 | FH7: 1 | FI7: 1 | FJ7: 1 | FK7: 1 | FL7: 1 | FM7: 1 | FN7: 1 | FO7: 1 | FP7: 1 | FQ7: 1 | FR7: 1 | FS7: ALL | FT7: 1 | FU7: 1 | FV7: 1 | FW7: 1 | FX7: ALL | FY7: 1 | FZ7: ALL | GA7: 1 | GB7: 1 | GC7: 1 | GD7: 1 | GE7: 1 | GF7: 1 | GG7: 1 | GH7: 1 | GI7: 1 | GJ7: 1 | GK7: 1 | GL7: 1 | GM7: 1 | GN7: 1 | GO7: ALL | GP7: 1 | GQ7: 1 | GR7: 1 | GS7: 1 | GT7: ALL | GU7: 1 | GV7: 1 | GW7: 1 | GX7: ALL | GY7: 1 | GZ7: 1 | HA7: 1 | HB7: 1 | HC7: 1 | HD7: 1 | HE7: 1 | HF7: 1 | HG7: 1 | HH7: 1 | HI7: 1 | HJ7: 1 | HK7: 1 | HL7: 1 | HM7: 1 | HN7: 1 | HO7: 1 | HP7: 1 | HQ7: ALL | HR7: 1 | HS7: ALL | HT7: 1 | HU7: ALL | HV7: 1 | HW7: ALL | HX7: 1 | HY7: 1 | HZ7: 1 | IA7: 1 | IB7: 1 | IC7: 1 | ID7: 1 | IE7: 1 | IF7: 1 | IG7: 1 | IH7: 1 | II7: 1 | IJ7: 1 | IK7: 1 | IL7: 1 | IM7: 1 | IN7: 1 | IO7: 1 | IP7: 1 | IQ7: 1 | IR7: 1 | IS7: 1 | IT7: 1 | IU7: 1 | IV7: 1 | IW7: 1 | IX7: 1 | IY7: 1 | IZ7: 1 | JA7: 1 | JB7: 1 | JC7: 1 | JD7: ALL | JE7: 1 | JF7: ALL | JG7: 1 | JH7: 1 | JI7: ALL | JJ7: 1 | JK7: ALL | JL7: 1 | JM7: 1 | JN7: 1 | JO7: ALL | JP7: 1 | JQ7: 1 | JR7: =COUNTIF(G7:JQ7,1) -> 240
A8: 5 | C8: Users | JR8: 0
A9: 6 | B9: 109098614 | C9: Full User CAL (Concurrent User) | D9: BRL-AM | G9: ALL | H9: 1 | I9: 1 | J9: 1 | K9: 1 | L9: 1 | M9: 1 | N9: 1 | O9: 1 | P9: 1 | Q9: 1 | R9: 1 | S9: 1 | T9: 1 | U9: 1 | V9: 1 | W9: 1 | X9: 1 | Y9: 1 | Z9: 1 | AA9: 1 | AB9: 1 | AC9: 1 | AD9: 1 | AE9: 1 | AF9: 1 | AG9: 1 | AH9: 1 | AI9: 1 | AJ9: 1 | AK9: 1 | AL9: 1 | AM9: 1 | AN9: 1 | AO9: 1 | AP9: 1 | AQ9: 1 | AR9: 1 | AS9: 1 | AT9: 1 | AU9: 1 | AV9: 1 | AW9: 1 | AX9: 1 | AY9: 1 | AZ9: 1 | BA9: 1 | BB9: 1 | BC9: 1 | BD9: 1 | BE9: 1 | BF9: 1 | BG9: 1 | BH9: 1 | BI9: 1 | BJ9: 1 | BK9: ALL | BL9: 1 | BM9: 1 | BN9: 1 | BO9: 1 | BP9: ALL | BQ9: 1 | BR9: 1 | BS9: 1 | BT9: 1 | BU9: 1 | BV9: 1 | BW9: 1 | BX9: 1 | BY9: ALL | BZ9: 1 | CA9: 1 | CB9: ALL | CC9: 1 | CD9: 1 | CE9: 1 | CF9: 1 | CG9: ALL | CH9: 1 | CI9: 1 | CJ9: 1 | CK9: 1 | CL9: 1 | CM9: ALL | CN9: 1 | CO9: ALL | CP9: 1 | CQ9: ALL | CR9: 1 | CS9: ALL | CT9: 1 | CU9: 1 | CV9: 1 | CW9: ALL | CX9: 1 | CY9: 1 | CZ9: 1 | DA9: 1 | DB9: ALL | DC9: 1 | DD9: 1 | DE9: 1 | DF9: 1 | DG9: 1 | DH9: ALL | DI9: 1 | DJ9: 1 | DK9: 1 | DL9: 1 | DM9: 1 | DN9: 1 | DO9: 1 | DP9: 1 | DQ9: 1 | DR9: 1 | DS9: 1 | DT9: 1 | DU9: 1 | DV9: 1 | DW9: 1 | DX9: 1 | DY9: 1 | DZ9: 1 | EA9: 1 | EB9: 1 | EC9: 1 | ED9: 1 | EE9: 1 | EF9: 1 | EG9: 1 | EH9: 1 | EI9: 1 | EJ9: 1 | EK9: 1 | EL9: 1 | EM9: 1 | EN9: 1 | EO9: 1 | EP9: 1 | EQ9: 1 | ER9: 1 | ES9: ALL | ET9: 1 | EU9: ALL | EV9: 1 | EW9: ALL | EX9: 1 | EY9: 1 | EZ9: 1 | FA9: 1 | FB9: 1 | FC9: 1 | FD9: 1 | FE9: 1 | FF9: 1 | FG9: 1 | FH9: 1 | FI9: 1 | FJ9: 1 | FK9: 1 | FL9: 1 | FM9: 1 | FN9: 1 | FO9: 1 | FP9: 1 | FQ9: 1 | FR9: 1 | FS9: ALL | FT9: 1 | FU9: 1 | FV9: 1 | FW9: 1 | FX9: ALL | FY9: 1 | FZ9: ALL | GA9: 1 | GB9: 1 | GC9: 1 | GD9: 1 | GE9: 1 | GF9: 1 | GG9: 1 | GH9: 1 | GI9: 1 | GJ9: 1 | GK9: 1 | GL9: 1 | GM9: 1 | GN9: 1 | GO9: ALL | GP9: 1 | GQ9: 1 | GR9: 1 | GS9: 1 | GT9: ALL | GU9: 1 | GV9: 1 | GW9: 1 | GX9: ALL | GY9: 1 | GZ9: 1 | HA9: 1 | HB9: 1 | HC9: 1 | HD9: 1 | HE9: 1 | HF9: 1 | HG9: 1 | HH9: 1 | HI9: 1 | HJ9: 1 | HK9: 1 | HL9: 1 | HM9: 1 | HN9: 1 | HO9: 1 | HP9: 1 | HQ9: ALL | HR9: 1 | HS9: ALL | HT9: 1 | HU9: ALL | HV9: 1 | HW9: ALL | HX9: 1 | HY9: 1 | HZ9: 1 | IA9: 1 | IB9: 1 | IC9: 1 | ID9: 1 | IE9: 1 | IF9: 1 | IG9: 1 | IH9: 1 | II9: 1 | IJ9: 1 | IK9: 1 | IL9: 1 | IM9: 1 | IN9: 1 | IO9: 1 | IP9: 1 | IQ9: 1 | IR9: 1 | IS9: 1 | IT9: 1 | IU9: 1 | IV9: 1 | IW9: 1 | IX9: 1 | IY9: 1 | IZ9: 1 | JA9: 1 | JB9: 1 | JC9: 1 | JD9: ALL | JE9: 1 | JF9: ALL | JG9: 1 | JH9: 1 | JI9: ALL | JJ9: 1 | JK9: ALL | JL9: 1 | JM9: 1 | JN9: 1 | JO9: ALL | JP9: 1 | JQ9: 1 | JR9: =COUNTIF(G9:JQ9,1) -> 240
A10: 7 | B10: 109098616 | C10: Limited User CAL (Concurrent User) | D10: BRL-AM | G10: ALL | H10: 1 | I10: 1 | J10: 1 | K10: 1 | L10: 1 | M10: 1 | N10: 1 | O10: 1 | P10: 1 | Q10: 1 | R10: 1 | S10: 1 | T10: 1 | U10: 1 | V10: 1 | W10: 1 | X10: 1 | Y10: 1 | Z10: 1 | AA10: 1 | AB10: 1 | AC10: 1 | AD10: 1 | AE10: 1 | AF10: 1 | AG10: 1 | AH10: 1 | AI10: 1 | AJ10: 1 | AK10: 1 | AL10: 1 | AM10: 1 | AN10: 1 | AO10: 1 | AP10: 1 | AQ10: 1 | AR10: 1 | AS10: 1 | AT10: 1 | AU10: 1 | AV10: 1 | AW10: 1 | AX10: 1 | AY10: 1 | AZ10: 1 | BA10: 1 | BB10: 1 | BC10: 1 | BD10: 1 | BE10: 1 | BF10: 1 | BG10: 1 | BH10: 1 | BI10: 1 | BJ10: 1 | BK10: ALL | BL10: 1 | BM10: 1 | BN10: 1 | BO10: 1 | BP10: ALL | BQ10: 1 | BR10: 1 | BS10: 1 | BT10: 1 | BU10: 1 | BV10: 1 | BW10: 1 | BX10: 1 | BY10: ALL | BZ10: 1 | CA10: 1 | CB10: ALL | CC10: 1 | CD10: 1 | CE10: 1 | CF10: 1 | CG10: ALL | CH10: 1 | CI10: 1 | CJ10: 1 | CK10: 1 | CL10: 1 | CM10: ALL | CN10: 1 | CO10: ALL | CP10: 1 | CQ10: ALL | CR10: 1 | CS10: ALL | CT10: 1 | CU10: 1 | CV10: 1 | CW10: ALL | CX10: 1 | CY10: 1 | CZ10: 1 | DA10: 1 | DB10: ALL | DC10: 1 | DD10: 1 | DE10: 1 | DF10: 1 | DG10: 1 | DH10: ALL | DI10: 1 | DJ10: 1 | DK10: 1 | DL10: 1 | DM10: 1 | DN10: 1 | DO10: 1 | DP10: 1 | DQ10: 1 | DR10: 1 | DS10: 1 | DT10: 1 | DU10: 1 | DV10: 1 | DW10: 1 | DX10: 1 | DY10: 1 | DZ10: 1 | EA10: 1 | EB10: 1 | EC10: 1 | ED10: 1 | EE10: 1 | EF10: 1 | EG10: 1 | EH10: 1 | EI10: 1 | EJ10: 1 | EK10: 1 | EL10: 1 | EM10: 1 | EN10: 1 | EO10: 1 | EP10: 1 | EQ10: 1 | ER10: 1 | ES10: ALL | ET10: 1 | EU10: ALL | EV10: 1 | EW10: ALL | EX10: 1 | EY10: 1 | EZ10: 1 | FA10: 1 | FB10: 1 | FC10: 1 | FD10: 1 | FE10: 1 | FF10: 1 | FG10: 1 | FH10: 1 | FI10: 1 | FJ10: 1 | FK10: 1 | FL10: 1 | FM10: 1 | FN10: 1 | FO10: 1 | FP10: 1 | FQ10: 1 | FR10: 1 | FS10: ALL | FT10: 1 | FU10: 1 | FV10: 1 | FW10: 1 | FX10: ALL | FY10: 1 | FZ10: ALL | GA10: 1 | GB10: 1 | GC10: 1 | GD10: 1 | GE10: 1 | GF10: 1 | GG10: 1 | GH10: 1 | GI10: 1 | GJ10: 1 | GK10: 1 | GL10: 1 | GM10: 1 | GN10: 1 | GO10: ALL | GP10: 1 | GQ10: 1 | GR10: 1 | GS10: 1 | GT10: ALL | GU10: 1 | GV10: 1 | GW10: 1 | GX10: ALL | GY10: 1 | GZ10: 1 | HA10: 1 | HB10: 1 | HC10: 1 | HD10: 1 | HE10: 1 | HF10: 1 | HG10: 1 | HH10: 1 | HI10: 1 | HJ10: 1 | HK10: 1 | HL10: 1 | HM10: 1 | HN10: 1 | HO10: 1 | HP10: 1 | HQ10: ALL | HR10: 1 | HS10: ALL | HT10: 1 | HU10: ALL | HV10: 1 | HW10: ALL | HX10: 1 | HY10: 1 | HZ10: 1 | IA10: 1 | IB10: 1 | IC10: 1 | ID10: 1 | IE10: 1 | IF10: 1 | IG10: 1 | IH10: 1 | II10: 1 | IJ10: 1 | IK10: 1 | IL10: 1 | IM10: 1 | IN10: 1 | IO10: 1 | IP10: 1 | IQ10: 1 | IR10: 1 | IS10: 1 | IT10: 1 | IU10: 1 | IV10: 1 | IW10: 1 | IX10: 1 | IY10: 1 | IZ10: 1 | JA10: 1 | JB10: 1 | JC10: 1 | JD10: ALL | JE10: 1 | JF10: ALL | JG10: 1 | JH10: 1 | JI10: ALL | JJ10: 1 | JK10: ALL | JL10: 1 | JM10: 1 | JN10: 1 | JO10: ALL | JP10: 1 | JQ10: 1 | JR10: =COUNTIF(G10:JQ10,1) -> 240
A11: 8 | C11: Configuration and Development
A12: 9 | B12: 109099124 | C12: Customization Pack | D12: BRL-AM | G12: ALL | H12: 1 | I12: 1 | J12: 1 | K12: 1 | L12: 1 | M12: 1 | N12: 1 | O12: 1 | P12: 1 | Q12: 1 | R12: 1 | S12: 1 | T12: 1 | U12: 1 | V12: 1 | W12: 1 | X12: 1 | Y12: 1 | Z12: 1 | AA12: 1 | AB12: 1 | AC12: 1 | AD12: 1 | AE12: 1 | AF12: 1 | AG12: 1 | AH12: 1 | AI12: 1 | AJ12: 1 | AK12: 1 | AL12: 1 | AM12: 1 | AN12: 1 | AO12: 1 | AP12: 1 | AQ12: 1 | AR12: 1 | AS12: 1 | AT12: 1 | AU12: 1 | AV12: 1 | AW12: 1 | AX12: 1 | AY12: 1 | AZ12: 1 | BA12: 1 | BB12: 1 | BC12: 1 | BD12: 1 | BE12: 1 | BF12: 1 | BG12: 1 | BH12: 1 | BI12: 1 | BJ12: 1 | BK12: ALL | BL12: 1 | BM12: 1 | BN12: 1 | BO12: 1 | BP12: ALL | BQ12: 1 | BR12: 1 | BS12: 1 | BT12: 1 | BU12: 1 | BV12: 1 | BW12: 1 | BX12: 1 | BY12: ALL | BZ12: 1 | CA12: 1 | CB12: ALL | CC12: 1 | CD12: 1 | CE12: 1 | CF12: 1 | CG12: ALL | CH12: 1 | CI12: 1 | CJ12: 1 | CK12: 1 | CL12: 1 | CM12: ALL | CN12: 1 | CO12: ALL | CP12: 1 | CQ12: ALL | CR12: 1 | CS12: ALL | CT12: 1 | CU12: 1 | CV12: 1 | CW12: ALL | CX12: 1 | CY12: 1 | CZ12: 1 | DA12: 1 | DB12: ALL | DC12: 1 | DD12: 1 | DE12: 1 | DF12: 1 | DG12: 1 | DH12: ALL | DI12: 1 | DJ12: 1 | DK12: 1 | DL12: 1 | DM12: 1 | DN12: 1 | DO12: 1 | DP12: 1 | DQ12: 1 | DR12: 1 | DS12: 1 | DT12: 1 | DU12: 1 | DV12: 1 | DW12: 1 | DX12: 1 | DY12: 1 | DZ12: 1 | EA12: 1 | EB12: 1 | EC12: 1 | ED12: 1 | EE12: 1 | EF12: 1 | EG12: 1 | EH12: 1 | EI12: 1 | EJ12: 1 | EK12: 1 | EL12: 1 | EM12: 1 | EN12: 1 | EO12: 1 | EP12: 1 | EQ12: 1 | ER12: 1 | ES12: ALL | ET12: 1 | EU12: ALL | EV12: 1 | EW12: ALL | EX12: 1 | EY12: 1 | EZ12: 1 | FA12: 1 | FB12: 1 | FC12: 1 | FD12: 1 | FE12: 1 | FF12: 1 | FG12: 1 | FH12: 1 | FI12: 1 | FJ12: 1 | FK12: 1 | FL12: 1 | FM12: 1 | FN12: 1 | FO12: 1 | FP12: 1 | FQ12: 1 | FR12: 1 | FS12: ALL | FT12: 1 | FU12: 1 | FV12: 1 | FW12: 1 | FX12: ALL | FY12: 1 | FZ12: ALL | GA12: 1 | GB12: 1 | GC12: 1 | GD12: 1 | GE12: 1 | GF12: 1 | GG12: 1 | GH12: 1 | GI12: 1 | GJ12: 1 | GK12: 1 | GL12: 1 | GM12: 1 | GN12: 1 | GO12: ALL | GP12: 1 | GQ12: 1 | GR12: 1 | GS12: 1 | GT12: ALL | GU12: 1 | GV12: 1 | GW12: 1 | GX12: ALL | GY12: 1 | GZ12: 1 | HA12: 1 | HB12: 1 | HC12: 1 | HD12: 1 | HE12: 1 | HF12: 1 | HG12: 1 | HH12: 1 | HI12: 1 | HJ12: 1 | HK12: 1 | HL12: 1 | HM12: 1 | HN12: 1 | HO12: 1 | HP12: 1 | HQ12: ALL | HR12: 1 | HS12: ALL | HT12: 1 | HU12: ALL | HV12: 1 | HW12: ALL | HX12: 1 | HY12: 1 | HZ12: 1 | IA12: 1 | IB12: 1 | IC12: 1 | ID12: 1 | IE12: 1 | IF12: 1 | IG12: 1 | IH12: 1 | II12: 1 | IJ12: 1 | IK12: 1 | IL12: 1 | IM12: 1 | IN12: 1 | IO12: 1 | IP12: 1 | IQ12: 1 | IR12: 1 | IS12: 1 | IT12: 1 | IU12: 1 | IV12: 1 | IW12: 1 | IX12: 1 | IY12: 1 | IZ12: 1 | JA12: 1 | JB12: 1 | JC12: 1 | JD12: ALL | JE12: 1 | JF12: ALL | JG12: 1 | JH12: 1 | JI12: ALL | JJ12: 1 | JK12: ALL | JL12: 1 | JM12: 1 | JN12: 1 | JO12: ALL | JP12: 1 | JQ12: 1 | JR12: 240
A13: 10 | C13: Business Intelligence and Reporting
A14: 11 | B14: 109100028 | C14: SmartList Builder | D14: BRL-AM | G14: ALL | H14: 1 | I14: 1 | J14: 1 | K14: 1 | L14: 1 | M14: 1 | N14: 1 | O14: 1 | P14: 1 | Q14: 1 | R14: 1 | S14: 1 | T14: 1 | U14: 1 | V14: 1 | W14: 1 | X14: 1 | Y14: 1 | Z14: 1 | AA14: 1 | AB14: 1 | AC14: 1 | AD14: 1 | AE14: 1 | AF14: 1 | AG14: 1 | AH14: 1 | AI14: 1 | AJ14: 1 | AK14: 1 | AL14: 1 | AM14: 1 | AN14: 1 | AO14: 1 | AP14: 1 | AQ14: 1 | AR14: 1 | AS14: 1 | AT14: 1 | AU14: 1 | AV14: 1 | AW14: 1 | AX14: 1 | AY14: 1 | AZ14: 1 | BA14: 1 | BB14: 1 | BC14: 1 | BD14: 1 | BE14: 1 | BF14: 1 | BG14: 1 | BH14: 1 | BI14: 1 | BJ14: 1 | BK14: ALL | BL14: 1 | BM14: 1 | BN14: 1 | BO14: 1 | BP14: ALL | BQ14: 1 | BR14: 1 | BS14: 1 | BT14: 1 | BU14: 1 | BV14: 1 | BW14: 1 | BX14: 1 | BY14: ALL | BZ14: 1 | CA14: 1 | CB14: ALL | CC14: 1 | CD14: 1 | CE14: 1 | CF14: 1 | CG14: ALL | CH14: 1 | CI14: 1 | CJ14: 1 | CK14: 1 | CL14: 1 | CM14: ALL | CN14: 1 | CO14: ALL | CP14: 1 | CQ14: ALL | CR14: 1 | CS14: ALL | CT14: 1 | CU14: 1 | CV14: 1 | CW14: ALL | CX14: 1 | CY14: 1 | CZ14: 1 | DA14: 1 | DB14: ALL | DC14: 1 | DD14: 1 | DE14: 1 | DF14: 1 | DG14: 1 | DH14: ALL | DI14: 1 | DJ14: 1 | DK14: 1 | DL14: 1 | DM14: 1 | DN14: 1 | DO14: 1 | DP14: 1 | DQ14: 1 | DR14: 1 | DS14: 1 | DT14: 1 | DU14: 1 | DV14: 1 | DW14: 1 | DX14: 1 | DY14: 1 | DZ14: 1 | EA14: 1 | EB14: 1 | EC14: 1 | ED14: 1 | EE14: 1 | EF14: 1 | EG14: 1 | EH14: 1 | EI14: 1 | EJ14: 1 | EK14: 1 | EL14: 1 | EM14: 1 | EN14: 1 | EO14: 1 | EP14: 1 | EQ14: 1 | ER14: 1 | ES14: ALL | ET14: 1 | EU14: ALL | EV14: 1 | EW14: ALL | EX14: 1 | EY14: 1 | EZ14: 1 | FA14: 1 | FB14: 1 | FC14: 1 | FD14: 1 | FE14: 1 | FF14: 1 | FG14: 1 | FH14: 1 | FI14: 1 | FJ14: 1 | FK14: 1 | FL14: 1 | FM14: 1 | FN14: 1 | FO14: 1 | FP14: 1 | FQ14: 1 | FR14: 1 | FS14: ALL | FT14: 1 | FU14: 1 | FV14: 1 | FW14: 1 | FX14: ALL | FY14: 1 | FZ14: ALL | GA14: 1 | GB14: 1 | GC14: 1 | GD14: 1 | GE14: 1 | GF14: 1 | GG14: 1 | GH14: 1 | GI14: 1 | GJ14: 1 | GK14: 1 | GL14: 1 | GM14: 1 | GN14: 1 | GO14: ALL | GP14: 1 | GQ14: 1 | GR14: 1 | GS14: 1 | GT14: ALL | GU14: 1 | GV14: 1 | GW14: 1 | GX14: ALL | GY14: 1 | GZ14: 1 | HA14: 1 | HB14: 1 | HC14: 1 | HD14: 1 | HE14: 1 | HF14: 1 | HG14: 1 | HH14: 1 | HI14: 1 | HJ14: 1 | HK14: 1 | HL14: 1 | HM14: 1 | HN14: 1 | HO14: 1 | HP14: 1 | HQ14: ALL | HR14: 1 | HS14: ALL | HT14: 1 | HU14: ALL | HV14: 1 | HW14: ALL | HX14: 1 | HY14: 1 | HZ14: 1 | IA14: 1 | IB14: 1 | IC14: 1 | ID14: 1 | IE14: 1 | IF14: 1 | IG14: 1 | IH14: 1 | II14: 1 | IJ14: 1 | IK14: 1 | IL14: 1 | IM14: 1 | IN14: 1 | IO14: 1 | IP14: 1 | IQ14: 1 | IR14: 1 | IS14: 1 | IT14: 1 | IU14: 1 | IV14: 1 | IW14: 1 | IX14: 1 | IY14: 1 | IZ14: 1 | JA14: 1 | JB14: 1 | JC14: 1 | JD14: ALL | JE14: 1 | JF14: ALL | JG14: 1 | JH14: 1 | JI14: ALL | JJ14: 1 | JK14: ALL | JL14: 1 | JM14: 1 | JN14: 1 | JO14: ALL | JP14: 1 | JQ14: 1 | JR14: =COUNTIF(G14:JQ14,1) -> 240
A15: 12 | C15: Human Resource Management
A16: 13 | B16: 109100029 | C16: Extended Human Resources and Payroll | D16: BRL-AM | G16: ALL | H16: 1 | I16: 1 | J16: 1 | K16: 1 | L16: 1 | M16: 1 | N16: 1 | O16: 1 | P16: 1 | Q16: 1 | R16: 1 | S16: 1 | T16: 1 | U16: 1 | V16: 1 | W16: 1 | X16: 1 | Y16: 1 | Z16: 1 | AA16: 1 | AB16: 1 | AC16: 1 | AD16: 1 | AE16: 1 | AF16: 1 | AG16: 1 | AH16: 1 | AI16: 1 | AJ16: 1 | AK16: 1 | AL16: 1 | AM16: 1 | AN16: 1 | AO16: 1 | AP16: 1 | AQ16: 1 | AR16: 1 | AS16: 1 | AT16: 1 | AU16: 1 | AV16: 1 | AW16: 1 | AX16: 1 | AY16: 1 | AZ16: 1 | BA16: 1 | BB16: 1 | BC16: 1 | BD16: 1 | BE16: 1 | BF16: 1 | BG16: 1 | BH16: 1 | BI16: 1 | BJ16: 1 | BK16: ALL | BL16: 1 | BM16: 1 | BN16: 1 | BO16: 1 | BP16: ALL | BQ16: 1 | BR16: 1 | BS16: 1 | BT16: 1 | BU16: 1 | BV16: 1 | BW16: 1 | BX16: 1 | BY16: ALL | BZ16: 1 | CA16: 1 | CB16: ALL | CC16: 1 | CD16: 1 | CE16: 1 | CF16: 1 | CG16: ALL | CH16: 1 | CI16: 1 | CJ16: 1 | CK16: 1 | CL16: 1 | CM16: ALL | CN16: 1 | CO16: ALL | CP16: 1 | CQ16: ALL | CR16: 1 | CS16: ALL | CT16: 1 | CU16: 1 | CV16: 1 | CW16: ALL | CX16: 1 | CY16: 1 | CZ16: 1 | DA16: 1 | DB16: ALL | DC16: 1 | DD16: 1 | DE16: 1 | DF16: 1 | DG16: 1 | DH16: ALL | DI16: 1 | DJ16: 1 | DK16: 1 | DL16: 1 | DM16: 1 | DN16: 1 | DO16: 1 | DP16: 1 | DQ16: 1 | DR16: 1 | DS16: 1 | DT16: 1 | DU16: 1 | DV16: 1 | DW16: 1 | DX16: 1 | DY16: 1 | DZ16: 1 | EA16: 1 | EB16: 1 | EC16: 1 | ED16: 1 | EE16: 1 | EF16: 1 | EG16: 1 | EH16: 1 | EI16: 1 | EJ16: 1 | EK16: 1 | EL16: 1 | EM16: 1 | EN16: 1 | EO16: 1 | EP16: 1 | EQ16: 1 | ER16: 1 | ES16: ALL | ET16: 1 | EU16: ALL | EV16: 1 | EW16: ALL | EX16: 1 | EY16: 1 | EZ16: 1 | FA16: 1 | FB16: 1 | FC16: 1 | FD16: 1 | FE16: 1 | FF16: 1 | FG16: 1 | FH16: 1 | FI16: 1 | FJ16: 1 | FK16: 1 | FL16: 1 | FM16: 1 | FN16: 1 | FO16: 1 | FP16: 1 | FQ16: 1 | FR16: 1 | FS16: ALL | FT16: 1 | FU16: 1 | FV16: 1 | FW16: 1 | FX16: ALL | FY16: 1 | FZ16: ALL | GA16: 1 | GB16: 1 | GC16: 1 | GD16: 1 | GE16: 1 | GF16: 1 | GG16: 1 | GH16: 1 | GI16: 1 | GJ16: 1 | GK16: 1 | GL16: 1 | GM16: 1 | GN16: 1 | GO16: ALL | GP16: 1 | GQ16: 1 | GR16: 1 | GS16: 1 | GT16: ALL | GU16: 1 | GV16: 1 | GW16: 1 | GX16: ALL | GY16: 1 | GZ16: 1 | HA16: 1 | HB16: 1 | HC16: 1 | HD16: 1 | HE16: 1 | HF16: 1 | HG16: 1 | HH16: 1 | HI16: 1 | HJ16: 1 | HK16: 1 | HL16: 1 | HM16: 1 | HN16: 1 | HO16: 1 | HP16: 1 | HQ16: ALL | HR16: 1 | HS16: ALL | HT16: 1 | HU16: ALL | HV16: 1 | HW16: ALL | HX16: 1 | HY16: 1 | HZ16: 1 | IA16: 1 | IB16: 1 | IC16: 1 | ID16: 1 | IE16: 1 | IF16: 1 | IG16: 1 | IH16: 1 | II16: 1 | IJ16: 1 | IK16: 1 | IL16: 1 | IM16: 1 | IN16: 1 | IO16: 1 | IP16: 1 | IQ16: 1 | IR16: 1 | IS16: 1 | IT16: 1 | IU16: 1 | IV16: 1 | IW16: 1 | IX16: 1 | IY16: 1 | IZ16: 1 | JA16: 1 | JB16: 1 | JC16: 1 | JD16: ALL | JE16: 1 | JF16: ALL | JG16: 1 | JH16: 1 | JI16: ALL | JJ16: 1 | JK16: ALL | JL16: 1 | JM16: 1 | JN16: 1 | JO16: ALL | JP16: 1 | JQ16: 1 | JR16: =COUNTIF(G16:JQ16,1) -> 240
A17: 14 | C17: Financial Management | JR17: =COUNTIF(G17:JQ17,1) -> 0
A18: 15 | B18: 109100859 | C18: Collections Management | D18: BRL-AM | G18: ALL | H18: 1 | I18: 1 | J18: 1 | K18: 1 | L18: 1 | M18: 1 | N18: 1 | O18: 1 | P18: 1 | Q18: 1 | R18: 1 | S18: 1 | T18: 1 | U18: 1 | V18: 1 | W18: 1 | X18: 1 | Y18: 1 | Z18: 1 | AA18: 1 | AB18: 1 | AC18: 1 | AD18: 1 | AE18: 1 | AF18: 1 | AG18: 1 | AH18: 1 | AI18: 1 | AJ18: 1 | AK18: 1 | AL18: 1 | AM18: 1 | AN18: 1 | AO18: 1 | AP18: 1 | AQ18: 1 | AR18: 1 | AS18: 1 | AT18: 1 | AU18: 1 | AV18: 1 | AW18: 1 | AX18: 1 | AY18: 1 | AZ18: 1 | BA18: 1 | BB18: 1 | BC18: 1 | BD18: 1 | BE18: 1 | BF18: 1 | BG18: 1 | BH18: 1 | BI18: 1 | BJ18: 1 | BK18: ALL | BL18: 1 | BM18: 1 | BN18: 1 | BO18: 1 | BP18: ALL | BQ18: 1 | BR18: 1 | BS18: 1 | BT18: 1 | BU18: 1 | BV18: 1 | BW18: 1 | BX18: 1 | BY18: ALL | BZ18: 1 | CA18: 1 | CB18: ALL | CC18: 1 | CD18: 1 | CE18: 1 | CF18: 1 | CG18: ALL | CH18: 1 | CI18: 1 | CJ18: 1 | CK18: 1 | CL18: 1 | CM18: ALL | CN18: 1 | CO18: ALL | CP18: 1 | CQ18: ALL | CR18: 1 | CS18: ALL | CT18: 1 | CU18: 1 | CV18: 1 | CW18: ALL | CX18: 1 | CY18: 1 | CZ18: 1 | DA18: 1 | DB18: ALL | DC18: 1 | DD18: 1 | DE18: 1 | DF18: 1 | DG18: 1 | DH18: ALL | DI18: 1 | DJ18: 1 | DK18: 1 | DL18: 1 | DM18: 1 | DN18: 1 | DO18: 1 | DP18: 1 | DQ18: 1 | DR18: 1 | DS18: 1 | DT18: 1 | DU18: 1 | DV18: 1 | DW18: 1 | DX18: 1 | DY18: 1 | DZ18: 1 | EA18: 1 | EB18: 1 | EC18: 1 | ED18: 1 | EE18: 1 | EF18: 1 | EG18: 1 | EH18: 1 | EI18: 1 | EJ18: 1 | EK18: 1 | EL18: 1 | EM18: 1 | EN18: 1 | EO18: 1 | EP18: 1 | EQ18: 1 | ER18: 1 | ES18: ALL | ET18: 1 | EU18: ALL | EV18: 1 | EW18: ALL | EX18: 1 | EY18: 1 | EZ18: 1 | FA18: 1 | FB18: 1 | FC18: 1 | FD18: 1 | FE18: 1 | FF18: 1 | FG18: 1 | FH18: 1 | FI18: 1 | FJ18: 1 | FK18: 1 | FL18: 1 | FM18: 1 | FN18: 1 | FO18: 1 | FP18: 1 | FQ18: 1 | FR18: 1 | FS18: ALL | FT18: 1 | FU18: 1 | FV18: 1 | FW18: 1 | FX18: ALL | FY18: 1 | FZ18: ALL | GA18: 1 | GB18: 1 | GC18: 1 | GD18: 1 | GE18: 1 | GF18: 1 | GG18: 1 | GH18: 1 | GI18: 1 | GJ18: 1 | GK18: 1 | GL18: 1 | GM18: 1 | GN18: 1 | GO18: ALL | GP18: 1 | GQ18: 1 | GR18: 1 | GS18: 1 | GT18: ALL | GU18: 1 | GV18: 1 | GW18: 1 | GX18: ALL | GY18: 1 | GZ18: 1 | HA18: 1 | HB18: 1 | HC18: 1 | HD18: 1 | HE18: 1 | HF18: 1 | HG18: 1 | HH18: 1 | HI18: 1 | HJ18: 1 | HK18: 1 | HL18: 1 | HM18: 1 | HN18: 1 | HO18: 1 | HP18: 1 | HQ18: ALL | HR18: 1 | HS18: ALL | HT18: 1 | HU18: ALL | HV18: 1 | HW18: ALL | HX18: 1 | HY18: 1 | HZ18: 1 | IA18: 1 | IB18: 1 | IC18: 1 | ID18: 1 | IE18: 1 | IF18: 1 | IG18: 1 | IH18: 1 | II18: 1 | IJ18: 1 | IK18: 1 | IL18: 1 | IM18: 1 | IN18: 1 | IO18: 1 | IP18: 1 | IQ18: 1 | IR18: 1 | IS18: 1 | IT18: 1 | IU18: 1 | IV18: 1 | IW18: 1 | IX18: 1 | IY18: 1 | IZ18: 1 | JA18: 1 | JB18: 1 | JC18: 1 | JD18: ALL | JE18: 1 | JF18: ALL | JG18: 1 | JH18: 1 | JI18: ALL | JJ18: 1 | JK18: ALL | JL18: 1 | JM18: 1 | JN18: 1 | JO18: ALL | JP18: 1 | JQ18: 1 | JR18: 240
A19: 16 | C19: Database | JR19: 0
A20: 17 | B20: 109100653 | C20: 98130 Microsoft® SQL Server® 2008 R2 Standard Edition Runtime CAL (All Languages) | D20: BRL-AM | E20: 2013 | F20: 98130 | G20: ALL | H20: 1 | I20: 1 | J20: 1 | K20: 1 | L20: 1 | M20: 1 | N20: 1 | O20: 1 | P20: 1 | Q20: 1 | R20: 1 | S20: 1 | T20: 1 | U20: 1 | V20: 1 | W20: 1 | X20: 1 | Y20: 1 | Z20: 1 | AA20: 1 | AB20: 1 | AC20: 1 | AD20: 1 | AE20: 1 | AF20: 1 | AG20: 1 | AH20: 1 | AI20: 1 | AJ20: 1 | AK20: 1 | AL20: 1 | AM20: 1 | AN20: 1 | AO20: 1 | AP20: 1 | AQ20: 1 | AR20: 1 | AS20: 1 | AT20: 1 | AU20: 1 | AV20: 1 | AW20: 1 | AX20: 1 | AY20: 1 | AZ20: 1 | BA20: 1 | BB20: 1 | BC20: 1 | BD20: 1 | BE20: 1 | BF20: 1 | BG20: 1 | BH20: 1 | BI20: 1 | BJ20: 1 | BK20: ALL | BL20: 1 | BM20: 1 | BN20: 1 | BO20: 1 | BP20: ALL | BQ20: 1 | BR20: 1 | BS20: 1 | BT20: 1 | BU20: 1 | BV20: 1 | BW20: 1 | BX20: 1 | BY20: ALL | BZ20: 1 | CA20: 1 | CB20: ALL | CC20: 1 | CD20: 1 | CE20: 1 | CF20: 1 | CG20: ALL | CH20: 1 | CI20: 1 | CJ20: 1 | CK20: 1 | CL20: 1 | CM20: ALL | CN20: 1 | CO20: ALL | CP20: 1 | CQ20: ALL | CR20: 1 | CS20: ALL | CT20: 1 | CU20: 1 | CV20: 1 | CW20: ALL | CX20: 1 | CY20: 1 | CZ20: 1 | DA20: 1 | DB20: ALL | DC20: 1 | DD20: 1 | DE20: 1 | DF20: 1 | DG20: 1 | DH20: ALL | DI20: 1 | DJ20: 1 | DK20: 1 | DL20: 1 | DM20: 1 | DN20: 1 | DO20: 1 | DP20: 1 | DQ20: 1 | DR20: 1 | DS20: 1 | DT20: 1 | DU20: 1 | DV20: 1 | DW20: 1 | DX20: 1 | DY20: 1 | DZ20: 1 | EA20: 1 | EB20: 1 | EC20: 1 | ED20: 1 | EE20: 1 | EF20: 1 | EG20: 1 | EH20: 1 | EI20: 1 | EJ20: 1 | EK20: 1 | EL20: 1 | EM20: 1 | EN20: 1 | EO20: 1 | EP20: 1 | EQ20: 1 | ER20: 1 | ES20: NONE | ET20: 0 | EU20: ALL | EV20: 1 | EW20: ALL | EX20: 1 | EY20: 1 | EZ20: 1 | FA20: 1 | FB20: 1 | FC20: 1 | FD20: 1 | FE20: 1 | FF20: 1 | FG20: 1 | FH20: 1 | FI20: 1 | FJ20: 1 | FK20: 1 | FL20: 1 | FM20: 1 | FN20: 1 | FO20: 1 | FP20: 1 | FQ20: 1 | FR20: 1 | FS20: ALL | FT20: 1 | FU20: 1 | FV20: 1 | FW20: 1 | FX20: ALL | FY20: 1 | FZ20: ALL | GA20: 1 | GB20: 1 | GC20: 1 | GD20: 1 | GE20: 1 | GF20: 1 | GG20: 1 | GH20: 1 | GI20: 1 | GJ20: 1 | GK20: 1 | GL20: 1 | GM20: 1 | GN20: 1 | GO20: ALL | GP20: 1 | GQ20: 1 | GR20: 1 | GS20: 1 | GT20: ALL | GU20: 1 | GV20: 1 | GW20: 1 | GX20: ALL | GY20: 1 | GZ20: 1 | HA20: 1 | HB20: 1 | HC20: 1 | HD20: 1 | HE20: 1 | HF20: 1 | HG20: 1 | HH20: 1 | HI20: 1 | HJ20: 1 | HK20: 1 | HL20: 1 | HM20: 1 | HN20: 1 | HO20: 1 | HP20: 1 | HQ20: ALL | HR20: 1 | HS20: ALL | HT20: 1 | HU20: ALL | HV20: 1 | HW20: ALL | HX20: 1 | HY20: 1 | HZ20: 1 | IA20: 1 | IB20: 1 | IC20: 1 | ID20: 1 | IE20: 1 | IF20: 1 | IG20: 1 | IH20: 1 | II20: 1 | IJ20: 1 | IK20: 1 | IL20: 1 | IM20: 1 | IN20: 1 | IO20: 1 | IP20: 1 | IQ20: 1 | IR20: 1 | IS20: 1 | IT20: 1 | IU20: 1 | IV20: 1 | IW20: 1 | IX20: 1 | IY20: 1 | IZ20: 1 | JA20: 1 | JB20: 1 | JC20: 1 | JD20: ALL | JE20: 1 | JF20: ALL | JG20: 1 | JH20: 1 | JI20: ALL | JJ20: 1 | JK20: ALL | JL20: 1 | JM20: 1 | JN20: 1 | JO20: ALL | JP20: 1 | JQ20: 1 | JR20: 239
A21: 18 | B21: 109100649 | C21: 98160 Microsoft® SQL Server® 2008 R2 Enterprise Edition Runtime CAL (All Languages) | D21: BRL-AM | E21: 2013 | F21: 98160 | G21: ALL | H21: 1 | I21: 1 | J21: 1 | K21: 1 | L21: 1 | M21: 1 | N21: 1 | O21: 1 | P21: 1 | Q21: 1 | R21: 1 | S21: 1 | T21: 1 | U21: 1 | V21: 1 | W21: 1 | X21: 1 | Y21: 1 | Z21: 1 | AA21: 1 | AB21: 1 | AC21: 1 | AD21: 1 | AE21: 1 | AF21: 1 | AG21: 1 | AH21: 1 | AI21: 1 | AJ21: 1 | AK21: 1 | AL21: 1 | AM21: 1 | AN21: 1 | AO21: 1 | AP21: 1 | AQ21: 1 | AR21: 1 | AS21: 1 | AT21: 1 | AU21: 1 | AV21: 1 | AW21: 1 | AX21: 1 | AY21: 1 | AZ21: 1 | BA21: 1 | BB21: 1 | BC21: 1 | BD21: 1 | BE21: 1 | BF21: 1 | BG21: 1 | BH21: 1 | BI21: 1 | BJ21: 1 | BK21: ALL | BL21: 1 | BM21: 1 | BN21: 1 | BO21: 1 | BP21: ALL | BQ21: 1 | BR21: 1 | BS21: 1 | BT21: 1 | BU21: 1 | BV21: 1 | BW21: 1 | BX21: 1 | BY21: ALL | BZ21: 1 | CA21: 1 | CB21: ALL | CC21: 1 | CD21: 1 | CE21: 1 | CF21: 1 | CG21: ALL | CH21: 1 | CI21: 1 | CJ21: 1 | CK21: 1 | CL21: 1 | CM21: ALL | CN21: 1 | CO21: ALL | CP21: 1 | CQ21: ALL | CR21: 1 | CS21: ALL | CT21: 1 | CU21: 1 | CV21: 1 | CW21: ALL | CX21: 1 | CY21: 1 | CZ21: 1 | DA21: 1 | DB21: ALL | DC21: 1 | DD21: 1 | DE21: 1 | DF21: 1 | DG21: 1 | DH21: ALL | DI21: 1 | DJ21: 1 | DK21: 1 | DL21: 1 | DM21: 1 | DN21: 1 | DO21: 1 | DP21: 1 | DQ21: 1 | DR21: 1 | DS21: 1 | DT21: 1 | DU21: 1 | DV21: 1 | DW21: 1 | DX21: 1 | DY21: 1 | DZ21: 1 | EA21: 1 | EB21: 1 | EC21: 1 | ED21: 1 | EE21: 1 | EF21: 1 | EG21: 1 | EH21: 1 | EI21: 1 | EJ21: 1 | EK21: 1 | EL21: 1 | EM21: 1 | EN21: 1 | EO21: 1 | EP21: 1 | EQ21: 1 | ER21: 1 | ES21: NONE | ET21: 0 | EU21: ALL | EV21: 1 | EW21: ALL | EX21: 1 | EY21: 1 | EZ21: 1 | FA21: 1 | FB21: 1 | FC21: 1 | FD21: 1 | FE21: 1 | FF21: 1 | FG21: 1 | FH21: 1 | FI21: 1 | FJ21: 1 | FK21: 1 | FL21: 1 | FM21: 1 | FN21: 1 | FO21: 1 | FP21: 1 | FQ21: 1 | FR21: 1 | FS21: ALL | FT21: 1 | FU21: 1 | FV21: 1 | FW21: 1 | FX21: ALL | FY21: 1 | FZ21: ALL | GA21: 1 | GB21: 1 | GC21: 1 | GD21: 1 | GE21: 1 | GF21: 1 | GG21: 1 | GH21: 1 | GI21: 1 | GJ21: 1 | GK21: 1 | GL21: 1 | GM21: 1 | GN21: 1 | GO21: ALL | GP21: 1 | GQ21: 1 | GR21: 1 | GS21: 1 | GT21: ALL | GU21: 1 | GV21: 1 | GW21: 1 | GX21: ALL | GY21: 1 | GZ21: 1 | HA21: 1 | HB21: 1 | HC21: 1 | HD21: 1 | HE21: 1 | HF21: 1 | HG21: 1 | HH21: 1 | HI21: 1 | HJ21: 1 | HK21: 1 | HL21: 1 | HM21: 1 | HN21: 1 | HO21: 1 | HP21: 1 | HQ21: ALL | HR21: 1 | HS21: ALL | HT21: 1 | HU21: ALL | HV21: 1 | HW21: ALL | HX21: 1 | HY21: 1 | HZ21: 1 | IA21: 1 | IB21: 1 | IC21: 1 | ID21: 1 | IE21: 1 | IF21: 1 | IG21: 1 | IH21: 1 | II21: 1 | IJ21: 1 | IK21: 1 | IL21: 1 | IM21: 1 | IN21: 1 | IO21: 1 | IP21: 1 | IQ21: 1 | IR21: 1 | IS21: 1 | IT21: 1 | IU21: 1 | IV21: 1 | IW21: 1 | IX21: 1 | IY21: 1 | IZ21: 1 | JA21: 1 | JB21: 1 | JC21: 1 | JD21: ALL | JE21: 1 | JF21: ALL | JG21: 1 | JH21: 1 | JI21: ALL | JJ21: 1 | JK21: ALL | JL21: 1 | JM21: 1 | JN21: 1 | JO21: ALL | JP21: 1 | JQ21: 1 | JR21: 239
A22: 19 | B22: 109100655 | C22: 98150 Microsoft® SQL Server® 2008 R2 Enterprise Edition Runtime Server License (All Languages) | D22: BRL-AM | E22: 2013 | F22: 98150 | G22: ALL | H22: 1 | I22: 1 | J22: 1 | K22: 1 | L22: 1 | M22: 1 | N22: 1 | O22: 1 | P22: 1 | Q22: 1 | R22: 1 | S22: 1 | T22: 1 | U22: 1 | V22: 1 | W22: 1 | X22: 1 | Y22: 1 | Z22: 1 | AA22: 1 | AB22: 1 | AC22: 1 | AD22: 1 | AE22: 1 | AF22: 1 | AG22: 1 | AH22: 1 | AI22: 1 | AJ22: 1 | AK22: 1 | AL22: 1 | AM22: 1 | AN22: 1 | AO22: 1 | AP22: 1 | AQ22: 1 | AR22: 1 | AS22: 1 | AT22: 1 | AU22: 1 | AV22: 1 | AW22: 1 | AX22: 1 | AY22: 1 | AZ22: 1 | BA22: 1 | BB22: 1 | BC22: 1 | BD22: 1 | BE22: 1 | BF22: 1 | BG22: 1 | BH22: 1 | BI22: 1 | BJ22: 1 | BK22: ALL | BL22: 1 | BM22: 1 | BN22: 1 | BO22: 1 | BP22: ALL | BQ22: 1 | BR22: 1 | BS22: 1 | BT22: 1 | BU22: 1 | BV22: 1 | BW22: 1 | BX22: 1 | BY22: ALL | BZ22: 1 | CA22: 1 | CB22: ALL | CC22: 1 | CD22: 1 | CE22: 1 | CF22: 1 | CG22: ALL | CH22: 1 | CI22: 1 | CJ22: 1 | CK22: 1 | CL22: 1 | CM22: ALL | CN22: 1 | CO22: ALL | CP22: 1 | CQ22: ALL | CR22: 1 | CS22: ALL | CT22: 1 | CU22: 1 | CV22: 1 | CW22: ALL | CX22: 1 | CY22: 1 | CZ22: 1 | DA22: 1 | DB22: ALL | DC22: 1 | DD22: 1 | DE22: 1 | DF22: 1 | DG22: 1 | DH22: ALL | DI22: 1 | DJ22: 1 | DK22: 1 | DL22: 1 | DM22: 1 | DN22: 1 | DO22: 1 | DP22: 1 | DQ22: 1 | DR22: 1 | DS22: 1 | DT22: 1 | DU22: 1 | DV22: 1 | DW22: 1 | DX22: 1 | DY22: 1 | DZ22: 1 | EA22: 1 | EB22: 1 | EC22: 1 | ED22: 1 | EE22: 1 | EF22: 1 | EG22: 1 | EH22: 1 | EI22: 1 | EJ22: 1 | EK22: 1 | EL22: 1 | EM22: 1 | EN22: 1 | EO22: 1 | EP22: 1 | EQ22: 1 | ER22: 1 | ES22: NONE | ET22: 0 | EU22: ALL | EV22: 1 | EW22: ALL | EX22: 1 | EY22: 1 | EZ22: 1 | FA22: 1 | FB22: 1 | FC22: 1 | FD22: 1 | FE22: 1 | FF22: 1 | FG22: 1 | FH22: 1 | FI22: 1 | FJ22: 1 | FK22: 1 | FL22: 1 | FM22: 1 | FN22: 1 | FO22: 1 | FP22: 1 | FQ22: 1 | FR22: 1 | FS22: ALL | FT22: 1 | FU22: 1 | FV22: 1 | FW22: 1 | FX22: ALL | FY22: 1 | FZ22: ALL | GA22: 1 | GB22: 1 | GC22: 1 | GD22: 1 | GE22: 1 | GF22: 1 | GG22: 1 | GH22: 1 | GI22: 1 | GJ22: 1 | GK22: 1 | GL22: 1 | GM22: 1 | GN22: 1 | GO22: ALL | GP22: 1 | GQ22: 1 | GR22: 1 | GS22: 1 | GT22: ALL | GU22: 1 | GV22: 1 | GW22: 1 | GX22: ALL | GY22: 1 | GZ22: 1 | HA22: 1 | HB22: 1 | HC22: 1 | HD22: 1 | HE22: 1 | HF22: 1 | HG22: 1 | HH22: 1 | HI22: 1 | HJ22: 1 | HK22: 1 | HL22: 1 | HM22: 1 | HN22: 1 | HO22: 1 | HP22: 1 | HQ22: ALL | HR22: 1 | HS22: ALL | HT22: 1 | HU22: ALL | HV22: 1 | HW22: ALL | HX22: 1 | HY22: 1 | HZ22: 1 | IA22: 1 | IB22: 1 | IC22: 1 | ID22: 1 | IE22: 1 | IF22: 1 | IG22: 1 | IH22: 1 | II22: 1 | IJ22: 1 | IK22: 1 | IL22: 1 | IM22: 1 | IN22: 1 | IO22: 1 | IP22: 1 | IQ22: 1 | IR22: 1 | IS22: 1 | IT22: 1 | IU22: 1 | IV22: 1 | IW22: 1 | IX22: 1 | IY22: 1 | IZ22: 1 | JA22: 1 | JB22: 1 | JC22: 1 | JD22: ALL | JE22: 1 | JF22: ALL | JG22: 1 | JH22: 1 | JI22: ALL | JJ22: 1 | JK22: ALL | JL22: 1 | JM22: 1 | JN22: 1 | JO22: ALL | JP22: 1 | JQ22: 1 | JR22: 239
A23: 20 | B23: 109100662 | C23: 98120 Microsoft® SQL Server® 2008 R2 Standard Edition Runtime Server License (All Languages) | D23: BRL-AM | E23: 2013 | F23: 98120 | G23: ALL | H23: 1 | I23: 1 | J23: 1 | K23: 1 | L23: 1 | M23: 1 | N23: 1 | O23: 1 | P23: 1 | Q23: 1 | R23: 1 | S23: 1 | T23: 1 | U23: 1 | V23: 1 | W23: 1 | X23: 1 | Y23: 1 | Z23: 1 | AA23: 1 | AB23: 1 | AC23: 1 | AD23: 1 | AE23: 1 | AF23: 1 | AG23: 1 | AH23: 1 | AI23: 1 | AJ23: 1 | AK23: 1 | AL23: 1 | AM23: 1 | AN23: 1 | AO23: 1 | AP23: 1 | AQ23: 1 | AR23: 1 | AS23: 1 | AT23: 1 | AU23: 1 | AV23: 1 | AW23: 1 | AX23: 1 | AY23: 1 | AZ23: 1 | BA23: 1 | BB23: 1 | BC23: 1 | BD23: 1 | BE23: 1 | BF23: 1 | BG23: 1 | BH23: 1 | BI23: 1 | BJ23: 1 | BK23: ALL | BL23: 1 | BM23: 1 | BN23: 1 | BO23: 1 | BP23: ALL | BQ23: 1 | BR23: 1 | BS23: 1 | BT23: 1 | BU23: 1 | BV23: 1 | BW23: 1 | BX23: 1 | BY23: ALL | BZ23: 1 | CA23: 1 | CB23: ALL | CC23: 1 | CD23: 1 | CE23: 1 | CF23: 1 | CG23: ALL | CH23: 1 | CI23: 1 | CJ23: 1 | CK23: 1 | CL23: 1 | CM23: ALL | CN23: 1 | CO23: ALL | CP23: 1 | CQ23: ALL | CR23: 1 | CS23: ALL | CT23: 1 | CU23: 1 | CV23: 1 | CW23: ALL | CX23: 1 | CY23: 1 | CZ23: 1 | DA23: 1 | DB23: ALL | DC23: 1 | DD23: 1 | DE23: 1 | DF23: 1 | DG23: 1 | DH23: ALL | DI23: 1 | DJ23: 1 | DK23: 1 | DL23: 1 | DM23: 1 | DN23: 1 | DO23: 1 | DP23: 1 | DQ23: 1 | DR23: 1 | DS23: 1 | DT23: 1 | DU23: 1 | DV23: 1 | DW23: 1 | DX23: 1 | DY23: 1 | DZ23: 1 | EA23: 1 | EB23: 1 | EC23: 1 | ED23: 1 | EE23: 1 | EF23: 1 | EG23: 1 | EH23: 1 | EI23: 1 | EJ23: 1 | EK23: 1 | EL23: 1 | EM23: 1 | EN23: 1 | EO23: 1 | EP23: 1 | EQ23: 1 | ER23: 1 | ES23: NONE | ET23: 0 | EU23: ALL | EV23: 1 | EW23: ALL | EX23: 1 | EY23: 1 | EZ23: 1 | FA23: 1 | FB23: 1 | FC23: 1 | FD23: 1 | FE23: 1 | FF23: 1 | FG23: 1 | FH23: 1 | FI23: 1 | FJ23: 1 | FK23: 1 | FL23: 1 | FM23: 1 | FN23: 1 | FO23: 1 | FP23: 1 | FQ23: 1 | FR23: 1 | FS23: ALL | FT23: 1 | FU23: 1 | FV23: 1 | FW23: 1 | FX23: ALL | FY23: 1 | FZ23: ALL | GA23: 1 | GB23: 1 | GC23: 1 | GD23: 1 | GE23: 1 | GF23: 1 | GG23: 1 | GH23: 1 | GI23: 1 | GJ23: 1 | GK23: 1 | GL23: 1 | GM23: 1 | GN23: 1 | GO23: ALL | GP23: 1 | GQ23: 1 | GR23: 1 | GS23: 1 | GT23: ALL | GU23: 1 | GV23: 1 | GW23: 1 | GX23: ALL | GY23: 1 | GZ23: 1 | HA23: 1 | HB23: 1 | HC23: 1 | HD23: 1 | HE23: 1 | HF23: 1 | HG23: 1 | HH23: 1 | HI23: 1 | HJ23: 1 | HK23: 1 | HL23: 1 | HM23: 1 | HN23: 1 | HO23: 1 | HP23: 1 | HQ23: ALL | HR23: 1 | HS23: ALL | HT23: 1 | HU23: ALL | HV23: 1 | HW23: ALL | HX23: 1 | HY23: 1 | HZ23: 1 | IA23: 1 | IB23: 1 | IC23: 1 | ID23: 1 | IE23: 1 | IF23: 1 | IG23: 1 | IH23: 1 | II23: 1 | IJ23: 1 | IK23: 1 | IL23: 1 | IM23: 1 | IN23: 1 | IO23: 1 | IP23: 1 | IQ23: 1 | IR23: 1 | IS23: 1 | IT23: 1 | IU23: 1 | IV23: 1 | IW23: 1 | IX23: 1 | IY23: 1 | IZ23: 1 | JA23: 1 | JB23: 1 | JC23: 1 | JD23: ALL | JE23: 1 | JF23: ALL | JG23: 1 | JH23: 1 | JI23: ALL | JJ23: 1 | JK23: ALL | JL23: 1 | JM23: 1 | JN23: 1 | JO23: ALL | JP23: 1 | JQ23: 1 | JR23: 239
A24: 21 | C24: Service Plans | JR24: =COUNTIF(G24:JQ24,1) -> 0
A25: 22 | C25: Enhancement Plan | G25: ALL | H25: 1 | I25: 1 | J25: 1 | K25: 1 | L25: 1 | M25: 1 | N25: 1 | O25: 1 | P25: 1 | Q25: 1 | R25: 1 | S25: 1 | T25: 1 | U25: 1 | V25: 1 | W25: 1 | X25: 1 | Y25: 1 | Z25: 1 | AA25: 1 | AB25: 1 | AC25: 1 | AD25: 1 | AE25: 1 | AF25: 1 | AG25: 1 | AH25: 1 | AI25: 1 | AJ25: 1 | AK25: 1 | AL25: 1 | AM25: 1 | AN25: 1 | AO25: 1 | AP25: 1 | AQ25: 1 | AR25: 1 | AS25: 1 | AT25: 1 | AU25: 1 | AV25: 1 | AW25: 1 | AX25: 1 | AY25: 1 | AZ25: 1 | BA25: 1 | BB25: 1 | BC25: 1 | BD25: 1 | BE25: 1 | BF25: 1 | BG25: 1 | BH25: 1 | BI25: 1 | BJ25: 1 | BK25: NONE | BL25: 0 | BM25: 0 | BN25: 0 | BO25: 0 | BP25: ALL | BQ25: 1 | BR25: 1 | BS25: 1 | BT25: 1 | BU25: 1 | BV25: 1 | BW25: 1 | BX25: 1 | BY25: NONE | BZ25: 0 | CA25: 0 | CB25: ALL | CC25: 1 | CD25: 1 | CE25: 1 | CF25: 1 | CG25: ALL | CH25: 1 | CI25: 1 | CJ25: 1 | CK25: 1 | CL25: 1 | CM25: ALL | CN25: 1 | CO25: ALL | CP25: 1 | CQ25: ALL | CR25: 1 | CS25: ALL | CT25: 1 | CU25: 1 | CV25: 1 | CW25: ALL | CX25: 1 | CY25: 1 | CZ25: 1 | DA25: 1 | DB25: ALL | DC25: 1 | DD25: 1 | DE25: 1 | DF25: 1 | DG25: 1 | DH25: ALL | DI25: 1 | DJ25: 1 | DK25: 1 | DL25: 1 | DM25: 1 | DN25: 1 | DO25: 1 | DP25: 1 | DQ25: 1 | DR25: 1 | DS25: 1 | DT25: 1 | DU25: 1 | DV25: 1 | DW25: 1 | DX25: 1 | DY25: 1 | DZ25: 1 | EA25: 1 | EB25: 1 | EC25: 1 | ED25: 1 | EE25: 1 | EF25: 1 | EG25: 1 | EH25: 1 | EI25: 1 | EJ25: 1 | EK25: 1 | EL25: 1 | EM25: 1 | EN25: 1 | EO25: 1 | EP25: 1 | EQ25: 1 | ER25: 1 | ES25: ALL | ET25: 1 | EU25: ALL | EV25: 1 | EW25: NONE | EX25: 0 | EY25: 0 | EZ25: 0 | FA25: 0 | FB25: 0 | FC25: 0 | FD25: 0 | FE25: 0 | FF25: 0 | FG25: 0 | FH25: 0 | FI25: 0 | FJ25: 0 | FK25: 0 | FL25: 0 | FM25: 0 | FN25: 0 | FO25: 0 | FP25: 0 | FQ25: 0 | FR25: 0 | FS25: NONE | FT25: 0 | FU25: 0 | FV25: 0 | FW25: 0 | FX25: ALL | FY25: 1 | FZ25: ALL | GA25: 1 | GB25: 1 | GC25: 1 | GD25: 1 | GE25: 1 | GF25: 1 | GG25: 1 | GH25: 1 | GI25: 1 | GJ25: 1 | GK25: 1 | GL25: 1 | GM25: 1 | GN25: 1 | GO25: ALL | GP25: 1 | GQ25: 1 | GR25: 1 | GS25: 1 | GT25: ALL | GU25: 1 | GV25: 1 | GW25: 1 | GX25: ALL | GY25: 1 | GZ25: 1 | HA25: 1 | HB25: 1 | HC25: 1 | HD25: 1 | HE25: 1 | HF25: 1 | HG25: 1 | HH25: 1 | HI25: 1 | HJ25: 1 | HK25: 1 | HL25: 1 | HM25: 1 | HN25: 1 | HO25: 1 | HP25: 1 | HQ25: ALL | HR25: 1 | HS25: ALL | HT25: 1 | HU25: ALL | HV25: 1 | HW25: ALL | HX25: 1 | HY25: 1 | HZ25: 1 | IA25: 1 | IB25: 1 | IC25: 1 | ID25: 1 | IE25: 1 | IF25: 1 | IG25: 1 | IH25: 1 | II25: 1 | IJ25: 1 | IK25: 1 | IL25: 1 | IM25: 1 | IN25: 1 | IO25: 1 | IP25: 1 | IQ25: 1 | IR25: 1 | IS25: 1 | IT25: 1 | IU25: 1 | IV25: 1 | IW25: 1 | IX25: 1 | IY25: 1 | IZ25: 1 | JA25: 1 | JB25: 1 | JC25: 1 | JD25: ALL | JE25: 1 | JF25: ALL | JG25: 1 | JH25: 1 | JI25: ALL | JJ25: 1 | JK25: ALL | JL25: 1 | JM25: 1 | JN25: 1 | JO25: NONE | JP25: 0 | JQ25: 0 | JR25: =COUNTIF(G25:JQ25,1) -> 207
A26: 23 | C26: Three Year Business Ready Enhancement Plan | G26: ALL | H26: 1 | I26: 1 | J26: 1 | K26: 1 | L26: 1 | M26: 1 | N26: 1 | O26: 1 | P26: 1 | Q26: 1 | R26: 1 | S26: 1 | T26: 1 | U26: 1 | V26: 1 | W26: 1 | X26: 1 | Y26: 1 | Z26: 1 | AA26: 1 | AB26: 1 | AC26: 1 | AD26: 1 | AE26: 1 | AF26: 1 | AG26: 1 | AH26: 1 | AI26: 1 | AJ26: 1 | AK26: 1 | AL26: 1 | AM26: 1 | AN26: 1 | AO26: 1 | AP26: 1 | AQ26: 1 | AR26: 1 | AS26: 1 | AT26: 1 | AU26: 1 | AV26: 1 | AW26: 1 | AX26: 1 | AY26: 1 | AZ26: 1 | BA26: 1 | BB26: 1 | BC26: 1 | BD26: 1 | BE26: 1 | BF26: 1 | BG26: 1 | BH26: 1 | BI26: 1 | BJ26: 1 | BK26: ALL | BL26: 1 | BM26: 1 | BN26: 1 | BO26: 1 | BP26: ALL | BQ26: 1 | BR26: 1 | BS26: 1 | BT26: 1 | BU26: 1 | BV26: 1 | BW26: 1 | BX26: 1 | BY26: ALL | BZ26: 1 | CA26: 1 | CB26: ALL | CC26: 1 | CD26: 1 | CE26: 1 | CF26: 1 | CG26: ALL | CH26: 1 | CI26: 1 | CJ26: 1 | CK26: 1 | CL26: 1 | CM26: ALL | CN26: 1 | CO26: ALL | CP26: 1 | CQ26: ALL | CR26: 1 | CS26: ALL | CT26: 1 | CU26: 1 | CV26: 1 | CW26: ALL | CX26: 1 | CY26: 1 | CZ26: 1 | DA26: 1 | DB26: ALL | DC26: 1 | DD26: 1 | DE26: 1 | DF26: 1 | DG26: 1 | DH26: ALL | DI26: 1 | DJ26: 1 | DK26: 1 | DL26: 1 | DM26: 1 | DN26: 1 | DO26: 1 | DP26: 1 | DQ26: 1 | DR26: 1 | DS26: 1 | DT26: 1 | DU26: 1 | DV26: 1 | DW26: 1 | DX26: 1 | DY26: 1 | DZ26: 1 | EA26: 1 | EB26: 1 | EC26: 1 | ED26: 1 | EE26: 1 | EF26: 1 | EG26: 1 | EH26: 1 | EI26: 1 | EJ26: 1 | EK26: 1 | EL26: 1 | EM26: 1 | EN26: 1 | EO26: 1 | EP26: 1 | EQ26: 1 | ER26: 1 | ES26: ALL | ET26: 1 | EU26: ALL | EV26: 1 | EW26: ALL | EX26: 1 | EY26: 1 | EZ26: 1 | FA26: 1 | FB26: 1 | FC26: 1 | FD26: 1 | FE26: 1 | FF26: 1 | FG26: 1 | FH26: 1 | FI26: 1 | FJ26: 1 | FK26: 1 | FL26: 1 | FM26: 1 | FN26: 1 | FO26: 1 | FP26: 1 | FQ26: 1 | FR26: 1 | FS26: ALL | FT26: 1 | FU26: 1 | FV26: 1 | FW26: 1 | FX26: ALL | FY26: 1 | FZ26: ALL | GA26: 1 | GB26: 1 | GC26: 1 | GD26: 1 | GE26: 1 | GF26: 1 | GG26: 1 | GH26: 1 | GI26: 1 | GJ26: 1 | GK26: 1 | GL26: 1 | GM26: 1 | GN26: 1 | GO26: ALL | GP26: 1 | GQ26: 1 | GR26: 1 | GS26: 1 | GT26: ALL | GU26: 1 | GV26: 1 | GW26: 1 | GX26: ALL | GY26: 1 | GZ26: 1 | HA26: 1 | HB26: 1 | HC26: 1 | HD26: 1 | HE26: 1 | HF26: 1 | HG26: 1 | HH26: 1 | HI26: 1 | HJ26: 1 | HK26: 1 | HL26: 1 | HM26: 1 | HN26: 1 | HO26: 1 | HP26: 1 | HQ26: ALL | HR26: 1 | HS26: ALL | HT26: 1 | HU26: ALL | HV26: 1 | HW26: ALL | HX26: 1 | HY26: 1 | HZ26: 1 | IA26: 1 | IB26: 1 | IC26: 1 | ID26: 1 | IE26: 1 | IF26: 1 | IG26: 1 | IH26: 1 | II26: 1 | IJ26: 1 | IK26: 1 | IL26: 1 | IM26: 1 | IN26: 1 | IO26: 1 | IP26: 1 | IQ26: 1 | IR26: 1 | IS26: 1 | IT26: 1 | IU26: 1 | IV26: 1 | IW26: 1 | IX26: 1 | IY26: 1 | IZ26: 1 | JA26: 1 | JB26: 1 | JC26: 1 | JD26: ALL | JE26: 1 | JF26: ALL | JG26: 1 | JH26: 1 | JI26: ALL | JJ26: 1 | JK26: ALL | JL26: 1 | JM26: 1 | JN26: 1 | JO26: ALL | JP26: 1 | JQ26: 1 | JR26: =COUNTIF(G26:JQ26,1) -> 240
A27: 24 | C27: Business Ready Enhancement Plus Plan (LATAM) | G27: NONE | H27: 0 | I27: 0 | J27: 0 | K27: 0 | L27: 0 | M27: 0 | N27: 0 | O27: 0 | P27: 0 | Q27: 0 | R27: 0 | S27: 0 | T27: 0 | U27: 0 | V27: 0 | W27: 0 | X27: 0 | Y27: 0 | Z27: 0 | AA27: 0 | AB27: 0 | AC27: 0 | AD27: 0 | AE27: 0 | AF27: 0 | AG27: 0 | AH27: 0 | AI27: 0 | AJ27: 0 | AK27: 0 | AL27: 0 | AM27: 0 | AN27: 0 | AO27: 0 | AP27: 0 | AQ27: 0 | AR27: 0 | AS27: 0 | AT27: 0 | AU27: 0 | AV27: 0 | AW27: 0 | AX27: 0 | AY27: 0 | AZ27: 0 | BA27: 0 | BB27: 0 | BC27: 0 | BD27: 0 | BE27: 0 | BF27: 0 | BG27: 0 | BH27: 0 | BI27: 0 | BJ27: 0 | BK27: NONE | BL27: 0 | BM27: 0 | BN27: 0 | BO27: 0 | BP27: NONE | BQ27: 0 | BR27: 0 | BS27: 0 | BT27: 0 | BU27: 0 | BV27: 0 | BW27: 0 | BX27: 0 | BY27: NONE | BZ27: 0 | CA27: 0 | CB27: NONE | CC27: 0 | CD27: 0 | CE27: 0 | CF27: 0 | CG27: NONE | CH27: 0 | CI27: 0 | CJ27: 0 | CK27: 0 | CL27: 0 | CM27: ALL | CN27: 1 | CO27: NONE | CP27: 0 | CQ27: ALL | CR27: 1 | CS27: NONE | CT27: 0 | CU27: 0 | CV27: 0 | CW27: NONE | CX27: 0 | CY27: 0 | CZ27: 0 | DA27: 0 | DB27: NONE | DC27: 0 | DD27: 0 | DE27: 0 | DF27: 0 | DG27: 0 | DH27: NONE | DI27: 0 | DJ27: 0 | DK27: 0 | DL27: 0 | DM27: 0 | DN27: 0 | DO27: 0 | DP27: 0 | DQ27: 0 | DR27: 0 | DS27: 0 | DT27: 0 | DU27: 0 | DV27: 0 | DW27: 0 | DX27: 0 | DY27: 0 | DZ27: 0 | EA27: 0 | EB27: 0 | EC27: 0 | ED27: 0 | EE27: 0 | EF27: 0 | EG27: 0 | EH27: 0 | EI27: 0 | EJ27: 0 | EK27: 0 | EL27: 0 | EM27: 0 | EN27: 0 | EO27: 0 | EP27: 0 | EQ27: 0 | ER27: 0 | ES27: NONE | ET27: 0 | EU27: NONE | EV27: 0 | EW27: NONE | EX27: 0 | EY27: 0 | EZ27: 0 | FA27: 0 | FB27: 0 | FC27: 0 | FD27: 0 | FE27: 0 | FF27: 0 | FG27: 0 | FH27: 0 | FI27: 0 | FJ27: 0 | FK27: 0 | FL27: 0 | FM27: 0 | FN27: 0 | FO27: 0 | FP27: 0 | FQ27: 0 | FR27: 0 | FS27: NONE | FT27: 0 | FU27: 0 | FV27: 0 | FW27: 0 | FX27: ALL | FY27: 1 | FZ27: NONE | GA27: 0 | GB27: 0 | GC27: 0 | GD27: 0 | GE27: 0 | GF27: 0 | GG27: 0 | GH27: 0 | GI27: 0 | GJ27: 0 | GK27: 0 | GL27: 0 | GM27: 0 | GN27: 0 | GO27: NONE | GP27: 0 | GQ27: 0 | GR27: 0 | GS27: 0 | GT27: NONE | GU27: 0 | GV27: 0 | GW27: 0 | GX27: ALL | GY27: 1 | GZ27: 1 | HA27: 1 | HB27: 1 | HC27: 1 | HD27: 1 | HE27: 1 | HF27: 1 | HG27: 1 | HH27: 1 | HI27: 1 | HJ27: 1 | HK27: 1 | HL27: 1 | HM27: 1 | HN27: 1 | HO27: 1 | HP27: 1 | HQ27: NONE | HR27: 0 | HS27: NONE | HT27: 0 | HU27: NONE | HV27: 0 | HW27: NONE | HX27: 0 | HY27: 0 | HZ27: 0 | IA27: 0 | IB27: 0 | IC27: 0 | ID27: 0 | IE27: 0 | IF27: 0 | IG27: 0 | IH27: 0 | II27: 0 | IJ27: 0 | IK27: 0 | IL27: 0 | IM27: 0 | IN27: 0 | IO27: 0 | IP27: 0 | IQ27: 0 | IR27: 0 | IS27: 0 | IT27: 0 | IU27: 0 | IV27: 0 | IW27: 0 | IX27: 0 | IY27: 0 | IZ27: 0 | JA27: 0 | JB27: 0 | JC27: 0 | JD27: NONE | JE27: 0 | JF27: NONE | JG27: 0 | JH27: 0 | JI27: NONE | JJ27: 0 | JK27: NONE | JL27: 0 | JM27: 0 | JN27: 0 | JO27: NONE | JP27: 0 | JQ27: 0 | JR27: =COUNTIF(G27:JQ27,1) -> 21
A28: 25 | C28: Business Ready Advantage Plan | G28: NONE | H28: 0 | I28: 0 | J28: 0 | K28: 0 | L28: 0 | M28: 0 | N28: 0 | O28: 0 | P28: 0 | Q28: 0 | R28: 0 | S28: 0 | T28: 0 | U28: 0 | V28: 0 | W28: 0 | X28: 0 | Y28: 0 | Z28: 0 | AA28: 0 | AB28: 0 | AC28: 0 | AD28: 0 | AE28: 0 | AF28: 0 | AG28: 0 | AH28: 0 | AI28: 0 | AJ28: 0 | AK28: 0 | AL28: 0 | AM28: 0 | AN28: 0 | AO28: 0 | AP28: 0 | AQ28: 0 | AR28: 0 | AS28: 0 | AT28: 0 | AU28: 0 | AV28: 0 | AW28: 0 | AX28: 0 | AY28: 0 | AZ28: 0 | BA28: 0 | BB28: 0 | BC28: 0 | BD28: 0 | BE28: 0 | BF28: 0 | BG28: 0 | BH28: 0 | BI28: 0 | BJ28: 0 | BK28: ALL | BL28: 1 | BM28: 1 | BN28: 1 | BO28: 1 | BP28: ALL | BQ28: 0 | BR28: 0 | BS28: 0 | BT28: 0 | BU28: 0 | BV28: 0 | BW28: 0 | BX28: 0 | BY28: ALL | BZ28: 1 | CA28: 1 | CB28: NONE | CC28: 0 | CD28: 0 | CE28: 0 | CF28: 0 | CG28: NONE | CH28: 0 | CI28: 0 | CJ28: 0 | CK28: 0 | CL28: 0 | CM28: NONE | CN28: 0 | CO28: NONE | CP28: 0 | CQ28: NONE | CR28: 0 | CS28: NONE | CT28: 0 | CU28: 0 | CV28: 0 | CW28: NONE | CX28: 0 | CY28: 0 | CZ28: 0 | DA28: 0 | DB28: NONE | DC28: 0 | DD28: 0 | DE28: 0 | DF28: 0 | DG28: 0 | DH28: NONE | DI28: 0 | DJ28: 0 | DK28: 0 | DL28: 0 | DM28: 0 | DN28: 0 | DO28: 0 | DP28: 0 | DQ28: 0 | DR28: 0 | DS28: 0 | DT28: 0 | DU28: 0 | DV28: 0 | DW28: 0 | DX28: 0 | DY28: 0 | DZ28: 0 | EA28: 0 | EB28: 0 | EC28: 0 | ED28: 0 | EE28: 0 | EF28: 0 | EG28: 0 | EH28: 0 | EI28: 0 | EJ28: 0 | EK28: 0 | EL28: 0 | EM28: 0 | EN28: 0 | EO28: 0 | EP28: 0 | EQ28: 0 | ER28: 0 | ES28: NONE | ET28: 0 | EU28: NONE | EV28: 0 | EW28: ALL | EX28: 1 | EY28: 1 | EZ28: 1 | FA28: 1 | FB28: 1 | FC28: 1 | FD28: 1 | FE28: 1 | FF28: 1 | FG28: 1 | FH28: 1 | FI28: 1 | FJ28: 1 | FK28: 1 | FL28: 1 | FM28: 1 | FN28: 1 | FO28: 1 | FP28: 1 | FQ28: 1 | FR28: 1 | FS28: ALL | FT28: 1 | FU28: 1 | FV28: 1 | FW28: 1 | FX28: NONE | FY28: 0 | FZ28: NONE | GA28: 0 | GB28: 0 | GC28: 0 | GD28: 0 | GE28: 0 | GF28: 0 | GG28: 0 | GH28: 0 | GI28: 0 | GJ28: 0 | GK28: 0 | GL28: 0 | GM28: 0 | GN28: 0 | GO28: NONE | GP28: 0 | GQ28: 0 | GR28: 0 | GS28: 0 | GT28: NONE | GU28: 0 | GV28: 0 | GW28: 0 | GX28: NONE | GY28: 0 | GZ28: 0 | HA28: 0 | HB28: 0 | HC28: 0 | HD28: 0 | HE28: 0 | HF28: 0 | HG28: 0 | HH28: 0 | HI28: 0 | HJ28: 0 | HK28: 0 | HL28: 0 | HM28: 0 | HN28: 0 | HO28: 0 | HP28: 0 | HQ28: NONE | HR28: 0 | HS28: NONE | HT28: 0 | HU28: NONE | HV28: 0 | HW28: NONE | HX28: 0 | HY28: 0 | HZ28: 0 | IA28: 0 | IB28: 0 | IC28: 0 | ID28: 0 | IE28: 0 | IF28: 0 | IG28: 0 | IH28: 0 | II28: 0 | IJ28: 0 | IK28: 0 | IL28: 0 | IM28: 0 | IN28: 0 | IO28: 0 | IP28: 0 | IQ28: 0 | IR28: 0 | IS28: 0 | IT28: 0 | IU28: 0 | IV28: 0 | IW28: 0 | IX28: 0 | IY28: 0 | IZ28: 0 | JA28: 0 | JB28: 0 | JC28: 0 | JD28: NONE | JE28: 0 | JF28: NONE | JG28: 0 | JH28: 0 | JI28: NONE | JJ28: 0 | JK28: NONE | JL28: 0 | JM28: 0 | JN28: 0 | JO28: ALL | JP28: 1 | JQ28: 1 | JR28: =COUNTIF(G28:JQ28,1) -> 33
A29: 26 | C29: Three Year Business Ready Advantage Plan | G29: NONE | H29: 0 | I29: 0 | J29: 0 | K29: 0 | L29: 0 | M29: 0 | N29: 0 | O29: 0 | P29: 0 | Q29: 0 | R29: 0 | S29: 0 | T29: 0 | U29: 0 | V29: 0 | W29: 0 | X29: 0 | Y29: 0 | Z29: 0 | AA29: 0 | AB29: 0 | AC29: 0 | AD29: 0 | AE29: 0 | AF29: 0 | AG29: 0 | AH29: 0 | AI29: 0 | AJ29: 0 | AK29: 0 | AL29: 0 | AM29: 0 | AN29: 0 | AO29: 0 | AP29: 0 | AQ29: 0 | AR29: 0 | AS29: 0 | AT29: 0 | AU29: 0 | AV29: 0 | AW29: 0 | AX29: 0 | AY29: 0 | AZ29: 0 | BA29: 0 | BB29: 0 | BC29: 0 | BD29: 0 | BE29: 0 | BF29: 0 | BG29: 0 | BH29: 0 | BI29: 0 | BJ29: 0 | BK29: NONE | BL29: 0 | BM29: 0 | BN29: 0 | BO29: 0 | BP29: NONE | BQ29: 0 | BR29: 0 | BS29: 0 | BT29: 0 | BU29: 0 | BV29: 0 | BW29: 0 | BX29: 0 | BY29: ALL | BZ29: 1 | CA29: 1 | CB29: NONE | CC29: 0 | CD29: 0 | CE29: 0 | CF29: 0 | CG29: NONE | CH29: 0 | CI29: 0 | CJ29: 0 | CK29: 0 | CL29: 0 | CM29: NONE | CN29: 0 | CO29: NONE | CP29: 0 | CQ29: NONE | CR29: 0 | CS29: NONE | CT29: 0 | CU29: 0 | CV29: 0 | CW29: NONE | CX29: 0 | CY29: 0 | CZ29: 0 | DA29: 0 | DB29: NONE | DC29: 0 | DD29: 0 | DE29: 0 | DF29: 0 | DG29: 0 | DH29: NONE | DI29: 0 | DJ29: 0 | DK29: 0 | DL29: 0 | DM29: 0 | DN29: 0 | DO29: 0 | DP29: 0 | DQ29: 0 | DR29: 0 | DS29: 0 | DT29: 0 | DU29: 0 | DV29: 0 | DW29: 0 | DX29: 0 | DY29: 0 | DZ29: 0 | EA29: 0 | EB29: 0 | EC29: 0 | ED29: 0 | EE29: 0 | EF29: 0 | EG29: 0 | EH29: 0 | EI29: 0 | EJ29: 0 | EK29: 0 | EL29: 0 | EM29: 0 | EN29: 0 | EO29: 0 | EP29: 0 | EQ29: 0 | ER29: 0 | ES29: NONE | ET29: 0 | EU29: NONE | EV29: 0 | EW29: ALL | EX29: 1 | EY29: 1 | EZ29: 1 | FA29: 1 | FB29: 1 | FC29: 1 | FD29: 1 | FE29: 1 | FF29: 1 | FG29: 1 | FH29: 1 | FI29: 1 | FJ29: 1 | FK29: 1 | FL29: 1 | FM29: 1 | FN29: 1 | FO29: 1 | FP29: 1 | FQ29: 1 | FR29: 1 | FS29: NONE | FT29: 0 | FU29: 0 | FV29: 0 | FW29: 0 | FX29: NONE | FY29: 0 | FZ29: NONE | GA29: 0 | GB29: 0 | GC29: 0 | GD29: 0 | GE29: 0 | GF29: 0 | GG29: 0 | GH29: 0 | GI29: 0 | GJ29: 0 | GK29: 0 | GL29: 0 | GM29: 0 | GN29: 0 | GO29: NONE | GP29: 0 | GQ29: 0 | GR29: 0 | GS29: 0 | GT29: NONE | GU29: 0 | GV29: 0 | GW29: 0 | GX29: NONE | GY29: 0 | GZ29: 0 | HA29: 0 | HB29: 0 | HC29: 0 | HD29: 0 | HE29: 0 | HF29: 0 | HG29: 0 | HH29: 0 | HI29: 0 | HJ29: 0 | HK29: 0 | HL29: 0 | HM29: 0 | HN29: 0 | HO29: 0 | HP29: 0 | HQ29: NONE | HR29: 0 | HS29: NONE | HT29: 0 | HU29: NONE | HV29: 0 | HW29: NONE | HX29: 0 | HY29: 0 | HZ29: 0 | IA29: 0 | IB29: 0 | IC29: 0 | ID29: 0 | IE29: 0 | IF29: 0 | IG29: 0 | IH29: 0 | II29: 0 | IJ29: 0 | IK29: 0 | IL29: 0 | IM29: 0 | IN29: 0 | IO29: 0 | IP29: 0 | IQ29: 0 | IR29: 0 | IS29: 0 | IT29: 0 | IU29: 0 | IV29: 0 | IW29: 0 | IX29: 0 | IY29: 0 | IZ29: 0 | JA29: 0 | JB29: 0 | JC29: 0 | JD29: NONE | JE29: 0 | JF29: NONE | JG29: 0 | JH29: 0 | JI29: NONE | JJ29: 0 | JK29: NONE | JL29: 0 | JM29: 0 | JN29: 0 | JO29: ALL | JP29: 1 | JQ29: 1 | JR29: =COUNTIF(G29:JQ29,1) -> 25
A30: 27 | C30: Business Ready Advantage Plus Plan | G30: NONE | H30: 0 | I30: 0 | J30: 0 | K30: 0 | L30: 0 | M30: 0 | N30: 0 | O30: 0 | P30: 0 | Q30: 0 | R30: 0 | S30: 0 | T30: 0 | U30: 0 | V30: 0 | W30: 0 | X30: 0 | Y30: 0 | Z30: 0 | AA30: 0 | AB30: 0 | AC30: 0 | AD30: 0 | AE30: 0 | AF30: 0 | AG30: 0 | AH30: 0 | AI30: 0 | AJ30: 0 | AK30: 0 | AL30: 0 | AM30: 0 | AN30: 0 | AO30: 0 | AP30: 0 | AQ30: 0 | AR30: 0 | AS30: 0 | AT30: 0 | AU30: 0 | AV30: 0 | AW30: 0 | AX30: 0 | AY30: 0 | AZ30: 0 | BA30: 0 | BB30: 0 | BC30: 0 | BD30: 0 | BE30: 0 | BF30: 0 | BG30: 0 | BH30: 0 | BI30: 0 | BJ30: 0 | BK30: ALL | BL30: 1 | BM30: 1 | BN30: 1 | BO30: 1 | BP30: ALL | BQ30: 0 | BR30: 0 | BS30: 0 | BT30: 0 | BU30: 0 | BV30: 0 | BW30: 0 | BX30: 0 | BY30: ALL | BZ30: 1 | CA30: 1 | CB30: NONE | CC30: 0 | CD30: 0 | CE30: 0 | CF30: 0 | CG30: NONE | CH30: 0 | CI30: 0 | CJ30: 0 | CK30: 0 | CL30: 0 | CM30: NONE | CN30: 0 | CO30: NONE | CP30: 0 | CQ30: NONE | CR30: 0 | CS30: NONE | CT30: 0 | CU30: 0 | CV30: 0 | CW30: NONE | CX30: 0 | CY30: 0 | CZ30: 0 | DA30: 0 | DB30: NONE | DC30: 0 | DD30: 0 | DE30: 0 | DF30: 0 | DG30: 0 | DH30: NONE | DI30: 0 | DJ30: 0 | DK30: 0 | DL30: 0 | DM30: 0 | DN30: 0 | DO30: 0 | DP30: 0 | DQ30: 0 | DR30: 0 | DS30: 0 | DT30: 0 | DU30: 0 | DV30: 0 | DW30: 0 | DX30: 0 | DY30: 0 | DZ30: 0 | EA30: 0 | EB30: 0 | EC30: 0 | ED30: 0 | EE30: 0 | EF30: 0 | EG30: 0 | EH30: 0 | EI30: 0 | EJ30: 0 | EK30: 0 | EL30: 0 | EM30: 0 | EN30: 0 | EO30: 0 | EP30: 0 | EQ30: 0 | ER30: 0 | ES30: NONE | ET30: 0 | EU30: NONE | EV30: 0 | EW30: ALL | EX30: 1 | EY30: 1 | EZ30: 1 | FA30: 1 | FB30: 1 | FC30: 1 | FD30: 1 | FE30: 1 | FF30: 1 | FG30: 1 | FH30: 1 | FI30: 1 | FJ30: 1 | FK30: 1 | FL30: 1 | FM30: 1 | FN30: 1 | FO30: 1 | FP30: 1 | FQ30: 1 | FR30: 1 | FS30: ALL | FT30: 1 | FU30: 1 | FV30: 1 | FW30: 1 | FX30: NONE | FY30: 0 | FZ30: NONE | GA30: 0 | GB30: 0 | GC30: 0 | GD30: 0 | GE30: 0 | GF30: 0 | GG30: 0 | GH30: 0 | GI30: 0 | GJ30: 0 | GK30: 0 | GL30: 0 | GM30: 0 | GN30: 0 | GO30: NONE | GP30: 0 | GQ30: 0 | GR30: 0 | GS30: 0 | GT30: NONE | GU30: 0 | GV30: 0 | GW30: 0 | GX30: NONE | GY30: 0 | GZ30: 0 | HA30: 0 | HB30: 0 | HC30: 0 | HD30: 0 | HE30: 0 | HF30: 0 | HG30: 0 | HH30: 0 | HI30: 0 | HJ30: 0 | HK30: 0 | HL30: 0 | HM30: 0 | HN30: 0 | HO30: 0 | HP30: 0 | HQ30: NONE | HR30: 0 | HS30: NONE | HT30: 0 | HU30: NONE | HV30: 0 | HW30: NONE | HX30: 0 | HY30: 0 | HZ30: 0 | IA30: 0 | IB30: 0 | IC30: 0 | ID30: 0 | IE30: 0 | IF30: 0 | IG30: 0 | IH30: 0 | II30: 0 | IJ30: 0 | IK30: 0 | IL30: 0 | IM30: 0 | IN30: 0 | IO30: 0 | IP30: 0 | IQ30: 0 | IR30: 0 | IS30: 0 | IT30: 0 | IU30: 0 | IV30: 0 | IW30: 0 | IX30: 0 | IY30: 0 | IZ30: 0 | JA30: 0 | JB30: 0 | JC30: 0 | JD30: NONE | JE30: 0 | JF30: NONE | JG30: 0 | JH30: 0 | JI30: NONE | JJ30: 0 | JK30: NONE | JL30: 0 | JM30: 0 | JN30: 0 | JO30: ALL | JP30: 1 | JQ30: 1 | JR30: 33
A31: 28 | C31: Business Ready Advantage Plus Plan (LATAM) | G31: NONE | H31: 0 | I31: 0 | J31: 0 | K31: 0 | L31: 0 | M31: 0 | N31: 0 | O31: 0 | P31: 0 | Q31: 0 | R31: 0 | S31: 0 | T31: 0 | U31: 0 | V31: 0 | W31: 0 | X31: 0 | Y31: 0 | Z31: 0 | AA31: 0 | AB31: 0 | AC31: 0 | AD31: 0 | AE31: 0 | AF31: 0 | AG31: 0 | AH31: 0 | AI31: 0 | AJ31: 0 | AK31: 0 | AL31: 0 | AM31: 0 | AN31: 0 | AO31: 0 | AP31: 0 | AQ31: 0 | AR31: 0 | AS31: 0 | AT31: 0 | AU31: 0 | AV31: 0 | AW31: 0 | AX31: 0 | AY31: 0 | AZ31: 0 | BA31: 0 | BB31: 0 | BC31: 0 | BD31: 0 | BE31: 0 | BF31: 0 | BG31: 0 | BH31: 0 | BI31: 0 | BJ31: 0 | BK31: NONE | BL31: 0 | BM31: 0 | BN31: 0 | BO31: 0 | BP31: NONE | BQ31: 0 | BR31: 0 | BS31: 0 | BT31: 0 | BU31: 0 | BV31: 0 | BW31: 0 | BX31: 0 | BY31: NONE | BZ31: 0 | CA31: 0 | CB31: NONE | CC31: 0 | CD31: 0 | CE31: 0 | CF31: 0 | CG31: NONE | CH31: 0 | CI31: 0 | CJ31: 0 | CK31: 0 | CL31: 0 | CM31: ALL | CN31: 1 | CO31: NONE | CP31: 0 | CQ31: ALL | CR31: 1 | CS31: NONE | CT31: 0 | CU31: 0 | CV31: 0 | CW31: NONE | CX31: 0 | CY31: 0 | CZ31: 0 | DA31: 0 | DB31: NONE | DC31: 0 | DD31: 0 | DE31: 0 | DF31: 0 | DG31: 0 | DH31: NONE | DI31: 0 | DJ31: 0 | DK31: 0 | DL31: 0 | DM31: 0 | DN31: 0 | DO31: 0 | DP31: 0 | DQ31: 0 | DR31: 0 | DS31: 0 | DT31: 0 | DU31: 0 | DV31: 0 | DW31: 0 | DX31: 0 | DY31: 0 | DZ31: 0 | EA31: 0 | EB31: 0 | EC31: 0 | ED31: 0 | EE31: 0 | EF31: 0 | EG31: 0 | EH31: 0 | EI31: 0 | EJ31: 0 | EK31: 0 | EL31: 0 | EM31: 0 | EN31: 0 | EO31: 0 | EP31: 0 | EQ31: 0 | ER31: 0 | ES31: NONE | ET31: 0 | EU31: NONE | EV31: 0 | EW31: NONE | EX31: 0 | EY31: 0 | EZ31: 0 | FA31: 0 | FB31: 0 | FC31: 0 | FD31: 0 | FE31: 0 | FF31: 0 | FG31: 0 | FH31: 0 | FI31: 0 | FJ31: 0 | FK31: 0 | FL31: 0 | FM31: 0 | FN31: 0 | FO31: 0 | FP31: 0 | FQ31: 0 | FR31: 0 | FS31: NONE | FT31: 0 | FU31: 0 | FV31: 0 | FW31: 0 | FX31: ALL | FY31: 1 | FZ31: NONE | GA31: 0 | GB31: 0 | GC31: 0 | GD31: 0 | GE31: 0 | GF31: 0 | GG31: 0 | GH31: 0 | GI31: 0 | GJ31: 0 | GK31: 0 | GL31: 0 | GM31: 0 | GN31: 0 | GO31: NONE | GP31: 0 | GQ31: 0 | GR31: 0 | GS31: 0 | GT31: NONE | GU31: 0 | GV31: 0 | GW31: 0 | GX31: ALL | GY31: 1 | GZ31: 1 | HA31: 1 | HB31: 1 | HC31: 1 | HD31: 1 | HE31: 1 | HF31: 1 | HG31: 1 | HH31: 1 | HI31: 1 | HJ31: 1 | HK31: 1 | HL31: 1 | HM31: 1 | HN31: 1 | HO31: 1 | HP31: 1 | HQ31: NONE | HR31: 0 | HS31: NONE | HT31: 0 | HU31: NONE | HV31: 0 | HW31: NONE | HX31: 0 | HY31: 0 | HZ31: 0 | IA31: 0 | IB31: 0 | IC31: 0 | ID31: 0 | IE31: 0 | IF31: 0 | IG31: 0 | IH31: 0 | II31: 0 | IJ31: 0 | IK31: 0 | IL31: 0 | IM31: 0 | IN31: 0 | IO31: 0 | IP31: 0 | IQ31: 0 | IR31: 0 | IS31: 0 | IT31: 0 | IU31: 0 | IV31: 0 | IW31: 0 | IX31: 0 | IY31: 0 | IZ31: 0 | JA31: 0 | JB31: 0 | JC31: 0 | JD31: NONE | JE31: 0 | JF31: NONE | JG31: 0 | JH31: 0 | JI31: NONE | JJ31: 0 | JK31: NONE | JL31: 0 | JM31: 0 | JN31: 0 | JO31: NONE | JP31: 0 | JQ31: 0 | JR31: 21

Sheet Geography (hidden)
B2: COUNTRY LIST | K2: PRICE REGION LIST | Q2: EXCLUDED (NO SALE) COUNTRY LIST | U2: CURRENCYLIST | Z2: CountryCode List (NAV ONLY)
A3: KPI | G3: =COUNTIF(Table1[Excluded Country],TRUE) -> 7 | H3: =COUNTIF(Table1[EEAS],TRUE) -> 48 | I3: =COUNTIF(Table1[GroupA],TRUE) -> 12 | K3: =COUNTA(Table2[Price Region]) -> 31 | Q3: =COUNTA(Table3[Excluded Countries]) -> 7 | U3: =COUNTA(Table4[CurrencyName]) -> 14
A4: Lookup | B4: 1 | C4: 2 | E4: 3 | F4: 4 | G4: 5 | H4: 6 | I4: 7 | L4: 1 | M4: 2 | N4: 4 | O4: 5 | R4: 1 | S4: 2 | V4: 1 | W4: 2
B5: Country Name | C5: Country Code | D5: Price Region | E5: Price Region Code | F5: Currency | G5: Excluded Country | H5: EEAS | I5: GroupA | K5: Price Region | L5: Price region Code | M5: Currency | N5: EEAS | O5: Group A | Q5: Excluded Countries | R5: CountryCode | S5: Message | U5: CurrencyCode | V5: CurrencyName | W5: Per USD | X5: Per EUR | Z5: Country Version | AA5: Ccode
B6: Afghanistan | C6: 1 | D6: Central Asia 1 - CEE 1 | E6: =VLOOKUP(Table1[[#This Row],[Price Region]],PRICEREGIONLIST,2,FALSE) -> 5 | F6: =VLOOKUP(Table1[[#This Row],[Price Region]],PRICEREGIONLIST,3,FALSE) -> USD | G6: =IFERROR(VLOOKUP(Table1[[#This Row],[Country Name]],EXCOUNTRYLIST,1,FALSE)<>"N/A","FALSE") -> FALSE | H6: =VLOOKUP(Table1[[#This Row],[Price Region]],PRICEREGIONLIST,4,FALSE) -> FALSE | I6: =VLOOKUP(Table1[[#This Row],[Price Region]],PRICEREGIONLIST,5,FALSE) -> FALSE | K6: Africa | L6: 1 | M6: USD | N6: FALSE | O6: FALSE | Q6: Iran | R6: =VLOOKUP(Table3[[#This Row],[Excluded Countries]],COUNTRYLIST,2,FALSE) -> 101 | S6: =CONCATENATE("Please contact your Regional Operations Center (ROC) for ", Q6, " pricing information.") -> Please contact your Regional Operations Center (ROC) for Iran pricing information. | U6: AUD | V6: Australian Dollar | X6: - | Z6: Argentina | AA6: 1
B7: Albania | C7: 2 | D7: Eastern Europe 1 | E7: =VLOOKUP(Table1[[#This Row],[Price Region]],PRICEREGIONLIST,2,FALSE) -> 10 | F7: =VLOOKUP(Table1[[#This Row],[Price Region]],PRICEREGIONLIST,3,FALSE) -> USD | G7: =IFERROR(VLOOKUP(Table1[[#This Row],[Country Name]],EXCOUNTRYLIST,1,FALSE)<>"N/A","FALSE") -> FALSE | H7: =VLOOKUP(Table1[[#This Row],[Price Region]],PRICEREGIONLIST,4,FALSE) -> FALSE | I7: =VLOOKUP(Table1[[#This Row],[Price Region]],PRICEREGIONLIST,5,FALSE) -> FALSE | K7: APOC United States | L7: =L6+1 -> 2 | M7: USD | N7: FALSE | O7: FALSE | Q7: Korea, North | R7: =VLOOKUP(Table3[[#This Row],[Excluded Countries]],COUNTRYLIST,2,FALSE) -> 112 | S7: Please contact your Regional Operations Center (ROC) for Korea, North pricing information. | U7: CAD | V7: Canadian Dollar | X7: - | Z7: Australia | AA7: =AA6+1 -> 2
B8: Algeria | C8: 3 | D8: Africa | E8: =VLOOKUP(Table1[[#This Row],[Price Region]],PRICEREGIONLIST,2,FALSE) -> 1 | F8: =VLOOKUP(Table1[[#This Row],[Price Region]],PRICEREGIONLIST,3,FALSE) -> USD | G8: =IFERROR(VLOOKUP(Table1[[#This Row],[Country Name]],EXCOUNTRYLIST,1,FALSE)<>"N/A","FALSE") -> FALSE | H8: =VLOOKUP(Table1[[#This Row],[Price Region]],PRICEREGIONLIST,4,FALSE) -> FALSE | I8: =VLOOKUP(Table1[[#This Row],[Price Region]],PRICEREGIONLIST,5,FALSE) -> FALSE | K8: Australia | L8: 3 | M8: AUD | N8: FALSE | O8: FALSE | Q8: Sudan | R8: =VLOOKUP(Table3[[#This Row],[Excluded Countries]],COUNTRYLIST,2,FALSE) -> 201 | S8: Please contact your Regional Operations Center (ROC) for Sudan pricing information. | U8: CHF | V8: Swiss Franc | W8: 1.292 | X8: =Table4[[#This Row],[Per USD]]/W10 -> 1.20680552 | Z8: Austria | AA8: 3
B9: American Samoa | C9: 4 | D9: APOC United States | E9: =VLOOKUP(Table1[[#This Row],[Price Region]],PRICEREGIONLIST,2,FALSE) -> 2 | F9: =VLOOKUP(Table1[[#This Row],[Price Region]],PRICEREGIONLIST,3,FALSE) -> USD | G9: =IFERROR(VLOOKUP(Table1[[#This Row],[Country Name]],EXCOUNTRYLIST,1,FALSE)<>"N/A","FALSE") -> FALSE | H9: =VLOOKUP(Table1[[#This Row],[Price Region]],PRICEREGIONLIST,4,FALSE) -> FALSE | I9: =VLOOKUP(Table1[[#This Row],[Price Region]],PRICEREGIONLIST,5,FALSE) -> FALSE | K9: Canada | L9: 4 | M9: CAD | N9: FALSE | O9: FALSE | Q9: Syria | R9: =VLOOKUP(Table3[[#This Row],[Excluded Countries]],COUNTRYLIST,2,FALSE) -> 207 | S9: Please contact your Regional Operations Center (ROC) for Syria pricing information. | U9: DKK | V9: Danish Krone | W9: 7.970032677 | X9: =Table4[[#This Row],[Per USD]]/W10 -> 7.44448872 | Z9: Belgium | AA9: 4
B10: Andorra | C10: 5 | D10: Eurozone | E10: =VLOOKUP(Table1[[#This Row],[Price Region]],PRICEREGIONLIST,2,FALSE) -> 26 | F10: =VLOOKUP(Table1[[#This Row],[Price Region]],PRICEREGIONLIST,3,FALSE) -> EUR | G10: =IFERROR(VLOOKUP(Table1[[#This Row],[Country Name]],EXCOUNTRYLIST,1,FALSE)<>"N/A","FALSE") -> FALSE | H10: =VLOOKUP(Table1[[#This Row],[Price Region]],PRICEREGIONLIST,4,FALSE) -> TRUE | I10: =VLOOKUP(Table1[[#This Row],[Price Region]],PRICEREGIONLIST,5,FALSE) -> FALSE | K10: Central Asia 1 - CEE 1 | L10: 5 | M10: USD | N10: FALSE | O10: FALSE | Q10: Cuba | R10: =VLOOKUP(Table3[[#This Row],[Excluded Countries]],COUNTRYLIST,2,FALSE) -> 55 | S10: Please contact your Regional Operations Center (ROC) for Cuba pricing information. | U10: EUR | V10: Euro | W10: 1.070595037 | X10: =Table4[[#This Row],[Per USD]]/Table4[[#This Row],[Per USD]] -> 1 | Z10: Brazil | AA10: 5
B11: Angola | C11: 6 | D11: Africa | E11: =VLOOKUP(Table1[[#This Row],[Price Region]],PRICEREGIONLIST,2,FALSE) -> 1 | F11: =VLOOKUP(Table1[[#This Row],[Price Region]],PRICEREGIONLIST,3,FALSE) -> USD | G11: =IFERROR(VLOOKUP(Table1[[#This Row],[Country Name]],EXCOUNTRYLIST,1,FALSE)<>"N/A","FALSE") -> FALSE | H11: =VLOOKUP(Table1[[#This Row],[Price Region]],PRICEREGIONLIST,4,FALSE) -> FALSE | I11: =VLOOKUP(Table1[[#This Row],[Price Region]],PRICEREGIONLIST,5,FALSE) -> FALSE | K11: Central Asia 2 - CEE 2 | L11: 6 | M11: USD | N11: FALSE | O11: FALSE | U11: GBP | V11: Pounds Sterling | W11: 0.8448229251 | X11: =Table4[[#This Row],[Per USD]]/W10 -> 0.7891153012 | Z11: Bulgaria | AA11: 6 | AC11: China | AD11: =VLOOKUP(Table3[[#This Row],[Excluded Countries]],COUNTRYLIST,2,FALSE) ->  | AE11: =CONCATENATE("Please contact your Regional Operations Center (ROC) for ", AC11, " pricing information.") -> Please contact your Regional Operations Center (ROC) for China pricing information.
B12: Anguilla | C12: 7 | D12: Latam Caribbean | E12: =VLOOKUP(Table1[[#This Row],[Price Region]],PRICEREGIONLIST,2,FALSE) -> 14 | F12: =VLOOKUP(Table1[[#This Row],[Price Region]],PRICEREGIONLIST,3,FALSE) -> USD | G12: =IFERROR(VLOOKUP(Table1[[#This Row],[Country Name]],EXCOUNTRYLIST,1,FALSE)<>"N/A","FALSE") -> FALSE | H12: =VLOOKUP(Table1[[#This Row],[Price Region]],PRICEREGIONLIST,4,FALSE) -> FALSE | I12: =VLOOKUP(Table1[[#This Row],[Price Region]],PRICEREGIONLIST,5,FALSE) -> FALSE | K12: Chile | L12: 7 | M12: USD | N12: FALSE | O12: FALSE | U12: INR | V12: Indian Rupee | X12: - | Z12: Canada | AA12: 7 | AC12: Japan | AD12: =VLOOKUP(Table3[[#This Row],[Excluded Countries]],COUNTRYLIST,2,FALSE) ->  | AE12: =CONCATENATE("Please contact your Regional Operations Center (ROC) for ", AC12, " pricing information.") -> Please contact your Regional Operations Center (ROC) for Japan pricing information.
B13: Antarctica | C13: 8 | D13: Latam Caribbean | E13: =VLOOKUP(Table1[[#This Row],[Price Region]],PRICEREGIONLIST,2,FALSE) -> 14 | F13: =VLOOKUP(Table1[[#This Row],[Price Region]],PRICEREGIONLIST,3,FALSE) -> USD | G13: =IFERROR(VLOOKUP(Table1[[#This Row],[Country Name]],EXCOUNTRYLIST,1,FALSE)<>"N/A","FALSE") -> FALSE | H13: =VLOOKUP(Table1[[#This Row],[Price Region]],PRICEREGIONLIST,4,FALSE) -> FALSE | I13: =VLOOKUP(Table1[[#This Row],[Price Region]],PRICEREGIONLIST,5,FALSE) -> FALSE | K13: China | L13: 8 | M13: RMB | N13: FALSE | O13: FALSE | Q13: Brazil | R13: =VLOOKUP(Table3[[#This Row],[Excluded Countries]],COUNTRYLIST,2,FALSE) -> 30 | S13: =CONCATENATE("Please contact your Regional Operations Center (ROC) for ", Q13, " pricing information.") -> Please contact your Regional Operations Center (ROC) for Brazil pricing information. | U13: JPY | V13: Japanese Yen | X13: - | Z13: Croatia | AA13: 8
B14: Antigua and Barbuda | C14: 9 | D14: Latam Caribbean | E14: =VLOOKUP(Table1[[#This Row],[Price Region]],PRICEREGIONLIST,2,FALSE) -> 14 | F14: =VLOOKUP(Table1[[#This Row],[Price Region]],PRICEREGIONLIST,3,FALSE) -> USD | G14: =IFERROR(VLOOKUP(Table1[[#This Row],[Country Name]],EXCOUNTRYLIST,1,FALSE)<>"N/A","FALSE") -> FALSE | H14: =VLOOKUP(Table1[[#This Row],[Price Region]],PRICEREGIONLIST,4,FALSE) -> FALSE | I14: =VLOOKUP(Table1[[#This Row],[Price Region]],PRICEREGIONLIST,5,FALSE) -> FALSE | K14: Colombia | L14: 9 | M14: USD | N14: FALSE | O14: FALSE | Q14: Poland | R14: =VLOOKUP(Table3[[#This Row],[Excluded Countries]],COUNTRYLIST,2,FALSE) -> 171 | S14: =CONCATENATE("Please contact your Regional Operations Center (ROC) for ", Q14, " pricing information.") -> Please contact your Regional Operations Center (ROC) for Poland pricing information. | U14: NOK | V14: Norwegian Krona | W14: 8.2806 | X14: =Table4[[#This Row],[Per USD]]/W10 -> 7.734577234 | Z14: Cyprus | AA14: 9
B15: Argentina | C15: 10 | D15: Rest of Latam | E15: =VLOOKUP(Table1[[#This Row],[Price Region]],PRICEREGIONLIST,2,FALSE) -> 19 | F15: =VLOOKUP(Table1[[#This Row],[Price Region]],PRICEREGIONLIST,3,FALSE) -> USD | G15: =IFERROR(VLOOKUP(Table1[[#This Row],[Country Name]],EXCOUNTRYLIST,1,FALSE)<>"N/A","FALSE") -> FALSE | H15: =VLOOKUP(Table1[[#This Row],[Price Region]],PRICEREGIONLIST,4,FALSE) -> FALSE | I15: =VLOOKUP(Table1[[#This Row],[Price Region]],PRICEREGIONLIST,5,FALSE) -> FALSE | K15: Denmark2 | L15: 27 | M15: DKK | N15: TRUE | O15: TRUE | U15: NZD | V15: New Zealand Dollar | X15: - | Z15: Czech Republic | AA15: 10
B16: Armenia | C16: 11 | D16: Eastern Europe 2 | E16: =VLOOKUP(Table1[[#This Row],[Price Region]],PRICEREGIONLIST,2,FALSE) -> 11 | F16: =VLOOKUP(Table1[[#This Row],[Price Region]],PRICEREGIONLIST,3,FALSE) -> USD | G16: =IFERROR(VLOOKUP(Table1[[#This Row],[Country Name]],EXCOUNTRYLIST,1,FALSE)<>"N/A","FALSE") -> FALSE | H16: =VLOOKUP(Table1[[#This Row],[Price Region]],PRICEREGIONLIST,4,FALSE) -> FALSE | I16: =VLOOKUP(Table1[[#This Row],[Price Region]],PRICEREGIONLIST,5,FALSE) -> FALSE | K16: Eastern Europe 1 | L16: 10 | M16: USD | N16: FALSE | O16: FALSE | U16: RMB | V16: Chinese Renminbi | X16: - | Z16: Denmark | AA16: 11
B17: Aruba | C17: 12 | D17: Latam Caribbean | E17: =VLOOKUP(Table1[[#This Row],[Price Region]],PRICEREGIONLIST,2,FALSE) -> 14 | F17: =VLOOKUP(Table1[[#This Row],[Price Region]],PRICEREGIONLIST,3,FALSE) -> USD | G17: =IFERROR(VLOOKUP(Table1[[#This Row],[Country Name]],EXCOUNTRYLIST,1,FALSE)<>"N/A","FALSE") -> FALSE | H17: =VLOOKUP(Table1[[#This Row],[Price Region]],PRICEREGIONLIST,4,FALSE) -> FALSE | I17: =VLOOKUP(Table1[[#This Row],[Price Region]],PRICEREGIONLIST,5,FALSE) -> FALSE | K17: Eastern Europe 2 | L17: 11 | M17: USD | N17: FALSE | O17: FALSE | U17: RUB | V17: Russian Ruble | X17: - | Z17: Estonia | AA17: 12
B18: Australia | C18: 13 | D18: Australia | E18: =VLOOKUP(Table1[[#This Row],[Price Region]],PRICEREGIONLIST,2,FALSE) -> 3 | F18: =VLOOKUP(Table1[[#This Row],[Price Region]],PRICEREGIONLIST,3,FALSE) -> AUD | G18: =IFERROR(VLOOKUP(Table1[[#This Row],[Country Name]],EXCOUNTRYLIST,1,FALSE)<>"N/A","FALSE") -> FALSE | H18: =VLOOKUP(Table1[[#This Row],[Price Region]],PRICEREGIONLIST,4,FALSE) -> FALSE | I18: =VLOOKUP(Table1[[#This Row],[Price Region]],PRICEREGIONLIST,5,FALSE) -> FALSE | K18: Eurozone | L18: 26 | M18: EUR | N18: TRUE | O18: FALSE | U18: SEK | V18: Swedish Krowne | W18: 9.793253537 | X18: =Table4[[#This Row],[Per USD]]/W10 -> 9.147486396 | Z18: Finland | AA18: 13
B19: Austria | C19: 14 | D19: Eurozone | E19: =VLOOKUP(Table1[[#This Row],[Price Region]],PRICEREGIONLIST,2,FALSE) -> 26 | F19: =VLOOKUP(Table1[[#This Row],[Price Region]],PRICEREGIONLIST,3,FALSE) -> EUR | G19: =IFERROR(VLOOKUP(Table1[[#This Row],[Country Name]],EXCOUNTRYLIST,1,FALSE)<>"N/A","FALSE") -> FALSE | H19: =VLOOKUP(Table1[[#This Row],[Price Region]],PRICEREGIONLIST,4,FALSE) -> TRUE | I19: =VLOOKUP(Table1[[#This Row],[Price Region]],PRICEREGIONLIST,5,FALSE) -> FALSE | K19: India | L19: 12 | M19: INR | N19: FALSE | O19: FALSE | U19: USD | V19: US Dollar | X19: - | Z19: France | AA19: 14
B20: Azerbaijan | C20: 15 | D20: Central Asia 2 - CEE 2 | E20: =VLOOKUP(Table1[[#This Row],[Price Region]],PRICEREGIONLIST,2,FALSE) -> 6 | F20: =VLOOKUP(Table1[[#This Row],[Price Region]],PRICEREGIONLIST,3,FALSE) -> USD | G20: =IFERROR(VLOOKUP(Table1[[#This Row],[Country Name]],EXCOUNTRYLIST,1,FALSE)<>"N/A","FALSE") -> FALSE | H20: =VLOOKUP(Table1[[#This Row],[Price Region]],PRICEREGIONLIST,4,FALSE) -> FALSE | I20: =VLOOKUP(Table1[[#This Row],[Price Region]],PRICEREGIONLIST,5,FALSE) -> FALSE | K20: Japan | L20: 13 | M20: JPY | N20: FALSE | O20: FALSE | Z20: Germany | AA20: 15
B21: Bahamas, The | C21: 16 | D21: Latam Caribbean | E21: =VLOOKUP(Table1[[#This Row],[Price Region]],PRICEREGIONLIST,2,FALSE) -> 14 | F21: =VLOOKUP(Table1[[#This Row],[Price Region]],PRICEREGIONLIST,3,FALSE) -> USD | G21: =IFERROR(VLOOKUP(Table1[[#This Row],[Country Name]],EXCOUNTRYLIST,1,FALSE)<>"N/A","FALSE") -> FALSE | H21: =VLOOKUP(Table1[[#This Row],[Price Region]],PRICEREGIONLIST,4,FALSE) -> FALSE | I21: =VLOOKUP(Table1[[#This Row],[Price Region]],PRICEREGIONLIST,5,FALSE) -> FALSE | K21: Latam Caribbean | L21: 14 | M21: USD | N21: FALSE | O21: FALSE | Z21: Great Britain | AA21: 16
B22: Bahrain | C22: 17 | D22: Middle East | E22: =VLOOKUP(Table1[[#This Row],[Price Region]],PRICEREGIONLIST,2,FALSE) -> 17 | F22: =VLOOKUP(Table1[[#This Row],[Price Region]],PRICEREGIONLIST,3,FALSE) -> USD | G22: =IFERROR(VLOOKUP(Table1[[#This Row],[Country Name]],EXCOUNTRYLIST,1,FALSE)<>"N/A","FALSE") -> FALSE | H22: =VLOOKUP(Table1[[#This Row],[Price Region]],PRICEREGIONLIST,4,FALSE) -> FALSE | I22: =VLOOKUP(Table1[[#This Row],[Price Region]],PRICEREGIONLIST,5,FALSE) -> FALSE | K22: Latam PR/BM/CI/VI | L22: 15 | M22: USD | N22: FALSE | O22: FALSE | Z22: Greece | AA22: 17
B23: Bangladesh | C23: 18 | D23: South East Asia | E23: =VLOOKUP(Table1[[#This Row],[Price Region]],PRICEREGIONLIST,2,FALSE) -> 23 | F23: =VLOOKUP(Table1[[#This Row],[Price Region]],PRICEREGIONLIST,3,FALSE) -> USD | G23: =IFERROR(VLOOKUP(Table1[[#This Row],[Country Name]],EXCOUNTRYLIST,1,FALSE)<>"N/A","FALSE") -> FALSE | H23: =VLOOKUP(Table1[[#This Row],[Price Region]],PRICEREGIONLIST,4,FALSE) -> FALSE | I23: =VLOOKUP(Table1[[#This Row],[Price Region]],PRICEREGIONLIST,5,FALSE) -> FALSE | K23: Mexico | L23: 16 | M23: USD | N23: FALSE | O23: FALSE | Z23: Hungary | AA23: 18
B24: Barbados | C24: 19 | D24: Latam Caribbean | E24: =VLOOKUP(Table1[[#This Row],[Price Region]],PRICEREGIONLIST,2,FALSE) -> 14 | F24: =VLOOKUP(Table1[[#This Row],[Price Region]],PRICEREGIONLIST,3,FALSE) -> USD | G24: =IFERROR(VLOOKUP(Table1[[#This Row],[Country Name]],EXCOUNTRYLIST,1,FALSE)<>"N/A","FALSE") -> FALSE | H24: =VLOOKUP(Table1[[#This Row],[Price Region]],PRICEREGIONLIST,4,FALSE) -> FALSE | I24: =VLOOKUP(Table1[[#This Row],[Price Region]],PRICEREGIONLIST,5,FALSE) -> FALSE | K24: Middle East | L24: 17 | M24: USD | N24: FALSE | O24: FALSE | Z24: Iceland | AA24: 19
B25: Belarus | C25: 20 | D25: Eastern Europe 2 | E25: =VLOOKUP(Table1[[#This Row],[Price Region]],PRICEREGIONLIST,2,FALSE) -> 11 | F25: =VLOOKUP(Table1[[#This Row],[Price Region]],PRICEREGIONLIST,3,FALSE) -> USD | G25: =IFERROR(VLOOKUP(Table1[[#This Row],[Country Name]],EXCOUNTRYLIST,1,FALSE)<>"N/A","FALSE") -> FALSE | H25: =VLOOKUP(Table1[[#This Row],[Price Region]],PRICEREGIONLIST,4,FALSE) -> FALSE | I25: =VLOOKUP(Table1[[#This Row],[Price Region]],PRICEREGIONLIST,5,FALSE) -> FALSE | K25: New Zealand | L25: 18 | M25: NZD | N25: FALSE | O25: FALSE | Z25: India | AA25: 20
B26: Belgium | C26: 21 | D26: Eurozone | E26: =VLOOKUP(Table1[[#This Row],[Price Region]],PRICEREGIONLIST,2,FALSE) -> 26 | F26: =VLOOKUP(Table1[[#This Row],[Price Region]],PRICEREGIONLIST,3,FALSE) -> EUR | G26: =IFERROR(VLOOKUP(Table1[[#This Row],[Country Name]],EXCOUNTRYLIST,1,FALSE)<>"N/A","FALSE") -> FALSE | H26: =VLOOKUP(Table1[[#This Row],[Price Region]],PRICEREGIONLIST,4,FALSE) -> TRUE | I26: =VLOOKUP(Table1[[#This Row],[Price Region]],PRICEREGIONLIST,5,FALSE) -> FALSE | K26: Norway2 | L26: 28 | M26: NOK | N26: TRUE | O26: TRUE | Z26: Indonesia | AA26: 21
B27: Belize | C27: 22 | D27: Rest of Latam | E27: =VLOOKUP(Table1[[#This Row],[Price Region]],PRICEREGIONLIST,2,FALSE) -> 19 | F27: =VLOOKUP(Table1[[#This Row],[Price Region]],PRICEREGIONLIST,3,FALSE) -> USD | G27: =IFERROR(VLOOKUP(Table1[[#This Row],[Country Name]],EXCOUNTRYLIST,1,FALSE)<>"N/A","FALSE") -> FALSE | H27: =VLOOKUP(Table1[[#This Row],[Price Region]],PRICEREGIONLIST,4,FALSE) -> FALSE | I27: =VLOOKUP(Table1[[#This Row],[Price Region]],PRICEREGIONLIST,5,FALSE) -> FALSE | K27: Rest of Latam | L27: 19 | M27: USD | N27: FALSE | O27: FALSE | Z27: Ireland | AA27: 22
B28: Benin | C28: 23 | D28: Africa | E28: =VLOOKUP(Table1[[#This Row],[Price Region]],PRICEREGIONLIST,2,FALSE) -> 1 | F28: =VLOOKUP(Table1[[#This Row],[Price Region]],PRICEREGIONLIST,3,FALSE) -> USD | G28: =IFERROR(VLOOKUP(Table1[[#This Row],[Country Name]],EXCOUNTRYLIST,1,FALSE)<>"N/A","FALSE") -> FALSE | H28: =VLOOKUP(Table1[[#This Row],[Price Region]],PRICEREGIONLIST,4,FALSE) -> FALSE | I28: =VLOOKUP(Table1[[#This Row],[Price Region]],PRICEREGIONLIST,5,FALSE) -> FALSE | K28: Russia | L28: 20 | M28: RUB | N28: FALSE | O28: FALSE | Z28: Italy | AA28: 23
B29: Bermuda | C29: 24 | D29: Latam PR/BM/CI/VI | E29: =VLOOKUP(Table1[[#This Row],[Price Region]],PRICEREGIONLIST,2,FALSE) -> 15 | F29: =VLOOKUP(Table1[[#This Row],[Price Region]],PRICEREGIONLIST,3,FALSE) -> USD | G29: =IFERROR(VLOOKUP(Table1[[#This Row],[Country Name]],EXCOUNTRYLIST,1,FALSE)<>"N/A","FALSE") -> FALSE | H29: =VLOOKUP(Table1[[#This Row],[Price Region]],PRICEREGIONLIST,4,FALSE) -> FALSE | I29: =VLOOKUP(Table1[[#This Row],[Price Region]],PRICEREGIONLIST,5,FALSE) -> FALSE | K29: Serbia | L29: 21 | M29: USD | N29: FALSE | O29: FALSE | Z29: Latvia | AA29: 24
B30: Bhutan | C30: 25 | D30: South East Asia | E30: =VLOOKUP(Table1[[#This Row],[Price Region]],PRICEREGIONLIST,2,FALSE) -> 23 | F30: =VLOOKUP(Table1[[#This Row],[Price Region]],PRICEREGIONLIST,3,FALSE) -> USD | G30: =IFERROR(VLOOKUP(Table1[[#This Row],[Country Name]],EXCOUNTRYLIST,1,FALSE)<>"N/A","FALSE") -> FALSE | H30: =VLOOKUP(Table1[[#This Row],[Price Region]],PRICEREGIONLIST,4,FALSE) -> FALSE | I30: =VLOOKUP(Table1[[#This Row],[Price Region]],PRICEREGIONLIST,5,FALSE) -> FALSE | K30: South Africa | L30: 22 | M30: USD | N30: FALSE | O30: FALSE | Z30: Lithuania | AA30: 25
B31: Bolivia | C31: 26 | D31: Rest of Latam | E31: =VLOOKUP(Table1[[#This Row],[Price Region]],PRICEREGIONLIST,2,FALSE) -> 19 | F31: =VLOOKUP(Table1[[#This Row],[Price Region]],PRICEREGIONLIST,3,FALSE) -> USD | G31: =IFERROR(VLOOKUP(Table1[[#This Row],[Country Name]],EXCOUNTRYLIST,1,FALSE)<>"N/A","FALSE") -> FALSE | H31: =VLOOKUP(Table1[[#This Row],[Price Region]],PRICEREGIONLIST,4,FALSE) -> FALSE | I31: =VLOOKUP(Table1[[#This Row],[Price Region]],PRICEREGIONLIST,5,FALSE) -> FALSE | K31: South East Asia | L31: 23 | M31: USD | N31: FALSE | O31: FALSE | Z31: Malaysia | AA31: 26
B32: Bosnia and Herzegovina | C32: 27 | D32: Eastern Europe 1 | E32: =VLOOKUP(Table1[[#This Row],[Price Region]],PRICEREGIONLIST,2,FALSE) -> 10 | F32: =VLOOKUP(Table1[[#This Row],[Price Region]],PRICEREGIONLIST,3,FALSE) -> USD | G32: =IFERROR(VLOOKUP(Table1[[#This Row],[Country Name]],EXCOUNTRYLIST,1,FALSE)<>"N/A","FALSE") -> FALSE | H32: =VLOOKUP(Table1[[#This Row],[Price Region]],PRICEREGIONLIST,4,FALSE) -> FALSE | I32: =VLOOKUP(Table1[[#This Row],[Price Region]],PRICEREGIONLIST,5,FALSE) -> FALSE | K32: Sweden2 | L32: 29 | M32: SEK | N32: TRUE | O32: TRUE | Z32: Malta | AA32: 27
B33: Botswana | C33: 28 | D33: Africa | E33: =VLOOKUP(Table1[[#This Row],[Price Region]],PRICEREGIONLIST,2,FALSE) -> 1 | F33: =VLOOKUP(Table1[[#This Row],[Price Region]],PRICEREGIONLIST,3,FALSE) -> USD | G33: =IFERROR(VLOOKUP(Table1[[#This Row],[Country Name]],EXCOUNTRYLIST,1,FALSE)<>"N/A","FALSE") -> FALSE | H33: =VLOOKUP(Table1[[#This Row],[Price Region]],PRICEREGIONLIST,4,FALSE) -> FALSE | I33: =VLOOKUP(Table1[[#This Row],[Price Region]],PRICEREGIONLIST,5,FALSE) -> FALSE | K33: Switzerland2 | L33: 30 | M33: CHF | N33: TRUE | O33: TRUE | Z33: Mexico | AA33: 28
B34: Bouvet Island | C34: 29 | D34: Norway2 | E34: =VLOOKUP(Table1[[#This Row],[Price Region]],PRICEREGIONLIST,2,FALSE) -> 28 | F34: =VLOOKUP(Table1[[#This Row],[Price Region]],PRICEREGIONLIST,3,FALSE) -> NOK | G34: =IFERROR(VLOOKUP(Table1[[#This Row],[Country Name]],EXCOUNTRYLIST,1,FALSE)<>"N/A","FALSE") -> FALSE | H34: =VLOOKUP(Table1[[#This Row],[Price Region]],PRICEREGIONLIST,4,FALSE) -> TRUE | I34: =VLOOKUP(Table1[[#This Row],[Price Region]],PRICEREGIONLIST,5,FALSE) -> TRUE | K34: Turkey | L34: 24 | M34: USD | N34: FALSE | O34: FALSE | Z34: Middle East | AA34: 29
B35: Brazil | C35: 30 | D35: Rest of Latam | E35: =VLOOKUP(Table1[[#This Row],[Price Region]],PRICEREGIONLIST,2,FALSE) -> 19 | F35: =VLOOKUP(Table1[[#This Row],[Price Region]],PRICEREGIONLIST,3,FALSE) -> USD | G35: =IFERROR(VLOOKUP(Table1[[#This Row],[Country Name]],EXCOUNTRYLIST,1,FALSE)<>"N/A","FALSE") -> TRUE | H35: =VLOOKUP(Table1[[#This Row],[Price Region]],PRICEREGIONLIST,4,FALSE) -> FALSE | I35: =VLOOKUP(Table1[[#This Row],[Price Region]],PRICEREGIONLIST,5,FALSE) -> FALSE | K35: United Kingdom2 | L35: 31 | M35: GBP | N35: TRUE | O35: TRUE | Z35: Netherlands | AA35: 30
B36: British Indian Ocean Territory | C36: 31 | D36: South East Asia | E36: =VLOOKUP(Table1[[#This Row],[Price Region]],PRICEREGIONLIST,2,FALSE) -> 23 | F36: =VLOOKUP(Table1[[#This Row],[Price Region]],PRICEREGIONLIST,3,FALSE) -> USD | G36: =IFERROR(VLOOKUP(Table1[[#This Row],[Country Name]],EXCOUNTRYLIST,1,FALSE)<>"N/A","FALSE") -> FALSE | H36: =VLOOKUP(Table1[[#This Row],[Price Region]],PRICEREGIONLIST,4,FALSE) -> FALSE | I36: =VLOOKUP(Table1[[#This Row],[Price Region]],PRICEREGIONLIST,5,FALSE) -> FALSE | K36: United States | L36: 25 | M36: USD | N36: FALSE | O36: FALSE | Z36: New Zealand | AA36: 31
B37: Brunei | C37: 32 | D37: South East Asia | E37: =VLOOKUP(Table1[[#This Row],[Price Region]],PRICEREGIONLIST,2,FALSE) -> 23 | F37: =VLOOKUP(Table1[[#This Row],[Price Region]],PRICEREGIONLIST,3,FALSE) -> USD | G37: =IFERROR(VLOOKUP(Table1[[#This Row],[Country Name]],EXCOUNTRYLIST,1,FALSE)<>"N/A","FALSE") -> FALSE | H37: =VLOOKUP(Table1[[#This Row],[Price Region]],PRICEREGIONLIST,4,FALSE) -> FALSE | I37: =VLOOKUP(Table1[[#This Row],[Price Region]],PRICEREGIONLIST,5,FALSE) -> FALSE | Z37: North Africa | AA37: 32
B38: Bulgaria | C38: 33 | D38: Eurozone | E38: =VLOOKUP(Table1[[#This Row],[Price Region]],PRICEREGIONLIST,2,FALSE) -> 26 | F38: =VLOOKUP(Table1[[#This Row],[Price Region]],PRICEREGIONLIST,3,FALSE) -> EUR | G38: =IFERROR(VLOOKUP(Table1[[#This Row],[Country Name]],EXCOUNTRYLIST,1,FALSE)<>"N/A","FALSE") -> FALSE | H38: =VLOOKUP(Table1[[#This Row],[Price Region]],PRICEREGIONLIST,4,FALSE) -> TRUE | I38: =VLOOKUP(Table1[[#This Row],[Price Region]],PRICEREGIONLIST,5,FALSE) -> FALSE | Z38: Norway | AA38: 33
B39: Burkina Faso | C39: 34 | D39: Africa | E39: =VLOOKUP(Table1[[#This Row],[Price Region]],PRICEREGIONLIST,2,FALSE) -> 1 | F39: =VLOOKUP(Table1[[#This Row],[Price Region]],PRICEREGIONLIST,3,FALSE) -> USD | G39: =IFERROR(VLOOKUP(Table1[[#This Row],[Country Name]],EXCOUNTRYLIST,1,FALSE)<>"N/A","FALSE") -> FALSE | H39: =VLOOKUP(Table1[[#This Row],[Price Region]],PRICEREGIONLIST,4,FALSE) -> FALSE | I39: =VLOOKUP(Table1[[#This Row],[Price Region]],PRICEREGIONLIST,5,FALSE) -> FALSE | Z39: Philippines | AA39: 34
B40: Burundi | C40: 35 | D40: Africa | E40: =VLOOKUP(Table1[[#This Row],[Price Region]],PRICEREGIONLIST,2,FALSE) -> 1 | F40: =VLOOKUP(Table1[[#This Row],[Price Region]],PRICEREGIONLIST,3,FALSE) -> USD | G40: =IFERROR(VLOOKUP(Table1[[#This Row],[Country Name]],EXCOUNTRYLIST,1,FALSE)<>"N/A","FALSE") -> FALSE | H40: =VLOOKUP(Table1[[#This Row],[Price Region]],PRICEREGIONLIST,4,FALSE) -> FALSE | I40: =VLOOKUP(Table1[[#This Row],[Price Region]],PRICEREGIONLIST,5,FALSE) -> FALSE | Z40: Poland | AA40: 35
B41: Cambodia | C41: 36 | D41: South East Asia | E41: =VLOOKUP(Table1[[#This Row],[Price Region]],PRICEREGIONLIST,2,FALSE) -> 23 | F41: =VLOOKUP(Table1[[#This Row],[Price Region]],PRICEREGIONLIST,3,FALSE) -> USD | G41: =IFERROR(VLOOKUP(Table1[[#This Row],[Country Name]],EXCOUNTRYLIST,1,FALSE)<>"N/A","FALSE") -> FALSE | H41: =VLOOKUP(Table1[[#This Row],[Price Region]],PRICEREGIONLIST,4,FALSE) -> FALSE | I41: =VLOOKUP(Table1[[#This Row],[Price Region]],PRICEREGIONLIST,5,FALSE) -> FALSE | Z41: Portugal | AA41: 36
B42: Cameroon | C42: 37 | D42: Africa | E42: =VLOOKUP(Table1[[#This Row],[Price Region]],PRICEREGIONLIST,2,FALSE) -> 1 | F42: =VLOOKUP(Table1[[#This Row],[Price Region]],PRICEREGIONLIST,3,FALSE) -> USD | G42: =IFERROR(VLOOKUP(Table1[[#This Row],[Country Name]],EXCOUNTRYLIST,1,FALSE)<>"N/A","FALSE") -> FALSE | H42: =VLOOKUP(Table1[[#This Row],[Price Region]],PRICEREGIONLIST,4,FALSE) -> FALSE | I42: =VLOOKUP(Table1[[#This Row],[Price Region]],PRICEREGIONLIST,5,FALSE) -> FALSE | Z42: Romania | AA42: 37
B43: Canada | C43: 38 | D43: Canada | E43: =VLOOKUP(Table1[[#This Row],[Price Region]],PRICEREGIONLIST,2,FALSE) -> 4 | F43: =VLOOKUP(Table1[[#This Row],[Price Region]],PRICEREGIONLIST,3,FALSE) -> CAD | G43: =IFERROR(VLOOKUP(Table1[[#This Row],[Country Name]],EXCOUNTRYLIST,1,FALSE)<>"N/A","FALSE") -> FALSE | H43: =VLOOKUP(Table1[[#This Row],[Price Region]],PRICEREGIONLIST,4,FALSE) -> FALSE | I43: =VLOOKUP(Table1[[#This Row],[Price Region]],PRICEREGIONLIST,5,FALSE) -> FALSE | Z43: Russia | AA43: 38
B44: Cape Verde | C44: 39 | D44: Africa | E44: =VLOOKUP(Table1[[#This Row],[Price Region]],PRICEREGIONLIST,2,FALSE) -> 1 | F44: =VLOOKUP(Table1[[#This Row],[Price Region]],PRICEREGIONLIST,3,FALSE) -> USD | G44: =IFERROR(VLOOKUP(Table1[[#This Row],[Country Name]],EXCOUNTRYLIST,1,FALSE)<>"N/A","FALSE") -> FALSE | H44: =VLOOKUP(Table1[[#This Row],[Price Region]],PRICEREGIONLIST,4,FALSE) -> FALSE | I44: =VLOOKUP(Table1[[#This Row],[Price Region]],PRICEREGIONLIST,5,FALSE) -> FALSE | Z44: Serbia/Montenegro | AA44: 39
B45: Cayman Islands | C45: 40 | D45: Latam PR/BM/CI/VI | E45: =VLOOKUP(Table1[[#This Row],[Price Region]],PRICEREGIONLIST,2,FALSE) -> 15 | F45: =VLOOKUP(Table1[[#This Row],[Price Region]],PRICEREGIONLIST,3,FALSE) -> USD | G45: =IFERROR(VLOOKUP(Table1[[#This Row],[Country Name]],EXCOUNTRYLIST,1,FALSE)<>"N/A","FALSE") -> FALSE | H45: =VLOOKUP(Table1[[#This Row],[Price Region]],PRICEREGIONLIST,4,FALSE) -> FALSE | I45: =VLOOKUP(Table1[[#This Row],[Price Region]],PRICEREGIONLIST,5,FALSE) -> FALSE | Z45: Singapore | AA45: 40
B46: Central African Republic | C46: 41 | D46: Africa | E46: =VLOOKUP(Table1[[#This Row],[Price Region]],PRICEREGIONLIST,2,FALSE) -> 1 | F46: =VLOOKUP(Table1[[#This Row],[Price Region]],PRICEREGIONLIST,3,FALSE) -> USD | G46: =IFERROR(VLOOKUP(Table1[[#This Row],[Country Name]],EXCOUNTRYLIST,1,FALSE)<>"N/A","FALSE") -> FALSE | H46: =VLOOKUP(Table1[[#This Row],[Price Region]],PRICEREGIONLIST,4,FALSE) -> FALSE | I46: =VLOOKUP(Table1[[#This Row],[Price Region]],PRICEREGIONLIST,5,FALSE) -> FALSE | Z46: Slovak Republic | AA46: 41
B47: Chad | C47: 42 | D47: Africa | E47: =VLOOKUP(Table1[[#This Row],[Price Region]],PRICEREGIONLIST,2,FALSE) -> 1 | F47: =VLOOKUP(Table1[[#This Row],[Price Region]],PRICEREGIONLIST,3,FALSE) -> USD | G47: =IFERROR(VLOOKUP(Table1[[#This Row],[Country Name]],EXCOUNTRYLIST,1,FALSE)<>"N/A","FALSE") -> FALSE | H47: =VLOOKUP(Table1[[#This Row],[Price Region]],PRICEREGIONLIST,4,FALSE) -> FALSE | I47: =VLOOKUP(Table1[[#This Row],[Price Region]],PRICEREGIONLIST,5,FALSE) -> FALSE | Z47: Slovenia | AA47: 42
B48: Chile | C48: 43 | D48: Chile | E48: =VLOOKUP(Table1[[#This Row],[Price Region]],PRICEREGIONLIST,2,FALSE) -> 7 | F48: =VLOOKUP(Table1[[#This Row],[Price Region]],PRICEREGIONLIST,3,FALSE) -> USD | G48: =IFERROR(VLOOKUP(Table1[[#This Row],[Country Name]],EXCOUNTRYLIST,1,FALSE)<>"N/A","FALSE") -> FALSE | H48: =VLOOKUP(Table1[[#This Row],[Price Region]],PRICEREGIONLIST,4,FALSE) -> FALSE | I48: =VLOOKUP(Table1[[#This Row],[Price Region]],PRICEREGIONLIST,5,FALSE) -> FALSE | Z48: South Africa | AA48: 43
B49: China | C49: 44 | D49: China | E49: =VLOOKUP(Table1[[#This Row],[Price Region]],PRICEREGIONLIST,2,FALSE) -> 8 | F49: =VLOOKUP(Table1[[#This Row],[Price Region]],PRICEREGIONLIST,3,FALSE) -> RMB | G49: =IFERROR(VLOOKUP(Table1[[#This Row],[Country Name]],EXCOUNTRYLIST,1,FALSE)<>"N/A","FALSE") -> FALSE | H49: =VLOOKUP(Table1[[#This Row],[Price Region]],PRICEREGIONLIST,4,FALSE) -> FALSE | I49: =VLOOKUP(Table1[[#This Row],[Price Region]],PRICEREGIONLIST,5,FALSE) -> FALSE | Z49: Spain | AA49: 44
B50: Christmas Island | C50: 45 | D50: Australia | E50: =VLOOKUP(Table1[[#This Row],[Price Region]],PRICEREGIONLIST,2,FALSE) -> 3 | F50: =VLOOKUP(Table1[[#This Row],[Price Region]],PRICEREGIONLIST,3,FALSE) -> AUD | G50: =IFERROR(VLOOKUP(Table1[[#This Row],[Country Name]],EXCOUNTRYLIST,1,FALSE)<>"N/A","FALSE") -> FALSE | H50: =VLOOKUP(Table1[[#This Row],[Price Region]],PRICEREGIONLIST,4,FALSE) -> FALSE | I50: =VLOOKUP(Table1[[#This Row],[Price Region]],PRICEREGIONLIST,5,FALSE) -> FALSE | Z50: Sweden | AA50: 45
B51: Cocos (Keeling) Islands | C51: 46 | D51: Australia | E51: =VLOOKUP(Table1[[#This Row],[Price Region]],PRICEREGIONLIST,2,FALSE) -> 3 | F51: =VLOOKUP(Table1[[#This Row],[Price Region]],PRICEREGIONLIST,3,FALSE) -> AUD | G51: =IFERROR(VLOOKUP(Table1[[#This Row],[Country Name]],EXCOUNTRYLIST,1,FALSE)<>"N/A","FALSE") -> FALSE | H51: =VLOOKUP(Table1[[#This Row],[Price Region]],PRICEREGIONLIST,4,FALSE) -> FALSE | I51: =VLOOKUP(Table1[[#This Row],[Price Region]],PRICEREGIONLIST,5,FALSE) -> FALSE | Z51: Switzerland | AA51: 46
B52: Colombia | C52: 47 | D52: Colombia | E52: =VLOOKUP(Table1[[#This Row],[Price Region]],PRICEREGIONLIST,2,FALSE) -> 9 | F52: =VLOOKUP(Table1[[#This Row],[Price Region]],PRICEREGIONLIST,3,FALSE) -> USD | G52: =IFERROR(VLOOKUP(Table1[[#This Row],[Country Name]],EXCOUNTRYLIST,1,FALSE)<>"N/A","FALSE") -> FALSE | H52: =VLOOKUP(Table1[[#This Row],[Price Region]],PRICEREGIONLIST,4,FALSE) -> FALSE | I52: =VLOOKUP(Table1[[#This Row],[Price Region]],PRICEREGIONLIST,5,FALSE) -> FALSE | Z52: Thailand | AA52: 47
B53: Comoros | C53: 48 | D53: Africa | E53: =VLOOKUP(Table1[[#This Row],[Price Region]],PRICEREGIONLIST,2,FALSE) -> 1 | F53: =VLOOKUP(Table1[[#This Row],[Price Region]],PRICEREGIONLIST,3,FALSE) -> USD | G53: =IFERROR(VLOOKUP(Table1[[#This Row],[Country Name]],EXCOUNTRYLIST,1,FALSE)<>"N/A","FALSE") -> FALSE | H53: =VLOOKUP(Table1[[#This Row],[Price Region]],PRICEREGIONLIST,4,FALSE) -> FALSE | I53: =VLOOKUP(Table1[[#This Row],[Price Region]],PRICEREGIONLIST,5,FALSE) -> FALSE | Z53: Turkey | AA53: 48
B54: Congo | C54: 49 | D54: Africa | E54: =VLOOKUP(Table1[[#This Row],[Price Region]],PRICEREGIONLIST,2,FALSE) -> 1 | F54: =VLOOKUP(Table1[[#This Row],[Price Region]],PRICEREGIONLIST,3,FALSE) -> USD | G54: =IFERROR(VLOOKUP(Table1[[#This Row],[Country Name]],EXCOUNTRYLIST,1,FALSE)<>"N/A","FALSE") -> FALSE | H54: =VLOOKUP(Table1[[#This Row],[Price Region]],PRICEREGIONLIST,4,FALSE) -> FALSE | I54: =VLOOKUP(Table1[[#This Row],[Price Region]],PRICEREGIONLIST,5,FALSE) -> FALSE | Z54: United States | AA54: 49
B55: Congo (DRC) | C55: 50 | D55: Africa | E55: =VLOOKUP(Table1[[#This Row],[Price Region]],PRICEREGIONLIST,2,FALSE) -> 1 | F55: =VLOOKUP(Table1[[#This Row],[Price Region]],PRICEREGIONLIST,3,FALSE) -> USD | G55: =IFERROR(VLOOKUP(Table1[[#This Row],[Country Name]],EXCOUNTRYLIST,1,FALSE)<>"N/A","FALSE") -> FALSE | H55: =VLOOKUP(Table1[[#This Row],[Price Region]],PRICEREGIONLIST,4,FALSE) -> FALSE | I55: =VLOOKUP(Table1[[#This Row],[Price Region]],PRICEREGIONLIST,5,FALSE) -> FALSE | Z55: W1 | AA55: 50
B56: Cook Islands | C56: 51 | D56: New Zealand | E56: =VLOOKUP(Table1[[#This Row],[Price Region]],PRICEREGIONLIST,2,FALSE) -> 18 | F56: =VLOOKUP(Table1[[#This Row],[Price Region]],PRICEREGIONLIST,3,FALSE) -> NZD | G56: =IFERROR(VLOOKUP(Table1[[#This Row],[Country Name]],EXCOUNTRYLIST,1,FALSE)<>"N/A","FALSE") -> FALSE | H56: =VLOOKUP(Table1[[#This Row],[Price Region]],PRICEREGIONLIST,4,FALSE) -> FALSE | I56: =VLOOKUP(Table1[[#This Row],[Price Region]],PRICEREGIONLIST,5,FALSE) -> FALSE | Z56: WECA | AA56: 51
B57: Costa Rica | C57: 52 | D57: Rest of Latam | E57: =VLOOKUP(Table1[[#This Row],[Price Region]],PRICEREGIONLIST,2,FALSE) -> 19 | F57: =VLOOKUP(Table1[[#This Row],[Price Region]],PRICEREGIONLIST,3,FALSE) -> USD | G57: =IFERROR(VLOOKUP(Table1[[#This Row],[Country Name]],EXCOUNTRYLIST,1,FALSE)<>"N/A","FALSE") -> FALSE | H57: =VLOOKUP(Table1[[#This Row],[Price Region]],PRICEREGIONLIST,4,FALSE) -> FALSE | I57: =VLOOKUP(Table1[[#This Row],[Price Region]],PRICEREGIONLIST,5,FALSE) -> FALSE
B58: Côte d'Ivoire | C58: 53 | D58: Africa | E58: =VLOOKUP(Table1[[#This Row],[Price Region]],PRICEREGIONLIST,2,FALSE) -> 1 | F58: =VLOOKUP(Table1[[#This Row],[Price Region]],PRICEREGIONLIST,3,FALSE) -> USD | G58: =IFERROR(VLOOKUP(Table1[[#This Row],[Country Name]],EXCOUNTRYLIST,1,FALSE)<>"N/A","FALSE") -> FALSE | H58: =VLOOKUP(Table1[[#This Row],[Price Region]],PRICEREGIONLIST,4,FALSE) -> FALSE | I58: =VLOOKUP(Table1[[#This Row],[Price Region]],PRICEREGIONLIST,5,FALSE) -> FALSE
B59: Croatia | C59: 54 | D59: Eurozone | E59: =VLOOKUP(Table1[[#This Row],[Price Region]],PRICEREGIONLIST,2,FALSE) -> 26 | F59: =VLOOKUP(Table1[[#This Row],[Price Region]],PRICEREGIONLIST,3,FALSE) -> EUR | G59: =IFERROR(VLOOKUP(Table1[[#This Row],[Country Name]],EXCOUNTRYLIST,1,FALSE)<>"N/A","FALSE") -> FALSE | H59: =VLOOKUP(Table1[[#This Row],[Price Region]],PRICEREGIONLIST,4,FALSE) -> TRUE | I59: =VLOOKUP(Table1[[#This Row],[Price Region]],PRICEREGIONLIST,5,FALSE) -> FALSE
B60: Cuba | C60: 55 | D60: Latam Caribbean | E60: =VLOOKUP(Table1[[#This Row],[Price Region]],PRICEREGIONLIST,2,FALSE) -> 14 | F60: =VLOOKUP(Table1[[#This Row],[Price Region]],PRICEREGIONLIST,3,FALSE) -> USD | G60: =IFERROR(VLOOKUP(Table1[[#This Row],[Country Name]],EXCOUNTRYLIST,1,FALSE)<>"N/A","FALSE") -> TRUE | H60: =VLOOKUP(Table1[[#This Row],[Price Region]],PRICEREGIONLIST,4,FALSE) -> FALSE | I60: =VLOOKUP(Table1[[#This Row],[Price Region]],PRICEREGIONLIST,5,FALSE) -> FALSE
B61: Cyprus | C61: 56 | D61: Eurozone | E61: =VLOOKUP(Table1[[#This Row],[Price Region]],PRICEREGIONLIST,2,FALSE) -> 26 | F61: =VLOOKUP(Table1[[#This Row],[Price Region]],PRICEREGIONLIST,3,FALSE) -> EUR | G61: =IFERROR(VLOOKUP(Table1[[#This Row],[Country Name]],EXCOUNTRYLIST,1,FALSE)<>"N/A","FALSE") -> FALSE | H61: =VLOOKUP(Table1[[#This Row],[Price Region]],PRICEREGIONLIST,4,FALSE) -> TRUE | I61: =VLOOKUP(Table1[[#This Row],[Price Region]],PRICEREGIONLIST,5,FALSE) -> FALSE
B62: Czech Republic | C62: 57 | D62: Eurozone | E62: =VLOOKUP(Table1[[#This Row],[Price Region]],PRICEREGIONLIST,2,FALSE) -> 26 | F62: =VLOOKUP(Table1[[#This Row],[Price Region]],PRICEREGIONLIST,3,FALSE) -> EUR | G62: =IFERROR(VLOOKUP(Table1[[#This Row],[Country Name]],EXCOUNTRYLIST,1,FALSE)<>"N/A","FALSE") -> FALSE | H62: =VLOOKUP(Table1[[#This Row],[Price Region]],PRICEREGIONLIST,4,FALSE) -> TRUE | I62: =VLOOKUP(Table1[[#This Row],[Price Region]],PRICEREGIONLIST,5,FALSE) -> FALSE
B63: Denmark | C63: 58 | D63: Denmark2 | E63: =VLOOKUP(Table1[[#This Row],[Price Region]],PRICEREGIONLIST,2,FALSE) -> 27 | F63: =VLOOKUP(Table1[[#This Row],[Price Region]],PRICEREGIONLIST,3,FALSE) -> DKK | G63: =IFERROR(VLOOKUP(Table1[[#This Row],[Country Name]],EXCOUNTRYLIST,1,FALSE)<>"N/A","FALSE") -> FALSE | H63: =VLOOKUP(Table1[[#This Row],[Price Region]],PRICEREGIONLIST,4,FALSE) -> TRUE | I63: =VLOOKUP(Table1[[#This Row],[Price Region]],PRICEREGIONLIST,5,FALSE) -> TRUE
B64: Djibouti | C64: 59 | D64: Africa | E64: =VLOOKUP(Table1[[#This Row],[Price Region]],PRICEREGIONLIST,2,FALSE) -> 1 | F64: =VLOOKUP(Table1[[#This Row],[Price Region]],PRICEREGIONLIST,3,FALSE) -> USD | G64: =IFERROR(VLOOKUP(Table1[[#This Row],[Country Name]],EXCOUNTRYLIST,1,FALSE)<>"N/A","FALSE") -> FALSE | H64: =VLOOKUP(Table1[[#This Row],[Price Region]],PRICEREGIONLIST,4,FALSE) -> FALSE | I64: =VLOOKUP(Table1[[#This Row],[Price Region]],PRICEREGIONLIST,5,FALSE) -> FALSE
B65: Dominica | C65: 60 | D65: Latam Caribbean | E65: =VLOOKUP(Table1[[#This Row],[Price Region]],PRICEREGIONLIST,2,FALSE) -> 14 | F65: =VLOOKUP(Table1[[#This Row],[Price Region]],PRICEREGIONLIST,3,FALSE) -> USD | G65: =IFERROR(VLOOKUP(Table1[[#This Row],[Country Name]],EXCOUNTRYLIST,1,FALSE)<>"N/A","FALSE") -> FALSE | H65: =VLOOKUP(Table1[[#This Row],[Price Region]],PRICEREGIONLIST,4,FALSE) -> FALSE | I65: =VLOOKUP(Table1[[#This Row],[Price Region]],PRICEREGIONLIST,5,FALSE) -> FALSE
B66: Dominican Republic | C66: 61 | D66: Rest of Latam | E66: =VLOOKUP(Table1[[#This Row],[Price Region]],PRICEREGIONLIST,2,FALSE) -> 19 | F66: =VLOOKUP(Table1[[#This Row],[Price Region]],PRICEREGIONLIST,3,FALSE) -> USD | G66: =IFERROR(VLOOKUP(Table1[[#This Row],[Country Name]],EXCOUNTRYLIST,1,FALSE)<>"N/A","FALSE") -> FALSE | H66: =VLOOKUP(Table1[[#This Row],[Price Region]],PRICEREGIONLIST,4,FALSE) -> FALSE | I66: =VLOOKUP(Table1[[#This Row],[Price Region]],PRICEREGIONLIST,5,FALSE) -> FALSE
B67: Ecuador | C67: 62 | D67: Rest of Latam | E67: =VLOOKUP(Table1[[#This Row],[Price Region]],PRICEREGIONLIST,2,FALSE) -> 19 | F67: =VLOOKUP(Table1[[#This Row],[Price Region]],PRICEREGIONLIST,3,FALSE) -> USD | G67: =IFERROR(VLOOKUP(Table1[[#This Row],[Country Name]],EXCOUNTRYLIST,1,FALSE)<>"N/A","FALSE") -> FALSE | H67: =VLOOKUP(Table1[[#This Row],[Price Region]],PRICEREGIONLIST,4,FALSE) -> FALSE | I67: =VLOOKUP(Table1[[#This Row],[Price Region]],PRICEREGIONLIST,5,FALSE) -> FALSE
B68: Egypt | C68: 63 | D68: Africa | E68: =VLOOKUP(Table1[[#This Row],[Price Region]],PRICEREGIONLIST,2,FALSE) -> 1 | F68: =VLOOKUP(Table1[[#This Row],[Price Region]],PRICEREGIONLIST,3,FALSE) -> USD | G68: =IFERROR(VLOOKUP(Table1[[#This Row],[Country Name]],EXCOUNTRYLIST,1,FALSE)<>"N/A","FALSE") -> FALSE | H68: =VLOOKUP(Table1[[#This Row],[Price Region]],PRICEREGIONLIST,4,FALSE) -> FALSE | I68: =VLOOKUP(Table1[[#This Row],[Price Region]],PRICEREGIONLIST,5,FALSE) -> FALSE
B69: El Salvador | C69: 64 | D69: Rest of Latam | E69: =VLOOKUP(Table1[[#This Row],[Price Region]],PRICEREGIONLIST,2,FALSE) -> 19 | F69: =VLOOKUP(Table1[[#This Row],[Price Region]],PRICEREGIONLIST,3,FALSE) -> USD | G69: =IFERROR(VLOOKUP(Table1[[#This Row],[Country Name]],EXCOUNTRYLIST,1,FALSE)<>"N/A","FALSE") -> FALSE | H69: =VLOOKUP(Table1[[#This Row],[Price Region]],PRICEREGIONLIST,4,FALSE) -> FALSE | I69: =VLOOKUP(Table1[[#This Row],[Price Region]],PRICEREGIONLIST,5,FALSE) -> FALSE
B70: Equatorial Guinea | C70: 65 | D70: Africa | E70: =VLOOKUP(Table1[[#This Row],[Price Region]],PRICEREGIONLIST,2,FALSE) -> 1 | F70: =VLOOKUP(Table1[[#This Row],[Price Region]],PRICEREGIONLIST,3,FALSE) -> USD | G70: =IFERROR(VLOOKUP(Table1[[#This Row],[Country Name]],EXCOUNTRYLIST,1,FALSE)<>"N/A","FALSE") -> FALSE | H70: =VLOOKUP(Table1[[#This Row],[Price Region]],PRICEREGIONLIST,4,FALSE) -> FALSE | I70: =VLOOKUP(Table1[[#This Row],[Price Region]],PRICEREGIONLIST,5,FALSE) -> FALSE
B71: Eritrea | C71: 66 | D71: Africa | E71: =VLOOKUP(Table1[[#This Row],[Price Region]],PRICEREGIONLIST,2,FALSE) -> 1 | F71: =VLOOKUP(Table1[[#This Row],[Price Region]],PRICEREGIONLIST,3,FALSE) -> USD | G71: =IFERROR(VLOOKUP(Table1[[#This Row],[Country Name]],EXCOUNTRYLIST,1,FALSE)<>"N/A","FALSE") -> FALSE | H71: =VLOOKUP(Table1[[#This Row],[Price Region]],PRICEREGIONLIST,4,FALSE) -> FALSE | I71: =VLOOKUP(Table1[[#This Row],[Price Region]],PRICEREGIONLIST,5,FALSE) -> FALSE
B72: Estonia | C72: 67 | D72: Eurozone | E72: =VLOOKUP(Table1[[#This Row],[Price Region]],PRICEREGIONLIST,2,FALSE) -> 26 | F72: =VLOOKUP(Table1[[#This Row],[Price Region]],PRICEREGIONLIST,3,FALSE) -> EUR | G72: =IFERROR(VLOOKUP(Table1[[#This Row],[Country Name]],EXCOUNTRYLIST,1,FALSE)<>"N/A","FALSE") -> FALSE | H72: =VLOOKUP(Table1[[#This Row],[Price Region]],PRICEREGIONLIST,4,FALSE) -> TRUE | I72: =VLOOKUP(Table1[[#This Row],[Price Region]],PRICEREGIONLIST,5,FALSE) -> FALSE
B73: Ethiopia | C73: 68 | D73: Africa | E73: =VLOOKUP(Table1[[#This Row],[Price Region]],PRICEREGIONLIST,2,FALSE) -> 1 | F73: =VLOOKUP(Table1[[#This Row],[Price Region]],PRICEREGIONLIST,3,FALSE) -> USD | G73: =IFERROR(VLOOKUP(Table1[[#This Row],[Country Name]],EXCOUNTRYLIST,1,FALSE)<>"N/A","FALSE") -> FALSE | H73: =VLOOKUP(Table1[[#This Row],[Price Region]],PRICEREGIONLIST,4,FALSE) -> FALSE | I73: =VLOOKUP(Table1[[#This Row],[Price Region]],PRICEREGIONLIST,5,FALSE) -> FALSE
B74: Falkland Islands (Islas Malvinas) | C74: 69 | D74: Rest of Latam | E74: =VLOOKUP(Table1[[#This Row],[Price Region]],PRICEREGIONLIST,2,FALSE) -> 19 | F74: =VLOOKUP(Table1[[#This Row],[Price Region]],PRICEREGIONLIST,3,FALSE) -> USD | G74: =IFERROR(VLOOKUP(Table1[[#This Row],[Country Name]],EXCOUNTRYLIST,1,FALSE)<>"N/A","FALSE") -> FALSE | H74: =VLOOKUP(Table1[[#This Row],[Price Region]],PRICEREGIONLIST,4,FALSE) -> FALSE | I74: =VLOOKUP(Table1[[#This Row],[Price Region]],PRICEREGIONLIST,5,FALSE) -> FALSE
B75: Faroe Islands | C75: 70 | D75: Denmark2 | E75: =VLOOKUP(Table1[[#This Row],[Price Region]],PRICEREGIONLIST,2,FALSE) -> 27 | F75: =VLOOKUP(Table1[[#This Row],[Price Region]],PRICEREGIONLIST,3,FALSE) -> DKK | G75: =IFERROR(VLOOKUP(Table1[[#This Row],[Country Name]],EXCOUNTRYLIST,1,FALSE)<>"N/A","FALSE") -> FALSE | H75: =VLOOKUP(Table1[[#This Row],[Price Region]],PRICEREGIONLIST,4,FALSE) -> TRUE | I75: =VLOOKUP(Table1[[#This Row],[Price Region]],PRICEREGIONLIST,5,FALSE) -> TRUE
B76: Fiji Islands | C76: 71 | D76: South East Asia | E76: =VLOOKUP(Table1[[#This Row],[Price Region]],PRICEREGIONLIST,2,FALSE) -> 23 | F76: =VLOOKUP(Table1[[#This Row],[Price Region]],PRICEREGIONLIST,3,FALSE) -> USD | G76: =IFERROR(VLOOKUP(Table1[[#This Row],[Country Name]],EXCOUNTRYLIST,1,FALSE)<>"N/A","FALSE") -> FALSE | H76: =VLOOKUP(Table1[[#This Row],[Price Region]],PRICEREGIONLIST,4,FALSE) -> FALSE | I76: =VLOOKUP(Table1[[#This Row],[Price Region]],PRICEREGIONLIST,5,FALSE) -> FALSE
B77: Finland | C77: 72 | D77: Eurozone | E77: =VLOOKUP(Table1[[#This Row],[Price Region]],PRICEREGIONLIST,2,FALSE) -> 26 | F77: =VLOOKUP(Table1[[#This Row],[Price Region]],PRICEREGIONLIST,3,FALSE) -> EUR | G77: =IFERROR(VLOOKUP(Table1[[#This Row],[Country Name]],EXCOUNTRYLIST,1,FALSE)<>"N/A","FALSE") -> FALSE | H77: =VLOOKUP(Table1[[#This Row],[Price Region]],PRICEREGIONLIST,4,FALSE) -> TRUE | I77: =VLOOKUP(Table1[[#This Row],[Price Region]],PRICEREGIONLIST,5,FALSE) -> FALSE
B78: France | C78: 73 | D78: Eurozone | E78: =VLOOKUP(Table1[[#This Row],[Price Region]],PRICEREGIONLIST,2,FALSE) -> 26 | F78: =VLOOKUP(Table1[[#This Row],[Price Region]],PRICEREGIONLIST,3,FALSE) -> EUR | G78: =IFERROR(VLOOKUP(Table1[[#This Row],[Country Name]],EXCOUNTRYLIST,1,FALSE)<>"N/A","FALSE") -> FALSE | H78: =VLOOKUP(Table1[[#This Row],[Price Region]],PRICEREGIONLIST,4,FALSE) -> TRUE | I78: =VLOOKUP(Table1[[#This Row],[Price Region]],PRICEREGIONLIST,5,FALSE) -> FALSE
B79: French Guiana | C79: 74 | D79: Eurozone | E79: =VLOOKUP(Table1[[#This Row],[Price Region]],PRICEREGIONLIST,2,FALSE) -> 26 | F79: =VLOOKUP(Table1[[#This Row],[Price Region]],PRICEREGIONLIST,3,FALSE) -> EUR | G79: =IFERROR(VLOOKUP(Table1[[#This Row],[Country Name]],EXCOUNTRYLIST,1,FALSE)<>"N/A","FALSE") -> FALSE | H79: =VLOOKUP(Table1[[#This Row],[Price Region]],PRICEREGIONLIST,4,FALSE) -> TRUE | I79: =VLOOKUP(Table1[[#This Row],[Price Region]],PRICEREGIONLIST,5,FALSE) -> FALSE
B80: French Polynesia | C80: 75 | D80: Africa | E80: =VLOOKUP(Table1[[#This Row],[Price Region]],PRICEREGIONLIST,2,FALSE) -> 1 | F80: =VLOOKUP(Table1[[#This Row],[Price Region]],PRICEREGIONLIST,3,FALSE) -> USD | G80: =IFERROR(VLOOKUP(Table1[[#This Row],[Country Name]],EXCOUNTRYLIST,1,FALSE)<>"N/A","FALSE") -> FALSE | H80: =VLOOKUP(Table1[[#This Row],[Price Region]],PRICEREGIONLIST,4,FALSE) -> FALSE | I80: =VLOOKUP(Table1[[#This Row],[Price Region]],PRICEREGIONLIST,5,FALSE) -> FALSE
B81: French Southern and Antarctic Lands | C81: 76 | D81: Eurozone | E81: =VLOOKUP(Table1[[#This Row],[Price Region]],PRICEREGIONLIST,2,FALSE) -> 26 | F81: =VLOOKUP(Table1[[#This Row],[Price Region]],PRICEREGIONLIST,3,FALSE) -> EUR | G81: =IFERROR(VLOOKUP(Table1[[#This Row],[Country Name]],EXCOUNTRYLIST,1,FALSE)<>"N/A","FALSE") -> FALSE | H81: =VLOOKUP(Table1[[#This Row],[Price Region]],PRICEREGIONLIST,4,FALSE) -> TRUE | I81: =VLOOKUP(Table1[[#This Row],[Price Region]],PRICEREGIONLIST,5,FALSE) -> FALSE
B82: Gabon | C82: 77 | D82: Africa | E82: =VLOOKUP(Table1[[#This Row],[Price Region]],PRICEREGIONLIST,2,FALSE) -> 1 | F82: =VLOOKUP(Table1[[#This Row],[Price Region]],PRICEREGIONLIST,3,FALSE) -> USD | G82: =IFERROR(VLOOKUP(Table1[[#This Row],[Country Name]],EXCOUNTRYLIST,1,FALSE)<>"N/A","FALSE") -> FALSE | H82: =VLOOKUP(Table1[[#This Row],[Price Region]],PRICEREGIONLIST,4,FALSE) -> FALSE | I82: =VLOOKUP(Table1[[#This Row],[Price Region]],PRICEREGIONLIST,5,FALSE) -> FALSE
B83: Gambia, The | C83: 78 | D83: Africa | E83: =VLOOKUP(Table1[[#This Row],[Price Region]],PRICEREGIONLIST,2,FALSE) -> 1 | F83: =VLOOKUP(Table1[[#This Row],[Price Region]],PRICEREGIONLIST,3,FALSE) -> USD | G83: =IFERROR(VLOOKUP(Table1[[#This Row],[Country Name]],EXCOUNTRYLIST,1,FALSE)<>"N/A","FALSE") -> FALSE | H83: =VLOOKUP(Table1[[#This Row],[Price Region]],PRICEREGIONLIST,4,FALSE) -> FALSE | I83: =VLOOKUP(Table1[[#This Row],[Price Region]],PRICEREGIONLIST,5,FALSE) -> FALSE
B84: Georgia | C84: 80 | D84: Eastern Europe 2 | E84: =VLOOKUP(Table1[[#This Row],[Price Region]],PRICEREGIONLIST,2,FALSE) -> 11 | F84: =VLOOKUP(Table1[[#This Row],[Price Region]],PRICEREGIONLIST,3,FALSE) -> USD | G84: =IFERROR(VLOOKUP(Table1[[#This Row],[Country Name]],EXCOUNTRYLIST,1,FALSE)<>"N/A","FALSE") -> FALSE | H84: =VLOOKUP(Table1[[#This Row],[Price Region]],PRICEREGIONLIST,4,FALSE) -> FALSE | I84: =VLOOKUP(Table1[[#This Row],[Price Region]],PRICEREGIONLIST,5,FALSE) -> FALSE
B85: Germany | C85: 81 | D85: Eurozone | E85: =VLOOKUP(Table1[[#This Row],[Price Region]],PRICEREGIONLIST,2,FALSE) -> 26 | F85: =VLOOKUP(Table1[[#This Row],[Price Region]],PRICEREGIONLIST,3,FALSE) -> EUR | G85: =IFERROR(VLOOKUP(Table1[[#This Row],[Country Name]],EXCOUNTRYLIST,1,FALSE)<>"N/A","FALSE") -> FALSE | H85: =VLOOKUP(Table1[[#This Row],[Price Region]],PRICEREGIONLIST,4,FALSE) -> TRUE | I85: =VLOOKUP(Table1[[#This Row],[Price Region]],PRICEREGIONLIST,5,FALSE) -> FALSE
B86: Ghana | C86: 82 | D86: Africa | E86: =VLOOKUP(Table1[[#This Row],[Price Region]],PRICEREGIONLIST,2,FALSE) -> 1 | F86: =VLOOKUP(Table1[[#This Row],[Price Region]],PRICEREGIONLIST,3,FALSE) -> USD | G86: =IFERROR(VLOOKUP(Table1[[#This Row],[Country Name]],EXCOUNTRYLIST,1,FALSE)<>"N/A","FALSE") -> FALSE | H86: =VLOOKUP(Table1[[#This Row],[Price Region]],PRICEREGIONLIST,4,FALSE) -> FALSE | I86: =VLOOKUP(Table1[[#This Row],[Price Region]],PRICEREGIONLIST,5,FALSE) -> FALSE
B87: Gibraltar | C87: 83 | D87: United Kingdom2 | E87: =VLOOKUP(Table1[[#This Row],[Price Region]],PRICEREGIONLIST,2,FALSE) -> 31 | F87: =VLOOKUP(Table1[[#This Row],[Price Region]],PRICEREGIONLIST,3,FALSE) -> GBP | G87: =IFERROR(VLOOKUP(Table1[[#This Row],[Country Name]],EXCOUNTRYLIST,1,FALSE)<>"N/A","FALSE") -> FALSE | H87: =VLOOKUP(Table1[[#This Row],[Price Region]],PRICEREGIONLIST,4,FALSE) -> TRUE | I87: =VLOOKUP(Table1[[#This Row],[Price Region]],PRICEREGIONLIST,5,FALSE) -> TRUE
B88: Greece | C88: 84 | D88: Eurozone | E88: =VLOOKUP(Table1[[#This Row],[Price Region]],PRICEREGIONLIST,2,FALSE) -> 26 | F88: =VLOOKUP(Table1[[#This Row],[Price Region]],PRICEREGIONLIST,3,FALSE) -> EUR | G88: =IFERROR(VLOOKUP(Table1[[#This Row],[Country Name]],EXCOUNTRYLIST,1,FALSE)<>"N/A","FALSE") -> FALSE | H88: =VLOOKUP(Table1[[#This Row],[Price Region]],PRICEREGIONLIST,4,FALSE) -> TRUE | I88: =VLOOKUP(Table1[[#This Row],[Price Region]],PRICEREGIONLIST,5,FALSE) -> FALSE
B89: Greenland | C89: 85 | D89: Denmark2 | E89: =VLOOKUP(Table1[[#This Row],[Price Region]],PRICEREGIONLIST,2,FALSE) -> 27 | F89: =VLOOKUP(Table1[[#This Row],[Price Region]],PRICEREGIONLIST,3,FALSE) -> DKK | G89: =IFERROR(VLOOKUP(Table1[[#This Row],[Country Name]],EXCOUNTRYLIST,1,FALSE)<>"N/A","FALSE") -> FALSE | H89: =VLOOKUP(Table1[[#This Row],[Price Region]],PRICEREGIONLIST,4,FALSE) -> TRUE | I89: =VLOOKUP(Table1[[#This Row],[Price Region]],PRICEREGIONLIST,5,FALSE) -> TRUE
B90: Grenada | C90: 86 | D90: Latam Caribbean | E90: =VLOOKUP(Table1[[#This Row],[Price Region]],PRICEREGIONLIST,2,FALSE) -> 14 | F90: =VLOOKUP(Table1[[#This Row],[Price Region]],PRICEREGIONLIST,3,FALSE) -> USD | G90: =IFERROR(VLOOKUP(Table1[[#This Row],[Country Name]],EXCOUNTRYLIST,1,FALSE)<>"N/A","FALSE") -> FALSE | H90: =VLOOKUP(Table1[[#This Row],[Price Region]],PRICEREGIONLIST,4,FALSE) -> FALSE | I90: =VLOOKUP(Table1[[#This Row],[Price Region]],PRICEREGIONLIST,5,FALSE) -> FALSE
B91: Guadeloupe | C91: 87 | D91: Eurozone | E91: =VLOOKUP(Table1[[#This Row],[Price Region]],PRICEREGIONLIST,2,FALSE) -> 26 | F91: =VLOOKUP(Table1[[#This Row],[Price Region]],PRICEREGIONLIST,3,FALSE) -> EUR | G91: =IFERROR(VLOOKUP(Table1[[#This Row],[Country Name]],EXCOUNTRYLIST,1,FALSE)<>"N/A","FALSE") -> FALSE | H91: =VLOOKUP(Table1[[#This Row],[Price Region]],PRICEREGIONLIST,4,FALSE) -> TRUE | I91: =VLOOKUP(Table1[[#This Row],[Price Region]],PRICEREGIONLIST,5,FALSE) -> FALSE
B92: Guam | C92: 88 | D92: APOC United States | E92: =VLOOKUP(Table1[[#This Row],[Price Region]],PRICEREGIONLIST,2,FALSE) -> 2 | F92: =VLOOKUP(Table1[[#This Row],[Price Region]],PRICEREGIONLIST,3,FALSE) -> USD | G92: =IFERROR(VLOOKUP(Table1[[#This Row],[Country Name]],EXCOUNTRYLIST,1,FALSE)<>"N/A","FALSE") -> FALSE | H92: =VLOOKUP(Table1[[#This Row],[Price Region]],PRICEREGIONLIST,4,FALSE) -> FALSE | I92: =VLOOKUP(Table1[[#This Row],[Price Region]],PRICEREGIONLIST,5,FALSE) -> FALSE
B93: Guatemala | C93: 89 | D93: Rest of Latam | E93: =VLOOKUP(Table1[[#This Row],[Price Region]],PRICEREGIONLIST,2,FALSE) -> 19 | F93: =VLOOKUP(Table1[[#This Row],[Price Region]],PRICEREGIONLIST,3,FALSE) -> USD | G93: =IFERROR(VLOOKUP(Table1[[#This Row],[Country Name]],EXCOUNTRYLIST,1,FALSE)<>"N/A","FALSE") -> FALSE | H93: =VLOOKUP(Table1[[#This Row],[Price Region]],PRICEREGIONLIST,4,FALSE) -> FALSE | I93: =VLOOKUP(Table1[[#This Row],[Price Region]],PRICEREGIONLIST,5,FALSE) -> FALSE
B94: Guinea | C94: 90 | D94: Africa | E94: =VLOOKUP(Table1[[#This Row],[Price Region]],PRICEREGIONLIST,2,FALSE) -> 1 | F94: =VLOOKUP(Table1[[#This Row],[Price Region]],PRICEREGIONLIST,3,FALSE) -> USD | G94: =IFERROR(VLOOKUP(Table1[[#This Row],[Country Name]],EXCOUNTRYLIST,1,FALSE)<>"N/A","FALSE") -> FALSE | H94: =VLOOKUP(Table1[[#This Row],[Price Region]],PRICEREGIONLIST,4,FALSE) -> FALSE | I94: =VLOOKUP(Table1[[#This Row],[Price Region]],PRICEREGIONLIST,5,FALSE) -> FALSE
B95: Guinea-Bissau | C95: 91 | D95: Africa | E95: =VLOOKUP(Table1[[#This Row],[Price Region]],PRICEREGIONLIST,2,FALSE) -> 1 | F95: =VLOOKUP(Table1[[#This Row],[Price Region]],PRICEREGIONLIST,3,FALSE) -> USD | G95: =IFERROR(VLOOKUP(Table1[[#This Row],[Country Name]],EXCOUNTRYLIST,1,FALSE)<>"N/A","FALSE") -> FALSE | H95: =VLOOKUP(Table1[[#This Row],[Price Region]],PRICEREGIONLIST,4,FALSE) -> FALSE | I95: =VLOOKUP(Table1[[#This Row],[Price Region]],PRICEREGIONLIST,5,FALSE) -> FALSE
B96: Guyana | C96: 92 | D96: Latam Caribbean | E96: =VLOOKUP(Table1[[#This Row],[Price Region]],PRICEREGIONLIST,2,FALSE) -> 14 | F96: =VLOOKUP(Table1[[#This Row],[Price Region]],PRICEREGIONLIST,3,FALSE) -> USD | G96: =IFERROR(VLOOKUP(Table1[[#This Row],[Country Name]],EXCOUNTRYLIST,1,FALSE)<>"N/A","FALSE") -> FALSE | H96: =VLOOKUP(Table1[[#This Row],[Price Region]],PRICEREGIONLIST,4,FALSE) -> FALSE | I96: =VLOOKUP(Table1[[#This Row],[Price Region]],PRICEREGIONLIST,5,FALSE) -> FALSE
B97: Haiti | C97: 93 | D97: Latam Caribbean | E97: =VLOOKUP(Table1[[#This Row],[Price Region]],PRICEREGIONLIST,2,FALSE) -> 14 | F97: =VLOOKUP(Table1[[#This Row],[Price Region]],PRICEREGIONLIST,3,FALSE) -> USD | G97: =IFERROR(VLOOKUP(Table1[[#This Row],[Country Name]],EXCOUNTRYLIST,1,FALSE)<>"N/A","FALSE") -> FALSE | H97: =VLOOKUP(Table1[[#This Row],[Price Region]],PRICEREGIONLIST,4,FALSE) -> FALSE | I97: =VLOOKUP(Table1[[#This Row],[Price Region]],PRICEREGIONLIST,5,FALSE) -> FALSE
B98: Heard Island and McDonald Islands | C98: 94 | D98: Australia | E98: =VLOOKUP(Table1[[#This Row],[Price Region]],PRICEREGIONLIST,2,FALSE) -> 3 | F98: =VLOOKUP(Table1[[#This Row],[Price Region]],PRICEREGIONLIST,3,FALSE) -> AUD | G98: =IFERROR(VLOOKUP(Table1[[#This Row],[Country Name]],EXCOUNTRYLIST,1,FALSE)<>"N/A","FALSE") -> FALSE | H98: =VLOOKUP(Table1[[#This Row],[Price Region]],PRICEREGIONLIST,4,FALSE) -> FALSE | I98: =VLOOKUP(Table1[[#This Row],[Price Region]],PRICEREGIONLIST,5,FALSE) -> FALSE
B99: Honduras | C99: 95 | D99: Rest of Latam | E99: =VLOOKUP(Table1[[#This Row],[Price Region]],PRICEREGIONLIST,2,FALSE) -> 19 | F99: =VLOOKUP(Table1[[#This Row],[Price Region]],PRICEREGIONLIST,3,FALSE) -> USD | G99: =IFERROR(VLOOKUP(Table1[[#This Row],[Country Name]],EXCOUNTRYLIST,1,FALSE)<>"N/A","FALSE") -> FALSE | H99: =VLOOKUP(Table1[[#This Row],[Price Region]],PRICEREGIONLIST,4,FALSE) -> FALSE | I99: =VLOOKUP(Table1[[#This Row],[Price Region]],PRICEREGIONLIST,5,FALSE) -> FALSE
B100: Hong Kong SAR | C100: 96 | D100: South East Asia | E100: =VLOOKUP(Table1[[#This Row],[Price Region]],PRICEREGIONLIST,2,FALSE) -> 23 | F100: =VLOOKUP(Table1[[#This Row],[Price Region]],PRICEREGIONLIST,3,FALSE) -> USD | G100: =IFERROR(VLOOKUP(Table1[[#This Row],[Country Name]],EXCOUNTRYLIST,1,FALSE)<>"N/A","FALSE") -> FALSE | H100: =VLOOKUP(Table1[[#This Row],[Price Region]],PRICEREGIONLIST,4,FALSE) -> FALSE | I100: =VLOOKUP(Table1[[#This Row],[Price Region]],PRICEREGIONLIST,5,FALSE) -> FALSE
B101: Hungary | C101: 97 | D101: Eurozone | E101: =VLOOKUP(Table1[[#This Row],[Price Region]],PRICEREGIONLIST,2,FALSE) -> 26 | F101: =VLOOKUP(Table1[[#This Row],[Price Region]],PRICEREGIONLIST,3,FALSE) -> EUR | G101: =IFERROR(VLOOKUP(Table1[[#This Row],[Country Name]],EXCOUNTRYLIST,1,FALSE)<>"N/A","FALSE") -> FALSE | H101: =VLOOKUP(Table1[[#This Row],[Price Region]],PRICEREGIONLIST,4,FALSE) -> TRUE | I101: =VLOOKUP(Table1[[#This Row],[Price Region]],PRICEREGIONLIST,5,FALSE) -> FALSE
B102: Iceland | C102: 98 | D102: Eurozone | E102: =VLOOKUP(Table1[[#This Row],[Price Region]],PRICEREGIONLIST,2,FALSE) -> 26 | F102: =VLOOKUP(Table1[[#This Row],[Price Region]],PRICEREGIONLIST,3,FALSE) -> EUR | G102: =IFERROR(VLOOKUP(Table1[[#This Row],[Country Name]],EXCOUNTRYLIST,1,FALSE)<>"N/A","FALSE") -> FALSE | H102: =VLOOKUP(Table1[[#This Row],[Price Region]],PRICEREGIONLIST,4,FALSE) -> TRUE | I102: =VLOOKUP(Table1[[#This Row],[Price Region]],PRICEREGIONLIST,5,FALSE) -> FALSE
B103: India | C103: 99 | D103: India | E103: =VLOOKUP(Table1[[#This Row],[Price Region]],PRICEREGIONLIST,2,FALSE) -> 12 | F103: =VLOOKUP(Table1[[#This Row],[Price Region]],PRICEREGIONLIST,3,FALSE) -> INR | G103: =IFERROR(VLOOKUP(Table1[[#This Row],[Country Name]],EXCOUNTRYLIST,1,FALSE)<>"N/A","FALSE") -> FALSE | H103: =VLOOKUP(Table1[[#This Row],[Price Region]],PRICEREGIONLIST,4,FALSE) -> FALSE | I103: =VLOOKUP(Table1[[#This Row],[Price Region]],PRICEREGIONLIST,5,FALSE) -> FALSE
B104: Indonesia | C104: 100 | D104: South East Asia | E104: =VLOOKUP(Table1[[#This Row],[Price Region]],PRICEREGIONLIST,2,FALSE) -> 23 | F104: =VLOOKUP(Table1[[#This Row],[Price Region]],PRICEREGIONLIST,3,FALSE) -> USD | G104: =IFERROR(VLOOKUP(Table1[[#This Row],[Country Name]],EXCOUNTRYLIST,1,FALSE)<>"N/A","FALSE") -> FALSE | H104: =VLOOKUP(Table1[[#This Row],[Price Region]],PRICEREGIONLIST,4,FALSE) -> FALSE | I104: =VLOOKUP(Table1[[#This Row],[Price Region]],PRICEREGIONLIST,5,FALSE) -> FALSE
B105: Iran | C105: 101 | D105: Middle East | E105: =VLOOKUP(Table1[[#This Row],[Price Region]],PRICEREGIONLIST,2,FALSE) -> 17 | F105: =VLOOKUP(Table1[[#This Row],[Price Region]],PRICEREGIONLIST,3,FALSE) -> USD | G105: =IFERROR(VLOOKUP(Table1[[#This Row],[Country Name]],EXCOUNTRYLIST,1,FALSE)<>"N/A","FALSE") -> TRUE | H105: =VLOOKUP(Table1[[#This Row],[Price Region]],PRICEREGIONLIST,4,FALSE) -> FALSE | I105: =VLOOKUP(Table1[[#This Row],[Price Region]],PRICEREGIONLIST,5,FALSE) -> FALSE
B106: Iraq | C106: 102 | D106: Middle East | E106: =VLOOKUP(Table1[[#This Row],[Price Region]],PRICEREGIONLIST,2,FALSE) -> 17 | F106: =VLOOKUP(Table1[[#This Row],[Price Region]],PRICEREGIONLIST,3,FALSE) -> USD | G106: =IFERROR(VLOOKUP(Table1[[#This Row],[Country Name]],EXCOUNTRYLIST,1,FALSE)<>"N/A","FALSE") -> FALSE | H106: =VLOOKUP(Table1[[#This Row],[Price Region]],PRICEREGIONLIST,4,FALSE) -> FALSE | I106: =VLOOKUP(Table1[[#This Row],[Price Region]],PRICEREGIONLIST,5,FALSE) -> FALSE
B107: Ireland, Republic of | C107: 103 | D107: Eurozone | E107: =VLOOKUP(Table1[[#This Row],[Price Region]],PRICEREGIONLIST,2,FALSE) -> 26 | F107: =VLOOKUP(Table1[[#This Row],[Price Region]],PRICEREGIONLIST,3,FALSE) -> EUR | G107: =IFERROR(VLOOKUP(Table1[[#This Row],[Country Name]],EXCOUNTRYLIST,1,FALSE)<>"N/A","FALSE") -> FALSE | H107: =VLOOKUP(Table1[[#This Row],[Price Region]],PRICEREGIONLIST,4,FALSE) -> TRUE | I107: =VLOOKUP(Table1[[#This Row],[Price Region]],PRICEREGIONLIST,5,FALSE) -> FALSE
B108: Israel | C108: 104 | D108: Middle East | E108: =VLOOKUP(Table1[[#This Row],[Price Region]],PRICEREGIONLIST,2,FALSE) -> 17 | F108: =VLOOKUP(Table1[[#This Row],[Price Region]],PRICEREGIONLIST,3,FALSE) -> USD | G108: =IFERROR(VLOOKUP(Table1[[#This Row],[Country Name]],EXCOUNTRYLIST,1,FALSE)<>"N/A","FALSE") -> FALSE | H108: =VLOOKUP(Table1[[#This Row],[Price Region]],PRICEREGIONLIST,4,FALSE) -> FALSE | I108: =VLOOKUP(Table1[[#This Row],[Price Region]],PRICEREGIONLIST,5,FALSE) -> FALSE
B109: Italy | C109: 105 | D109: Eurozone | E109: =VLOOKUP(Table1[[#This Row],[Price Region]],PRICEREGIONLIST,2,FALSE) -> 26 | F109: =VLOOKUP(Table1[[#This Row],[Price Region]],PRICEREGIONLIST,3,FALSE) -> EUR | G109: =IFERROR(VLOOKUP(Table1[[#This Row],[Country Name]],EXCOUNTRYLIST,1,FALSE)<>"N/A","FALSE") -> FALSE | H109: =VLOOKUP(Table1[[#This Row],[Price Region]],PRICEREGIONLIST,4,FALSE) -> TRUE | I109: =VLOOKUP(Table1[[#This Row],[Price Region]],PRICEREGIONLIST,5,FALSE) -> FALSE
B110: Jamaica | C110: 106 | D110: Latam Caribbean | E110: =VLOOKUP(Table1[[#This Row],[Price Region]],PRICEREGIONLIST,2,FALSE) -> 14 | F110: =VLOOKUP(Table1[[#This Row],[Price Region]],PRICEREGIONLIST,3,FALSE) -> USD | G110: =IFERROR(VLOOKUP(Table1[[#This Row],[Country Name]],EXCOUNTRYLIST,1,FALSE)<>"N/A","FALSE") -> FALSE | H110: =VLOOKUP(Table1[[#This Row],[Price Region]],PRICEREGIONLIST,4,FALSE) -> FALSE | I110: =VLOOKUP(Table1[[#This Row],[Price Region]],PRICEREGIONLIST,5,FALSE) -> FALSE
B111: Japan | C111: 107 | D111: Japan | E111: =VLOOKUP(Table1[[#This Row],[Price Region]],PRICEREGIONLIST,2,FALSE) -> 13 | F111: =VLOOKUP(Table1[[#This Row],[Price Region]],PRICEREGIONLIST,3,FALSE) -> JPY | G111: =IFERROR(VLOOKUP(Table1[[#This Row],[Country Name]],EXCOUNTRYLIST,1,FALSE)<>"N/A","FALSE") -> FALSE | H111: =VLOOKUP(Table1[[#This Row],[Price Region]],PRICEREGIONLIST,4,FALSE) -> FALSE | I111: =VLOOKUP(Table1[[#This Row],[Price Region]],PRICEREGIONLIST,5,FALSE) -> FALSE
B112: Jordan | C112: 108 | D112: Middle East | E112: =VLOOKUP(Table1[[#This Row],[Price Region]],PRICEREGIONLIST,2,FALSE) -> 17 | F112: =VLOOKUP(Table1[[#This Row],[Price Region]],PRICEREGIONLIST,3,FALSE) -> USD | G112: =IFERROR(VLOOKUP(Table1[[#This Row],[Country Name]],EXCOUNTRYLIST,1,FALSE)<>"N/A","FALSE") -> FALSE | H112: =VLOOKUP(Table1[[#This Row],[Price Region]],PRICEREGIONLIST,4,FALSE) -> FALSE | I112: =VLOOKUP(Table1[[#This Row],[Price Region]],PRICEREGIONLIST,5,FALSE) -> FALSE
B113: Kazakhstan | C113: 109 | D113: Central Asia 2 - CEE 2 | E113: =VLOOKUP(Table1[[#This Row],[Price Region]],PRICEREGIONLIST,2,FALSE) -> 6 | F113: =VLOOKUP(Table1[[#This Row],[Price Region]],PRICEREGIONLIST,3,FALSE) -> USD | G113: =IFERROR(VLOOKUP(Table1[[#This Row],[Country Name]],EXCOUNTRYLIST,1,FALSE)<>"N/A","FALSE") -> FALSE | H113: =VLOOKUP(Table1[[#This Row],[Price Region]],PRICEREGIONLIST,4,FALSE) -> FALSE | I113: =VLOOKUP(Table1[[#This Row],[Price Region]],PRICEREGIONLIST,5,FALSE) -> FALSE
B114: Kenya | C114: 110 | D114: Africa | E114: =VLOOKUP(Table1[[#This Row],[Price Region]],PRICEREGIONLIST,2,FALSE) -> 1 | F114: =VLOOKUP(Table1[[#This Row],[Price Region]],PRICEREGIONLIST,3,FALSE) -> USD | G114: =IFERROR(VLOOKUP(Table1[[#This Row],[Country Name]],EXCOUNTRYLIST,1,FALSE)<>"N/A","FALSE") -> FALSE | H114: =VLOOKUP(Table1[[#This Row],[Price Region]],PRICEREGIONLIST,4,FALSE) -> FALSE | I114: =VLOOKUP(Table1[[#This Row],[Price Region]],PRICEREGIONLIST,5,FALSE) -> FALSE
B115: Kiribati | C115: 111 | D115: Australia | E115: =VLOOKUP(Table1[[#This Row],[Price Region]],PRICEREGIONLIST,2,FALSE) -> 3 | F115: =VLOOKUP(Table1[[#This Row],[Price Region]],PRICEREGIONLIST,3,FALSE) -> AUD | G115: =IFERROR(VLOOKUP(Table1[[#This Row],[Country Name]],EXCOUNTRYLIST,1,FALSE)<>"N/A","FALSE") -> FALSE | H115: =VLOOKUP(Table1[[#This Row],[Price Region]],PRICEREGIONLIST,4,FALSE) -> FALSE | I115: =VLOOKUP(Table1[[#This Row],[Price Region]],PRICEREGIONLIST,5,FALSE) -> FALSE
B116: Korea, North | C116: 112 | D116: South East Asia | E116: =VLOOKUP(Table1[[#This Row],[Price Region]],PRICEREGIONLIST,2,FALSE) -> 23 | F116: =VLOOKUP(Table1[[#This Row],[Price Region]],PRICEREGIONLIST,3,FALSE) -> USD | G116: =IFERROR(VLOOKUP(Table1[[#This Row],[Country Name]],EXCOUNTRYLIST,1,FALSE)<>"N/A","FALSE") -> TRUE | H116: =VLOOKUP(Table1[[#This Row],[Price Region]],PRICEREGIONLIST,4,FALSE) -> FALSE | I116: =VLOOKUP(Table1[[#This Row],[Price Region]],PRICEREGIONLIST,5,FALSE) -> FALSE
B117: Korea, South | C117: 113 | D117: South East Asia | E117: =VLOOKUP(Table1[[#This Row],[Price Region]],PRICEREGIONLIST,2,FALSE) -> 23 | F117: =VLOOKUP(Table1[[#This Row],[Price Region]],PRICEREGIONLIST,3,FALSE) -> USD | G117: =IFERROR(VLOOKUP(Table1[[#This Row],[Country Name]],EXCOUNTRYLIST,1,FALSE)<>"N/A","FALSE") -> FALSE | H117: =VLOOKUP(Table1[[#This Row],[Price Region]],PRICEREGIONLIST,4,FALSE) -> FALSE | I117: =VLOOKUP(Table1[[#This Row],[Price Region]],PRICEREGIONLIST,5,FALSE) -> FALSE
B118: Kuwait | C118: 114 | D118: Middle East | E118: =VLOOKUP(Table1[[#This Row],[Price Region]],PRICEREGIONLIST,2,FALSE) -> 17 | F118: =VLOOKUP(Table1[[#This Row],[Price Region]],PRICEREGIONLIST,3,FALSE) -> USD | G118: =IFERROR(VLOOKUP(Table1[[#This Row],[Country Name]],EXCOUNTRYLIST,1,FALSE)<>"N/A","FALSE") -> FALSE | H118: =VLOOKUP(Table1[[#This Row],[Price Region]],PRICEREGIONLIST,4,FALSE) -> FALSE | I118: =VLOOKUP(Table1[[#This Row],[Price Region]],PRICEREGIONLIST,5,FALSE) -> FALSE
B119: Kyrgyzstan | C119: 115 | D119: Central Asia 1 - CEE 1 | E119: =VLOOKUP(Table1[[#This Row],[Price Region]],PRICEREGIONLIST,2,FALSE) -> 5 | F119: =VLOOKUP(Table1[[#This Row],[Price Region]],PRICEREGIONLIST,3,FALSE) -> USD | G119: =IFERROR(VLOOKUP(Table1[[#This Row],[Country Name]],EXCOUNTRYLIST,1,FALSE)<>"N/A","FALSE") -> FALSE | H119: =VLOOKUP(Table1[[#This Row],[Price Region]],PRICEREGIONLIST,4,FALSE) -> FALSE | I119: =VLOOKUP(Table1[[#This Row],[Price Region]],PRICEREGIONLIST,5,FALSE) -> FALSE
B120: Laos | C120: 116 | D120: South East Asia | E120: =VLOOKUP(Table1[[#This Row],[Price Region]],PRICEREGIONLIST,2,FALSE) -> 23 | F120: =VLOOKUP(Table1[[#This Row],[Price Region]],PRICEREGIONLIST,3,FALSE) -> USD | G120: =IFERROR(VLOOKUP(Table1[[#This Row],[Country Name]],EXCOUNTRYLIST,1,FALSE)<>"N/A","FALSE") -> FALSE | H120: =VLOOKUP(Table1[[#This Row],[Price Region]],PRICEREGIONLIST,4,FALSE) -> FALSE | I120: =VLOOKUP(Table1[[#This Row],[Price Region]],PRICEREGIONLIST,5,FALSE) -> FALSE
B121: Latvia | C121: 117 | D121: Eurozone | E121: =VLOOKUP(Table1[[#This Row],[Price Region]],PRICEREGIONLIST,2,FALSE) -> 26 | F121: =VLOOKUP(Table1[[#This Row],[Price Region]],PRICEREGIONLIST,3,FALSE) -> EUR | G121: =IFERROR(VLOOKUP(Table1[[#This Row],[Country Name]],EXCOUNTRYLIST,1,FALSE)<>"N/A","FALSE") -> FALSE | H121: =VLOOKUP(Table1[[#This Row],[Price Region]],PRICEREGIONLIST,4,FALSE) -> TRUE | I121: =VLOOKUP(Table1[[#This Row],[Price Region]],PRICEREGIONLIST,5,FALSE) -> FALSE
B122: Lebanon | C122: 118 | D122: Middle East | E122: =VLOOKUP(Table1[[#This Row],[Price Region]],PRICEREGIONLIST,2,FALSE) -> 17 | F122: =VLOOKUP(Table1[[#This Row],[Price Region]],PRICEREGIONLIST,3,FALSE) -> USD | G122: =IFERROR(VLOOKUP(Table1[[#This Row],[Country Name]],EXCOUNTRYLIST,1,FALSE)<>"N/A","FALSE") -> FALSE | H122: =VLOOKUP(Table1[[#This Row],[Price Region]],PRICEREGIONLIST,4,FALSE) -> FALSE | I122: =VLOOKUP(Table1[[#This Row],[Price Region]],PRICEREGIONLIST,5,FALSE) -> FALSE
B123: Lesotho | C123: 119 | D123: Africa | E123: =VLOOKUP(Table1[[#This Row],[Price Region]],PRICEREGIONLIST,2,FALSE) -> 1 | F123: =VLOOKUP(Table1[[#This Row],[Price Region]],PRICEREGIONLIST,3,FALSE) -> USD | G123: =IFERROR(VLOOKUP(Table1[[#This Row],[Country Name]],EXCOUNTRYLIST,1,FALSE)<>"N/A","FALSE") -> FALSE | H123: =VLOOKUP(Table1[[#This Row],[Price Region]],PRICEREGIONLIST,4,FALSE) -> FALSE | I123: =VLOOKUP(Table1[[#This Row],[Price Region]],PRICEREGIONLIST,5,FALSE) -> FALSE
B124: Liberia | C124: 120 | D124: Africa | E124: =VLOOKUP(Table1[[#This Row],[Price Region]],PRICEREGIONLIST,2,FALSE) -> 1 | F124: =VLOOKUP(Table1[[#This Row],[Price Region]],PRICEREGIONLIST,3,FALSE) -> USD | G124: =IFERROR(VLOOKUP(Table1[[#This Row],[Country Name]],EXCOUNTRYLIST,1,FALSE)<>"N/A","FALSE") -> FALSE | H124: =VLOOKUP(Table1[[#This Row],[Price Region]],PRICEREGIONLIST,4,FALSE) -> FALSE | I124: =VLOOKUP(Table1[[#This Row],[Price Region]],PRICEREGIONLIST,5,FALSE) -> FALSE
B125: Libya | C125: 121 | D125: Africa | E125: =VLOOKUP(Table1[[#This Row],[Price Region]],PRICEREGIONLIST,2,FALSE) -> 1 | F125: =VLOOKUP(Table1[[#This Row],[Price Region]],PRICEREGIONLIST,3,FALSE) -> USD | G125: =IFERROR(VLOOKUP(Table1[[#This Row],[Country Name]],EXCOUNTRYLIST,1,FALSE)<>"N/A","FALSE") -> FALSE | H125: =VLOOKUP(Table1[[#This Row],[Price Region]],PRICEREGIONLIST,4,FALSE) -> FALSE | I125: =VLOOKUP(Table1[[#This Row],[Price Region]],PRICEREGIONLIST,5,FALSE) -> FALSE
B126: Liechtenstein | C126: 122 | D126: Switzerland2 | E126: =VLOOKUP(Table1[[#This Row],[Price Region]],PRICEREGIONLIST,2,FALSE) -> 30 | F126: =VLOOKUP(Table1[[#This Row],[Price Region]],PRICEREGIONLIST,3,FALSE) -> CHF | G126: =IFERROR(VLOOKUP(Table1[[#This Row],[Country Name]],EXCOUNTRYLIST,1,FALSE)<>"N/A","FALSE") -> FALSE | H126: =VLOOKUP(Table1[[#This Row],[Price Region]],PRICEREGIONLIST,4,FALSE) -> TRUE | I126: =VLOOKUP(Table1[[#This Row],[Price Region]],PRICEREGIONLIST,5,FALSE) -> TRUE
B127: Lithuania | C127: 123 | D127: Eurozone | E127: =VLOOKUP(Table1[[#This Row],[Price Region]],PRICEREGIONLIST,2,FALSE) -> 26 | F127: =VLOOKUP(Table1[[#This Row],[Price Region]],PRICEREGIONLIST,3,FALSE) -> EUR | G127: =IFERROR(VLOOKUP(Table1[[#This Row],[Country Name]],EXCOUNTRYLIST,1,FALSE)<>"N/A","FALSE") -> FALSE | H127: =VLOOKUP(Table1[[#This Row],[Price Region]],PRICEREGIONLIST,4,FALSE) -> TRUE | I127: =VLOOKUP(Table1[[#This Row],[Price Region]],PRICEREGIONLIST,5,FALSE) -> FALSE
B128: Luxembourg | C128: 124 | D128: Eurozone | E128: =VLOOKUP(Table1[[#This Row],[Price Region]],PRICEREGIONLIST,2,FALSE) -> 26 | F128: =VLOOKUP(Table1[[#This Row],[Price Region]],PRICEREGIONLIST,3,FALSE) -> EUR | G128: =IFERROR(VLOOKUP(Table1[[#This Row],[Country Name]],EXCOUNTRYLIST,1,FALSE)<>"N/A","FALSE") -> FALSE | H128: =VLOOKUP(Table1[[#This Row],[Price Region]],PRICEREGIONLIST,4,FALSE) -> TRUE | I128: =VLOOKUP(Table1[[#This Row],[Price Region]],PRICEREGIONLIST,5,FALSE) -> FALSE
B129: Macao SAR | C129: 125 | D129: South East Asia | E129: =VLOOKUP(Table1[[#This Row],[Price Region]],PRICEREGIONLIST,2,FALSE) -> 23 | F129: =VLOOKUP(Table1[[#This Row],[Price Region]],PRICEREGIONLIST,3,FALSE) -> USD | G129: =IFERROR(VLOOKUP(Table1[[#This Row],[Country Name]],EXCOUNTRYLIST,1,FALSE)<>"N/A","FALSE") -> FALSE | H129: =VLOOKUP(Table1[[#This Row],[Price Region]],PRICEREGIONLIST,4,FALSE) -> FALSE | I129: =VLOOKUP(Table1[[#This Row],[Price Region]],PRICEREGIONLIST,5,FALSE) -> FALSE
B130: Macedonia | C130: 126 | D130: Eastern Europe 1 | E130: =VLOOKUP(Table1[[#This Row],[Price Region]],PRICEREGIONLIST,2,FALSE) -> 10 | F130: =VLOOKUP(Table1[[#This Row],[Price Region]],PRICEREGIONLIST,3,FALSE) -> USD | G130: =IFERROR(VLOOKUP(Table1[[#This Row],[Country Name]],EXCOUNTRYLIST,1,FALSE)<>"N/A","FALSE") -> FALSE | H130: =VLOOKUP(Table1[[#This Row],[Price Region]],PRICEREGIONLIST,4,FALSE) -> FALSE | I130: =VLOOKUP(Table1[[#This Row],[Price Region]],PRICEREGIONLIST,5,FALSE) -> FALSE
B131: Madagascar | C131: 127 | D131: Africa | E131: =VLOOKUP(Table1[[#This Row],[Price Region]],PRICEREGIONLIST,2,FALSE) -> 1 | F131: =VLOOKUP(Table1[[#This Row],[Price Region]],PRICEREGIONLIST,3,FALSE) -> USD | G131: =IFERROR(VLOOKUP(Table1[[#This Row],[Country Name]],EXCOUNTRYLIST,1,FALSE)<>"N/A","FALSE") -> FALSE | H131: =VLOOKUP(Table1[[#This Row],[Price Region]],PRICEREGIONLIST,4,FALSE) -> FALSE | I131: =VLOOKUP(Table1[[#This Row],[Price Region]],PRICEREGIONLIST,5,FALSE) -> FALSE
B132: Malawi | C132: 128 | D132: Africa | E132: =VLOOKUP(Table1[[#This Row],[Price Region]],PRICEREGIONLIST,2,FALSE) -> 1 | F132: =VLOOKUP(Table1[[#This Row],[Price Region]],PRICEREGIONLIST,3,FALSE) -> USD | G132: =IFERROR(VLOOKUP(Table1[[#This Row],[Country Name]],EXCOUNTRYLIST,1,FALSE)<>"N/A","FALSE") -> FALSE | H132: =VLOOKUP(Table1[[#This Row],[Price Region]],PRICEREGIONLIST,4,FALSE) -> FALSE | I132: =VLOOKUP(Table1[[#This Row],[Price Region]],PRICEREGIONLIST,5,FALSE) -> FALSE
B133: Malaysia | C133: 129 | D133: South East Asia | E133: =VLOOKUP(Table1[[#This Row],[Price Region]],PRICEREGIONLIST,2,FALSE) -> 23 | F133: =VLOOKUP(Table1[[#This Row],[Price Region]],PRICEREGIONLIST,3,FALSE) -> USD | G133: =IFERROR(VLOOKUP(Table1[[#This Row],[Country Name]],EXCOUNTRYLIST,1,FALSE)<>"N/A","FALSE") -> FALSE | H133: =VLOOKUP(Table1[[#This Row],[Price Region]],PRICEREGIONLIST,4,FALSE) -> FALSE | I133: =VLOOKUP(Table1[[#This Row],[Price Region]],PRICEREGIONLIST,5,FALSE) -> FALSE
B134: Maldives | C134: 130 | D134: South East Asia | E134: =VLOOKUP(Table1[[#This Row],[Price Region]],PRICEREGIONLIST,2,FALSE) -> 23 | F134: =VLOOKUP(Table1[[#This Row],[Price Region]],PRICEREGIONLIST,3,FALSE) -> USD | G134: =IFERROR(VLOOKUP(Table1[[#This Row],[Country Name]],EXCOUNTRYLIST,1,FALSE)<>"N/A","FALSE") -> FALSE | H134: =VLOOKUP(Table1[[#This Row],[Price Region]],PRICEREGIONLIST,4,FALSE) -> FALSE | I134: =VLOOKUP(Table1[[#This Row],[Price Region]],PRICEREGIONLIST,5,FALSE) -> FALSE
B135: Mali | C135: 131 | D135: Africa | E135: =VLOOKUP(Table1[[#This Row],[Price Region]],PRICEREGIONLIST,2,FALSE) -> 1 | F135: =VLOOKUP(Table1[[#This Row],[Price Region]],PRICEREGIONLIST,3,FALSE) -> USD | G135: =IFERROR(VLOOKUP(Table1[[#This Row],[Country Name]],EXCOUNTRYLIST,1,FALSE)<>"N/A","FALSE") -> FALSE | H135: =VLOOKUP(Table1[[#This Row],[Price Region]],PRICEREGIONLIST,4,FALSE) -> FALSE | I135: =VLOOKUP(Table1[[#This Row],[Price Region]],PRICEREGIONLIST,5,FALSE) -> FALSE
B136: Malta | C136: 132 | D136: Eurozone | E136: =VLOOKUP(Table1[[#This Row],[Price Region]],PRICEREGIONLIST,2,FALSE) -> 26 | F136: =VLOOKUP(Table1[[#This Row],[Price Region]],PRICEREGIONLIST,3,FALSE) -> EUR | G136: =IFERROR(VLOOKUP(Table1[[#This Row],[Country Name]],EXCOUNTRYLIST,1,FALSE)<>"N/A","FALSE") -> FALSE | H136: =VLOOKUP(Table1[[#This Row],[Price Region]],PRICEREGIONLIST,4,FALSE) -> TRUE | I136: =VLOOKUP(Table1[[#This Row],[Price Region]],PRICEREGIONLIST,5,FALSE) -> FALSE
B137: Marshall Islands | C137: 133 | D137: APOC United States | E137: =VLOOKUP(Table1[[#This Row],[Price Region]],PRICEREGIONLIST,2,FALSE) -> 2 | F137: =VLOOKUP(Table1[[#This Row],[Price Region]],PRICEREGIONLIST,3,FALSE) -> USD | G137: =IFERROR(VLOOKUP(Table1[[#This Row],[Country Name]],EXCOUNTRYLIST,1,FALSE)<>"N/A","FALSE") -> FALSE | H137: =VLOOKUP(Table1[[#This Row],[Price Region]],PRICEREGIONLIST,4,FALSE) -> FALSE | I137: =VLOOKUP(Table1[[#This Row],[Price Region]],PRICEREGIONLIST,5,FALSE) -> FALSE
B138: Martinique | C138: 134 | D138: Eurozone | E138: =VLOOKUP(Table1[[#This Row],[Price Region]],PRICEREGIONLIST,2,FALSE) -> 26 | F138: =VLOOKUP(Table1[[#This Row],[Price Region]],PRICEREGIONLIST,3,FALSE) -> EUR | G138: =IFERROR(VLOOKUP(Table1[[#This Row],[Country Name]],EXCOUNTRYLIST,1,FALSE)<>"N/A","FALSE") -> FALSE | H138: =VLOOKUP(Table1[[#This Row],[Price Region]],PRICEREGIONLIST,4,FALSE) -> TRUE | I138: =VLOOKUP(Table1[[#This Row],[Price Region]],PRICEREGIONLIST,5,FALSE) -> FALSE
B139: Mauritania | C139: 135 | D139: Africa | E139: =VLOOKUP(Table1[[#This Row],[Price Region]],PRICEREGIONLIST,2,FALSE) -> 1 | F139: =VLOOKUP(Table1[[#This Row],[Price Region]],PRICEREGIONLIST,3,FALSE) -> USD | G139: =IFERROR(VLOOKUP(Table1[[#This Row],[Country Name]],EXCOUNTRYLIST,1,FALSE)<>"N/A","FALSE") -> FALSE | H139: =VLOOKUP(Table1[[#This Row],[Price Region]],PRICEREGIONLIST,4,FALSE) -> FALSE | I139: =VLOOKUP(Table1[[#This Row],[Price Region]],PRICEREGIONLIST,5,FALSE) -> FALSE
